Workbook

Sheet прил. к ДС
E1: Стоимость работ, руб с НДС | G1: Стоимость материалов, руб с НДС | J1: Стоимость работ, руб с НДС | L1: Стоимость материалов, руб с НДС | X1: 1.3 | Y1: 1.31 | Z1: 1.7 | AB1: 1.1883 | AC1: 1.18524 | AD1: КИК | AK1: Сопастовительная ведомость с подрядчиком | AL1: Вывести красные итоги в суммы подписанного КП | AM1: Проверка нового себеса черные зеленые с кп подрядчиков | AN1: Проверка рентабельности | AO1: Сверка ед.расценок по закрытой КС | AP1: Сравнение объемов по рабочке к конкурсу и финальной вер ЗАПУСК КОР В РАМКАХ АН | AQ1: Проверка с финальной версией проекта | AR1: Внесение изменений в ведомость с нумерацией в КС | AS1: Финальная проверка изменений
A2: № | B2: Наименовение | C2: Ед.изм | D2: Кол-во | E2: за ед. | F2: итого | G2: за ед | H2: итого | I2: Итого, руб с НДС | J2: за ед. | K2: итого | L2: за ед | M2: итого | N2: Итого, руб с НДС | O2: Ед расценка СМР КиК | P2: Смета ФЕР СМР | Q2: СМР Разница КиК/ФЕР в % | R2: Ед расценка материалы КиК | S2: Смета ФССЦ материалы | T2: МТР разница КиК/ФССЦ | V2: =N1116 ->  | X2: Материалы | Y2: Работы | Z2: Оборудование | AB2: Материалы ПЖ | AC2: Работы ПЖ | AD2: ВСЕГО СМР | AE2: РЕНТ СМР | AF2: ВСЕГО МТР | AG2: рент МТР | AH2: ВСЕГО | AI2: рент | AJ2: Комментарий | AK2: 1 этап | AQ2: 2 этап | AR2: 3 этап | AS2: 4 этап | AU2: Легенда
A3: 1 | B3: Основные объекты строительства, реконструкции, капитального ремонта, в том числе:
A4: 1.1 | B4: 130-23-АС3 Архитектурно-строительные решения | F4: =F7+F8+F9+F10+F12+F13+F15+F16+F17+F18+F19+F20+F22+F24+F26+F27+F28+F29+F30+F31+F32+F33+F34+F35+F36+F37+F38+F39+F40+F41+F42+F43+F44+F45+F46+F47+F49+F50+F51+F52+F54+F55+F56+F57+F58+F59+F60+F61+F62+F63+F64+F65+F66+#REF!+F67+F68 ->  | H4: =H7+H8+H9+H10+H12+H13+H15+H16+H17+H18+H19+H20+H22+H24+H26+H27+H28+H29+H30+H31+H32+H33+H34+H35+H36+H37+H38+H39+H40+H41+H42+H43+H44+H45+H46+H47+H49+H50+H51+H52+H54+H55+H56+H57+H58+H59+H60+H61+H62+H63+H64+H65+H66+#REF!+H67+H68 ->  | I4: =I7+I8+I9+I10+I12+I13+I15+I16+I17+I18+I19+I20+I22+I24+I26+I27+I28+I29+I30+I31+I32+I33+I34+I35+I36+I37+I38+I39+I40+I41+I42+I43+I44+I45+I46+I47+I49+I50+I51+I52+I54+I55+I56+I57+I58+I59+I60+I61+I62+I63+I64+I65+I66+#REF!+I67+I68 ->  | K4: =SUM(K6:K68)-#REF! ->  | M4: =SUM(M6:M68)-#REF! ->  | N4: =SUM(N6:N68)-#REF! ->  | V4: =N4-I4 ->  | W4: =1-I4/N4 ->  | AD4: =AD7+AD8+AD9+AD10+AD12+AD13+AD15+AD16+AD17+AD18+AD19+AD20+AD22+AD24+AD26+AD27+AD28+AD29+AD30+AD31+AD32+AD33+AD34+AD35+AD36+AD37+AD38+AD39+AD40+AD41+AD42+AD43+AD44+AD45+AD46+AD47+AD49+AD50+AD51+AD52+AD54+AD55+AD56+AD57+AD58+AD59+AD60+AD61+AD62+AD63+AD64+AD65+AD66+AD67+AD68 -> 23834068.02 | AE4: =1-F4/AD4 ->  | AF4: =AF7+AF8+AF9+AF10+AF12+AF13+AF15+AF16+AF17+AF18+AF19+AF20+AF22+AF24+AF26+AF27+AF28+AF29+AF30+AF31+AF32+AF33+AF34+AF35+AF36+AF37+AF38+AF39+AF40+AF41+AF42+AF43+AF44+AF45+AF46+AF47+AF49+AF50+AF51+AF52+AF54+AF55+AF56+AF57+AF58+AF59+AF60+AF61+AF62+AF63+AF64+AF65+AF66+AF67+AF68 -> 21868543.3 | AG4: =1-H4/AF4 ->  | AH4: =AH7+AH8+AH9+AH10+AH12+AH13+AH15+AH16+AH17+AH18+AH19+AH20+AH22+AH24+AH26+AH27+AH28+AH29+AH30+AH31+AH32+AH33+AH34+AH35+AH36+AH37+AH38+AH39+AH40+AH41+AH42+AH43+AH44+AH45+AH46+AH47+AH49+AH50+AH51+AH52+AH54+AH55+AH56+AH57+AH58+AH59+AH60+AH61+AH62+AH63+AH64+AH65+AH66+AH67+AH68 -> 45702611.32 | AI4: =1-I4/AH4 ->  | AJ4: ШК | AK4: + | AP4: - | AQ4: - | AR4: - | AS4: -
A5: 1.1 | B5: 130-23-АС3 Архитектурно-строительные решения | F5: =-F7-F8-F9-F10-F12-F13-F15-F16-F17-F18-F19-F20+F21+F23-F26-F27-F28-F29-F30-F31-F32-F33-F34-F35-F36-F37-F38-F39-F40-F41-F42-F43-F44-F45-F46-F47 -> -12449082.62 | H5: =-H7-H8-H9-H10-H12-H13-H15-H16-H17-H18-H19-H20+H21+H23-H26-H27-H28-H29-H30-H31-H32-H33-H34-H35-H36-H37-H38-H39-H40-H41-H42-H43-H44-H45-H46-H47 -> -18624903.9 | I5: =-I7-I8-I9-I10-I12-I13-I15-I16-I17-I18-I19-I20+I21+I23-I26-I27-I28-I29-I30-I31-I32-I33-I34-I35-I36-I37-I38-I39-I40-I41-I42-I43-I44-I45-I46-I47 -> -31073986.51 | K5: =-K7-K8-K9-K10-K12-K13-K15-K16-K17-K18-K19-K20+K21+K23-K26-K27-K28-K29-K30-K31-K32-K33-K34-K35-K36-K37-K38-K39-K40-K41-K42-K43-K44-K45-K46-K47 -> -15156685.61 | M5: =SUM(M6:M11)-#REF!+SUM(M13:M47) ->  | N5: =SUM(N6:N11)-#REF!+SUM(N13:N47) ->  | AD5: =-AD7-AD8-AD9-AD10-AD12-AD13-AD15-AD16-AD17-AD18-AD19-AD20+AD21+AD23-AD26-AD27-AD28-AD29-AD30-AD31-AD32-AD33-AD34-AD35-AD36-AD37-AD38-AD39-AD40-AD41-AD42-AD43-AD44-AD45-AD46-AD47 -> -22129230.51 | AF5: =-AF7-AF8-AF9-AF10-AF12-AF13-AF15-AF16-AF17-AF18-AF19-AF20+AF21+AF23-AF26-AF27-AF28-AF29-AF30-AF31-AF32-AF33-AF34-AF35-AF36-AF37-AF38-AF39-AF40-AF41-AF42-AF43-AF44-AF45-AF46-AF47 -> -20718375.27 | AH5: =-AH7-AH8-AH9-AH10-AH12-AH13-AH15-AH16-AH17-AH18-AH19-AH20+AH21+AH23-AH26-AH27-AH28-AH29-AH30-AH31-AH32-AH33-AH34-AH35-AH36-AH37-AH38-AH39-AH40-AH41-AH42-AH43-AH44-AH45-AH46-AH47 -> -42847605.78 | AI5: =1-I5/AH5 -> 0.27477893 | AK5: + | AL5: +
A6: 1.1.1 | B6: Демонтажные работы | V6: =N6-I6 -> 0 | W6: =1-I6/N6 ->  | AQ6: - | AR6: - | AS6: -
A7: 1.1.1.1 | B7: Частичный демонтаж крестовых связей | C7: тн | D7: 0.44 | E7: 35355 | F7: =E7*D7 -> 15556.2 | G7: 0 | H7: =G7*D7 -> 0 | I7: =H7+F7 -> 15556.2 | J7: =E7*$Y$1 -> 46315.05 | K7: =J7*D7 -> 20378.622 | L7: =G7*$X$1 -> 0 | M7: =L7*D7 -> 0 | N7: =K7+M7 -> 20378.622 | O7: 49415 | P7: ='ВСЕ СМЕТЫ КДС'!G723 -> 42524.83948 | Q7: =O7/P7-1 -> 0.1620267262 | R7: 0 | V7: =N7-I7 -> 4822.422 | W7: =1-I7/N7 -> 0.2366412214 | AD7: =D7*O7 -> 21742.6 | AE7: =1-F7/AD7 -> 0.2845289892 | AH7: =O7*D7+R7*D7 -> 21742.6 | AI7: =1-I7/AH7 -> 0.2845289892 | AK7: +
A8: 1.1.1.2 | B8: Демонтаж сэндвич панелей | C8: м2 | D8: 389.4 | E8: 756 | F8: 294386.4 | G8: 0 | H8: 0 | I8: 294386.4 | J8: =E8*$Y$1 -> 990.36 | K8: =J8*D8 -> 385646.184 | L8: =G8*$X$1 -> 0 | M8: =L8*D8 -> 0 | N8: =K8+M8 -> 385646.184 | O8: 990 | R8: 0 | V8: =N8-I8 -> 91259.784 | W8: =1-I8/N8 -> 0.2366412214 | AD8: =D8*O8 -> 385506 | AE8: =1-F8/AD8 -> 0.2363636364 | AH8: =O8*D8+R8*D8 -> 385506 | AI8: =1-I8/AH8 -> 0.2363636364
A9: 1.1.2 | B9: Устройство фахверка | C9: тн | D9: 0.34 | E9: =71610 -> 71610 | F9: =E9*D9 -> 24347.4 | G9: 166522 | H9: =G9*D9 -> 56617.48 | I9: =H9+F9 -> 80964.88 | J9: 93809.1 | K9: 31895.094 | L9: 216478.6 | M9: =L9*D9 -> 73602.724 | N9: 105497.818 | O9: 95478 | P9: ='ВСЕ СМЕТЫ КДС'!G2447 -> 81128.97336 | Q9: =O9/P9-1 -> 0.1768668583 | R9: 229000 | S9: ='ВСЕ СМЕТЫ КДС'!G2448+'ВСЕ СМЕТЫ КДС'!G2449 -> 124240.4976 | T9: =R9/S9-1 -> 0.8431993144 | V9: =N9-I9 -> 24532.938 | W9: =1-I9/N9 -> 0.2325445063 | AD9: =D9*O9 -> 32462.52 | AE9: =1-F9/AD9 -> 0.2499842896 | AF9: =D9*R9 -> 77860 | AG9: =1-H9/AF9 -> 0.2728296943 | AH9: =O9*D9+R9*D9 -> 110322.52 | AI9: =1-I9/AH9 -> 0.2661074094 | AK9: - | AQ9: - | AR9: - | AS9: -
A10: 1.1.3 | B10: Устройство сэндвич панелей | C10: м2 | D10: 389.4 | E10: 1443.75 | F10: 562196.25 | G10: 4095.3 | H10: 1594709.82 | I10: 2156906.07 | J10: 1891.3125 | K10: 736477.0875 | L10: 5323.89 | M10: =L10*D10 -> 2073122.766 | N10: 2809599.854 | O10: 2711 | P10: ='ВСЕ СМЕТЫ КДС'!G50+'ВСЕ СМЕТЫ КДС'!G55+'ВСЕ СМЕТЫ КДС'!G60+'ВСЕ СМЕТЫ КДС'!G72 -> 2097.908878 | Q10: =O10/P10-1 -> 0.2922391568 | R10: 6573 | S10: ='ВСЕ СМЕТЫ КДС'!G51+'ВСЕ СМЕТЫ КДС'!G56+'ВСЕ СМЕТЫ КДС'!G61+'ВСЕ СМЕТЫ КДС'!G62+'ВСЕ СМЕТЫ КДС'!G63+'ВСЕ СМЕТЫ КДС'!G64+'ВСЕ СМЕТЫ КДС'!G65+'ВСЕ СМЕТЫ КДС'!G66+'ВСЕ СМЕТЫ КДС'!G67+'ВСЕ СМЕТЫ КДС'!G73 -> 7392.365593 | T10: =R10/S10-1 -> -0.1108394306 | V10: =N10-I10 -> 652693.7835 | W10: =1-I10/N10 -> 0.2323084487 | AD10: =D10*O10 -> 1055663.4 | AE10: =1-F10/AD10 -> 0.4674474364 | AF10: =D10*R10 -> 2559526.2 | AG10: =1-H10/AF10 -> 0.3769511639 | AH10: =O10*D10+R10*D10 -> 3615189.6 | AI10: =1-I10/AH10 -> 0.4033767773 | AK10: + | AQ10: - | AR10: - | AS10: -
A11: 1.1.4 | B11: Устройство перегородок | J11: 0 | K11: 0 | L11: 0 | M11: =L11*D11 -> 0 | N11: 0 | O11: 0 | R11: 0 | AK11: + | AQ11: - | AR11: - | AS11: -
A12: 1.1.4.1 | B12: Перегородки гипсокартонные типа С112 комплексной системы КНАУФ толщиной 100 мм с облицовкой 2мя листами ГКЛ (толщиной 12,5мм) со звукоизолирующим слоем из минераловатных плит Лайт Баттс толщиной 50 мм | C12: м2 | D12: 536 | E12: 1640.1 | F12: =E12*D12 -> 879093.6 | G12: 4250.136 | H12: =G12*D12 -> 2278072.896 | I12: =H12+F12 -> 3157166.496 | O12: 4955 | P12: 3959 | Q12: =O12/P12-1 -> 0.2515786815 | R12: 4501 | AD12: =D12*O12 -> 2655880 | AE12: =1-F12/AD12 -> 0.6690010091 | AF12: =D12*R12 -> 2412536 | AG12: =1-H12/AF12 -> 0.05573516996 | AH12: =O12*D12+R12*D12 -> 5068416 | AI12: =1-I12/AH12 -> 0.3770901015
A13: 1.1.4.2 | B13: Устройство отверстий под воздуховоды | C13: шт | D13: 2 | E13: =F13/D13 -> 6548 | F13: 13096 | G13: =H13/D13 -> 3582.5 | H13: 7165 | I13: =H13+F13 -> 20261 | J13: 8577.88 | K13: 17155.76 | L13: 4657.25 | M13: =L13*D13 -> 9314.5 | N13: 26470.26 | O13: 8577.88 | R13: 4657.25 | V13: =N13-I13 -> 6209.26 | W13: =1-I13/N13 -> 0.2345749532 | AD13: =D13*O13 -> 17155.76 | AE13: =1-F13/AD13 -> 0.2366412214 | AF13: =D13*R13 -> 9314.5 | AG13: =1-H13/AF13 -> 0.2307692308 | AH13: =O13*D13+R13*D13 -> 26470.26 | AI13: =1-I13/AH13 -> 0.2345749532 | AK13: + | AQ13: - | AR13: - | AS13: -
A14: 1.1.5 | B14: Отделка потолков помещений | J14: 0 | K14: 0 | L14: 0 | M14: 0 | N14: 0 | O14: 0 | R14: 0 | V14: 0 | AK14: + | AQ14: - | AR14: - | AS14: -
A15: 1.1.5.1 | B15: Подвесной потолок системы "Армстронг" | C15: м2 | D15: 301.4 | E15: 863.94 | F15: =E15*D15 -> 260391.516 | G15: 2173.314 | H15: =G15*D15 -> 655036.8396 | I15: =H15+F15 -> 915428.3556 | J15: 1131.7614 | K15: =J15*D15 -> 341112.886 | L15: 2825.3082 | M15: 851547.8915 | N15: =K15+M15 -> 1192660.777 | O15: 3957.07 | P15: ='ВСЕ СМЕТЫ КДС'!G2937 -> 3234.116062 | Q15: =O15/P15-1 -> 0.2235398866 | R15: 0 | V15: 277232.4218 | W15: 0.2324486787 | AD15: =D15*O15 -> 1192660.898 | AE15: =1-F15/AD15 -> 0.7816717925 | AH15: =O15*D15+R15*D15 -> 1192660.898 | AI15: =1-I15/AH15 -> 0.2324487563 | AK15: - | AQ15: - | AR15: - | AS15: -
A16: 1.1.5.2 | B16: Подвесной потолок системы с шумоглушением | C16: м2 | D16: 168.8 | E16: 863.94 | F16: 145833.072 | G16: 2347.224 | H16: 396211.4112 | I16: 542044.4832 | J16: 1131.7614 | K16: 191041.3243 | L16: 3051.3912 | M16: 515074.8346 | N16: 706116.1589 | O16: 1131.76 | R16: 3051.39 | V16: 164071.6757 | W16: 0.2323579111 | AD16: 191041.088 | AE16: 0.2366402771 | AF16: =D16*R16 -> 515074.632 | AG16: =1-H16/AF16 -> 0.2307689283 | AH16: 706115.72 | AI16: 0.232357434 | AK16: + | AQ16: - | AR16: - | AS16: -
A17: 1.1.5.3 | B17: Реечный алюминиевый потолок | C17: м2 | D17: 111.8 | E17: 1039.5 | F17: 116216.1 | G17: 5020.95 | H17: 561342.21 | I17: 677558.31 | J17: 1361.745 | K17: 152243.091 | L17: 6527.235 | M17: 729744.873 | N17: 881987.964 | O17: 7888.98 | P17: ='ВСЕ СМЕТЫ КДС'!G2933 -> 4145.789812 | Q17: =O17/P17-1 -> 0.9028895235 | R17: 0 | V17: 204429.654 | W17: 0.231782816 | AD17: 881987.964 | AE17: 0.8682339162 | AH17: 881987.964 | AI17: 0.231782816 | AK17: + | AQ17: - | AR17: - | AS17: -
A18: 1.1.5.4 | B18: Затирка бетонной поверхности перекрытия перед устройством потолка | C18: м2 | D18: 206.75 | E18: 866.25 | F18: 179097.1875 | G18: 553.146 | H18: 114362.9355 | I18: 293460.123 | J18: 1134.7875 | K18: 234617.3156 | L18: 719.0898 | M18: 148671.8162 | N18: 383289.1318 | O18: 1134.79 | R18: 719.09 | V18: 89829.00877 | W18: 0.2343635687 | AD18: 234617.8325 | AE18: 0.2366429031 | AF18: =D18*R18 -> 148671.8575 | AG18: =1-H18/AF18 -> 0.2307694447 | AH18: 383289.69 | AI18: 0.2343646838 | AK18: + | AQ18: - | AR18: - | AS18: -
A19: 1.1.5.5 | B19: Устроиство базового слоя шпаклевки | C19: м2 | D19: 69.4 | E19: 678 | F19: =E19*D19 -> 47053.2 | G19: 356 | H19: =G19*D19 -> 24706.4 | I19: =H19+F19 -> 71759.6 | J19: 888.18 | K19: 61639.692 | L19: 462.8 | M19: 32118.32 | N19: 93758.012 | O19: 888.18 | R19: 462.8 | V19: 21998.412 | W19: 0.2346296762 | AD19: 61639.692 | AE19: 0.2366412214 | AF19: =D19*R19 -> 32118.32 | AG19: =1-H19/AF19 -> 0.2307692308 | AH19: 93758.012 | AI19: 0.2346296762 | AK19: - | AQ19: - | AR19: - | AS19: -
A20: 1.1.5.6 | B20: Устроиство финишного слоя шпаклевки | C20: м2 | D20: 69.4 | E20: 975 | F20: =E20*D20 -> 67665 | G20: 305.99 | H20: =G20*D20 -> 21235.706 | I20: =H20+F20 -> 88900.706 | J20: 1277.25 | K20: 88641.15 | L20: 397.787 | M20: 27606.4178 | N20: 116247.5678 | O20: 1277.25 | R20: 397.79 | V20: 27346.8618 | W20: 0.2352467438 | AD20: 88641.15 | AE20: 0.2366412214 | AF20: =D20*R20 -> 27606.626 | AG20: =1-H20/AF20 -> 0.2307750321 | AH20: 116247.776 | AI20: 0.2352481135 | AK20: - | AQ20: - | AR20: - | AS20: -
A21: 1.1.5.7 | B21: Окраска потолка силикатной краской за 2 раза | C21: м2 | D21: -138.8 | E21: 485.1 | F21: =E21*D21 -> -67331.88 | G21: 569.976 | H21: =G21*D21 -> -79112.6688 | I21: =H21+F21 -> -146444.5488 | J21: =E21*$Y$1 -> 635.481 | K21: =J21*D21 -> -88204.7628 | L21: =G21*$X$1 -> 740.9688 | M21: -102846.4694 | N21: =K21+M21 -> -191051.2322 | O21: 635.48 | P21: ='ВСЕ СМЕТЫ КДС'!G1297 -> 576.0360096 | Q21: =O21/P21-1 -> 0.1031949208 | R21: 740.97 | V21: -44606.68344 | W21: 0.2334802185 | AD21: =O21*D21 -> -88204.624 | AF21: =R21*D21 -> -102846.636 | AH21: -191051.26 | AI21: 0.2334803298
A22: 1.1.5.7 | B22: Окраска потолка силикатной краской за 2 раза | C22: м2 | D22: 69.4 | E22: 485.1 | F22: =E22*D22 -> 33665.94 | G22: 569.976 | H22: =G22*D22 -> 39556.3344 | I22: =H22+F22 -> 73222.2744 | O22: 635.48 | P22: ='ВСЕ СМЕТЫ КДС'!G1297 -> 576.0360096 | Q22: =O22/P22-1 -> 0.1031949208 | R22: 740.97 | V22: -73222.2744 | AD22: =D22*O22 -> 44102.312 | AE22: =1-F22/AD22 -> 0.2366400201 | AF22: =D22*R22 -> 51423.318 | AG22: =1-H22/AF22 -> 0.2307704765 | AH22: 95525.63 | AI22: 0.2334803298
A23: 1.1.5.8 | B23: Грунтовка поверхностей перед окрашиванием | C23: м2 | D23: -138.8 | E23: 57.75 | F23: -8015.7 | G23: 32.538 | H23: -4516.2744 | I23: -12531.9744 | J23: 75.6525 | K23: -10500.567 | L23: 42.2994 | M23: =L23*D23 -> -5871.15672 | N23: -16371.72372 | O23: 75.65 | P23: ='ВСЕ СМЕТЫ КДС'!G1256 -> 70.20446102 | Q23: =O23/P23-1 -> 0.07756685122 | R23: 42.3 | S23: ='ВСЕ СМЕТЫ КДС'!G1263 -> 22.73014948 | T23: =((R23/(S23/100))-100)/100 -> 0.8609644446 | V23: -3839.74932 | W23: 0.2345354335 | AD23: =O23*D23 -> -10500.22 | AF23: =R23*D23 -> -5871.24 | AH23: -16371.46 | AI23: 0.234523103 | AK23: + | AQ23: - | AR23: - | AS23: -
A24: 1.1.5.8 | B24: Грунтовка поверхностей перед окрашиванием | C24: м2 | D24: 69.4 | E24: 57.75 | F24: =E24*D24 -> 4007.85 | G24: 32.538 | H24: =G24*D24 -> 2258.1372 | I24: =H24+F24 -> 6265.9872 | J24: =E24*$Y$1 -> 75.6525 | K24: =J24*D24 -> 5250.2835 | L24: =G24*$X$1 -> 42.2994 | M24: 2935.57836 | N24: =K24+M24 -> 8185.86186 | O24: 75.65 | P24: ='ВСЕ СМЕТЫ КДС'!G1256 -> 70.20446102 | Q24: =O24/P24-1 -> 0.07756685122 | R24: 42.3 | S24: ='ВСЕ СМЕТЫ КДС'!G1263 -> 22.73014948 | T24: =((R24/(S24/100))-100)/100 -> 0.8609644446 | V24: 1919.87466 | W24: 0.2345354335 | AD24: =D24*O24 -> 5250.11 | AE24: =1-F24/AD24 -> 0.2366159947 | AF24: =D24*R24 -> 2935.62 | AG24: =1-H24/AF24 -> 0.2307801418 | AH24: 8185.73 | AI24: 0.234523103 | AK24: + | AQ24: - | AR24: - | AS24: -
A25: 1.1.6 | B25: Полы помещений | J25: 0 | K25: 0 | L25: 0 | M25: 0 | N25: 0 | O25: 0 | R25: 0 | V25: 0
A26: 1.1.6.1 | B26: Очистка поверхности от грязи и мусора | C26: м2 | D26: 352.5 | E26: 288.75 | F26: =E26*D26 -> 101784.375 | G26: 56.1 | H26: =G26*D26 -> 19775.25 | I26: =H26+F26 -> 121559.625 | J26: 378.2625 | K26: 133337.5312 | L26: 72.93 | M26: 25707.825 | N26: 159045.3563 | O26: 378 | R26: 72.93 | V26: 37485.73125 | W26: 0.2356920826 | AD26: =D26*O26 -> 133245 | AE26: =1-F26/AD26 -> 0.2361111111 | AF26: =D26*R26 -> 25707.825 | AG26: =1-H26/AF26 -> 0.2307692308 | AH26: =O26*D26+R26*D26 -> 158952.825 | AI26: =1-I26/AH26 -> 0.2352471559 | AK26: + | AQ26: + | AR26: - | AS26: -
A27: 1.1.6.2 | B27: Устройство пола из бетона кл. В25 толщиной до 100 мм | C27: м3 | D27: 7.87 | E27: 12127.5 | F27: =E27*D27 -> 95443.425 | G27: 9537 | H27: =G27*D27 -> 75056.19 | I27: =H27+F27 -> 170499.615 | J27: =E27*$Y$1 -> 15887.025 | K27: =J27*D27 -> 125030.8868 | L27: =G27*$X$1 -> 12398.1 | M27: 97573.047 | N27: =K27+M27 -> 222603.9338 | O27: 13208 | P27: ='ВСЕ СМЕТЫ КДС'!H2546+'ВСЕ СМЕТЫ КДС'!H2551 -> 9964.362449 | Q27: =((O27/(P27/100))-100)/100 -> 0.3255238423 | R27: 14998 | S27: ='ВСЕ СМЕТЫ КДС'!H2547+'ВСЕ СМЕТЫ КДС'!H2548+'ВСЕ СМЕТЫ КДС'!H2552 -> 13280.66248 | T27: =((R27/(S27/100))-100)/100 -> 0.1293111336 | V27: 52104.31875 | W27: 0.2340673764 | AD27: 103946.96 | AE27: 0.08180648092 | AF27: 118034.26 | AG27: 0.3641152154 | AH27: 221981.22 | AI27: 0.2319187407
A28: 1.1.6.3 | B28: Керамогранитная плитка | C28: м2 | D28: 187.8 | E28: 1640.1 | F28: =E28*D28 -> 308010.78 | G28: 3023.79 | H28: 567867.762 | I28: 875878.542 | J28: 2148.531 | K28: 403494.1218 | L28: 3930.927 | M28: 738228.0906 | N28: 1141722.212 | O28: 4772 | P28: ='ВСЕ СМЕТЫ КДС'!G2630 -> 4493.808061 | Q28: =((O28/(P28/100))-100)/100 -> 0.06190561208 | R28: 2131 | S28: ='ВСЕ СМЕТЫ КДС'!G2631+'ВСЕ СМЕТЫ КДС'!G2632+'ВСЕ СМЕТЫ КДС'!G2633 -> 1873.223065 | T28: =((R28/(S28/100))-100)/100 -> 0.137611446 | V28: 265843.6704 | W28: 0.2328444411 | AD28: 896181.6 | AE28: 0.6563076278 | AF28: 400201.8 | AG28: -0.4189535429 | AH28: 1296383.4 | AI28: 0.3243676662 | AP28: =P28+P28*Q28 -> 4772
A29: 1.1.6.4 | B29: Напольная керамическая плитка | C29: м2 | D29: 332.1 | E29: 1640.1 | F29: 544677.21 | G29: 3023.79 | H29: 1004200.659 | I29: 1548877.869 | J29: 2148.531 | K29: 713527.1451 | L29: 3930.927 | M29: 1305460.857 | N29: 2018988.002 | O29: 2629 | P29: ='ВСЕ СМЕТЫ КДС'!G1819 -> 2095.597917 | Q29: =O29/P29-1 -> 0.2545345549 | R29: 3034 | S29: ='ВСЕ СМЕТЫ КДС'!G1820+'ВСЕ СМЕТЫ КДС'!G1821+'ВСЕ СМЕТЫ КДС'!G1822 -> 1760.357779 | T29: =((R29/(S29/100))-100)/100 -> 0.7235132743 | V29: 470110.1328 | W29: 0.2328444411 | AD29: 873090.9 | AE29: 0.3761506276 | AF29: 1007591.4 | AG29: 0.003365194463 | AH29: 1880682.3 | AI29: 0.1764276885
A30: 1.1.6.5 | B30: Коммерческий линолеум (33-34 кл.) | C30: м2 | D30: 121.8 | E30: 540.54 | F30: 65837.772 | G30: 2031.942 | H30: 247490.5356 | I30: 313328.3076 | J30: 708.1074 | K30: 86247.48132 | L30: 2641.5246 | M30: 321737.6963 | N30: 407985.1776 | O30: 708.11 | R30: 2641.52 | V30: 94656.87 | W30: 0.2320105612 | AD30: 86247.798 | AE30: 0.2366440242 | AF30: 321737.136 | AG30: 0.2307678912 | AH30: 407984.934 | AI30: 0.2320101026
A31: 1.1.6.6 | B31: Гидроизоляция Гидроизол | C31: м2 | D31: 141.3 | E31: 519.75 | F31: 73440.675 | G31: 833.646 | H31: 117794.1798 | I31: 191234.8548 | J31: 680.8725 | K31: 96207.28425 | L31: 1083.7398 | M31: 153132.4337 | N31: 249339.718 | O31: 680.87 | R31: 1083.74 | V31: 58104.86319 | W31: 0.2330349278 | AD31: 96206.931 | AE31: 0.2366384185 | AF31: 153132.462 | AG31: 0.2307693727 | AH31: 249339.393 | AI31: 0.2330339282
A32: 1.1.6.7 | B32: Наливной пол толщиной до 50мм | C32: м2 | D32: 355.6 | E32: 981.75 | F32: 349110.3 | G32: 1869.252 | H32: 664706.0112 | I32: 1013816.311 | J32: 1286.0925 | K32: 457334.493 | L32: 2430.0276 | M32: 864117.8146 | N32: 1321452.308 | O32: 3576 | P32: ='ВСЕ СМЕТЫ КДС'!G1944+'ВСЕ СМЕТЫ КДС'!G1949+'ВСЕ СМЕТЫ КДС'!G1954 -> 3056.554594 | Q32: =O32/P32-1 -> 0.16994475 | R32: 1630 | S32: ='ВСЕ СМЕТЫ КДС'!G1945+'ВСЕ СМЕТЫ КДС'!G1950+'ВСЕ СМЕТЫ КДС'!G1955 -> 1317.145989 | T32: =R32/S32-1 -> 0.2375241721 | V32: 307635.9964 | W32: 0.2328014372 | AD32: 1271625.6 | AE32: 0.7254614094 | AF32: 579628 | AG32: -0.1467803681 | AH32: 1851253.6 | AI32: 0.4523622743
A33: 1.1.6.8 | B33: Керамогранитная плитка с шероховатой поверхностью | C33: м2 | D33: 2 | E33: 1640.1 | F33: 3280.2 | G33: 3023.79 | H33: 6047.58 | I33: 9327.78 | J33: 2148.531 | K33: 4297.062 | L33: 3930.927 | M33: 7861.854 | N33: 12158.916 | O33: 4149 | P33: =P28 -> 4493.808061 | Q33: =O33/P33-1 -> -0.07672959251 | R33: 2131 | S33: =S28 -> 1873.223065 | T33: =R33/S33-1 -> 0.137611446 | V33: 2831.136 | W33: 0.2328444411 | AD33: 8298 | AE33: 0.6046999277 | AF33: 4262 | AG33: -0.4189535429 | AH33: 12560 | AI33: 0.2573423567 | AP33: =P33+P33*Q33 -> 4149
A34: 1.1.6.9 | B34: Наливной пол толщиной до 45мм армированный сеткой d4 В500 100х100 | C34: м2 | D34: 141.3 | E34: 1328.25 | F34: =E34*D34 -> 187681.725 | G34: 3714.942 | H34: 524921.3046 | I34: =H34+F34 -> 712603.0296 | J34: =E34*$Y$1 -> 1740.0075 | K34: =J34*D34 -> 245863.0598 | L34: 4829.4246 | M34: 682397.696 | N34: 928260.7557 | O34: 3470 | P34: ='ВСЕ СМЕТЫ КДС'!G1944+('ВСЕ СМЕТЫ КДС'!G1949/6*5)+'ВСЕ СМЕТЫ КДС'!G1954 -> 2670.296396 | Q34: =O34/P34-1 -> 0.2994812132 | R34: 1590 | S34: ='ВСЕ СМЕТЫ КДС'!G1945+('ВСЕ СМЕТЫ КДС'!G1950/6*5)+'ВСЕ СМЕТЫ КДС'!G1955 -> 1230.141693 | T34: =R34/S34-1 -> 0.2925340304 | V34: 215657.7261 | W34: 0.232324511 | AD34: 490311 | AE34: 0.6172190202 | AF34: 224667 | AG34: -1.336441509 | AH34: 714978 | AI34: 0.00332173913 | AP34: =P34+P34*Q34 -> 3470
A35: 1.1.6.10 | B35: Грунтовка поверхностей перед финишным покрытием | C35: м2 | D35: 1140.6 | E35: 57.75 | F35: 65869.65 | G35: 32.538 | H35: 37112.8428 | I35: =H35+F35 -> 102982.4928 | J35: =E35*$Y$1 -> 75.6525 | K35: 86289.2415 | L35: 42.2994 | M35: 48246.69564 | N35: 134535.9371 | O35: 75.65 | R35: 42.3 | V35: 31553.44434 | W35: 0.2345354335 | AD35: 86286.39 | AE35: 0.2366159947 | AF35: 48247.38 | AG35: 0.2307801418 | AH35: 134533.77 | AI35: 0.234523103
A36: 1.1.7 | B36: Отделка стен помещений | C36: м2 | D36: 1194.52 | E36: =F36/D36 -> 3395.564746 | F36: 4056070 | G36: =H36/D36 -> 2848.02766 | H36: 3402026 | I36: =F36+H36 -> 7458096 | J36: =E36*$Y$1 -> 4448.189817 | K36: 5313451.7 | L36: 3702.435958 | M36: 4422633.8 | N36: 9736085.5 | O36: 4448 | R36: 3702 | V36: 2277989.5 | W36: 0.2339738594 | AD36: 5313224.96 | AE36: 0.2366086453 | AF36: 4422113.04 | AG36: 0.2306786441 | AH36: 9735338 | AI36: 0.2339150423
A37: 1.1.8 | B37: Установка потивопожарных окон | C37: шт | D37: 11 | E37: 18480 | F37: =E37*D37 -> 203280 | G37: 69564 | H37: =G37*D37 -> 765204 | I37: =H37+F37 -> 968484 | J37: 24208.8 | K37: 266296.8 | L37: 90433.2 | M37: 994765.2 | N37: 1261062 | O37: 34209 | P37: ='ВСЕ СМЕТЫ КДС'!$I$600 -> 28021.07832 | Q37: =((O37/(P37/100))-100)/100 -> 0.2208309619 | R37: 89433 | S37: ='ВСЕ СМЕТЫ КДС'!$I$601 -> 22972.25882 | T37: =((R37/(S37/100))-100)/100 -> 2.893086905 | V37: 292578 | W37: 0.2320092113 | AD37: 376299 | AE37: 0.459791283 | AF37: 983763 | AG37: 0.2221663144 | AH37: 1360062 | AI37: 0.2879118746 | AP37: =P37+P37*Q37 -> 34209 | AS37: =S37+S37*T37 -> 89433
A38: 1.1.9 | B38: Установка внутренних окон | C38: шт | D38: 6 | E38: 18480 | F38: 110880 | G38: 69564 | H38: 417384 | I38: 528264 | J38: 24208.8 | K38: 145252.8 | L38: 90433.2 | M38: 542599.2 | N38: 687852 | O38: 18204 | P38: ='ВСЕ СМЕТЫ КДС'!$H$600 -> 14256.33809 | Q38: =((O38/(P38/100))-100)/100 -> 0.2769057441 | R38: 79865 | S38: ='ВСЕ СМЕТЫ КДС'!$H$601 -> 11687.64045 | T38: =((R38/(S38/100))-100)/100 -> 5.833286865 | V38: 159588 | W38: 0.2320092113 | AD38: 109224 | AE38: -0.01516150297 | AF38: 479190 | AG38: 0.128980154 | AH38: 588414 | AI38: 0.1022239444
A39: 1.1.10 | B39: Установка потивопожарных дверей | C39: шт | D39: 42 | E39: 5197.5 | F39: 218295 | G39: 28384.57 | H39: 1192151.94 | I39: 1410446.94 | J39: 6808.725 | K39: 285966.45 | L39: 36899.941 | M39: 1549797.522 | N39: 1835763.972 | O39: 14176 | P39: ='ВСЕ СМЕТЫ КДС'!$J$583 -> 12896.31394 | Q39: =((O39/(P39/100))-100)/100 -> 0.09922882376 | R39: 34900 | S39: ='ВСЕ СМЕТЫ КДС'!$L$583 -> 27398.31216 | T39: =((R39/(S39/100))-100)/100 -> 0.2738010937 | V39: 425317.032 | W39: 0.2316839411 | AD39: 595392 | AE39: 0.6333591986 | AF39: 1465800 | AG39: 0.1866885387 | AH39: 2061192 | AI39: 0.3157129758
A40: 1.1.11 | B40: Лестничная клетка | C40: шт | D40: 1 | E40: 384953 | F40: 384953 | G40: 657924 | H40: 657924 | I40: 1042877 | J40: =E40*$Y$1 -> 504288.43 | K40: =J40*D40 -> 504288.43 | L40: =G40*$X$1 -> 855301.2 | M40: 855301.2 | N40: 1359589.63 | O40: 504288.43 | R40: 855301.2 | V40: 316712.63 | W40: 0.2329472239 | AD40: 504288.43 | AE40: 0.2366412214 | AF40: 855301.2 | AG40: 0.2307692308 | AH40: 1359589.63 | AI40: 0.2329472239
A41: 1.1.12 | B41: Устройство перекрытия | C41: м3 | D41: 41.2 | E41: 33850 | F41: =E41*D41 -> 1394620 | G41: 36440 | H41: =D41*G41 -> 1501328 | I41: =H41+F41 -> 2895948 | J41: =E41*$Y$1 -> 44343.5 | K41: =J41*D41 -> 1826952.2 | L41: =G41*$X$1 -> 47372 | M41: 1951726.4 | N41: =K41+M41 -> 3778678.6 | O41: 44343.5 | R41: 47372 | V41: 882730.6 | W41: 0.2336082778 | AD41: 1826952.2 | AE41: 0.2366412214 | AF41: 1951726.4 | AG41: 0.2307692308 | AH41: 3778678.6 | AI41: 0.2336082778
A42: 1.1.13 | B42: Пол АБК | C42: м2 | D42: 387 | E42: =F42/D42 -> 2064.22739 | F42: 798856 | G42: =H42/D42 -> 3364.330749 | H42: 1301996 | I42: =F42+H42 -> 2100852 | J42: =E42*$Y$1 -> 2704.137881 | K42: =J42*D42 -> 1046501.36 | L42: =G42*$X$1 -> 4373.629974 | M42: 1692594.8 | N42: =K42+M42 -> 2739096.16 | O42: 3576 | P42: ='ВСЕ СМЕТЫ КДС'!G1944+'ВСЕ СМЕТЫ КДС'!G1949+'ВСЕ СМЕТЫ КДС'!G1954 -> 3056.554594 | Q42: =((O42/(P42/100))-100)/100 -> 0.16994475 | R42: 3510 | S42: ='ВСЕ СМЕТЫ КДС'!G1945+'ВСЕ СМЕТЫ КДС'!G1950+'ВСЕ СМЕТЫ КДС'!G1955 -> 1317.145989 | T42: =((R42/(S42/100))-100)/100 -> 1.664852665 | V42: 638244.16 | W42: 0.2330126884 | AD42: 1383912 | AE42: 0.4227552041 | AF42: 1358370 | AG42: 0.04150121101 | AH42: 2742282 | AI42: 0.2339037342
A43: 1.1.14 | B43: Прорезка проёмов дверных и оконных | C43: шт | D43: 15 | E43: 19640 | F43: =E43*D43 -> 294600 | G43: 654 | H43: =G43*D43 -> 9810 | I43: =H43+F43 -> 304410 | J43: 25728.4 | K43: 385926 | L43: 850.2 | M43: 12753 | N43: 398679 | O43: 25728.4 | R43: 850.2 | V43: 94269 | W43: 0.2364533873 | AD43: 385926 | AE43: 0.2366412214 | AF43: 12753 | AG43: 0.2307692308 | AH43: 398679 | AI43: 0.2364533873
A44: 1.1.15 | B44: Устройство отверстия на кровле в осях В/32-34 | C44: шт | D44: 1 | E44: =F44/D44 -> 68328 | F44: 68328 | G44: =H44/D44 -> 56296 | H44: 56296 | I44: =H44+F44 -> 124624 | J44: 89509.68 | K44: 89509.68 | L44: 73184.8 | M44: 73184.8 | N44: 162694.48 | O44: 89509.68 | R44: 73184.8 | V44: 38070.48 | W44: 0.2339998259 | AD44: 89509.68 | AE44: 0.2366412214 | AF44: 73184.8 | AG44: 0.2307692308 | AH44: 162694.48 | AI44: 0.2339998259
A45: 1.1.16 | B45: Проходка воздуховодов сквозь кровлю АБК | C45: шт | D45: 12 | E45: =F45/D45 -> 9091.583333 | F45: 109099 | G45: =H45/D45 -> 3491.333333 | H45: 41896 | I45: =F45+H45 -> 150995 | J45: 11909.97417 | K45: 142919.69 | L45: 4538.733333 | M45: 54464.8 | N45: 197384.49 | O45: 11909.97 | R45: 4538.73 | V45: 46389.49 | W45: 0.2350209482 | AD45: 142919.64 | AE45: 0.2366409543 | AF45: 54464.76 | AG45: 0.2307686658 | AH45: 197384.4 | AI45: 0.2350205994
A46: 1.1.17 | B46: Устройство мк отверстий диам. 400 мм в покрытии здания | C46: шт | D46: 5 | E46: =F46/D46 -> 33457.8 | F46: 167289 | G46: =H46/D46 -> 20235.6 | H46: 101178 | I46: =F46+H46 -> 268467 | J46: 43829.718 | K46: 219148.59 | L46: 26306.28 | M46: 131531.4 | N46: 350679.99 | O46: 43829.72 | R46: 26306.28 | V46: 82212.99 | W46: 0.2344387828 | AD46: 219148.6 | AE46: 0.2366412562 | AF46: 131531.4 | AG46: 0.2307692308 | AH46: 350680 | AI46: 0.2344388046
A47: 1.1.18 | B47: Устройство дверного проёма в стене цеха (пож.выход) | C47: шт | D47: 1 | E47: =F47/D47 -> 167397 | F47: 167397 | G47: =H47/D47 -> 119648 | H47: 119648 | I47: =F47+H47 -> 287045 | J47: =E47*$Y$1 -> 219290.07 | K47: 219290.07 | L47: 155542.4 | M47: 155542.4 | N47: 374832.47 | O47: 219290.07 | R47: 155542.4 | V47: 87787.47 | W47: 0.2342045501 | AD47: 219290.07 | AE47: 0.2366412214 | AF47: 155542.4 | AG47: 0.2307692308 | AH47: 374832.47 | AI47: 0.2342045501
A48: 1.1.19 | B48: Дополнительные работы | O48: 0 | R48: 0
A49: 1.1.19.1 | B49: Обшивка стен Гипсокартон ГКЛ толщиной 12,5 мм в 2 слоя | C49: м2 | D49: 76 | E49: 1640 | F49: =D49*E49 -> 124640 | G49: 2469.6 | H49: =D49*G49 -> 187689.6 | I49: =F49+H49 -> 312329.6 | J49: =E49*$Y$1 -> 2148.4 | K49: =J49*D49 -> 163278.4 | L49: =G49*$X$1 -> 3210.48 | M49: =L49*D49 -> 243996.48 | N49: =K49+M49 -> 407274.88 | O49: 2955 | P49: 3959 | Q49: =O49/P49-1 -> -0.2535993938 | R49: 3501 | AD49: =D49*O49 -> 224580 | AE49: =1-F49/AD49 -> 0.4450084602 | AF49: =D49*R49 -> 266076 | AG49: =1-H49/AF49 -> 0.2946015424 | AH49: =O49*D49+R49*D49 -> 490656 | AI49: =1-I49/AH49 -> 0.3634448575
A50: 1.1.19.2 | B50: Перенос дверных проёмов | C50: шт | D50: 4 | E50: 32079.6 | F50: =D50*E50 -> 128318.4 | G50: 11832 | H50: =D50*G50 -> 47328 | I50: =F50+H50 -> 175646.4 | J50: =E50*$Y$1 -> 42024.276 | K50: =J50*D50 -> 168097.104 | L50: =G50*$X$1 -> 15381.6 | M50: =L50*D50 -> 61526.4 | N50: =K50+M50 -> 229623.504 | O50: 42024.27 | R50: 15381.6 | AD50: =D50*O50 -> 168097.08 | AE50: =1-F50/AD50 -> 0.2366411124 | AF50: =D50*R50 -> 61526.4 | AG50: =1-H50/AF50 -> 0.2307692308 | AH50: =O50*D50+R50*D50 -> 229623.48 | AI50: =1-I50/AH50 -> 0.2350677727
A51: 1.1.19.3 | B51: Обрамление оконных проёмов | C51: шт | D51: 11 | E51: 6930 | F51: =D51*E51 -> 76230 | G51: 6900 | H51: =D51*G51 -> 75900 | I51: =F51+H51 -> 152130 | J51: =E51*$Y$1 -> 9078.3 | K51: =J51*D51 -> 99861.3 | L51: =G51*$X$1 -> 8970 | M51: =L51*D51 -> 98670 | N51: =K51+M51 -> 198531.3 | O51: 10938.3 | R51: 8970 | AD51: =D51*O51 -> 120321.3 | AE51: =1-F51/AD51 -> 0.3664463399 | AF51: =D51*R51 -> 98670 | AG51: =1-H51/AF51 -> 0.2307692308 | AH51: =O51*D51+R51*D51 -> 218991.3 | AI51: =1-I51/AH51 -> 0.3053148687
A52: 1.1.19.4 | B52: Демонтаж и монтаж временных ворот | C52: шт | D52: 1 | E52: 56352 | F52: =D52*E52 -> 56352 | G52: 3654 | H52: =D52*G52 -> 3654 | I52: =F52+H52 -> 60006 | J52: =E52*$Y$1 -> 73821.12 | K52: =J52*D52 -> 73821.12 | L52: =G52*$X$1 -> 4750.2 | M52: =L52*D52 -> 4750.2 | N52: =K52+M52 -> 78571.32 | O52: 73821.12 | R52: 4750.2 | AD52: =D52*O52 -> 73821.12 | AE52: =1-F52/AD52 -> 0.2366412214 | AF52: =D52*R52 -> 4750.2 | AG52: =1-H52/AF52 -> 0.2307692308 | AH52: =O52*D52+R52*D52 -> 78571.32 | AI52: =1-I52/AH52 -> 0.2362862174
A53: 1.1.20 | B53: Монтаж фасоных элементов | O53: 0 | R53: 0
A54: 1.1.20.1 | B54: Монтаж фасоного элемента Дз-1 | C54: м.п. | D54: 7.45 | E54: 458 | F54: =D54*E54 -> 3412.1 | G54: 1035 | H54: =D54*G54 -> 7710.75 | I54: =F54+H54 -> 11122.85 | J54: =E54*$Y$1 -> 599.98 | K54: =J54*D54 -> 4469.851 | L54: =G54*$X$1 -> 1345.5 | M54: =L54*D54 -> 10023.975 | N54: =K54+M54 -> 14493.826 | O54: 600 | R54: 1345.5 | AD54: =D54*O54 -> 4470 | AE54: =1-F54/AD54 -> 0.2366666667 | AF54: =D54*R54 -> 10023.975 | AG54: =1-H54/AF54 -> 0.2307692308 | AH54: =O54*D54+R54*D54 -> 14493.975 | AI54: =1-I54/AH54 -> 0.2325880236
A55: 1.1.20.2 | B55: Монтаж фасоного элемента Дз-2 | C55: м.п. | D55: 15 | E55: 458 | F55: 6870 | G55: 522 | H55: 7830 | I55: 14700 | J55: 599.98 | K55: 8999.7 | L55: 678.6 | M55: 10179 | N55: 19178.7 | O55: 600 | R55: 678.6 | AD55: 9000 | AE55: 0.2366666667 | AF55: 10179 | AG55: 0.2307692308 | AH55: 19179 | AI55: 0.2335366807
A56: 1.1.20.3 | B56: Монтаж фасоного элемента Дз-3 | C56: м.п. | D56: 64 | E56: 458 | F56: 29312 | G56: 391 | H56: 25024 | I56: 54336 | J56: 599.98 | K56: 38398.72 | L56: 508.3 | M56: 32531.2 | N56: 70929.92 | O56: 600 | R56: 508.3 | AD56: 38400 | AE56: 0.2366666667 | AF56: 32531.2 | AG56: 0.2307692308 | AH56: 70931.2 | AI56: 0.2339619237
A57: 1.1.20.4 | B57: Монтаж фасоного элемента Дз-4 | C57: м.п. | D57: 64 | E57: 458 | F57: 29312 | G57: 378 | H57: 24192 | I57: 53504 | J57: 599.98 | K57: 38398.72 | L57: 491.4 | M57: 31449.6 | N57: 69848.32 | O57: 600 | R57: 491.4 | AD57: 38400 | AE57: 0.2366666667 | AF57: 31449.6 | AG57: 0.2307692308 | AH57: 69849.6 | AI57: 0.2340113616
A58: 1.1.20.5 | B58: Монтаж фасоного элемента Дз-5 | C58: м.п. | D58: 64 | E58: 458 | F58: 29312 | G58: 435 | H58: 27840 | I58: 57152 | J58: 599.98 | K58: 38398.72 | L58: 565.5 | M58: 36192 | N58: 74590.72 | O58: 600 | R58: 565.5 | AD58: 38400 | AE58: 0.2366666667 | AF58: 36192 | AG58: 0.2307692308 | AH58: 74592 | AI58: 0.2338052338
A59: 1.1.20.6 | B59: Монтаж колонн (усиление перегородок) | C59: шт | D59: 7 | E59: 27836 | F59: 194852 | G59: 6870 | H59: 48090 | I59: 242942 | J59: 36465.16 | K59: 255256.12 | L59: 8931 | M59: 62517 | N59: 317773.12 | O59: 36465 | R59: 8931 | AD59: 255255 | AE59: 0.2366378719 | AF59: 62517 | AG59: 0.2307692308 | AH59: 317772 | AI59: 0.2354833025
A60: 1.1.20.7 | B60: Демонтаж ГКЛ 2 слоя | C60: м2 | D60: 36 | E60: 890 | F60: 32040 | I60: 32040 | J60: 1165.9 | K60: 41972.4 | L60: 0 | M60: 0 | N60: 41972.4 | O60: 1166 | R60: 0 | AD60: 41976 | AE60: 0.2367066895 | AH60: 41976 | AI60: 0.2367066895
A61: 1.1.20.8 | B61: Монтаж профильной трубы 40х40 | C61: м.п. | D61: 12 | E61: 690 | F61: 8280 | G61: 348 | H61: =D61*G61 -> 4176 | I61: 12456 | J61: 903.9 | K61: 10846.8 | L61: 452.4 | M61: 5428.8 | N61: 16275.6 | O61: 904 | R61: 453 | AD61: 10848 | AE61: 0.2367256637 | AF61: =D61*R61 -> 5436 | AG61: =1-H61/AF61 -> 0.2317880795 | AH61: 16284 | AI61: 0.2350773766
A62: 1.1.20.9 | B62: Монтаж ГКЛ 2 слоя | C62: м2 | D62: 36 | E62: 1290 | F62: 46440 | G62: 1250 | H62: 45000 | I62: 91440 | J62: 1689.9 | K62: 60836.4 | L62: 1625 | M62: 58500 | N62: 119336.4 | O62: 1690 | R62: 1625 | AD62: 60840 | AE62: 0.2366863905 | AF62: 58500 | AG62: 0.2307692308 | AH62: 119340 | AI62: 0.233785822
A63: 1.1.20.10 | B63: Увеличение дверных проёмов | C63: шт | D63: 12 | E63: 5790 | F63: 69480 | G63: 1320 | H63: 15840 | I63: 85320 | J63: 7584.9 | K63: 91018.8 | L63: 1716 | M63: 20592 | N63: 111610.8 | O63: 7585 | R63: 1716 | AD63: 91020 | AE63: 0.2366512854 | AF63: 20592 | AG63: 0.2307692308 | AH63: 111612 | AI63: 0.2355660682
A64: 1.1.20.11 | B64: Наливной пол толщиной до 50мм | C64: м2 | D64: 125.1 | E64: 981.75 | F64: 122816.925 | G64: 1869.25 | H64: 233843.175 | I64: 356660.1 | J64: 1286.0925 | K64: 160890.1717 | L64: 2430.025 | M64: 303996.1275 | N64: 464886.2992 | O64: 1286 | R64: 2430 | AD64: 160878.6 | AE64: 0.2365863142 | AF64: 303993 | AG64: 0.2307613169 | AH64: 464871.6 | AI64: 0.2327771798
A65: 1.1.20.12 | B65: Усиление площадки лестничного марша | C65: шт | D65: 4 | E65: 27836 | F65: 111344 | G65: 5787.6 | H65: 23150.4 | I65: 134494.4 | J65: 36465.16 | K65: 145860.64 | L65: 7523.88 | M65: 30095.52 | N65: 175956.16 | O65: 36465 | R65: 7524 | AD65: 145860 | AE65: 0.2366378719 | AF65: 30096 | AG65: 0.2307814992 | AH65: 175956 | AI65: 0.2356361818
A66: 1.1.20.13 | B66: Устройство стен из газобетонных блоков | C66: м3 | D66: 1.87 | E66: 5197.5 | F66: 9719.325 | G66: 10659 | H66: 19932.33 | I66: 29651.655 | J66: 6808.725 | K66: 12732.31575 | L66: 13856.7 | M66: 25912.029 | N66: 38644.34475 | O66: 6809 | R66: 13857 | AD66: 12732.83 | AE66: 0.2366720517 | AF66: 25912.59 | AG66: 0.2307858844 | AH66: 38645.42 | AI66: 0.2327252492
A67: 1.1.20.14 | B67: Облицовка ступеней плиткой на лестнечной клетке | C67: шт | D67: 24 | E67: =2360*1.2 -> 2832 | F67: 67968 | G67: =1630*1.2 -> 1956 | H67: 46944 | I67: 114912 | J67: 3709.92 | K67: 89038.08 | L67: 2542.8 | M67: 61027.2 | O67: 3710 | R67: 2543 | AD67: 89040 | AE67: 0.2366576819 | AF67: 61032 | AG67: 0.2308297287 | AH67: 150072 | AI67: 0.234287542
A68: 1.1.20.15 | B68: Штукатурка откосов Ролл ворот в цеху | C68: м.п. | D68: 150 | E68: =721*1.2 -> 865.2 | F68: 129780 | G68: =363*1.2 -> 435.6 | H68: 65340 | I68: 195120 | J68: 1133.412 | K68: 170011.8 | L68: 566.28 | M68: 84942 | O68: 1135 | R68: 567 | AD68: 170250 | AE68: 0.2377092511 | AF68: 85050 | AG68: 0.2317460317 | AH68: 255300 | AI68: 0.2357226792
A69: 1.2 | B69: 130-23-АС1 Архитектурно-строительные решения | F69: =F73+F75+F78+F80+F81+F90+F92+F95 -> 7119500.6 | H69: =H73+H75+H78+H80+H81+H90+H92+H95 -> 11639486.72 | I69: =I73+I75+I78+I80+I81+I90+I92+I95 -> 18758987.32 | K69: =K73+SUM(K75:K75)+SUM(K78:K81)+#REF!+K90+K92+K94+K97 ->  | M69: =M73+SUM(M75:M75)+SUM(M78:M81)+#REF!+M90+M92+M94+M97 ->  | N69: =N73+SUM(N75:N75)+SUM(N78:N81)+#REF!+N90+N92+N94+N97 ->  | V69: =N69-I69 ->  | W69: =1-I69/N69 ->  | AD69: =AD73+AD75+AD78+AD80+AD81+AD90+AD92+AD95 -> 9370353.48 | AE69: 0.2402100289 | AF69: =AF73+AF75+AF78+AF80+AF81+AF90+AF92+AF95 -> 19579106 | AG69: 0.4055149035 | AH69: =AH73+AH75+AH78+AH80+AH81+AH90+AH92+AH95 -> 28949459.48 | AI69: 0.3520090649 | AJ69: ШК | AK69: + | AP69: - | AQ69: - | AR69: - | AS69: -
A70: 1.2 | B70: 130-23-АС1 Архитектурно-строительные решения | F70: =F72+F74+F77+F82+F83+F84+F85+F87+F89+F91+F94+F97+F96 -> -11411496.8 | H70: =H72+H74+H77+H82+H83+H84+H85+H87+H89+H91+H94+H97+H96 -> -15173009.39 | I70: =I72+I74+I77+I82+I83+I84+I85+I87+I89+I91+I94+I97+I96 -> -26584506.19 | K70: =-K72-K74-K77-SUM(K82:K85)-K87-K89-K91+K94+K97 -> -11663651.54 | M70: =-M72-M74-M77-SUM(M82:M85)-M87-M89-M91+M94+M97 -> -11461550.48 | N70: =-N72-N74-N77-SUM(N82:N85)-N87-N89-N91+N94+N97 -> -23303958.42 | U70: =U73+U75+#REF!+#REF!+#REF!+#REF!+U78+U80+U81+#REF!+U90+U92 ->  | V70: =V73+V75+#REF!+#REF!+#REF!+#REF!+V78+V80+V81+#REF!+V90+V92 ->  | W70: =W73+W75+#REF!+#REF!+#REF!+#REF!+W78+W80+W81+#REF!+W90+W92 ->  | X70: =X73+X75+#REF!+#REF!+#REF!+#REF!+X78+X80+X81+#REF!+X90+X92 ->  | Y70: =Y73+Y75+#REF!+#REF!+#REF!+#REF!+Y78+Y80+Y81+#REF!+Y90+Y92 ->  | Z70: =Z73+Z75+#REF!+#REF!+#REF!+#REF!+Z78+Z80+Z81+#REF!+Z90+Z92 ->  | AA70: =AA73+AA75+#REF!+#REF!+#REF!+#REF!+AA78+AA80+AA81+#REF!+AA90+AA92 ->  | AB70: =AB73+AB75+#REF!+#REF!+#REF!+#REF!+AB78+AB80+AB81+#REF!+AB90+AB92 ->  | AC70: =AC73+AC75+#REF!+#REF!+#REF!+#REF!+AC78+AC80+AC81+#REF!+AC90+AC92 ->  | AD70: =AD72+AD74+AD77+AD82+AD83+AD84+AD85+AD87+AD89+AD91+AD94+AD97+AD96 -> -11518228.36 | AF70: =AF72+AF74+AF77+AF82+AF83+AF84+AF85+AF87+AF89+AF91+AF94+AF97+AF96 -> -20862916.99 | AH70: =AH72+AH74+AH77+AH82+AH83+AH84+AH85+AH87+AH89+AH91+AH94+AH97+AH96 -> -32381145.35 | AI70: 0.1790127896 | AL70: +
A71: 1.2.1 | B71: Металлоконструкции огрунтованные КМ | V71: =N71-I71 -> 0 | W71: =1-I71/N71 -> 
A72: 1.2.1.1 | B72: Монтаж фахверковых стоек массой до 1,0 т. | C72: т. | D72: -13.9 | E72: 53800 | F72: =D72*E72 -> -747820 | G72: 195000 | H72: =D72*G72 -> -2710500 | I72: =F72+H72 -> -3458320 | J72: =E72*$Y$1 -> 70478 | K72: =J72*D72 -> -979644.2 | L72: =G72*$X$1 -> 253500 | M72: =L72*D72 -> -3523650 | N72: =K72+M72 -> -4503294.2 | O72: 95478 | R72: 229000 | AD72: =O72*D72 -> -1327144.2 | AF72: =R72*D72 -> -3183100 | AH72: =O72*D72+R72*D72 -> -4510244.2 | AI72: =1-I72/AH72 -> 0.2332299879
A73: 1.2.1.1 | B73: Монтаж фахверковых стоек массой до 1,0 т. | C73: т. | D73: 10.5 | E73: =57000*1.2 -> 68400 | F73: 718200 | G73: 195000 | H73: 2047500 | I73: 2765700 | J73: 89604 | K73: 940842 | L73: 253500 | M73: =L73*D73 -> 2661750 | N73: =K73+M73 -> 3602592 | O73: 95478 | P73: ='ВСЕ СМЕТЫ КДС'!G2447 -> 81128.97336 | Q73: =((O73/(P73/100))-100)/100 -> 0.1768668583 | R73: 229000 | S73: ='ВСЕ СМЕТЫ КДС'!G2448+'ВСЕ СМЕТЫ КДС'!G2449 -> 124240.4976 | T73: =((R73/(S73/100))-100)/100 -> 0.8431993144 | V73: =N73-I73 -> 836892 | W73: =1-I73/N73 -> 0.232302742 | AD73: =D73*O73 -> 1002519 | AE73: =1-F73/AD73 -> 0.2836046 | AF73: =D73*R73 -> 2404500 | AG73: =1-H73/AF73 -> 0.1484716157 | AH73: =O73*D73+R73*D73 -> 3407019 | AI73: =1-I73/AH73 -> 0.1882346415
A74: 1.2.1.2 | B74: Монтаж распорок, ригелей, в том числе: Профили стальные гнутые замкнутые квадратные 100х3 | C74: т. | D74: -0.67 | E74: 53800 | F74: -36046 | G74: 195000 | H74: -130650 | I74: -166696 | J74: 70478 | K74: -47220.26 | L74: 253500 | M74: =L74*D74 -> -169845 | N74: =K74+M74 -> -217065.26 | O74: 95478 | R74: 229000 | AD74: =O74*D74 -> -63970.26 | AF74: =R74*D74 -> -153430 | AH74: =O74*D74+R74*D74 -> -217400.26 | AI74: =1-I74/AH74 -> 0.2332299879
A75: 1.2.1.2 | B75: Монтаж распорок, ригелей, в том числе: Профили стальные гнутые замкнутые квадратные 100х4 | C75: т. | D75: 0.66 | E75: =E74*1.3 -> 69940 | F75: 46160.4 | G75: 195000 | H75: 128700 | I75: 174860.4 | J75: 91621.4 | K75: 60470.124 | L75: 253500 | M75: =L75*D75 -> 167310 | N75: 227780.124 | O75: 95478 | P75: ='ВСЕ СМЕТЫ КДС'!G2447 -> 81128.97336 | Q75: =((O75/(P75/100))-100)/100 -> 0.1768668583 | R75: 229000 | S75: ='ВСЕ СМЕТЫ КДС'!G2448+'ВСЕ СМЕТЫ КДС'!G2449 -> 124240.4976 | T75: =((R75/(S75/100))-100)/100 -> 0.8431993144 | V75: =N75-I75 -> 52919.724 | W75: =1-I75/N75 -> 0.2323281025 | AD75: =D75*O75 -> 63015.48 | AE75: =1-F75/AD75 -> 0.2674752299 | AF75: =D75*R75 -> 151140 | AG75: =1-H75/AF75 -> 0.1484716157 | AH75: =O75*D75+R75*D75 -> 214155.48 | AI75: =1-I75/AH75 -> 0.183488557
A76: 1.2.2 | B76: Окраска металлоконструкций
A77: 1.2.2.1 | B77: Устройство огнезащитной краски по металлу | C77: м2 | D77: -439.29 | E77: 1920 | F77: =D77*E77 -> -843436.8 | G77: 1211 | H77: =G77*D77 -> -531980.19 | I77: =H77+F77 -> -1375416.99 | J77: 4150 | K77: 7301 | L77: -0.43 | M77: 665 | N77: 645 | O77: 4150 | P77: 2115181.35 | R77: 665 | V77: =N78-I78 -> 396033.36 | W77: =1-I78/N78 -> 0.2349776603 | AD77: =O77*D77 -> -1823053.5 | AF77: =R77*D77 -> -292127.85 | AH77: =O77*D77+R77*D77 -> -2115181.35 | AI77: =1-I77/AH77 -> 0.3497403946
A78: 1.2.2.1 | B78: Устройство огнезащитной краски по металлу | C78: м2 | D78: 384.2 | E78: =2000*1.2 -> 2400 | F78: =D78*E78 -> 922080 | G78: 956 | H78: =D78*G78 -> 367295.2 | I78: =F78+H78 -> 1289375.2 | J78: =E78*$Y$1 -> 3144 | K78: =J78*D78 -> 1207924.8 | L78: =G78*$X$1 -> 1242.8 | M78: =L78*D78 -> 477483.76 | N78: =K78+M78 -> 1685408.56 | O78: 4150 | P78: ='ВСЕ СМЕТЫ КДС'!G2473+'ВСЕ СМЕТЫ КДС'!G2477+'ВСЕ СМЕТЫ КДС'!G2482+'ВСЕ СМЕТЫ КДС'!G2483 -> 7300.963598 | Q78: =((O78/(P78/100))-100)/100 -> -0.4315818804 | R78: 665 | S78: ='ВСЕ СМЕТЫ КДС'!G2478+'ВСЕ СМЕТЫ КДС'!G2484 -> 644.9848107 | T78: =((R78/(S78/100))-100)/100 -> 0.03103203196 | AD78: =D78*O78 -> 1594430 | AE78: =1-F78/AD78 -> 0.421686747 | AF78: =D78*R78 -> 255493 | AG78: =1-H78/AF78 -> -0.437593985 | AH78: =O78*D78+R78*D78 -> 1849923 | AI78: =1-I78/AH78 -> 0.3030114226
A79: 1.2.3 | B79: Крепление металлоконструкций
A80: 1.2.3.1 | B80: Сверление отверстий в железобетонных конструкциях | C80: шт. | D80: 811 | E80: =250*1.2 -> 300 | F80: =D80*E80 -> 243300 | I80: =F80+H80 -> 243300 | J80: =E80*$Y$1 -> 393 | K80: =J80*D80 -> 318723 | L80: =G80*$X$1 -> 0 | M80: =L80*D80 -> 0 | N80: 318723 | O80: 393 | R80: 0 | V80: =N80-I80 -> 75423 | W80: =1-I80/N80 -> 0.2366412214 | AD80: =D80*O80 -> 318723 | AE80: =1-F80/AD80 -> 0.2366412214 | AH80: =O80*D80+R80*D80 -> 318723 | AI80: =1-I80/AH80 -> 0.2366412214
A81: 1.2.3.2 | B81: Устройство высокопрочных анкеров, закладных | C81: компл. | D81: 1 | E81: =165866*1.2 -> 199039.2 | F81: =D81*E81 -> 199039.2 | G81: 199703.52 | H81: =D81*G81 -> 199703.52 | I81: =F81+H81 -> 398742.72 | J81: =E81*$Y$1 -> 260741.352 | K81: =J81*D81 -> 260741.352 | L81: =G81*$X$1 -> 259614.576 | M81: =L81*D81 -> 259614.576 | N81: 520355.928 | O81: 260741 | R81: 259614 | V81: =N81-I81 -> 121613.208 | W81: =1-I81/N81 -> 0.2337115837 | AD81: =D81*O81 -> 260741 | AE81: =1-F81/AD81 -> 0.2366401908 | AF81: =D81*R81 -> 259614 | AG81: =1-H81/AF81 -> 0.2307675241 | AH81: 520355 | AI81: 0.2337102171
A82: 1.2.3.3 | B82: Химический анкер, шпилька М16х190 | C82: шт. | D82: -71 | E82: 540 | F82: =D82*E82 -> -38340 | G82: 1008 | H82: =D82*G82 -> -71568 | I82: =F82+H82 -> -109908 | J82: =E82*$Y$1 -> 707.4 | K82: 50225 | L82: =G82*$X$1 -> 1310.4 | M82: =L82*D82 -> -93038.4 | N82: 143264 | O82: 707.4 | R82: 1310.4 | U82: 143263.8 | V82: 0.2328 | AD82: =O82*D82 -> -50225.4 | AF82: =R82*D82 -> -93038.4 | AH82: -143263.8 | AI82: 0.2328278323
A83: 1.2.3.4 | B83: Распорный анкер типа Hilti HSA M12х115 | C83: шт. | D83: -350 | E83: 180 | F83: =D83*E83 -> -63000 | G83: 251 | H83: =D83*G83 -> -87850 | I83: =F83+H83 -> -150850 | J83: =E83*$Y$1 -> 235.8 | K83: 82530 | L83: =G83*$X$1 -> 326.3 | M83: 114223 | N83: 196753 | O83: 235.8 | R83: 326.35 | U83: 196753.2 | V83: 0.2332 | AD83: =O83*D83 -> -82530 | AF83: =R83*D83 -> -114222.5 | AH83: -196752.5 | AI83: 0.2333007204
A84: 1.2.3.5 | B84: Распорный анкер типа Hilti HSA M10х83 | C84: шт. | D84: -260 | E84: 144 | F84: -37440 | G84: 379 | H84: -98540 | I84: -135980 | J84: 188.64 | K84: 49046 | L84: 492.7 | M84: 128170 | N84: 177216 | O84: 188.64 | R84: 492.96 | U84: 177216 | V84: 0.2324 | AD84: =O84*D84 -> -49046.4 | AF84: =R84*D84 -> -128169.6 | AH84: -177216 | AI84: 0.2326877934
A85: 1.2.3.6 | B85: Распорный анкер типа Hilti HSA M6х50 | C85: шт. | D85: -130 | E85: 120 | F85: -15600 | G85: 393 | H85: -51090 | I85: -66690 | J85: 157.2 | K85: 20436 | L85: 510.9 | M85: 66409 | N85: 86845 | O85: 157.2 | R85: 510.84 | U85: 86844.89 | V85: 0.2322 | AD85: =O85*D85 -> -20436 | AF85: =R85*D85 -> -66409.2 | AH85: -86845.2 | AI85: 0.2320819113
A86: 1.2.4 | B86: Демонтаж металлоконструкций
A87: 1.2.4.1 | B87: Демонтаж элементов тормозных ферм и связей с последующей приваркой к фахверку и окраской | C87: т. | D87: -1 | E87: 79000 | F87: =E87*D87 -> -79000 | G87: 5000 | H87: =D87*G87 -> -5000 | I87: =F87+H87 -> -84000 | J87: 103490 | K87: 103490 | L87: 6500 | M87: 6500 | N87: 109990 | O87: 103490 | R87: 6500 | AD87: =O87*D87 -> -103490 | AF87: =R87*D87 -> -6500 | AH87: =O87*D87+R87*D87 -> -109990 | AI87: =1-I87/AH87 -> 0.2362942086
A88: 1.2.5 | B88: Устройство перегородки | V88: =N88-I88 -> 0 | W88: =1-I88/N88 -> 
A89: 1.2.5.1 | B89: Стеновые сэндвич-панели «Металл Профиль» МП ТСП-Z-100-1000-Г-Г-МВ | C89: м2 | D89: -2230.6 | E89: 3595 | F89: =D89*E89 -> -8019007 | G89: 5056 | H89: =D89*G89 -> -11277913.6 | I89: =F89+H89 -> -19296920.6 | J89: 4709 | K89: 10504899 | L89: 6573 | M89: 14661824 | N89: 25166723 | O89: 2711 | P89: 2098 | Q89: 0.29 | R89: 7373 | S89: 7392 | T89: 0 | U89: 22493370.4 | V89: 0.1421 | AD89: =O89*D89 -> -6047156.6 | AF89: =R89*D89 -> -16446213.8 | AH89: =O89*D89+R89*D89 -> -22493370.4 | AI89: =1-I89/AH89 -> 0.142106307
A90: 1.2.5.1 | B90: Стеновые сэндвич-панели 100-1000-Г-Г | C90: м2 | D90: 2215 | E90: 2237 | F90: =D90*E90 -> 4954955 | G90: =8787788/2215 -> 3967.398646 | H90: =D90*G90 -> 8787788 | I90: =F90+H90 -> 13742743 | J90: =E90*$Y$1 -> 2930.47 | K90: =J90*D90 -> 6490991.05 | L90: =G90*$X$1 -> 5157.618239 | M90: =L90*D90 -> 11424124.4 | N90: =K90+M90 -> 17915115.45 | O90: 2711 | P90: ='ВСЕ СМЕТЫ КДС'!G50+'ВСЕ СМЕТЫ КДС'!G55+'ВСЕ СМЕТЫ КДС'!G60+'ВСЕ СМЕТЫ КДС'!G72 -> 2097.908878 | Q90: =((O90/(P90/100))-100)/100 -> 0.2922391568 | R90: 7373 | S90: ='ВСЕ СМЕТЫ КДС'!G51+'ВСЕ СМЕТЫ КДС'!G56+'ВСЕ СМЕТЫ КДС'!G61+'ВСЕ СМЕТЫ КДС'!G62+'ВСЕ СМЕТЫ КДС'!G63+'ВСЕ СМЕТЫ КДС'!G64+'ВСЕ СМЕТЫ КДС'!G65+'ВСЕ СМЕТЫ КДС'!G66+'ВСЕ СМЕТЫ КДС'!G67+'ВСЕ СМЕТЫ КДС'!G73 -> 7392.365593 | T90: =((R90/(S90/100))-100)/100 -> -0.002619674686 | V90: =N90-I90 -> 4172372.45 | W90: =1-I90/N90 -> 0.232896766 | AD90: =D90*O90 -> 6004865 | AE90: =1-F90/AD90 -> 0.1748432313 | AF90: =D90*R90 -> 16331195 | AG90: =1-H90/AF90 -> 0.4619017163 | AH90: =O90*D90+R90*D90 -> 22336060 | AI90: =1-I90/AH90 -> 0.3847284167
A91: 1.2.5.2 | B91: Устройство противопожарной перегородки «Knauf» С112 с двухслойной обшивкой с каждой стороны | C91: м2 | D91: -20.2 | E91: 6785 | F91: =E91*D91 -> -137057 | G91: 3500 | H91: =D91*G91 -> -70700 | I91: =H91+F91 -> -207757 | J91: 8888 | K91: 179545 | L91: 4550 | M91: 91910 | N91: 271455 | O91: 5055 | P91: 3959 | Q91: 0.28 | R91: 4601 | S91: 3603 | T91: 0.28 | U91: 195051.2 | V91: -0.0651 | AD91: =O91*D91 -> -102111 | AF91: =R91*D91 -> -92940.2 | AH91: =O91*D91+R91*D91 -> -195051.2 | AI91: =1-I91/AH91 -> -0.06514084507
A92: 1.2.5.2 | B92: Устройство противопожарной перегородки «Knauf» С112 с двухслойной обшивкой с каждой стороны | C92: м2 | D92: 4 | E92: =3750*1.2 -> 4500 | F92: =D92*E92 -> 18000 | G92: 3500 | H92: =D92*G92 -> 14000 | I92: =H92+F92 -> 32000 | J92: =E92*$Y$1 -> 5895 | K92: =J92*D92 -> 23580 | L92: =G92*$X$1 -> 4550 | M92: =L92*D92 -> 18200 | N92: =K92+M92 -> 41780 | O92: 5055 | P92: ='ВСЕ СМЕТЫ КДС'!G2421 -> 3958.638107 | Q92: =((O92/(P92/100))-100)/100 -> 0.276954312 | R92: 4601 | S92: ='ВСЕ СМЕТЫ КДС'!G2422+'ВСЕ СМЕТЫ КДС'!G2423 -> 3603.315212 | T92: =((R92/(S92/100))-100)/100 -> 0.2768796868 | V92: =N92-I92 -> 9780 | W92: =1-I92/N92 -> 0.2340832934 | AD92: =D92*O92 -> 20220 | AE92: =1-F92/AD92 -> 0.1097922849 | AF92: =D92*R92 -> 18404 | AG92: =1-H92/AF92 -> 0.2392958053 | AH92: =O92*D92+R92*D92 -> 38624 | AI92: =1-I92/AH92 -> 0.1714995857
A93: 1.2.6 | B93: Устройство бетонного плинтуса
A94: 1.2.6.1 | B94: Устройство плинтуса из бетона кл. В25 | C94: м3 | D94: -7.6 | E94: =20000*1.2 -> 24000 | F94: =D94*E94 -> -182400 | G94: =6230*1.2 -> 7476 | H94: =D94*G94 -> -56817.6 | I94: =F94+H94 -> -239217.6 | J94: =E94*$Y$1 -> 31440 | K94: =J94*D94 -> -238944 | L94: =G94*$X$1 -> 9718.8 | M94: =L94*D94 -> -73862.88 | N94: =K94+M94 -> -312806.88 | O94: 39300 | R94: 23774.4 | V94: =N94-I94 -> -73589.28 | W94: =1-I94/N94 -> 0.2352546721 | AD94: =O94*D94 -> -298680 | AF94: =R94*D94 -> -180685.44 | AH94: =O94*D94+R94*D94 -> -479365.44 | AI94: =1-I94/AH94 -> 0.5009702827
A95: 1.2.6.1 | B95: Устройство плинтуса из фасонного элемента | C95: м/п | D95: 378 | E95: 47 | F95: 17766 | G95: 250 | H95: =D95*G95 -> 94500 | I95: =H95+F95 -> 112266 | O95: 280 | R95: 420 | AD95: =D95*O95 -> 105840 | AE95: =1-F95/AD95 -> 0.8321428571 | AF95: =D95*R95 -> 158760 | AG95: =1-H95/AF95 -> 0.4047619048 | AH95: =O95*D95+R95*D95 -> 264600 | AI95: 0.5757142857
A96: 1.2.6.2 | B96: Шлифовка бетонной поверхности | C96: м2 | D96: -115 | E96: 890 | F96: =D96*E96 -> -102350 | I96: =F96+H96 -> -102350 | O96: 1179 | R96: 0 | AD96: =O96*D96 -> -135585 | AF96: =R96*D96 -> 0 | AH96: =O96*D96+R96*D96 -> -135585 | AI96: 0.2451229856
A97: 1.2.6.3 | B97: Арматура Ø10А500С | C97: п/м | D97: -600 | E97: 1850 | F97: =D97*E97 -> -1110000 | G97: 134 | H97: =D97*G97 -> -80400 | I97: =F97+H97 -> -1190400 | J97: =E97*$Y$1 -> 2423.5 | K97: =J97*D97 -> -1454100 | L97: =G97*$X$1 -> 174.2 | M97: =L97*D97 -> -104520 | N97: =K97+M97 -> -1558620 | O97: 2358 | R97: 176.8 | V97: =N97-I97 -> -368220 | W97: =1-I97/N97 -> 0.2362474497 | AD97: =O97*D97 -> -1414800 | AF97: =R97*D97 -> -106080 | AH97: =O97*D97+R97*D97 -> -1520880 | AI97: 0.2172952501
A98: 1.3 | B98: 130-23-ВК Внутренние трубопроводы | F98: =SUM(F99:F102) -> 3010200 | H98: =SUM(H99:H102) -> 5727056.64 | I98: =SUM(I99:I102) -> 8737256.64 | K98: =SUM(K99:K102) -> 3943362 | M98: =SUM(M99:M102) -> 7445173.632 | N98: =SUM(N99:N102) -> 11388535.63 | V98: 2651278.992 | W98: 0.2328024496 | AD98: =SUM(AD99:AD102) -> 3943362 | AE98: =1-F98/AD98 -> 0.2366412214 | AF98: =SUM(AF99:AF102) -> 7445174 | AG98: =1-H98/AF98 -> 0.2307692688 | AH98: =SUM(AH99:AH102) -> 11388536 | AI98: 0.2328024743 | AK98: - | AP98: - | AQ98: - | AR98: - | AS98: -
A99: 1.3.1 | B99: Хозяйственно-питьевой водопровод В1. | C99: сис | D99: 1 | E99: 695100 | F99: =D99*E99 -> 695100 | G99: 753743.52 | H99: =D99*G99 -> 753743.52 | I99: =H99+F99 -> 1448843.52 | J99: =E99*$Y$1 -> 910581 | K99: =J99*D99 -> 910581 | L99: =G99*$X$1 -> 979866.576 | M99: =L99*D99 -> 979866.576 | N99: =K99+M99 -> 1890447.576 | O99: 910581 | R99: 979867 | V99: 441604.056 | W99: 0.2335976208 | AD99: =D99*O99 -> 910581 | AE99: 0.2366412214 | AF99: =D99*R99 -> 979867 | AG99: 0.2307695636 | AH99: =O99*D99+R99*D99 -> 1890448 | AI99: 0.2335977927
A100: 1.3.2 | B100: Горячее водоснабжение (Т3, Т4) | C100: сис | D100: 1 | E100: 868200 | F100: =D100*E100 -> 868200 | G100: 1236673.44 | H100: =D100*G100 -> 1236673.44 | I100: =H100+F100 -> 2104873.44 | J100: 1137342 | K100: 1137342 | L100: 1607675.472 | M100: =L100*D100 -> 1607675.472 | N100: 2745017.472 | O100: 1137342 | R100: 1607675 | V100: 640144.032 | W100: 0.2332021703 | AD100: =D100*O100 -> 1137342 | AE100: 0.2366412214 | AF100: =D100*R100 -> 1607675 | AG100: 0.2307690049 | AH100: =O100*D100+R100*D100 -> 2745017 | AI100: 0.2332020385
A101: 1.3.3 | B101: Противопожарный водопровод, В2 | C101: сис | D101: 1 | E101: 1179600 | F101: 1179600 | G101: 3168026.88 | H101: 3168026.88 | I101: 4347626.88 | J101: 1545276 | K101: 1545276 | L101: 4118434.944 | M101: =L101*D101 -> 4118434.944 | N101: 5663710.944 | O101: 1545276 | R101: 4118435 | V101: 1316084.064 | W101: 0.2323713334 | AD101: =D101*O101 -> 1545276 | AE101: 0.2366412214 | AF101: =D101*R101 -> 4118435 | AG101: 0.2307692412 | AH101: =O101*D101+R101*D101 -> 5663711 | AI101: 0.232371341
A102: 1.3.4 | B102: Бытовая канализация К1 | C102: сис | D102: 1 | E102: 267300 | F102: 267300 | G102: 568612.8 | H102: 568612.8 | I102: 835912.8 | J102: 350163 | K102: 350163 | L102: 739196.64 | M102: =L102*D102 -> 739196.64 | N102: 1089359.64 | O102: 350163 | R102: 739197 | V102: 253446.84 | W102: 0.2326567193 | AD102: =D102*O102 -> 350163 | AE102: 0.2366412214 | AF102: =D102*R102 -> 739197 | AG102: 0.2307696054 | AH102: =O102*D102+R102*D102 -> 1089360 | AI102: 0.2326569729
A103: 1.4 | B103: 130-23-ПС Пожарная сигнализация | F103: =F105+F107+F109+F111+F113+F114+F116+F118+F120+F122+SUM(F124:F130)+F132+F133+F135+F137+F139+F141+F143+F144+F145+F146+F148+F149+F150+F151+F152+F153+F154+F155+F157+F159+F161+F163+F165+SUM(F166:F177)+F179+F181+F182+F184+F186+F188+F190+F191+F193+F195+F197+F199+F201+F203+F204+SUM(F206:F220) -> 4745028 | H103: =H105+H107+H109+H111+H113+H114+H116+H118+H120+H122+SUM(H124:H130)+H132+H133+H135+H137+H139+H141+H143+H144+H145+H146+H148+H149+H150+H151+H152+H153+H154+H155+H157+H159+H161+H163+H165+SUM(H166:H177)+H179+H181+H182+H184+H186+H188+H190+H191+H193+H195+H197+H199+H201+H203+H204+SUM(H206:H220) -> 4727773.66 | I103: =I105+I107+I109+I111+I113+I114+I116+I118+I120+I122+SUM(I124:I130)+I132+I133+I135+I137+I139+I141+I143+I144+I145+I146+I148+I149+I150+I151+I152+I153+I154+I155+I157+I159+I161+I163+I165+SUM(I166:I177)+I179+I181+I182+I184+I186+I188+I190+I191+I193+I195+I197+I199+I201+I203+I204+SUM(I206:I220) -> 9472801.66 | K103: =K105+K107+K109+K111+K113+K114+K116+K118+K120+K122+SUM(K124:K130)+K132+K133+K135+K137+K139+K141+K143+K144+K145+K146+K148+K149+K150+K151+K152+K153+K154+K155+K157+K159+K161+K163+K165+SUM(K166:K177)+K179+K181+K182+K184+K186+K188+K190+K191+K193+K195+K197+K199+K201+K203+SUM(K206:K220) -> 5568846.68 | M103: =M105+M107+M109+M111+M113+M114+M116+M118+M120+M122+SUM(M124:M130)+M132+M133+M135+M137+M139+M141+M143+M144+M145+M146+M148+M149+M150+M151+M152+M153+M154+M155+M157+M159+M161+M163+M165+SUM(M166:M177)+M179+M181+M182+M184+M186+M188+M190+M191+M193+M195+M197+M199+M201+M203+SUM(M206:M220) -> 6146105.758 | N103: =N105+N107+N109+N111+N113+N114+N116+N118+N120+N122+SUM(N124:N130)+N132+N133+N135+N137+N139+N141+N143+N144+N145+N146+N148+N149+N150+N151+N152+N153+N154+N155+N157+N159+N161+N163+N165+SUM(N166:N177)+N179+N181+N182+N184+N186+N188+N190+N191+N193+N195+N197+N199+N201+N203+SUM(N206:N220) -> 11714952.44 | V103: 2242150.778 | W103: 0.191392222 | AD103: =AD105+AD107+AD109+AD111+AD113+AD114+AD116+AD118+AD120+AD122+SUM(AD124:AD130)+AD132+AD133+AD135+AD137+AD139+AD141+AD143+AD144+AD145+AD146+AD148+AD149+AD150+AD151+AD152+AD153+AD154+AD155+AD157+AD159+AD161+AD163+AD165+SUM(AD166:AD177)+AD179+AD181+AD182+AD184+AD186+AD188+AD190+AD191+AD193+AD195+AD197+AD199+AD201+AD203+AD204+SUM(AD206:AD220) -> 5567925.5 | AE103: 0.1477924767 | AF103: =AF105+AF107+AF109+AF111+AF113+AF114+AF116+AF118+AF120+AF122+SUM(AF124:AF130)+AF132+AF133+AF135+AF137+AF139+AF141+AF143+AF144+AF145+AF146+AF148+AF149+AF150+AF151+AF152+AF153+AF154+AF155+AF157+AF159+AF161+AF163+AF165+SUM(AF166:AF177)+AF179+AF181+AF182+AF184+AF186+AF188+AF190+AF191+AF193+AF195+AF197+AF199+AF201+AF203+AF204+SUM(AF206:AF220) -> 6146099.1 | AG103: 0.2307683975 | AH103: =AH105+AH107+AH109+AH111+AH113+AH114+AH116+AH118+AH120+AH122+SUM(AH124:AH130)+AH132+AH133+AH135+AH137+AH139+AH141+AH143+AH144+AH145+AH146+AH148+AH149+AH150+AH151+AH152+AH153+AH154+AH155+AH157+AH159+AH161+AH163+AH165+SUM(AH166:AH177)+AH179+AH181+AH182+AH184+AH186+AH188+AH190+AH191+AH193+AH195+AH197+AH199+AH201+AH203+AH204+SUM(AH206:AH220) -> 11714024.6 | AI103: 0.1913281743 | AJ103: ШК | AK103: + | AP103: - | AQ103: - | AR103: - | AS103: -
A104: 1.4 | B104: 130-23-ПС Пожарная сигнализация | F104: =-F105+F106+F108+F110-F111+F112-F114+F115+F117+F119+F121+F123-F129-F130+F131-F133+F134+F136+F138+F140+F142-F146+F147+F222-F153-F154-F155+F156+F158+F160+F162+F164+F221+F223+F224+F225+F178+F180+F226+F183+F185+F187+F189+F227+F192+F194+F228+F196+F198+F200+F202 -> -2042900 | H104: =-H105+H106+H108+H110-H111+H112-H114+H115+H117+H119+H121+H123-H129-H130+H131-H133+H134+H136+H138+H140+H142-H146+H147+H222-H153-H154-H155+H156+H158+H160+H162+H164+H221+H223+H224+H225+H178+H180+H226+H183+H185+H187+H189+H227+H192+H194+H228+H196+H198+H200+H202 -> -3107161.04 | I104: =-I105+I106+I108+I110-I111+I112-I114+I115+I117+I119+I121+I123-I129-I130+I131-I133+I134+I136+I138+I140+I142-I146+I147+I222-I153-I154-I155+I156+I158+I160+I162+I164+I221+I223+I224+I225+I178+I180+I226+I183+I185+I187+I189+I227+I192+I194+I228+I196+I198+I200+I202 -> -5150061.04 | K104: =SUM(K105:K109)-K110+SUM(K111:K114)-K115-K117-K119-K121-K123+K129+K130-K131+K133+K135-K136-K138-K140-K142+K146-K147-K222+K153+K154+K155-K156-K158-K160-K162-K164-K221-K223-K224-K225-K178-K180-K226-K185-K183-K187-+K189-K227-K192-K194-K228-K196-K198-K200-K202 -> 2693491 | M104: =SUM(M105:M109)-M110+SUM(M111:M114)-M115-M117-M119-M121-M123+M129+M130-M131+M133+M135-M136-M138-M140-M142+M146-M147-M222+M153+M154+M155-M156-M158-M160-M162-M164-M221-M223-M224-M225-M178-M180-M226-M185-M183-M187-+M189-M227-M192-M194-M228-M196-M198-M200-M202 -> 4034582.552 | N104: =SUM(N105:N109)-N110+SUM(N111:N114)-N115-N117-N119-N121-N123+N129+N130-N131+N133+N135-N136-N138-N140-N142+N146-N147-N222+N153+N154+N155-N156-N158-N160-N162-N164-N221-N223-N224-N225-N178-N180-N226-N185-N183-N187-+N189-N227-N192-N194-N228-N196-N198-N200-N202 -> 6728073.552 | AD104: =-AD105+AD106+AD108+AD110-AD111+AD112-AD114+AD115+AD117+AD119+AD121+AD123-AD129-AD130+AD131-AD133+AD134+AD136+AD138+AD140+AD142-AD146+AD147+AD222-AD153-AD154-AD155+AD156+AD158+AD160+AD162+AD164+AD221+AD223+AD224+AD225+AD178+AD180+AD226+AD183+AD185+AD187+AD189+AD227+AD192+AD194+AD228+AD196+AD198+AD200+AD202 -> -2676199 | AF104: =-AF105+AF106+AF108+AF110-AF111+AF112-AF114+AF115+AF117+AF119+AF121+AF123-AF129-AF130+AF131-AF133+AF134+AF136+AF138+AF140+AF142-AF146+AF147+AF222-AF153-AF154-AF155+AF156+AF158+AF160+AF162+AF164+AF221+AF223+AF224+AF225+AF178+AF180+AF226+AF183+AF185+AF187+AF189+AF227+AF192+AF194+AF228+AF196+AF198+AF200+AF202 -> -4039322.56 | AH104: =-AH105+AH106+AH108+AH110-AH111+AH112-AH114+AH115+AH117+AH119+AH121+AH123-AH129-AH130+AH131-AH133+AH134+AH136+AH138+AH140+AH142-AH146+AH147+AH222-AH153-AH154-AH155+AH156+AH158+AH160+AH162+AH164+AH221+AH223+AH224+AH225+AH178+AH180+AH226+AH183+AH185+AH187+AH189+AH227+AH192+AH194+AH228+AH196+AH198+AH200+AH202 -> -6715521.56 | AI104: 0.2331107876 | AL104: +
A105: 1.4.1 | B105: Сервер "Орион Про" | C105: компл. | D105: 1 | E105: 38400 | F105: =D105*E105 -> 38400 | G105: 0 | H105: =G105*D105 -> 0 | I105: =F105+H105 -> 38400 | J105: =E105*$Y$1 -> 50304 | K105: =J105*D105 -> 50304 | L105: =G105*$X$1 -> 0 | M105: =D105*L105 -> 0 | N105: =K105+M105 -> 50304 | O105: 50304 | R105: 0 | V105: =N105-I105 -> 11904 | W105: =1-I105/N105 -> 0.2366412214 | AD105: =D105*O105 -> 50304 | AE105: =1-F105/AD105 -> 0.2366412214 | AH105: =O105*D105+R105*D105 -> 50304 | AI105: 0.2366412214
A106: 1.4.2 | B106: Шкаф пожарной сигнализации | C106: шт. | D106: -2 | E106: 4200 | F106: =D106*E106 -> -8400 | G106: 28173.6 | H106: =G106*D106 -> -56347.2 | I106: =F106+H106 -> -64747.2 | J106: =E106*$Y$1 -> 5502 | K106: =J106*D106 -> -11004 | L106: =G106*$X$1 -> 36625.68 | M106: -73251.36 | N106: =K106+M106 -> -84255.36 | O106: 5502 | R106: 36625.68 | V106: -19508.16 | W106: 0.2315361302 | AD106: =O106*D106 -> -11004 | AF106: =R106*D106 -> -73251.36 | AH106: -84255.36 | AI106: 0.2315361302
A107: 1.4.2 | B107: Шкаф пожарной сигнализации | C107: шт. | D107: 4 | E107: 4200 | F107: 16800 | G107: 28173.6 | H107: 112694.4 | I107: 129494.4 | J107: =E107*$Y$1 -> 5502 | K107: =J107*D107 -> 22008 | L107: =G107*$X$1 -> 36625.68 | M107: 146502.72 | N107: =K107+M107 -> 168510.72 | O107: 5502 | R107: 36625.68 | V107: 39016.32 | W107: 0.2315361302 | AD107: =D107*O107 -> 22008 | AE107: =1-F107/AD107 -> 0.2366412214 | AF107: =D107*R107 -> 146502.72 | AG107: =1-H107/AF107 -> 0.2307692308 | AH107: 168510.72 | AI107: 0.2315361302
A108: 1.4.3 | B108: Монтажный комплект | C108: шт. | D108: -1 | E108: 1800 | F108: =D108*E108 -> -1800 | G108: 1120 | H108: =G108*D108 -> -1120 | I108: =F108+H108 -> -2920 | J108: =E108*$Y$1 -> 2358 | K108: =J108*D108 -> -2358 | L108: =G108*$X$1 -> 1456 | M108: -1456 | N108: =K108+M108 -> -3814 | O108: 2358 | R108: 1456 | V108: -894 | W108: 0.2343995805 | AD108: =O108*D108 -> -2358 | AF108: =R108*D108 -> -1456 | AH108: -3814 | AI108: 0.2343995805
A109: 1.4.3 | B109: Монтажный комплект | C109: шт. | D109: 4 | E109: 1800 | F109: 7200 | G109: 1120 | H109: 4480 | I109: 11680 | J109: 2358 | K109: 9432 | L109: 1456 | M109: 5824 | N109: 15256 | O109: 2358 | R109: 1456 | V109: 3576 | W109: 0.2343995805 | AD109: =D109*O109 -> 9432 | AE109: =1-F109/AD109 -> 0.2366412214 | AF109: =D109*R109 -> 5824 | AG109: =1-H109/AF109 -> 0.2307692308 | AH109: 15256 | AI109: 0.2343995805
A110: 1.4.4 | B110: Шкаф металлический с монтажной платой | C110: шт. | D110: -1 | E110: 4200 | F110: -4200 | G110: 12100 | H110: -12100 | I110: -16300 | J110: 5502 | K110: -5502 | L110: 15730 | M110: -15730 | N110: -21232 | O110: 5502 | R110: 15730 | V110: -4932 | W110: 0.2322908817 | AD110: =O110*D110 -> -5502 | AF110: =R110*D110 -> -15730 | AH110: -21232 | AI110: 0.2322908817
A111: 1.4.5 | B111: Прибор приемно-контрольный и управления пожарный | C111: шт. | D111: 1 | E111: 4200 | F111: 4200 | G111: 32333.6 | H111: 32333.6 | I111: 36533.6 | J111: 5502 | K111: 5502 | L111: 42033.68 | M111: 42033.68 | N111: 47535.68 | O111: 5502 | R111: 42033.68 | V111: 11002.08 | W111: 0.2314488822 | AD111: =D111*O111 -> 5502 | AE111: =1-F111/AD111 -> 0.2366412214 | AF111: =D111*R111 -> 42033.68 | AG111: =1-H111/AF111 -> 0.2307692308 | AH111: 47535.68 | AI111: 0.2314488822
A112: 1.4.6 | B112: Аккумулятор 12 В, 17 А/ч | C112: шт. | D112: -6 | E112: 400 | F112: =D112*E112 -> -2400 | G112: 5668 | H112: =G112*D112 -> -34008 | I112: =F112+H112 -> -36408 | J112: =E112*$Y$1 -> 524 | K112: =J112*D112 -> -3144 | L112: =G112*$X$1 -> 7368.4 | M112: -44210.4 | N112: =K112+M112 -> -47354.4 | O112: 524 | R112: 7368.4 | V112: -10946.4 | W112: 0.2311590898 | AD112: =O112*D112 -> -3144 | AF112: =R112*D112 -> -44210.4 | AH112: -47354.4 | AI112: 0.2311590898
A113: 1.4.6 | B113: Аккумулятор 12 В, 17 А/ч | C113: шт. | D113: 10 | E113: 400 | F113: 4000 | G113: 5668 | H113: 56680 | I113: 60680 | J113: 524 | K113: 5240 | L113: 7368.4 | M113: 73684 | N113: 78924 | O113: 524 | R113: 7368.4 | V113: 18244 | W113: 0.2311590898 | AD113: =D113*O113 -> 5240 | AE113: =1-F113/AD113 -> 0.2366412214 | AF113: =D113*R113 -> 73684 | AG113: =1-H113/AF113 -> 0.2307692308 | AH113: 78924 | AI113: 0.2311590898
A114: 1.4.7 | B114: Пульт контроля и управления | C114: шт. | D114: 1 | E114: 2600 | F114: 2600 | G114: 11375.52 | H114: 11375.52 | I114: 13975.52 | J114: 3406 | K114: 3406 | L114: 14788.176 | M114: 14788.176 | N114: 18194.176 | O114: 3406 | R114: 14788.18 | V114: 4218.656 | W114: 0.2318684836 | AD114: =D114*O114 -> 3406 | AE114: =1-F114/AD114 -> 0.2366412214 | AF114: =D114*R114 -> 14788.18 | AG114: =1-H114/AF114 -> 0.2307694388 | AH114: 18194.18 | AI114: 0.2318686525
A115: 1.4.8 | B115: Контроллер двухпроводной линиии связи | C115: шт. | D115: -2 | E115: 2600 | F115: -5200 | G115: 5006.04 | H115: -10012.08 | I115: -15212.08 | J115: 3406 | K115: -6812 | L115: 6507.852 | M115: -13015.704 | N115: -19827.704 | O115: 3406 | R115: 6507.85 | V115: -4615.624 | W115: 0.2327866101 | AD115: =O115*D115 -> -6812 | AF115: =R115*D115 -> -13015.7 | AH115: -19827.7 | AI115: 0.2327864553
A116: 1.4.8 | B116: Контроллер двухпроводной линиии связи | C116: шт. | D116: 11 | E116: 2600 | F116: 28600 | G116: 5006.04 | H116: 55066.44 | I116: 83666.44 | J116: 3406 | K116: 37466 | L116: 6507.852 | M116: 71586.372 | N116: 109052.372 | O116: 3406 | R116: 6507.85 | V116: 25385.932 | W116: 0.2327866101 | AD116: =D116*O116 -> 37466 | AE116: =1-F116/AD116 -> 0.2366412214 | AF116: =D116*R116 -> 71586.35 | AG116: =1-H116/AF116 -> 0.2307689944 | AH116: 109052.35 | AI116: 0.2327864553
A117: 1.4.9 | B117: Блок контрольно-пусковой | C117: шт. | D117: -1 | E117: 2600 | F117: -2600 | G117: 4564.56 | H117: -4564.56 | I117: -7164.56 | J117: 3406 | K117: -3406 | L117: 5933.928 | M117: -5933.928 | N117: -9339.928 | O117: 3406 | R117: 5933.93 | V117: -2175.368 | W117: 0.2329105749 | AD117: =O117*D117 -> -3406 | AF117: =R117*D117 -> -5933.93 | AH117: -9339.93 | AI117: 0.2329107392
A118: 1.4.9 | B118: Блок контрольно-пусковой | C118: шт. | D118: 4 | E118: 2600 | F118: 10400 | G118: 4564.56 | H118: 18258.24 | I118: 28658.24 | J118: 3406 | K118: 13624 | L118: 5933.928 | M118: 23735.712 | N118: 37359.712 | O118: 3406 | R118: 5933.93 | V118: 8701.472 | W118: 0.2329105749 | AD118: =D118*O118 -> 13624 | AE118: =1-F118/AD118 -> 0.2366412214 | AF118: =D118*R118 -> 23735.72 | AG118: =1-H118/AF118 -> 0.23076949 | AH118: 37359.72 | AI118: 0.2329107392
A119: 1.4.10 | B119: Извещатель пожарный дымовой оптико-электронный аналого-адресный | C119: шт. | D119: -71 | E119: 1200 | F119: -85200 | G119: 1901.8 | H119: -135027.8 | I119: -220227.8 | J119: 1572 | K119: -111612 | L119: 2472.34 | M119: -175536.14 | N119: -287148.14 | O119: 1572 | R119: 2472.34 | V119: -66920.34 | W119: 0.2330516228 | AD119: =O119*D119 -> -111612 | AF119: =R119*D119 -> -175536.14 | AH119: -287148.14 | AI119: 0.2330516228
A120: 1.4.10 | B120: Извещатель пожарный дымовой оптико-электронный аналого-адресный | C120: шт. | D120: 137 | E120: 1200 | F120: 164400 | G120: 1901.8 | H120: 260546.6 | I120: 424946.6 | J120: 1572 | K120: 215364 | L120: 2472.34 | M120: 338710.58 | N120: 554074.58 | O120: 1572 | R120: 2472.34 | V120: 129127.98 | W120: 0.2330516228 | AD120: =D120*O120 -> 215364 | AE120: =1-F120/AD120 -> 0.2366412214 | AF120: =D120*R120 -> 338710.58 | AG120: =1-H120/AF120 -> 0.2307692308 | AH120: 554074.58 | AI120: 0.2330516228
A121: 1.4.11 | B121: Извещатель пожарный линейный однопозиционный адресный | C121: шт. | D121: -26 | E121: 3400 | F121: -88400 | G121: 28860 | H121: -750360 | I121: -838760 | J121: 4454 | K121: -115804 | L121: 37518 | M121: -975468 | N121: -1091272 | O121: 4454 | R121: 37518 | V121: -252512 | W121: 0.2313923568 | AD121: =O121*D121 -> -115804 | AF121: =R121*D121 -> -975468 | AH121: -1091272 | AI121: 0.2313923568
A122: 1.4.11 | B122: Извещатель пожарный линейный однопозиционный адресный | C122: шт. | D122: 24 | E122: 3400 | F122: 81600 | G122: 28860 | H122: 692640 | I122: 774240 | J122: 4454 | K122: 106896 | L122: 37518 | M122: 900432 | N122: 1007328 | O122: 4454 | R122: 37518 | V122: 233088 | W122: 0.2313923568 | AD122: =D122*O122 -> 106896 | AE122: =1-F122/AD122 -> 0.2366412214 | AF122: =D122*R122 -> 900432 | AG122: =1-H122/AF122 -> 0.2307692308 | AH122: 1007328 | AI122: 0.2313923568
A123: 1.4.12 | B123: Извещатель пожарный ручной адресный | C123: шт. | D123: -20 | E123: 1200 | F123: -24000 | G123: 1121.8 | H123: -22436 | I123: -46436 | J123: 1572 | K123: -31440 | L123: 1458.34 | M123: -29166.8 | N123: -60606.8 | O123: 1572 | R123: 1458.34 | V123: -14170.8 | W123: 0.2338153475 | AD123: =O123*D123 -> -31440 | AF123: =R123*D123 -> -29166.8 | AH123: -60606.8 | AI123: 0.2338153475
A124: 1.4.13 | B124: Извещатель пожарный ручной адресный | C124: шт. | D124: 15 | E124: 1200 | F124: 18000 | G124: 1121.8 | H124: 16827 | I124: =F124+H124 -> 34827 | J124: 1572 | K124: 23580 | L124: 1458.34 | M124: 21875.1 | N124: 45455.1 | O124: 1572 | R124: 1458.34 | V124: 10628.1 | W124: 0.2338153475 | AD124: =D124*O124 -> 23580 | AE124: =1-F124/AD124 -> 0.2366412214 | AF124: =D124*R124 -> 21875.1 | AG124: =1-H124/AF124 -> 0.2307692308 | AH124: 45455.1 | AI124: 0.2338153475
A125: 1.4.14 | B125: Аккумулятор 12 В, 40 А/ч | C125: шт. | D125: 4 | E125: 400 | F125: =D125*E125 -> 1600 | G125: 6304.92 | H125: =D125*G125 -> 25219.68 | I125: =H125+F125 -> 26819.68 | J125: 524 | K125: 2096 | L125: 8196.396 | M125: 32785.584 | N125: 34881.584 | O125: 524 | R125: 8196.4 | V125: 8061.904 | W125: 0.2311220729 | AD125: 2096 | AE125: 0.2366412214 | AF125: 32785.6 | AG125: 0.2307696062 | AH125: 34881.6 | AI125: 0.2311224256
A126: 1.4.15 | B126: Источник питания резервированный | C126: шт. | D126: 4 | E126: 3000 | F126: =D126*E126 -> 12000 | G126: 12612.36 | H126: =D126*G126 -> 50449.44 | I126: =H126+F126 -> 62449.44 | J126: 3930 | K126: 15720 | L126: 16396.068 | M126: 65584.272 | N126: 81304.272 | O126: 3930 | R126: 16396.07 | V126: 18854.832 | W126: 0.2319045671 | AD126: 15720 | AE126: 0.2366412214 | AF126: 65584.28 | AG126: 0.2307693246 | AH126: 81304.28 | AI126: 0.2319046427
A127: 1.4.16 | B127: Аккумулятор 12 В, 7 А/ч | C127: шт. | D127: 4 | E127: 400 | F127: =D127*E127 -> 1600 | G127: 2407 | H127: =D127*G127 -> 9628 | I127: =H127+F127 -> 11228 | J127: 524 | K127: 2096 | L127: 3129.1 | M127: 12516.4 | N127: 14612.4 | O127: 524 | R127: 3129.1 | V127: 3384.4 | W127: 0.231611508 | AD127: 2096 | AE127: 0.2366412214 | AF127: 12516.4 | AG127: 0.2307692308 | AH127: 14612.4 | AI127: 0.231611508
A128: 1.4.17 | B128: Блок контроля и индикации | C128: шт. | D128: 2 | E128: 3000 | F128: =D128*E128 -> 6000 | G128: 9024.14 | H128: =D128*G128 -> 18048.28 | I128: =H128+F128 -> 24048.28 | J128: 3930 | K128: 7860 | L128: 11731.382 | M128: 23462.764 | N128: 31322.764 | O128: 3930 | R128: 11731.38 | V128: 7274.484 | W128: 0.2322427229 | AD128: 7860 | AE128: 0.2366412214 | AF128: 23462.76 | AG128: 0.2307690996 | AH128: 31322.76 | AI128: 0.2322426249
A129: 1.4.18 | B129: Блок разветвительно-изолирующий | C129: шт. | D129: 4 | E129: 1000 | F129: 4000 | G129: 641.16 | H129: 2564.64 | I129: 6564.64 | J129: 1310 | K129: 5240 | L129: 833.508 | M129: 3334.032 | N129: 8574.032 | O129: 1310 | R129: 833.51 | V129: 2009.392 | W129: 0.2343578844 | AD129: 5240 | AE129: 0.2366412214 | AF129: 3334.04 | AG129: 0.2307710765 | AH129: 8574.04 | AI129: 0.2343585987
A130: 1.4.19 | B130: Преобразователь интерфейсов | C130: шт. | D130: 4 | E130: 3200 | F130: 12800 | G130: 11575.2 | H130: 46300.8 | I130: 59100.8 | J130: 4192 | K130: 16768 | L130: 15047.76 | M130: 60191.04 | N130: 76959.04 | O130: 4192 | R130: 15047.76 | V130: 17858.24 | W130: 0.2320486326 | AD130: 16768 | AE130: 0.2366412214 | AF130: 60191.04 | AG130: 0.2307692308 | AH130: 76959.04 | AI130: 0.2320486326
A131: 1.4.20 | B131: Патч-корд волоконно-оптический LC/UPC-LC/UPC 50 м | C131: шт. | D131: -4 | E131: 300 | F131: -1200 | G131: 2412.24 | H131: -9648.96 | I131: -10848.96 | J131: 393 | K131: -1572 | L131: 3135.912 | M131: -12543.648 | N131: -14115.648 | O131: 393 | R131: 3135.91 | V131: -3266.688 | W131: 0.2314231695 | AD131: =O131*D131 -> -1572 | AF131: =R131*D131 -> -12543.64 | AH131: -14115.64 | AI131: 0.2314227339
A132: 1.4.20 | B132: Патч-корд волоконно-оптический LC/UPC-LC/UPC 50 м | C132: шт. | D132: 4 | E132: 300 | F132: 1200 | G132: 2825.04 | H132: 11300.16 | I132: 12500.16 | J132: 393 | K132: 1572 | L132: 3672.552 | M132: 14690.208 | N132: 16262.208 | O132: 393 | R132: 3672.55 | V132: 3762.048 | W132: 0.2313368517 | AD132: =D132*O132 -> 1572 | AE132: =1-F132/AD132 -> 0.2366412214 | AF132: =D132*R132 -> 14690.2 | AG132: =1-H132/AF132 -> 0.2307688119 | AH132: 16262.2 | AI132: 0.2313364735
A133: 1.4.21 | B133: Патч-корд волоконно-оптический LC/UPC-LC/UPC 1 м | C133: шт. | D133: 4 | E133: 300 | F133: 1200 | G133: 790 | H133: 3160 | I133: 4360 | J133: 393 | K133: 1572 | L133: 1027 | M133: 4108 | N133: 5680 | O133: 393 | R133: 1027 | V133: 1320 | W133: 0.2323943662 | AD133: =D133*O133 -> 1572 | AE133: =1-F133/AD133 -> 0.2366412214 | AF133: =D133*R133 -> 4108 | AG133: =1-H133/AF133 -> 0.2307692308 | AH133: 5680 | AI133: 0.2323943662
A134: 1.4.22 | B134: Устройство коммутационное | C134: шт. | D134: -20 | E134: 2600 | F134: =D134*E134 -> -52000 | G134: 1365 | H134: =G134*D134 -> -27300 | I134: =F134+H134 -> -79300 | J134: =E134*$Y$1 -> 3406 | K134: =J134*D134 -> -68120 | L134: =G134*$X$1 -> 1774.5 | M134: -35490 | N134: =K134+M134 -> -103610 | O134: 3406 | R134: 1774.5 | V134: -24310 | W134: 0.234629862 | AD134: =O134*D134 -> -68120 | AF134: =R134*D134 -> -35490 | AH134: -103610 | AI134: 0.234629862
A135: 1.4.22 | B135: Устройство коммутационное | C135: шт. | D135: 24 | E135: 2600 | F135: 62400 | G135: 1365 | H135: 32760 | I135: 95160 | J135: 3406 | K135: 81744 | L135: 1774.5 | M135: 42588 | N135: 124332 | O135: 3406 | R135: 1774.5 | V135: 29172 | W135: 0.234629862 | AD135: =D135*O135 -> 81744 | AE135: =1-F135/AD135 -> 0.2366412214 | AF135: =D135*R135 -> 42588 | AG135: =1-H135/AF135 -> 0.2307692308 | AH135: 124332 | AI135: 0.234629862
A136: 1.4.23 | B136: Оповещатель охранно-пожарный световой (табло) | C136: шт. | D136: -5 | E136: 1200 | F136: -6000 | G136: 368 | H136: -1840 | I136: -7840 | J136: 1572 | K136: -7860 | L136: 478.4 | M136: -2392 | N136: -10252 | O136: 1572 | R136: 478.4 | V136: -2412 | W136: 0.2352711666 | AD136: =O136*D136 -> -7860 | AF136: =R136*D136 -> -2392 | AH136: -10252 | AI136: 0.2352711666
A137: 1.4.23 | B137: Оповещатель охранно-пожарный световой (табло) ЛЮКС-24 "Выход" | C137: шт. | D137: 10 | E137: 1200 | F137: 12000 | G137: 368 | H137: 3680 | I137: 15680 | J137: 1572 | K137: 15720 | L137: 478.4 | M137: 4784 | N137: 20504 | O137: 1572 | R137: 478.4 | V137: 4824 | W137: 0.2352711666 | AD137: =D137*O137 -> 15720 | AE137: =1-F137/AD137 -> 0.2366412214 | AF137: =D137*R137 -> 4784 | AG137: =1-H137/AF137 -> 0.2307692308 | AH137: 20504 | AI137: 0.2352711666
A138: 1.4.24 | B138: Оповещатель охранно-пожарный световой (табло) | C138: шт. | D138: -8 | E138: 1200 | F138: -9600 | G138: 368 | H138: -2944 | I138: -12544 | J138: 1572 | K138: -12576 | L138: 478.4 | M138: -3827.2 | N138: -16403.2 | O138: 1572 | R138: 478.4 | V138: -3859.2 | W138: 0.2352711666 | AD138: =O138*D138 -> -12576 | AF138: =R138*D138 -> -3827.2 | AH138: -16403.2 | AI138: 0.2352711666
A139: 1.4.24 | B139: Оповещатель охранно-пожарный световой (табло) ЛЮКС-24 "Стрелка влево" | C139: шт. | D139: 9 | E139: 1200 | F139: 10800 | G139: 368 | H139: 3312 | I139: 14112 | J139: 1572 | K139: 14148 | L139: 478.4 | M139: 4305.6 | N139: 18453.6 | O139: 1572 | R139: 478.4 | V139: 4341.6 | W139: 0.2352711666 | AD139: =D139*O139 -> 14148 | AE139: =1-F139/AD139 -> 0.2366412214 | AF139: =D139*R139 -> 4305.6 | AG139: =1-H139/AF139 -> 0.2307692308 | AH139: 18453.6 | AI139: 0.2352711666
A140: 1.4.25 | B140: Оповещатель охранно-пожарный световой (табло) | C140: шт. | D140: -6 | E140: 1200 | F140: -7200 | G140: 368 | H140: -2208 | I140: -9408 | J140: 1572 | K140: -9432 | L140: 478.4 | M140: -2870.4 | N140: -12302.4 | O140: 1572 | R140: 478.4 | V140: -2894.4 | W140: 0.2352711666 | AD140: =O140*D140 -> -9432 | AF140: =R140*D140 -> -2870.4 | AH140: -12302.4 | AI140: 0.2352711666
A141: 1.4.25 | B141: Оповещатель охранно-пожарный световой (табло) ЛЮКС-24 "Стрелка вправо" | C141: шт. | D141: 9 | E141: 1200 | F141: 10800 | G141: 368 | H141: 3312 | I141: 14112 | J141: 1572 | K141: 14148 | L141: 478.4 | M141: 4305.6 | N141: 18453.6 | O141: 1572 | R141: 478.4 | V141: 4341.6 | W141: 0.2352711666 | AD141: =D141*O141 -> 14148 | AE141: =1-F141/AD141 -> 0.2366412214 | AF141: =D141*R141 -> 4305.6 | AG141: =1-H141/AF141 -> 0.2307692308 | AH141: 18453.6 | AI141: 0.2352711666
A142: 1.4.26 | B142: Оповещатель охранно-пожарный звуковой | C142: шт. | D142: -13 | E142: 1200 | F142: -15600 | G142: 402 | H142: -5226 | I142: -20826 | J142: 1572 | K142: -20436 | L142: 522.6 | M142: -6793.8 | N142: -27229.8 | O142: 1572 | R142: 522.6 | V142: -6403.8 | W142: 0.2351761673 | AD142: =O142*D142 -> -20436 | AF142: =R142*D142 -> -6793.8 | AH142: -27229.8 | AI142: 0.2351761673
A143: 1.4.26 | B143: Оповещатель охранно-пожарный звуковой Маяк-24-ЗМ2 | C143: шт. | D143: 54 | E143: 1200 | F143: 64800 | G143: 270 | H143: 14580 | I143: 79380 | J143: 1572 | K143: 84888 | L143: 351 | M143: 18954 | N143: 103842 | O143: 1572 | R143: 351 | V143: 24462 | W143: 0.2355694228 | AD143: =D143*O143 -> 84888 | AE143: =1-F143/AD143 -> 0.2366412214 | AF143: =D143*R143 -> 18954 | AG143: =1-H143/AF143 -> 0.2307692308 | AH143: 103842 | AI143: 0.2355694228
A144: 1.4.27 | B144: Комбинированный оповещатель со стробовспышкой Г-24КПР | C144: шт. | D144: 30 | E144: 1200 | F144: =D144*E144 -> 36000 | G144: 545.04 | H144: =G144*D144 -> 16351.2 | I144: =F144+H144 -> 52351.2 | J144: 1572 | K144: 47160 | L144: 708.552 | M144: 21256.56 | N144: 68416.56 | O144: 1572 | R144: 708.55 | V144: 16065.36 | W144: 0.2348168338 | AD144: =D144*O144 -> 47160 | AE144: =1-F144/AD144 -> 0.2366412214 | AF144: =D144*R144 -> 21256.5 | AG144: =1-H144/AF144 -> 0.2307670595 | AH144: 68416.5 | AI144: 0.2348161628
A145: 1.4.28 | B145: Оповещатель охранно-пожарный комбинированный свето-звуковой Маяк-24-КПМ2 | C145: шт. | D145: 39 | E145: 1200 | F145: =D145*E145 -> 46800 | G145: 656 | H145: =G145*D145 -> 25584 | I145: =F145+H145 -> 72384 | J145: 1572 | K145: 61308 | L145: 852.8 | M145: 33259.2 | N145: 94567.2 | O145: 1572 | R145: 852.8 | V145: 22183.2 | W145: 0.2345760475 | AD145: =D145*O145 -> 61308 | AE145: =1-F145/AD145 -> 0.2366412214 | AF145: =D145*R145 -> 33259.2 | AG145: =1-H145/AF145 -> 0.2307692308 | AH145: 94567.2 | AI145: 0.2345760475
A146: 1.4.29 | B146: Полка 19" перфорированная консольная 1U | C146: шт. | D146: 1 | E146: 2000 | F146: 2000 | G146: 1462 | H146: 1462 | I146: 3462 | J146: 2620 | K146: 2620 | L146: 1900.6 | M146: 1900.6 | N146: 4520.6 | O146: 2620 | R146: 1900.6 | V146: 1058.6 | W146: 0.234172455 | AD146: =D146*O146 -> 2620 | AE146: =1-F146/AD146 -> 0.2366412214 | AF146: =D146*R146 -> 1900.6 | AG146: =1-H146/AF146 -> 0.2307692308 | AH146: 4520.6 | AI146: 0.234172455
A147: 1.4.30 | B147: Модуль подключения нагрузки | C147: шт. | D147: -24 | E147: 100 | F147: -2400 | G147: 71.76 | H147: -1722.24 | I147: -4122.24 | J147: 131 | K147: -3144 | L147: 93.288 | M147: -2238.912 | N147: -5382.912 | O147: 131 | R147: 93.29 | V147: -1260.672 | W147: 0.2341988871 | AD147: =O147*D147 -> -3144 | AF147: =R147*D147 -> -2238.96 | AH147: -5382.96 | AI147: 0.2342057158
A148: 1.4.30 | B148: Модуль подключения нагрузки | C148: шт. | D148: 87 | E148: 100 | F148: 8700 | G148: 71.76 | H148: 6243.12 | I148: 14943.12 | J148: 131 | K148: 11397 | L148: 93.288 | M148: 8116.056 | N148: 19513.056 | O148: 131 | R148: 93.29 | V148: 4569.936 | W148: 0.2341988871 | AD148: =D148*O148 -> 11397 | AE148: =1-F148/AD148 -> 0.2366412214 | AF148: =D148*R148 -> 8116.23 | AG148: =1-H148/AF148 -> 0.2307857219 | AH148: 19513.23 | AI148: 0.2342057158
A149: 1.4.31 | B149: Блок сигнально-пусковой адресный | C149: шт. | D149: 96 | E149: 3200 | F149: =D149*E149 -> 307200 | G149: 3692.4 | H149: =G149*D149 -> 354470.4 | I149: =F149+H149 -> 661670.4 | J149: 4192 | K149: 402432 | L149: 4800.12 | M149: 460811.52 | N149: 863243.52 | O149: 4192 | R149: 4800.12 | V149: 201573.12 | W149: 0.2335066703 | AD149: 402432 | AE149: 0.2366412214 | AF149: 460811.52 | AG149: 0.2307692308 | AH149: 863243.52 | AI149: 0.2335066703
A150: 1.4.32 | B150: Кнопка "ТЕСТ" | C150: шт. | D150: 96 | E150: 1200 | F150: =D150*E150 -> 115200 | G150: 1250 | H150: =G150*D150 -> 120000 | I150: =F150+H150 -> 235200 | J150: 1572 | K150: 150912 | L150: 1625 | M150: 156000 | N150: 306912 | O150: 1572 | R150: 1625 | V150: 71712 | W150: 0.233656553 | AD150: 150912 | AE150: 0.2366412214 | AF150: 156000 | AG150: 0.2307692308 | AH150: 306912 | AI150: 0.233656553
A151: 1.4.33 | B151: Шкаф контрольно пусковой ШКП-10RS (М) | C151: шт. | D151: 1 | E151: 4500 | F151: =D151*E151 -> 4500 | G151: 31318.56 | H151: =G151*D151 -> 31318.56 | I151: =F151+H151 -> 35818.56 | J151: 5895 | K151: 5895 | L151: 40714.128 | M151: 40714.128 | N151: 46609.128 | O151: 5895 | R151: 40714.13 | V151: 10790.568 | W151: 0.2315119047 | AD151: 5895 | AE151: 0.2366412214 | AF151: 40714.13 | AG151: 0.2307692686 | AH151: 46609.13 | AI151: 0.2315119377
A152: 1.4.34 | B152: Шкаф контрольно пусковой ШКП-18RS (М) | C152: шт. | D152: 1 | E152: 4500 | F152: =D152*E152 -> 4500 | G152: 32633.64 | H152: =G152*D152 -> 32633.64 | I152: =F152+H152 -> 37133.64 | J152: 5895 | K152: 5895 | L152: 42423.732 | M152: 42423.732 | N152: 48318.732 | O152: 5895 | R152: 42423.73 | V152: 11185.092 | W152: 0.2314856276 | AD152: 5895 | AE152: 0.2366412214 | AF152: 42423.73 | AG152: 0.2307691945 | AH152: 48318.73 | AI152: 0.2314855958
A153: 1.4.35 | B153: Преобразователь интерфейса | C153: шт. | D153: 1 | E153: 2600 | F153: 2600 | G153: 3524.04 | H153: 3524.04 | I153: 6124.04 | J153: 3406 | K153: 3406 | L153: 4581.252 | M153: 4581.252 | N153: 7987.252 | O153: 3406 | R153: 4581.25 | V153: 1863.212 | W153: 0.2332732209 | AD153: 3406 | AE153: 0.2366412214 | AF153: 4581.25 | AG153: 0.230768895 | AH153: 7987.25 | AI153: 0.2332730289
A154: 1.4.36 | B154: Коммутатор сетевой гигабитный 6 портовый | C154: шт. | D154: 1 | E154: 2600 | F154: 2600 | G154: 9000 | H154: 9000 | I154: 11600 | J154: 3406 | K154: 3406 | L154: 11700 | M154: 11700 | N154: 15106 | O154: 3406 | R154: 11700 | V154: 3506 | W154: 0.232093208 | AD154: 3406 | AE154: 0.2366412214 | AF154: 11700 | AG154: 0.2307692308 | AH154: 15106 | AI154: 0.232093208
A155: 1.4.37 | B155: Блок питания | C155: шт. | D155: 1 | E155: 3000 | F155: 3000 | G155: 2558 | H155: 2558 | I155: 5558 | J155: 3930 | K155: 3930 | L155: 3325.4 | M155: 3325.4 | N155: 7255.4 | O155: 3930 | R155: 3325.4 | V155: 1697.4 | W155: 0.2339498856 | AD155: 3930 | AE155: 0.2366412214 | AF155: 3325.4 | AG155: 0.2307692308 | AH155: 7255.4 | AI155: 0.2339498856
A156: 1.4.38 | B156: Лоток перфорированный 100х50х3000 | C156: м | D156: -890 | E156: 380 | F156: -338200 | G156: 452.12 | H156: -402386.8 | I156: -740586.8 | J156: 497.8 | K156: -443042 | L156: 587.756 | M156: -523102.84 | N156: -966144.84 | O156: 497.8 | R156: 587.76 | V156: -225558.04 | W156: 0.233461931 | AD156: =O156*D156 -> -443042 | AF156: =R156*D156 -> -523106.4 | AH156: -966148.4 | AI156: 0.2334647555
A157: 1.4.38 | B157: Лоток перфорированный 100х50х3000 | C157: м | D157: 585 | E157: 380 | F157: 222300 | G157: 538 | H157: 314730 | I157: 537030 | J157: 497.8 | K157: 291213 | L157: 699.4 | M157: 409149 | N157: 700362 | O157: 497.8 | R157: 699.4 | V157: 163332 | W157: 0.2332108253 | AD157: =D157*O157 -> 291213 | AE157: =1-F157/AD157 -> 0.2366412214 | AF157: =D157*R157 -> 409149 | AG157: =1-H157/AF157 -> 0.2307692308 | AH157: 700362 | AI157: 0.2332108253
A158: 1.4.39 | B158: Перегородка для лотка | C158: м | D158: -890 | E158: 100 | F158: -89000 | G158: 292.8 | H158: -260592 | I158: -349592 | J158: 131 | K158: -116590 | L158: 380.64 | M158: -338769.6 | N158: -455359.6 | O158: 131 | R158: 380.64 | V158: -105767.6 | W158: 0.2322726917 | AD158: =O158*D158 -> -116590 | AF158: =R158*D158 -> -338769.6 | AH158: -455359.6 | AI158: =1-I158/AH158 -> 0.2322726917
A159: 1.4.39 | B159: Перегородка для лотка | C159: м | D159: 585 | E159: 100 | F159: 58500 | G159: 292.8 | H159: 171288 | I159: 229788 | J159: 131 | K159: 76635 | L159: 380.64 | M159: 222674.4 | N159: 299309.4 | O159: 131 | R159: 380.64 | V159: 69521.4 | W159: 0.2322726917 | AD159: =D159*O159 -> 76635 | AE159: =1-F159/AD159 -> 0.2366412214 | AF159: =D159*R159 -> 222674.4 | AG159: =1-H159/AF159 -> 0.2307692308 | AH159: 299309.4 | AI159: 0.2322726917
A160: 1.4.40 | B160: Крышка с заземлением на лоток основание 100 L3000 | C160: м | D160: -890 | E160: 120 | F160: -106800 | G160: 214.4 | H160: -190816 | I160: -297616 | J160: 157.2 | K160: -139908 | L160: 278.72 | M160: -248060.8 | N160: -387968.8 | O160: 157.2 | R160: 278.72 | V160: -90352.8 | W160: 0.2328867682 | AD160: =O160*D160 -> -139908 | AF160: =R160*D160 -> -248060.8 | AH160: -387968.8 | AI160: 0.2328867682
A161: 1.4.40 | B161: Крышка с заземлением на лоток основание 100 L3000 | C161: м | D161: 585 | E161: 120 | F161: 70200 | G161: 209.22 | H161: 122393.7 | I161: 192593.7 | J161: 157.2 | K161: 91962 | L161: 271.986 | M161: 159111.81 | N161: 251073.81 | O161: 157.2 | R161: 271.99 | V161: 58480.11 | W161: 0.2329199927 | AD161: =D161*O161 -> 91962 | AE161: =1-F161/AD161 -> 0.2366412214 | AF161: =D161*R161 -> 159114.15 | AG161: =1-H161/AF161 -> 0.2307805434 | AH161: 251076.15 | AI161: 0.2329271418
A162: 1.4.41 | B162: Угол CPO 90 горизонтальный 90° 100х50 | C162: шт. | D162: -16 | E162: 1200 | F162: -19200 | G162: 1620.8 | H162: -25932.8 | I162: -45132.8 | J162: 1572 | K162: -25152 | L162: 2107.04 | M162: -33712.64 | N162: -58864.64 | O162: 1572 | R162: 2107.04 | V162: -13731.84 | W162: 0.2332782465 | AD162: =O162*D162 -> -25152 | AF162: =R162*D162 -> -33712.64 | AH162: -58864.64 | AI162: 0.2332782465
A163: 1.4.41 | B163: Угол CPO 90 горизонтальный 90° 100х50 | C163: шт. | D163: 10 | E163: 1200 | F163: 12000 | G163: 1620.8 | H163: 16208 | I163: 28208 | J163: 1572 | K163: 15720 | L163: 2107.04 | M163: 21070.4 | N163: 36790.4 | O163: 1572 | R163: 2107.04 | V163: 8582.4 | W163: 0.2332782465 | AD163: =D163*O163 -> 15720 | AE163: =1-F163/AD163 -> 0.2366412214 | AF163: =D163*R163 -> 21070.4 | AG163: =1-H163/AF163 -> 0.2307692308 | AH163: 36790.4 | AI163: 0.2332782465
A164: 1.4.42 | B164: Угол CS 90 вертикальный внутренний 90° 100х50 | C164: шт. | D164: -10 | E164: 1200 | F164: -12000 | G164: 1892 | H164: -18920 | I164: -30920 | J164: 1572 | K164: -15720 | L164: 2459.6 | M164: -24596 | N164: -40316 | O164: 1572 | R164: 2459.6 | V164: -9396 | W164: 0.2330588352 | AD164: =O164*D164 -> -15720 | AF164: =R164*D164 -> -24596 | AH164: -40316 | AI164: 0.2330588352
A165: 1.4.42 | B165: Угол CS 90 вертикальный внутренний 90° 100х50 | C165: шт. | D165: 12 | E165: 1200 | F165: 14400 | G165: 1892 | H165: 22704 | I165: 37104 | J165: 1572 | K165: 18864 | L165: 2459.6 | M165: 29515.2 | N165: 48379.2 | O165: 1572 | R165: 2459.6 | V165: 11275.2 | W165: 0.2330588352 | AD165: =D165*O165 -> 18864 | AE165: =1-F165/AD165 -> 0.2366412214 | AF165: =D165*R165 -> 29515.2 | AG165: =1-H165/AF165 -> 0.2307692308 | AH165: 48379.2 | AI165: 0.2330588352
A166: 1.4.43 | B166: Лоток 50х50 L=3000 перфорированный | C166: м. | D166: 150 | E166: 640 | F166: =D166*E166 -> 96000 | G166: 375 | H166: 56250 | I166: 152250 | J166: 838.4 | K166: 125760 | L166: 487.5 | M166: 73125 | N166: 198885 | O166: 838.4 | R166: 487.5 | AD166: 125760 | AE166: 0.2366412214 | AF166: 73125 | AG166: 0.2307692308 | AH166: 198885 | AI166: 0.2344822385
A167: 1.4.44 | B167: Крышка с заземлением на лоток основание 50 L3000 | C167: м. | D167: 150 | E167: 120 | F167: =D167*E167 -> 18000 | G167: 171.65 | H167: 25747.5 | I167: 43747.5 | J167: 157.2 | K167: 23580 | L167: 223.145 | M167: 33471.75 | N167: 57051.75 | O167: 157.2 | R167: 223.15 | AD167: 23580 | AE167: 0.2366412214 | AF167: 33472.5 | AG167: 0.2307864665 | AH167: 57052.5 | AI167: 0.2332062574
A168: 1.4.45 | B168: Крышка S5 CPO90 90х100 угла горизонтального | C168: шт. | D168: 10 | E168: 120 | F168: 1200 | G168: 839.4 | H168: 8394 | I168: 9594 | J168: 157.2 | K168: 1572 | L168: 1091.22 | M168: 10912.2 | N168: 12484.2 | O168: 157.2 | R168: 1091.22 | AD168: 1572 | AE168: 0.2366412214 | AF168: 10912.2 | AG168: 0.2307692308 | AH168: 12484.2 | AI168: 0.2315086269
A169: 1.4.46 | B169: Крышка S5 CS90 90x100 угла вертикального внутреннего | C169: шт. | D169: 12 | E169: 120 | F169: 1440 | G169: 644.02 | H169: 7728.24 | I169: 9168.24 | J169: 157.2 | K169: 1886.4 | L169: 837.226 | M169: =D169*L169 -> 10046.712 | N169: 11933.112 | O169: 157.2 | R169: 837.23 | AD169: 1886.4 | AE169: 0.2366412214 | AF169: 10046.76 | AG169: 0.2307729059 | AH169: =O169*D169+R169*D169 -> 11933.16 | AI169: 0.2317005722
A170: 1.4.47 | B170: Ответвитель S5 DL 100x50 горизонтальный | C170: шт. | D170: 5 | E170: 1200 | F170: 6000 | G170: 2020.01 | H170: 10100.05 | I170: 16100.05 | J170: 1572 | K170: 7860 | L170: 2626.013 | M170: 13130.065 | N170: 20990.065 | O170: 1572 | R170: 2626.01 | AD170: 7860 | AE170: 0.2366412214 | AF170: 13130.05 | AG170: 0.230768352 | AH170: 20990.05 | AI170: 0.2329675251
A171: 1.4.48 | B171: Крышка S5 DL 100х50 ответвителя горизонтального | C171: шт. | D171: 5 | E171: 120 | F171: 600 | G171: 1004.5 | H171: 5022.5 | I171: 5622.5 | J171: 157.2 | K171: 786 | L171: 1305.85 | M171: 6529.25 | N171: 7315.25 | O171: 157.2 | R171: 1305.85 | AD171: 786 | AE171: 0.2366412214 | AF171: 6529.25 | AG171: 0.2307692308 | AH171: 7315.25 | AI171: 0.2314001572
A172: 1.4.49 | B172: Угол S5 CD90 90x50x50 вертикальный внешний | C172: шт. | D172: 16 | E172: 1200 | F172: 19200 | G172: 1966.01 | H172: 31456.16 | I172: 50656.16 | J172: 1572 | K172: 25152 | L172: 2555.813 | M172: 40893.008 | N172: 66045.008 | O172: 1572 | R172: 2555.81 | AD172: 25152 | AE172: 0.2366412214 | AF172: 40892.96 | AG172: 0.2307683278 | AH172: 66044.96 | AI172: 0.2330049106
A173: 1.4.50 | B173: Крышка S5 CD90 90x50 угла вертикального внешнего | C173: шт. | D173: 16 | E173: 120 | F173: 1920 | G173: 638.16 | H173: 10210.56 | I173: 12130.56 | J173: 157.2 | K173: 2515.2 | L173: 829.608 | M173: 13273.728 | N173: 15788.928 | O173: 157.2 | R173: 829.61 | AD173: 2515.2 | AE173: 0.2366412214 | AF173: 13273.76 | AG173: 0.2307710852 | AH173: 15788.96 | AI173: 0.2317062048
A174: 1.4.51 | B174: Ответвитель S5 DL 50x50 горизонтальный | C174: шт. | D174: 16 | E174: 1200 | F174: 19200 | G174: 1825.61 | H174: 29209.76 | I174: 48409.76 | J174: 1572 | K174: 25152 | L174: 2373.293 | M174: 37972.688 | N174: 63124.688 | O174: 1572 | R174: 2373.29 | AD174: 25152 | AE174: 0.2366412214 | AF174: 37972.64 | AG174: 0.2307682584 | AH174: 63124.64 | AI174: 0.2331083393
A175: 1.4.52 | B175: Крышка S5 DL 50х50 ответвителя горизонтального | C175: шт. | D175: 16 | E175: 120 | F175: 1920 | G175: 853.51 | H175: 13656.16 | I175: 15576.16 | J175: 157.2 | K175: 2515.2 | L175: 1109.563 | M175: 17753.008 | N175: 20268.208 | O175: 157.2 | R175: 1109.56 | AD175: 2515.2 | AE175: 0.2366412214 | AF175: 17752.96 | AG175: 0.2307671509 | AH175: 20268.16 | AI175: 0.2314961003
A176: 1.4.53 | B176: Кронштейн индивидуального изготовления L=1250 | C176: шт. | D176: 210 | E176: 412.8 | F176: 86688 | G176: 1552.8 | H176: 326088 | I176: 412776 | J176: 540.768 | K176: 113561.28 | L176: 2018.64 | M176: 423914.4 | N176: 537475.68 | O176: 540.77 | R176: 2018.64 | AD176: 113561.7 | AE176: 0.2366440446 | AF176: 423914.4 | AG176: 0.2307692308 | AH176: 537476.1 | AI176: 0.2320105024
A177: 1.4.54 | B177: Кронштейн юстировочный для монтажа линейного извещателя | C177: шт. | D177: 24 | E177: 1200 | F177: 28800 | G177: 1200 | H177: 28800 | I177: 57600 | J177: 1572 | K177: 37728 | L177: 1560 | M177: 37440 | N177: 75168 | O177: 1572 | R177: 1560 | AD177: 37728 | AE177: 0.2366412214 | AF177: 37440 | AG177: 0.2307692308 | AH177: 75168 | AI177: 0.2337164751
A178: 1.4.55 | B178: Стандартный анкер с болтом М8 | C178: шт. | D178: -400 | E178: 25 | F178: -10000 | G178: 83.02 | H178: -33208 | I178: -43208 | J178: 32.75 | K178: -13100 | L178: 107.926 | M178: -43170.4 | N178: -56270.4 | O178: 32.75 | R178: 107.93 | V178: =N178-I178 -> -13062.4 | W178: =1-I178/N178 -> 0.2321362564 | AD178: =O178*D178 -> -13100 | AF178: =R178*D178 -> -43172 | AH178: -56272 | AI178: 0.2321580893
A179: 1.4.55 | B179: Стандартный анкер с болтом М8 | C179: шт. | D179: 800 | E179: 25 | F179: 20000 | G179: 83.02 | H179: 66416 | I179: 86416 | J179: 32.75 | K179: 26200 | L179: 107.926 | M179: 86340.8 | N179: 112540.8 | O179: 32.75 | R179: 107.93 | V179: =N179-I179 -> 26124.8 | W179: =1-I179/N179 -> 0.2321362564 | AD179: =D179*O179 -> 26200 | AE179: =1-F179/AD179 -> 0.2366412214 | AF179: =D179*R179 -> 86344 | AG179: =1-H179/AF179 -> 0.2307977393 | AH179: 112544 | AI179: 0.2321580893
A180: 1.4.56 | B180: Винт для электрического соединения М5х8 | C180: шт. | D180: -100 | E180: 15 | F180: -1500 | G180: 6.8 | H180: -680 | I180: -2180 | J180: 19.65 | K180: -1965 | L180: 8.84 | M180: -884 | N180: -2849 | O180: 19.65 | R180: 8.84 | V180: =N180-I180 -> -669 | W180: =1-I180/N180 -> 0.2348192348 | AD180: =O180*D180 -> -1965 | AF180: =R180*D180 -> -884 | AH180: -2849 | AI180: 0.2348192348
A181: 1.4.56 | B181: Винт для электрического соединения М5х8 | C181: шт. | D181: 100 | E181: 15 | F181: 1500 | G181: 10.2 | H181: 1020 | I181: 2520 | J181: 19.65 | K181: 1965 | L181: 13.26 | M181: 1326 | N181: 3291 | O181: 19.65 | R181: 13.26 | V181: =N181-I181 -> 771 | W181: =1-I181/N181 -> 0.2342752963 | AD181: =D181*O181 -> 1965 | AE181: =1-F181/AD181 -> 0.2366412214 | AF181: =D181*R181 -> 1326 | AG181: =1-H181/AF181 -> 0.2307692308 | AH181: 3291 | AI181: 0.2342752963
A182: 1.4.57 | B182: Коробка огнестойкая 100х100х50мм | C182: шт. | D182: 175 | E182: 800 | F182: =D182*E182 -> 140000 | G182: 1063.97 | H182: =G182*D182 -> 186194.75 | I182: =F182+H182 -> 326194.75 | J182: 1048 | K182: 183400 | L182: 1383.161 | M182: 242053.175 | N182: 425453.175 | O182: 1048 | R182: 1383.16 | AD182: =D182*O182 -> 183400 | AE182: =1-F182/AD182 -> 0.2366412214 | AF182: =D182*R182 -> 242053 | AG182: =1-H182/AF182 -> 0.2307686746 | AH182: 425453 | AI182: 0.233300153
A183: 1.4.58 | B183: Кабель огнестойкий | C183: м | D183: -2960 | E183: 124 | F183: -367040 | G183: 144.86 | H183: -428785.6 | I183: -795825.6 | J183: 162.44 | K183: -480822.4 | L183: 188.318 | M183: -557421.28 | N183: -1038243.68 | O183: 162.44 | R183: 188.32 | V183: =N183-I183 -> -242418.08 | W183: =1-I183/N183 -> 0.2334886161 | AD183: =O183*D183 -> -480822.4 | AF183: =R183*D183 -> -557427.2 | AH183: -1038249.6 | AI183: 0.2334929867
A184: 1.4.58 | B184: Кабель огнестойкий КПСЭнг(А)-FRHF 1х2х1,0 | C184: м | D184: 6400 | E184: 124 | F184: 793600 | G184: 41.04 | H184: 262656 | I184: 1056256 | J184: 162.44 | K184: 1039616 | L184: 53.352 | M184: 341452.8 | N184: 1381068.8 | O184: 162.44 | R184: 53.35 | V184: 324812.8 | W184: 0.2351894417 | AD184: =D184*O184 -> 1039616 | AE184: =1-F184/AD184 -> 0.2366412214 | AF184: =D184*R184 -> 341440 | AG184: =1-H184/AF184 -> 0.2307403936 | AH184: 1381056 | AI184: 0.2351823532
A185: 1.4.59 | B185: Кабель огнестойкий | C185: м | D185: -930 | E185: 124 | F185: -115320 | G185: 82.94 | H185: -77134.2 | I185: -192454.2 | J185: 162.44 | K185: -151069.2 | L185: 107.822 | M185: -100274.46 | N185: -251343.66 | O185: 162.44 | R185: 107.82 | V185: -58889.46 | W185: 0.2342985695 | AD185: =O185*D185 -> -151069.2 | AF185: =R185*D185 -> -100272.6 | AH185: -251341.8 | AI185: 0.2342929031
A186: 1.4.59 | B186: Кабель огнестойкий КПСЭнг(А)-FRHF 1х2х1,5 | C186: м | D186: 2500 | E186: 124 | F186: 310000 | G186: 82.94 | H186: 207350 | I186: 517350 | J186: 162.44 | K186: 406100 | L186: 107.822 | M186: 269555 | N186: 675655 | O186: 162.44 | R186: 107.82 | V186: 158305 | W186: 0.2342985695 | AD186: =D186*O186 -> 406100 | AE186: =1-F186/AD186 -> 0.2366412214 | AF186: =D186*R186 -> 269550 | AG186: =1-H186/AF186 -> 0.230754962 | AH186: 675650 | AI186: 0.2342929031
A187: 1.4.60 | B187: Кабель огнестойкий | C187: м | D187: -510 | E187: 124 | F187: -63240 | G187: 140.62 | H187: -71716.2 | I187: -134956.2 | J187: 162.44 | K187: -82844.4 | L187: 182.806 | M187: -93231.06 | N187: -176075.46 | O187: 162.44 | R187: 182.81 | V187: -41119.26 | W187: 0.2335320322 | AD187: =O187*D187 -> -82844.4 | AF187: =R187*D187 -> -93233.1 | AH187: -176077.5 | AI187: 0.2335409124
A188: 1.4.60 | B188: Кабель огнестойкий КПСЭнг(А)-FRHF 2х2х0,75 | C188: м | D188: 400 | E188: 124 | F188: 49600 | G188: 77.76 | H188: 31104 | I188: 80704 | J188: 162.44 | K188: 64976 | L188: 101.088 | M188: 40435.2 | N188: 105411.2 | O188: 162.44 | R188: 101.09 | V188: 24707.2 | W188: 0.2343887557 | AD188: =D188*O188 -> 64976 | AE188: =1-F188/AD188 -> 0.2366412214 | AF188: =D188*R188 -> 40436 | AG188: =1-H188/AF188 -> 0.2307844495 | AH188: 105412 | AI188: 0.2343945661
A189: 1.4.61 | B189: Кабель огнестойкий | C189: м | D189: -600 | E189: 124 | F189: -74400 | G189: 85.94 | H189: -51564 | I189: -125964 | J189: 162.44 | K189: -97464 | L189: 111.722 | M189: -67033.2 | N189: -164497.2 | O189: 162.44 | R189: 111.72 | V189: -38533.2 | W189: 0.2342483641 | AD189: =O189*D189 -> -97464 | AF189: =R189*D189 -> -67032 | AH189: -164496 | AI189: 0.2342427779
A190: 1.4.61 | B190: Кабель огнестойкий КПСЭнг(А)-FRHF 2х2х0,5 | C190: м | D190: 750 | E190: 124 | F190: 93000 | G190: 85.94 | H190: 64455 | I190: 157455 | J190: 162.44 | K190: 121830 | L190: 111.722 | M190: 83791.5 | N190: 205621.5 | O190: 162.44 | R190: 111.72 | V190: 48166.5 | W190: 0.2342483641 | AD190: =D190*O190 -> 121830 | AE190: =1-F190/AD190 -> 0.2366412214 | AF190: =D190*R190 -> 83790 | AG190: =1-H190/AF190 -> 0.2307554601 | AH190: 205620 | AI190: 0.2342427779
A191: 1.4.62 | B191: Кабель силовой огнестойкий ППГ нг(А)-FRHF 3х1.5 | C191: м | D191: 1300 | E191: 124 | F191: =D191*E191 -> 161200 | G191: 101.52 | H191: =G191*D191 -> 131976 | I191: =F191+H191 -> 293176 | J191: 162.44 | K191: 211172 | L191: 131.976 | M191: 171568.8 | N191: 382740.8 | O191: 162.44 | R191: 131.98 | AD191: =D191*O191 -> 211172 | AE191: =1-F191/AD191 -> 0.2366412214 | AF191: =D191*R191 -> 171574 | AG191: =1-H191/AF191 -> 0.2307925443 | AH191: 382746 | AI191: 0.234019428
A192: 1.4.63 | B192: Труба гофрированная ПВХ легкая серая D20 | C192: м | D192: -600 | E192: 35 | F192: -21000 | G192: 21.6 | H192: -12960 | I192: -33960 | J192: 45.85 | K192: -27510 | L192: 28.08 | M192: -16848 | N192: -44358 | O192: 45.85 | R192: 28.08 | V192: =N192-I192 -> -10398 | W192: =1-I192/N192 -> 0.2344109293 | AD192: =O192*D192 -> -27510 | AF192: =R192*D192 -> -16848 | AH192: -44358 | AI192: 0.2344109293
A193: 1.4.63 | B193: Труба гофрированная ПВХ легкая серая D20 | C193: м | D193: 4000 | E193: 35 | F193: 140000 | G193: 21.6 | H193: 86400 | I193: 226400 | J193: 45.85 | K193: 183400 | L193: 28.08 | M193: 112320 | N193: 295720 | O193: 45.85 | R193: 28.08 | V193: 69320 | W193: 0.2344109293 | AD193: =D193*O193 -> 183400 | AE193: =1-F193/AD193 -> 0.2366412214 | AF193: =D193*R193 -> 112320 | AG193: =1-H193/AF193 -> 0.2307692308 | AH193: 295720 | AI193: 0.2344109293
A194: 1.4.64 | B194: Скоба металлическая однолапковая Д20 | C194: шт. | D194: -1200 | E194: 5 | F194: -6000 | G194: 2.6 | H194: -3120 | I194: -9120 | J194: 6.55 | K194: -7860 | L194: 3.38 | M194: -4056 | N194: -11916 | O194: 6.55 | R194: 3.38 | V194: -2796 | W194: 0.2346424975 | AD194: =O194*D194 -> -7860 | AF194: =R194*D194 -> -4056 | AH194: -11916 | AI194: 0.2346424975
A195: 1.4.64 | B195: Скоба металлическая однолапковая Д20 | C195: шт. | D195: 8000 | E195: 5 | F195: 40000 | G195: 2.6 | H195: 20800 | I195: 60800 | J195: 6.55 | K195: 52400 | L195: 3.38 | M195: 27040 | N195: 79440 | O195: 6.55 | R195: 3.38 | V195: 18640 | W195: 0.2346424975 | AD195: =D195*O195 -> 52400 | AE195: =1-F195/AD195 -> 0.2366412214 | AF195: =D195*R195 -> 27040 | AG195: =1-H195/AF195 -> 0.2307692308 | AH195: 79440 | AI195: 0.2346424975
A196: 1.4.65 | B196: Металлический дюбель для газобетона 6х32 | C196: шт. | D196: -1600 | E196: 5 | F196: -8000 | G196: 14.2 | H196: -22720 | I196: -30720 | J196: 6.55 | K196: -10480 | L196: 18.46 | M196: -29536 | N196: -40016 | O196: 6.55 | R196: 18.46 | V196: -9296 | W196: 0.2323070772 | AD196: =O196*D196 -> -10480 | AF196: =R196*D196 -> -29536 | AH196: -40016 | AI196: 0.2323070772
A197: 1.4.65 | B197: Металлический дюбель для газобетона 6х32 | C197: шт. | D197: 8000 | E197: 5 | F197: 40000 | G197: 14.88 | H197: 119040 | I197: 159040 | J197: 6.55 | K197: 52400 | L197: 19.344 | M197: 154752 | N197: 207152 | O197: 6.55 | R197: 19.34 | V197: 48112 | W197: 0.2322545763 | AD197: =D197*O197 -> 52400 | AE197: =1-F197/AD197 -> 0.2366412214 | AF197: =D197*R197 -> 154720 | AG197: =1-H197/AF197 -> 0.2306101344 | AH197: 207120 | AI197: 0.2321359598
A198: 1.4.66 | B198: Саморез с пресс-шайбой 4.2х32 | C198: шт. | D198: -1600 | E198: 5 | F198: -8000 | G198: 1.82 | H198: -2912 | I198: -10912 | J198: 6.55 | K198: -10480 | L198: 2.366 | M198: -3785.6 | N198: -14265.6 | O198: 6.55 | R198: 2.37 | V198: -3353.6 | W198: 0.2350829969 | AD198: =O198*D198 -> -10480 | AF198: =R198*D198 -> -3792 | AH198: -14272 | AI198: 0.235426009
A199: 1.4.66 | B199: Саморез с пресс-шайбой 4.2х32 | C199: шт. | D199: 8000 | E199: 5 | F199: 40000 | G199: 1.82 | H199: 14560 | I199: 54560 | J199: 6.55 | K199: 52400 | L199: 2.366 | M199: 18928 | N199: 71328 | O199: 6.55 | R199: 2.37 | V199: 16768 | W199: 0.2350829969 | AD199: =D199*O199 -> 52400 | AE199: =1-F199/AD199 -> 0.2366412214 | AF199: =D199*R199 -> 18960 | AG199: =1-H199/AF199 -> 0.2320675105 | AH199: 71360 | AI199: 0.235426009
A200: 1.4.67 | B200: Аксессуары (расходные материалы, крепеж) | C200: компл. | D200: -1 | E200: 0 | F200: 0 | G200: 21600 | H200: -21600 | I200: -21600 | J200: 0 | K200: 0 | L200: 28080 | M200: -28080 | N200: -28080 | O200: 0 | R200: 28080 | V200: -6480 | W200: 0.2307692308 | AD200: =O200*D200 -> 0 | AF200: =R200*D200 -> -28080 | AH200: -28080 | AI200: 0.2307692308
... 919 more rows

Sheet СВОДНАЯ текущий
E1: Стоимость работ, руб с НДС | G1: Стоимость материалов, руб с НДС | J1: Стоимость работ, руб с НДС | L1: Стоимость материалов, руб с НДС | X1: 1.3 | Y1: 1.31 | Z1: 1.7 | AB1: 1.1883 | AC1: 1.18524 | AD1: КИК | AK1: Сопастовительная ведомость с подрядчиком | AL1: Вывести красные итоги в суммы подписанного КП | AM1: Проверка нового себеса черные зеленые с кп подрядчиков | AN1: Проверка рентабельности | AO1: Сверка ед.расценок по закрытой КС | AP1: Сравнение объемов по рабочке к конкурсу и финальной вер ЗАПУСК КОР В РАМКАХ АН | AQ1: Проверка с финальной версией проекта | AR1: Внесение изменений в ведомость с нумерацией в КС | AS1: Финальная проверка изменений
A2: № | B2: Наименовение | C2: Ед.изм | D2: Кол-во | E2: за ед. | F2: итого | G2: за ед | H2: итого | I2: Итого, руб с НДС | J2: за ед. | K2: итого | L2: за ед | M2: итого | N2: Итого, руб с НДС | O2: Ед расценка СМР КиК | P2: Смета ФЕР СМР | Q2: СМР Разница КиК/ФЕР в % | R2: Ед расценка материалы КиК | S2: Смета ФССЦ материалы | T2: МТР разница КиК/ФССЦ | V2: =N1116 ->  | X2: Материалы | Y2: Работы | Z2: Оборудование | AB2: Материалы ПЖ | AC2: Работы ПЖ | AD2: ВСЕГО СМР | AE2: РЕНТ СМР | AF2: ВСЕГО МТР | AG2: рент МТР | AH2: ВСЕГО | AI2: рент | AJ2: Комментарий | AK2: 1 этап | AQ2: 2 этап | AR2: 3 этап | AS2: 4 этап | AU2: Легенда
A3: 1 | B3: Основные объекты строительства, реконструкции, капитального ремонта, в том числе:
A4: 1.1 | B4: 130-23-АС3 Архитектурно-строительные решения | F4: =F7+F8+F9+F10+F12+F13+F15+F16+F17+F18+F19+F20+F22+F24+F26+F27+F28+F29+F30+F31+F32+F33+F34+F35+F36+F37+F38+F39+F40+F41+F42+F43+F44+F45+F46+F47+F49+F50+F51+F52+F54+F55+F56+F57+F58+F59+F60+F61+F62+F63+F64+F65+F66+#REF!+F67+F68 ->  | H4: =H7+H8+H9+H10+H12+H13+H15+H16+H17+H18+H19+H20+H22+H24+H26+H27+H28+H29+H30+H31+H32+H33+H34+H35+H36+H37+H38+H39+H40+H41+H42+H43+H44+H45+H46+H47+H49+H50+H51+H52+H54+H55+H56+H57+H58+H59+H60+H61+H62+H63+H64+H65+H66+#REF!+H67+H68 ->  | I4: =I7+I8+I9+I10+I12+I13+I15+I16+I17+I18+I19+I20+I22+I24+I26+I27+I28+I29+I30+I31+I32+I33+I34+I35+I36+I37+I38+I39+I40+I41+I42+I43+I44+I45+I46+I47+I49+I50+I51+I52+I54+I55+I56+I57+I58+I59+I60+I61+I62+I63+I64+I65+I66+#REF!+I67+I68 ->  | K4: =SUM(K6:K68)-#REF! ->  | M4: =SUM(M6:M68)-#REF! ->  | N4: =SUM(N6:N68)-#REF! ->  | V4: =N4-I4 ->  | W4: =1-I4/N4 ->  | AD4: =AD7+AD8+AD9+AD10+AD12+AD13+AD15+AD16+AD17+AD18+AD19+AD20+AD22+AD24+AD26+AD27+AD28+AD29+AD30+AD31+AD32+AD33+AD34+AD35+AD36+AD37+AD38+AD39+AD40+AD41+AD42+AD43+AD44+AD45+AD46+AD47+AD49+AD50+AD51+AD52+AD54+AD55+AD56+AD57+AD58+AD59+AD60+AD61+AD62+AD63+AD64+AD65+AD66+AD67+AD68 -> 23834068.02 | AE4: =1-F4/AD4 ->  | AF4: =AF7+AF8+AF9+AF10+AF12+AF13+AF15+AF16+AF17+AF18+AF19+AF20+AF22+AF24+AF26+AF27+AF28+AF29+AF30+AF31+AF32+AF33+AF34+AF35+AF36+AF37+AF38+AF39+AF40+AF41+AF42+AF43+AF44+AF45+AF46+AF47+AF49+AF50+AF51+AF52+AF54+AF55+AF56+AF57+AF58+AF59+AF60+AF61+AF62+AF63+AF64+AF65+AF66+AF67+AF68 -> 21868543.3 | AG4: =1-H4/AF4 ->  | AH4: =AH7+AH8+AH9+AH10+AH12+AH13+AH15+AH16+AH17+AH18+AH19+AH20+AH22+AH24+AH26+AH27+AH28+AH29+AH30+AH31+AH32+AH33+AH34+AH35+AH36+AH37+AH38+AH39+AH40+AH41+AH42+AH43+AH44+AH45+AH46+AH47+AH49+AH50+AH51+AH52+AH54+AH55+AH56+AH57+AH58+AH59+AH60+AH61+AH62+AH63+AH64+AH65+AH66+AH67+AH68 -> 45702611.32 | AI4: =1-I4/AH4 ->  | AJ4: ШК | AK4: + | AP4: - | AQ4: - | AR4: - | AS4: -
A5: 1.1 | B5: 130-23-АС3 Архитектурно-строительные решения | F5: =-F7-F8-F9-F10-F12-F13-F15-F16-F17-F18-F19-F20+F21+F23-F26-F27-F28-F29-F30-F31-F32-F33-F34-F35-F36-F37-F38-F39-F40-F41-F42-F43-F44-F45-F46-F47 -> -12449082.62 | H5: =-H7-H8-H9-H10-H12-H13-H15-H16-H17-H18-H19-H20+H21+H23-H26-H27-H28-H29-H30-H31-H32-H33-H34-H35-H36-H37-H38-H39-H40-H41-H42-H43-H44-H45-H46-H47 -> -18624903.9 | I5: =-I7-I8-I9-I10-I12-I13-I15-I16-I17-I18-I19-I20+I21+I23-I26-I27-I28-I29-I30-I31-I32-I33-I34-I35-I36-I37-I38-I39-I40-I41-I42-I43-I44-I45-I46-I47 -> -31073986.51 | K5: =-K7-K8-K9-K10-K12-K13-K15-K16-K17-K18-K19-K20+K21+K23-K26-K27-K28-K29-K30-K31-K32-K33-K34-K35-K36-K37-K38-K39-K40-K41-K42-K43-K44-K45-K46-K47 -> -15156685.61 | M5: =SUM(M6:M11)-#REF!+SUM(M13:M47) ->  | N5: =SUM(N6:N11)-#REF!+SUM(N13:N47) ->  | AD5: =-AD7-AD8-AD9-AD10-AD12-AD13-AD15-AD16-AD17-AD18-AD19-AD20+AD21+AD23-AD26-AD27-AD28-AD29-AD30-AD31-AD32-AD33-AD34-AD35-AD36-AD37-AD38-AD39-AD40-AD41-AD42-AD43-AD44-AD45-AD46-AD47 -> -22129230.51 | AF5: =-AF7-AF8-AF9-AF10-AF12-AF13-AF15-AF16-AF17-AF18-AF19-AF20+AF21+AF23-AF26-AF27-AF28-AF29-AF30-AF31-AF32-AF33-AF34-AF35-AF36-AF37-AF38-AF39-AF40-AF41-AF42-AF43-AF44-AF45-AF46-AF47 -> -20718375.27 | AH5: =-AH7-AH8-AH9-AH10-AH12-AH13-AH15-AH16-AH17-AH18-AH19-AH20+AH21+AH23-AH26-AH27-AH28-AH29-AH30-AH31-AH32-AH33-AH34-AH35-AH36-AH37-AH38-AH39-AH40-AH41-AH42-AH43-AH44-AH45-AH46-AH47 -> -42847605.78 | AI5: =1-I5/AH5 -> 0.27477893 | AK5: + | AL5: +
A6: 1.1.1 | B6: Демонтажные работы | V6: =N6-I6 -> 0 | W6: =1-I6/N6 ->  | AQ6: - | AR6: - | AS6: -
A7: 1.1.1.1 | B7: Частичный демонтаж крестовых связей | C7: тн | D7: 0.44 | E7: 35355 | F7: =E7*D7 -> 15556.2 | G7: 0 | H7: =G7*D7 -> 0 | I7: =H7+F7 -> 15556.2 | J7: =E7*$Y$1 -> 46315.05 | K7: =J7*D7 -> 20378.622 | L7: =G7*$X$1 -> 0 | M7: =L7*D7 -> 0 | N7: =K7+M7 -> 20378.622 | O7: 49415 | P7: ='ВСЕ СМЕТЫ КДС'!G723 -> 42524.83948 | Q7: =O7/P7-1 -> 0.1620267262 | R7: 0 | V7: =N7-I7 -> 4822.422 | W7: =1-I7/N7 -> 0.2366412214 | AD7: =D7*O7 -> 21742.6 | AE7: =1-F7/AD7 -> 0.2845289892 | AH7: =O7*D7+R7*D7 -> 21742.6 | AI7: =1-I7/AH7 -> 0.2845289892 | AK7: +
A8: 1.1.1.2 | B8: Демонтаж сэндвич панелей | C8: м2 | D8: 389.4 | E8: 756 | F8: 294386.4 | G8: 0 | H8: 0 | I8: 294386.4 | J8: =E8*$Y$1 -> 990.36 | K8: =J8*D8 -> 385646.184 | L8: =G8*$X$1 -> 0 | M8: =L8*D8 -> 0 | N8: =K8+M8 -> 385646.184 | O8: 990 | R8: 0 | V8: =N8-I8 -> 91259.784 | W8: =1-I8/N8 -> 0.2366412214 | AD8: =D8*O8 -> 385506 | AE8: =1-F8/AD8 -> 0.2363636364 | AH8: =O8*D8+R8*D8 -> 385506 | AI8: =1-I8/AH8 -> 0.2363636364
A9: 1.1.2 | B9: Устройство фахверка | C9: тн | D9: 0.34 | E9: =71610 -> 71610 | F9: =E9*D9 -> 24347.4 | G9: 166522 | H9: =G9*D9 -> 56617.48 | I9: =H9+F9 -> 80964.88 | J9: 93809.1 | K9: 31895.094 | L9: 216478.6 | M9: =L9*D9 -> 73602.724 | N9: 105497.818 | O9: 95478 | P9: ='ВСЕ СМЕТЫ КДС'!G2447 -> 81128.97336 | Q9: =O9/P9-1 -> 0.1768668583 | R9: 229000 | S9: ='ВСЕ СМЕТЫ КДС'!G2448+'ВСЕ СМЕТЫ КДС'!G2449 -> 124240.4976 | T9: =R9/S9-1 -> 0.8431993144 | V9: =N9-I9 -> 24532.938 | W9: =1-I9/N9 -> 0.2325445063 | AD9: =D9*O9 -> 32462.52 | AE9: =1-F9/AD9 -> 0.2499842896 | AF9: =D9*R9 -> 77860 | AG9: =1-H9/AF9 -> 0.2728296943 | AH9: =O9*D9+R9*D9 -> 110322.52 | AI9: =1-I9/AH9 -> 0.2661074094 | AK9: - | AQ9: - | AR9: - | AS9: -
A10: 1.1.3 | B10: Устройство сэндвич панелей | C10: м2 | D10: 389.4 | E10: 1443.75 | F10: 562196.25 | G10: 4095.3 | H10: 1594709.82 | I10: 2156906.07 | J10: 1891.3125 | K10: 736477.0875 | L10: 5323.89 | M10: =L10*D10 -> 2073122.766 | N10: 2809599.854 | O10: 2711 | P10: ='ВСЕ СМЕТЫ КДС'!G50+'ВСЕ СМЕТЫ КДС'!G55+'ВСЕ СМЕТЫ КДС'!G60+'ВСЕ СМЕТЫ КДС'!G72 -> 2097.908878 | Q10: =O10/P10-1 -> 0.2922391568 | R10: 6573 | S10: ='ВСЕ СМЕТЫ КДС'!G51+'ВСЕ СМЕТЫ КДС'!G56+'ВСЕ СМЕТЫ КДС'!G61+'ВСЕ СМЕТЫ КДС'!G62+'ВСЕ СМЕТЫ КДС'!G63+'ВСЕ СМЕТЫ КДС'!G64+'ВСЕ СМЕТЫ КДС'!G65+'ВСЕ СМЕТЫ КДС'!G66+'ВСЕ СМЕТЫ КДС'!G67+'ВСЕ СМЕТЫ КДС'!G73 -> 7392.365593 | T10: =R10/S10-1 -> -0.1108394306 | V10: =N10-I10 -> 652693.7835 | W10: =1-I10/N10 -> 0.2323084487 | AD10: =D10*O10 -> 1055663.4 | AE10: =1-F10/AD10 -> 0.4674474364 | AF10: =D10*R10 -> 2559526.2 | AG10: =1-H10/AF10 -> 0.3769511639 | AH10: =O10*D10+R10*D10 -> 3615189.6 | AI10: =1-I10/AH10 -> 0.4033767773 | AK10: + | AQ10: - | AR10: - | AS10: -
A11: 1.1.4 | B11: Устройство перегородок | J11: 0 | K11: 0 | L11: 0 | M11: =L11*D11 -> 0 | N11: 0 | O11: 0 | R11: 0 | AK11: + | AQ11: - | AR11: - | AS11: -
A12: 1.1.4.1 | B12: Перегородки гипсокартонные типа С112 комплексной системы КНАУФ толщиной 100 мм с облицовкой 2мя листами ГКЛ (толщиной 12,5мм) со звукоизолирующим слоем из минераловатных плит Лайт Баттс толщиной 50 мм | C12: м2 | D12: 536 | E12: 1640.1 | F12: =E12*D12 -> 879093.6 | G12: 4250.136 | H12: =G12*D12 -> 2278072.896 | I12: =H12+F12 -> 3157166.496 | O12: 4955 | P12: 3959 | Q12: =O12/P12-1 -> 0.2515786815 | R12: 4501 | AD12: =D12*O12 -> 2655880 | AE12: =1-F12/AD12 -> 0.6690010091 | AF12: =D12*R12 -> 2412536 | AG12: =1-H12/AF12 -> 0.05573516996 | AH12: =O12*D12+R12*D12 -> 5068416 | AI12: =1-I12/AH12 -> 0.3770901015
A13: 1.1.4.2 | B13: Устройство отверстий под воздуховоды | C13: шт | D13: 2 | E13: =F13/D13 -> 6548 | F13: 13096 | G13: =H13/D13 -> 3582.5 | H13: 7165 | I13: =H13+F13 -> 20261 | J13: 8577.88 | K13: 17155.76 | L13: 4657.25 | M13: =L13*D13 -> 9314.5 | N13: 26470.26 | O13: 8577.88 | R13: 4657.25 | V13: =N13-I13 -> 6209.26 | W13: =1-I13/N13 -> 0.2345749532 | AD13: =D13*O13 -> 17155.76 | AE13: =1-F13/AD13 -> 0.2366412214 | AF13: =D13*R13 -> 9314.5 | AG13: =1-H13/AF13 -> 0.2307692308 | AH13: =O13*D13+R13*D13 -> 26470.26 | AI13: =1-I13/AH13 -> 0.2345749532 | AK13: + | AQ13: - | AR13: - | AS13: -
A14: 1.1.5 | B14: Отделка потолков помещений | J14: 0 | K14: 0 | L14: 0 | M14: 0 | N14: 0 | O14: 0 | R14: 0 | V14: 0 | AK14: + | AQ14: - | AR14: - | AS14: -
A15: 1.1.5.1 | B15: Подвесной потолок системы "Армстронг" | C15: м2 | D15: 301.4 | E15: 863.94 | F15: =E15*D15 -> 260391.516 | G15: 2173.314 | H15: =G15*D15 -> 655036.8396 | I15: =H15+F15 -> 915428.3556 | J15: 1131.7614 | K15: =J15*D15 -> 341112.886 | L15: 2825.3082 | M15: 851547.8915 | N15: =K15+M15 -> 1192660.777 | O15: 3957.07 | P15: ='ВСЕ СМЕТЫ КДС'!G2937 -> 3234.116062 | Q15: =O15/P15-1 -> 0.2235398866 | R15: 0 | V15: 277232.4218 | W15: 0.2324486787 | AD15: =D15*O15 -> 1192660.898 | AE15: =1-F15/AD15 -> 0.7816717925 | AH15: =O15*D15+R15*D15 -> 1192660.898 | AI15: =1-I15/AH15 -> 0.2324487563 | AK15: - | AQ15: - | AR15: - | AS15: -
A16: 1.1.5.2 | B16: Подвесной потолок системы с шумоглушением | C16: м2 | D16: 168.8 | E16: 863.94 | F16: 145833.072 | G16: 2347.224 | H16: 396211.4112 | I16: 542044.4832 | J16: 1131.7614 | K16: 191041.3243 | L16: 3051.3912 | M16: 515074.8346 | N16: 706116.1589 | O16: 1131.76 | R16: 3051.39 | V16: 164071.6757 | W16: 0.2323579111 | AD16: 191041.088 | AE16: 0.2366402771 | AF16: =D16*R16 -> 515074.632 | AG16: =1-H16/AF16 -> 0.2307689283 | AH16: 706115.72 | AI16: 0.232357434 | AK16: + | AQ16: - | AR16: - | AS16: -
A17: 1.1.5.3 | B17: Реечный алюминиевый потолок | C17: м2 | D17: 111.8 | E17: 1039.5 | F17: 116216.1 | G17: 5020.95 | H17: 561342.21 | I17: 677558.31 | J17: 1361.745 | K17: 152243.091 | L17: 6527.235 | M17: 729744.873 | N17: 881987.964 | O17: 7888.98 | P17: ='ВСЕ СМЕТЫ КДС'!G2933 -> 4145.789812 | Q17: =O17/P17-1 -> 0.9028895235 | R17: 0 | V17: 204429.654 | W17: 0.231782816 | AD17: 881987.964 | AE17: 0.8682339162 | AH17: 881987.964 | AI17: 0.231782816 | AK17: + | AQ17: - | AR17: - | AS17: -
A18: 1.1.5.4 | B18: Затирка бетонной поверхности перекрытия перед устройством потолка | C18: м2 | D18: 206.75 | E18: 866.25 | F18: 179097.1875 | G18: 553.146 | H18: 114362.9355 | I18: 293460.123 | J18: 1134.7875 | K18: 234617.3156 | L18: 719.0898 | M18: 148671.8162 | N18: 383289.1318 | O18: 1134.79 | R18: 719.09 | V18: 89829.00877 | W18: 0.2343635687 | AD18: 234617.8325 | AE18: 0.2366429031 | AF18: =D18*R18 -> 148671.8575 | AG18: =1-H18/AF18 -> 0.2307694447 | AH18: 383289.69 | AI18: 0.2343646838 | AK18: + | AQ18: - | AR18: - | AS18: -
A19: 1.1.5.5 | B19: Устроиство базового слоя шпаклевки | C19: м2 | D19: 69.4 | E19: 678 | F19: =E19*D19 -> 47053.2 | G19: 356 | H19: =G19*D19 -> 24706.4 | I19: =H19+F19 -> 71759.6 | J19: 888.18 | K19: 61639.692 | L19: 462.8 | M19: 32118.32 | N19: 93758.012 | O19: 888.18 | R19: 462.8 | V19: 21998.412 | W19: 0.2346296762 | AD19: 61639.692 | AE19: 0.2366412214 | AF19: =D19*R19 -> 32118.32 | AG19: =1-H19/AF19 -> 0.2307692308 | AH19: 93758.012 | AI19: 0.2346296762 | AK19: - | AQ19: - | AR19: - | AS19: -
A20: 1.1.5.6 | B20: Устроиство финишного слоя шпаклевки | C20: м2 | D20: 69.4 | E20: 975 | F20: =E20*D20 -> 67665 | G20: 305.99 | H20: =G20*D20 -> 21235.706 | I20: =H20+F20 -> 88900.706 | J20: 1277.25 | K20: 88641.15 | L20: 397.787 | M20: 27606.4178 | N20: 116247.5678 | O20: 1277.25 | R20: 397.79 | V20: 27346.8618 | W20: 0.2352467438 | AD20: 88641.15 | AE20: 0.2366412214 | AF20: =D20*R20 -> 27606.626 | AG20: =1-H20/AF20 -> 0.2307750321 | AH20: 116247.776 | AI20: 0.2352481135 | AK20: - | AQ20: - | AR20: - | AS20: -
A21: 1.1.5.7 | B21: Окраска потолка силикатной краской за 2 раза | C21: м2 | D21: -138.8 | E21: 485.1 | F21: =E21*D21 -> -67331.88 | G21: 569.976 | H21: =G21*D21 -> -79112.6688 | I21: =H21+F21 -> -146444.5488 | J21: =E21*$Y$1 -> 635.481 | K21: =J21*D21 -> -88204.7628 | L21: =G21*$X$1 -> 740.9688 | M21: -102846.4694 | N21: =K21+M21 -> -191051.2322 | O21: 635.48 | P21: ='ВСЕ СМЕТЫ КДС'!G1297 -> 576.0360096 | Q21: =O21/P21-1 -> 0.1031949208 | R21: 740.97 | V21: -44606.68344 | W21: 0.2334802185 | AD21: =O21*D21 -> -88204.624 | AF21: =R21*D21 -> -102846.636 | AH21: -191051.26 | AI21: 0.2334803298
A22: 1.1.5.7 | B22: Окраска потолка силикатной краской за 2 раза | C22: м2 | D22: 69.4 | E22: 485.1 | F22: =E22*D22 -> 33665.94 | G22: 569.976 | H22: =G22*D22 -> 39556.3344 | I22: =H22+F22 -> 73222.2744 | O22: 635.48 | P22: ='ВСЕ СМЕТЫ КДС'!G1297 -> 576.0360096 | Q22: =O22/P22-1 -> 0.1031949208 | R22: 740.97 | V22: -73222.2744 | AD22: =D22*O22 -> 44102.312 | AE22: =1-F22/AD22 -> 0.2366400201 | AF22: =D22*R22 -> 51423.318 | AG22: =1-H22/AF22 -> 0.2307704765 | AH22: 95525.63 | AI22: 0.2334803298
A23: 1.1.5.8 | B23: Грунтовка поверхностей перед окрашиванием | C23: м2 | D23: -138.8 | E23: 57.75 | F23: -8015.7 | G23: 32.538 | H23: -4516.2744 | I23: -12531.9744 | J23: 75.6525 | K23: -10500.567 | L23: 42.2994 | M23: =L23*D23 -> -5871.15672 | N23: -16371.72372 | O23: 75.65 | P23: ='ВСЕ СМЕТЫ КДС'!G1256 -> 70.20446102 | Q23: =O23/P23-1 -> 0.07756685122 | R23: 42.3 | S23: ='ВСЕ СМЕТЫ КДС'!G1263 -> 22.73014948 | T23: =((R23/(S23/100))-100)/100 -> 0.8609644446 | V23: -3839.74932 | W23: 0.2345354335 | AD23: =O23*D23 -> -10500.22 | AF23: =R23*D23 -> -5871.24 | AH23: -16371.46 | AI23: 0.234523103 | AK23: + | AQ23: - | AR23: - | AS23: -
A24: 1.1.5.8 | B24: Грунтовка поверхностей перед окрашиванием | C24: м2 | D24: 69.4 | E24: 57.75 | F24: =E24*D24 -> 4007.85 | G24: 32.538 | H24: =G24*D24 -> 2258.1372 | I24: =H24+F24 -> 6265.9872 | J24: =E24*$Y$1 -> 75.6525 | K24: =J24*D24 -> 5250.2835 | L24: =G24*$X$1 -> 42.2994 | M24: 2935.57836 | N24: =K24+M24 -> 8185.86186 | O24: 75.65 | P24: ='ВСЕ СМЕТЫ КДС'!G1256 -> 70.20446102 | Q24: =O24/P24-1 -> 0.07756685122 | R24: 42.3 | S24: ='ВСЕ СМЕТЫ КДС'!G1263 -> 22.73014948 | T24: =((R24/(S24/100))-100)/100 -> 0.8609644446 | V24: 1919.87466 | W24: 0.2345354335 | AD24: =D24*O24 -> 5250.11 | AE24: =1-F24/AD24 -> 0.2366159947 | AF24: =D24*R24 -> 2935.62 | AG24: =1-H24/AF24 -> 0.2307801418 | AH24: 8185.73 | AI24: 0.234523103 | AK24: + | AQ24: - | AR24: - | AS24: -
A25: 1.1.6 | B25: Полы помещений | J25: 0 | K25: 0 | L25: 0 | M25: 0 | N25: 0 | O25: 0 | R25: 0 | V25: 0
A26: 1.1.6.1 | B26: Очистка поверхности от грязи и мусора | C26: м2 | D26: 352.5 | E26: 288.75 | F26: =E26*D26 -> 101784.375 | G26: 56.1 | H26: =G26*D26 -> 19775.25 | I26: =H26+F26 -> 121559.625 | J26: 378.2625 | K26: 133337.5312 | L26: 72.93 | M26: 25707.825 | N26: 159045.3563 | O26: 378 | R26: 72.93 | V26: 37485.73125 | W26: 0.2356920826 | AD26: =D26*O26 -> 133245 | AE26: =1-F26/AD26 -> 0.2361111111 | AF26: =D26*R26 -> 25707.825 | AG26: =1-H26/AF26 -> 0.2307692308 | AH26: =O26*D26+R26*D26 -> 158952.825 | AI26: =1-I26/AH26 -> 0.2352471559 | AK26: + | AQ26: + | AR26: - | AS26: -
A27: 1.1.6.2 | B27: Устройство пола из бетона кл. В25 толщиной до 100 мм | C27: м3 | D27: 7.87 | E27: 12127.5 | F27: =E27*D27 -> 95443.425 | G27: 9537 | H27: =G27*D27 -> 75056.19 | I27: =H27+F27 -> 170499.615 | J27: =E27*$Y$1 -> 15887.025 | K27: =J27*D27 -> 125030.8868 | L27: =G27*$X$1 -> 12398.1 | M27: 97573.047 | N27: =K27+M27 -> 222603.9338 | O27: 13208 | P27: ='ВСЕ СМЕТЫ КДС'!H2546+'ВСЕ СМЕТЫ КДС'!H2551 -> 9964.362449 | Q27: =((O27/(P27/100))-100)/100 -> 0.3255238423 | R27: 14998 | S27: ='ВСЕ СМЕТЫ КДС'!H2547+'ВСЕ СМЕТЫ КДС'!H2548+'ВСЕ СМЕТЫ КДС'!H2552 -> 13280.66248 | T27: =((R27/(S27/100))-100)/100 -> 0.1293111336 | V27: 52104.31875 | W27: 0.2340673764 | AD27: 103946.96 | AE27: 0.08180648092 | AF27: 118034.26 | AG27: 0.3641152154 | AH27: 221981.22 | AI27: 0.2319187407
A28: 1.1.6.3 | B28: Керамогранитная плитка | C28: м2 | D28: 187.8 | E28: 1640.1 | F28: =E28*D28 -> 308010.78 | G28: 3023.79 | H28: 567867.762 | I28: 875878.542 | J28: 2148.531 | K28: 403494.1218 | L28: 3930.927 | M28: 738228.0906 | N28: 1141722.212 | O28: 4772 | P28: ='ВСЕ СМЕТЫ КДС'!G2630 -> 4493.808061 | Q28: =((O28/(P28/100))-100)/100 -> 0.06190561208 | R28: 2131 | S28: ='ВСЕ СМЕТЫ КДС'!G2631+'ВСЕ СМЕТЫ КДС'!G2632+'ВСЕ СМЕТЫ КДС'!G2633 -> 1873.223065 | T28: =((R28/(S28/100))-100)/100 -> 0.137611446 | V28: 265843.6704 | W28: 0.2328444411 | AD28: 896181.6 | AE28: 0.6563076278 | AF28: 400201.8 | AG28: -0.4189535429 | AH28: 1296383.4 | AI28: 0.3243676662 | AP28: =P28+P28*Q28 -> 4772
A29: 1.1.6.4 | B29: Напольная керамическая плитка | C29: м2 | D29: 332.1 | E29: 1640.1 | F29: 544677.21 | G29: 3023.79 | H29: 1004200.659 | I29: 1548877.869 | J29: 2148.531 | K29: 713527.1451 | L29: 3930.927 | M29: 1305460.857 | N29: 2018988.002 | O29: 2629 | P29: ='ВСЕ СМЕТЫ КДС'!G1819 -> 2095.597917 | Q29: =O29/P29-1 -> 0.2545345549 | R29: 3034 | S29: ='ВСЕ СМЕТЫ КДС'!G1820+'ВСЕ СМЕТЫ КДС'!G1821+'ВСЕ СМЕТЫ КДС'!G1822 -> 1760.357779 | T29: =((R29/(S29/100))-100)/100 -> 0.7235132743 | V29: 470110.1328 | W29: 0.2328444411 | AD29: 873090.9 | AE29: 0.3761506276 | AF29: 1007591.4 | AG29: 0.003365194463 | AH29: 1880682.3 | AI29: 0.1764276885
A30: 1.1.6.5 | B30: Коммерческий линолеум (33-34 кл.) | C30: м2 | D30: 121.8 | E30: 540.54 | F30: 65837.772 | G30: 2031.942 | H30: 247490.5356 | I30: 313328.3076 | J30: 708.1074 | K30: 86247.48132 | L30: 2641.5246 | M30: 321737.6963 | N30: 407985.1776 | O30: 708.11 | R30: 2641.52 | V30: 94656.87 | W30: 0.2320105612 | AD30: 86247.798 | AE30: 0.2366440242 | AF30: 321737.136 | AG30: 0.2307678912 | AH30: 407984.934 | AI30: 0.2320101026
A31: 1.1.6.6 | B31: Гидроизоляция Гидроизол | C31: м2 | D31: 141.3 | E31: 519.75 | F31: 73440.675 | G31: 833.646 | H31: 117794.1798 | I31: 191234.8548 | J31: 680.8725 | K31: 96207.28425 | L31: 1083.7398 | M31: 153132.4337 | N31: 249339.718 | O31: 680.87 | R31: 1083.74 | V31: 58104.86319 | W31: 0.2330349278 | AD31: 96206.931 | AE31: 0.2366384185 | AF31: 153132.462 | AG31: 0.2307693727 | AH31: 249339.393 | AI31: 0.2330339282
A32: 1.1.6.7 | B32: Наливной пол толщиной до 50мм | C32: м2 | D32: 355.6 | E32: 981.75 | F32: 349110.3 | G32: 1869.252 | H32: 664706.0112 | I32: 1013816.311 | J32: 1286.0925 | K32: 457334.493 | L32: 2430.0276 | M32: 864117.8146 | N32: 1321452.308 | O32: 3576 | P32: ='ВСЕ СМЕТЫ КДС'!G1944+'ВСЕ СМЕТЫ КДС'!G1949+'ВСЕ СМЕТЫ КДС'!G1954 -> 3056.554594 | Q32: =O32/P32-1 -> 0.16994475 | R32: 1630 | S32: ='ВСЕ СМЕТЫ КДС'!G1945+'ВСЕ СМЕТЫ КДС'!G1950+'ВСЕ СМЕТЫ КДС'!G1955 -> 1317.145989 | T32: =R32/S32-1 -> 0.2375241721 | V32: 307635.9964 | W32: 0.2328014372 | AD32: 1271625.6 | AE32: 0.7254614094 | AF32: 579628 | AG32: -0.1467803681 | AH32: 1851253.6 | AI32: 0.4523622743
A33: 1.1.6.8 | B33: Керамогранитная плитка с шероховатой поверхностью | C33: м2 | D33: 2 | E33: 1640.1 | F33: 3280.2 | G33: 3023.79 | H33: 6047.58 | I33: 9327.78 | J33: 2148.531 | K33: 4297.062 | L33: 3930.927 | M33: 7861.854 | N33: 12158.916 | O33: 4149 | P33: =P28 -> 4493.808061 | Q33: =O33/P33-1 -> -0.07672959251 | R33: 2131 | S33: =S28 -> 1873.223065 | T33: =R33/S33-1 -> 0.137611446 | V33: 2831.136 | W33: 0.2328444411 | AD33: 8298 | AE33: 0.6046999277 | AF33: 4262 | AG33: -0.4189535429 | AH33: 12560 | AI33: 0.2573423567 | AP33: =P33+P33*Q33 -> 4149
A34: 1.1.6.9 | B34: Наливной пол толщиной до 45мм армированный сеткой d4 В500 100х100 | C34: м2 | D34: 141.3 | E34: 1328.25 | F34: =E34*D34 -> 187681.725 | G34: 3714.942 | H34: 524921.3046 | I34: =H34+F34 -> 712603.0296 | J34: =E34*$Y$1 -> 1740.0075 | K34: =J34*D34 -> 245863.0598 | L34: 4829.4246 | M34: 682397.696 | N34: 928260.7557 | O34: 3470 | P34: ='ВСЕ СМЕТЫ КДС'!G1944+('ВСЕ СМЕТЫ КДС'!G1949/6*5)+'ВСЕ СМЕТЫ КДС'!G1954 -> 2670.296396 | Q34: =O34/P34-1 -> 0.2994812132 | R34: 1590 | S34: ='ВСЕ СМЕТЫ КДС'!G1945+('ВСЕ СМЕТЫ КДС'!G1950/6*5)+'ВСЕ СМЕТЫ КДС'!G1955 -> 1230.141693 | T34: =R34/S34-1 -> 0.2925340304 | V34: 215657.7261 | W34: 0.232324511 | AD34: 490311 | AE34: 0.6172190202 | AF34: 224667 | AG34: -1.336441509 | AH34: 714978 | AI34: 0.00332173913 | AP34: =P34+P34*Q34 -> 3470
A35: 1.1.6.10 | B35: Грунтовка поверхностей перед финишным покрытием | C35: м2 | D35: 1140.6 | E35: 57.75 | F35: 65869.65 | G35: 32.538 | H35: 37112.8428 | I35: =H35+F35 -> 102982.4928 | J35: =E35*$Y$1 -> 75.6525 | K35: 86289.2415 | L35: 42.2994 | M35: 48246.69564 | N35: 134535.9371 | O35: 75.65 | R35: 42.3 | V35: 31553.44434 | W35: 0.2345354335 | AD35: 86286.39 | AE35: 0.2366159947 | AF35: 48247.38 | AG35: 0.2307801418 | AH35: 134533.77 | AI35: 0.234523103
A36: 1.1.7 | B36: Отделка стен помещений | C36: м2 | D36: 1194.52 | E36: =F36/D36 -> 3395.564746 | F36: 4056070 | G36: =H36/D36 -> 2848.02766 | H36: 3402026 | I36: =F36+H36 -> 7458096 | J36: =E36*$Y$1 -> 4448.189817 | K36: 5313451.7 | L36: 3702.435958 | M36: 4422633.8 | N36: 9736085.5 | O36: 4448 | R36: 3702 | V36: 2277989.5 | W36: 0.2339738594 | AD36: 5313224.96 | AE36: 0.2366086453 | AF36: 4422113.04 | AG36: 0.2306786441 | AH36: 9735338 | AI36: 0.2339150423
A37: 1.1.8 | B37: Установка потивопожарных окон | C37: шт | D37: 11 | E37: 18480 | F37: =E37*D37 -> 203280 | G37: 69564 | H37: =G37*D37 -> 765204 | I37: =H37+F37 -> 968484 | J37: 24208.8 | K37: 266296.8 | L37: 90433.2 | M37: 994765.2 | N37: 1261062 | O37: 34209 | P37: ='ВСЕ СМЕТЫ КДС'!$I$600 -> 28021.07832 | Q37: =((O37/(P37/100))-100)/100 -> 0.2208309619 | R37: 89433 | S37: ='ВСЕ СМЕТЫ КДС'!$I$601 -> 22972.25882 | T37: =((R37/(S37/100))-100)/100 -> 2.893086905 | V37: 292578 | W37: 0.2320092113 | AD37: 376299 | AE37: 0.459791283 | AF37: 983763 | AG37: 0.2221663144 | AH37: 1360062 | AI37: 0.2879118746 | AP37: =P37+P37*Q37 -> 34209 | AS37: =S37+S37*T37 -> 89433
A38: 1.1.9 | B38: Установка внутренних окон | C38: шт | D38: 6 | E38: 18480 | F38: 110880 | G38: 69564 | H38: 417384 | I38: 528264 | J38: 24208.8 | K38: 145252.8 | L38: 90433.2 | M38: 542599.2 | N38: 687852 | O38: 18204 | P38: ='ВСЕ СМЕТЫ КДС'!$H$600 -> 14256.33809 | Q38: =((O38/(P38/100))-100)/100 -> 0.2769057441 | R38: 79865 | S38: ='ВСЕ СМЕТЫ КДС'!$H$601 -> 11687.64045 | T38: =((R38/(S38/100))-100)/100 -> 5.833286865 | V38: 159588 | W38: 0.2320092113 | AD38: 109224 | AE38: -0.01516150297 | AF38: 479190 | AG38: 0.128980154 | AH38: 588414 | AI38: 0.1022239444
A39: 1.1.10 | B39: Установка потивопожарных дверей | C39: шт | D39: 42 | E39: 5197.5 | F39: 218295 | G39: 28384.57 | H39: 1192151.94 | I39: 1410446.94 | J39: 6808.725 | K39: 285966.45 | L39: 36899.941 | M39: 1549797.522 | N39: 1835763.972 | O39: 14176 | P39: ='ВСЕ СМЕТЫ КДС'!$J$583 -> 12896.31394 | Q39: =((O39/(P39/100))-100)/100 -> 0.09922882376 | R39: 34900 | S39: ='ВСЕ СМЕТЫ КДС'!$L$583 -> 27398.31216 | T39: =((R39/(S39/100))-100)/100 -> 0.2738010937 | V39: 425317.032 | W39: 0.2316839411 | AD39: 595392 | AE39: 0.6333591986 | AF39: 1465800 | AG39: 0.1866885387 | AH39: 2061192 | AI39: 0.3157129758
A40: 1.1.11 | B40: Лестничная клетка | C40: шт | D40: 1 | E40: 384953 | F40: 384953 | G40: 657924 | H40: =G40*D40 -> 657924 | I40: 1042877 | J40: =E40*$Y$1 -> 504288.43 | K40: =J40*D40 -> 504288.43 | L40: =G40*$X$1 -> 855301.2 | M40: 855301.2 | N40: 1359589.63 | O40: 504288.43 | R40: 855301.2 | V40: 316712.63 | W40: 0.2329472239 | AD40: 504288.43 | AE40: 0.2366412214 | AF40: 855301.2 | AG40: 0.2307692308 | AH40: 1359589.63 | AI40: 0.2329472239
A41: 1.1.12 | B41: Устройство перекрытия | C41: м3 | D41: 41.2 | E41: 33850 | F41: =E41*D41 -> 1394620 | G41: 36440 | H41: =D41*G41 -> 1501328 | I41: =H41+F41 -> 2895948 | J41: =E41*$Y$1 -> 44343.5 | K41: =J41*D41 -> 1826952.2 | L41: =G41*$X$1 -> 47372 | M41: 1951726.4 | N41: =K41+M41 -> 3778678.6 | O41: 44343.5 | R41: 47372 | V41: 882730.6 | W41: 0.2336082778 | AD41: 1826952.2 | AE41: 0.2366412214 | AF41: 1951726.4 | AG41: 0.2307692308 | AH41: 3778678.6 | AI41: 0.2336082778
A42: 1.1.13 | B42: Пол АБК | C42: м2 | D42: 387 | E42: =F42/D42 -> 2064.22739 | F42: 798856 | G42: =H42/D42 -> 3364.330749 | H42: 1301996 | I42: =F42+H42 -> 2100852 | J42: =E42*$Y$1 -> 2704.137881 | K42: =J42*D42 -> 1046501.36 | L42: =G42*$X$1 -> 4373.629974 | M42: 1692594.8 | N42: =K42+M42 -> 2739096.16 | O42: 3576 | P42: ='ВСЕ СМЕТЫ КДС'!G1944+'ВСЕ СМЕТЫ КДС'!G1949+'ВСЕ СМЕТЫ КДС'!G1954 -> 3056.554594 | Q42: =((O42/(P42/100))-100)/100 -> 0.16994475 | R42: 3510 | S42: ='ВСЕ СМЕТЫ КДС'!G1945+'ВСЕ СМЕТЫ КДС'!G1950+'ВСЕ СМЕТЫ КДС'!G1955 -> 1317.145989 | T42: =((R42/(S42/100))-100)/100 -> 1.664852665 | V42: 638244.16 | W42: 0.2330126884 | AD42: 1383912 | AE42: 0.4227552041 | AF42: 1358370 | AG42: 0.04150121101 | AH42: 2742282 | AI42: 0.2339037342
A43: 1.1.14 | B43: Прорезка проёмов дверных и оконных | C43: шт | D43: 15 | E43: 19640 | F43: =E43*D43 -> 294600 | G43: 654 | H43: =G43*D43 -> 9810 | I43: =H43+F43 -> 304410 | J43: 25728.4 | K43: 385926 | L43: 850.2 | M43: 12753 | N43: 398679 | O43: 25728.4 | R43: 850.2 | V43: 94269 | W43: 0.2364533873 | AD43: 385926 | AE43: 0.2366412214 | AF43: 12753 | AG43: 0.2307692308 | AH43: 398679 | AI43: 0.2364533873
A44: 1.1.15 | B44: Устройство отверстия на кровле в осях В/32-34 | C44: шт | D44: 1 | E44: =F44/D44 -> 68328 | F44: 68328 | G44: =H44/D44 -> 56296 | H44: 56296 | I44: =H44+F44 -> 124624 | J44: 89509.68 | K44: 89509.68 | L44: 73184.8 | M44: 73184.8 | N44: 162694.48 | O44: 89509.68 | R44: 73184.8 | V44: 38070.48 | W44: 0.2339998259 | AD44: 89509.68 | AE44: 0.2366412214 | AF44: 73184.8 | AG44: 0.2307692308 | AH44: 162694.48 | AI44: 0.2339998259
A45: 1.1.16 | B45: Проходка воздуховодов сквозь кровлю АБК | C45: шт | D45: 12 | E45: =F45/D45 -> 9091.583333 | F45: 109099 | G45: =H45/D45 -> 3491.333333 | H45: 41896 | I45: =F45+H45 -> 150995 | J45: 11909.97417 | K45: 142919.69 | L45: 4538.733333 | M45: 54464.8 | N45: 197384.49 | O45: 11909.97 | R45: 4538.73 | V45: 46389.49 | W45: 0.2350209482 | AD45: 142919.64 | AE45: 0.2366409543 | AF45: 54464.76 | AG45: 0.2307686658 | AH45: 197384.4 | AI45: 0.2350205994
A46: 1.1.17 | B46: Устройство мк отверстий диам. 400 мм в покрытии здания | C46: шт | D46: 5 | E46: =F46/D46 -> 33457.8 | F46: 167289 | G46: =H46/D46 -> 20235.6 | H46: 101178 | I46: =F46+H46 -> 268467 | J46: 43829.718 | K46: 219148.59 | L46: 26306.28 | M46: 131531.4 | N46: 350679.99 | O46: 43829.72 | R46: 26306.28 | V46: 82212.99 | W46: 0.2344387828 | AD46: 219148.6 | AE46: 0.2366412562 | AF46: 131531.4 | AG46: 0.2307692308 | AH46: 350680 | AI46: 0.2344388046
A47: 1.1.18 | B47: Устройство дверного проёма в стене цеха (пож.выход) | C47: шт | D47: 1 | E47: =F47/D47 -> 167397 | F47: 167397 | G47: =H47/D47 -> 119648 | H47: 119648 | I47: =F47+H47 -> 287045 | J47: =E47*$Y$1 -> 219290.07 | K47: 219290.07 | L47: 155542.4 | M47: 155542.4 | N47: 374832.47 | O47: 219290.07 | R47: 155542.4 | V47: 87787.47 | W47: 0.2342045501 | AD47: 219290.07 | AE47: 0.2366412214 | AF47: 155542.4 | AG47: 0.2307692308 | AH47: 374832.47 | AI47: 0.2342045501
A48: 1.1.19 | B48: Дополнительные работы | O48: 0 | R48: 0
A49: 1.1.19.1 | B49: Обшивка стен Гипсокартон ГКЛ толщиной 12,5 мм в 2 слоя | C49: м2 | D49: 76 | E49: 1640 | F49: =D49*E49 -> 124640 | G49: 2469.6 | H49: =D49*G49 -> 187689.6 | I49: =F49+H49 -> 312329.6 | J49: =E49*$Y$1 -> 2148.4 | K49: =J49*D49 -> 163278.4 | L49: =G49*$X$1 -> 3210.48 | M49: =L49*D49 -> 243996.48 | N49: =K49+M49 -> 407274.88 | O49: 2955 | P49: 3959 | Q49: =O49/P49-1 -> -0.2535993938 | R49: 3501 | AD49: =D49*O49 -> 224580 | AE49: =1-F49/AD49 -> 0.4450084602 | AF49: =D49*R49 -> 266076 | AG49: =1-H49/AF49 -> 0.2946015424 | AH49: =O49*D49+R49*D49 -> 490656 | AI49: =1-I49/AH49 -> 0.3634448575
A50: 1.1.19.2 | B50: Перенос дверных проёмов | C50: шт | D50: 4 | E50: 32079.6 | F50: =D50*E50 -> 128318.4 | G50: 11832 | H50: =D50*G50 -> 47328 | I50: =F50+H50 -> 175646.4 | J50: =E50*$Y$1 -> 42024.276 | K50: =J50*D50 -> 168097.104 | L50: =G50*$X$1 -> 15381.6 | M50: =L50*D50 -> 61526.4 | N50: =K50+M50 -> 229623.504 | O50: 42024.27 | R50: 15381.6 | AD50: =D50*O50 -> 168097.08 | AE50: =1-F50/AD50 -> 0.2366411124 | AF50: =D50*R50 -> 61526.4 | AG50: =1-H50/AF50 -> 0.2307692308 | AH50: =O50*D50+R50*D50 -> 229623.48 | AI50: =1-I50/AH50 -> 0.2350677727
A51: 1.1.19.3 | B51: Обрамление оконных проёмов | C51: шт | D51: 11 | E51: 6930 | F51: =D51*E51 -> 76230 | G51: 6900 | H51: =D51*G51 -> 75900 | I51: =F51+H51 -> 152130 | J51: =E51*$Y$1 -> 9078.3 | K51: =J51*D51 -> 99861.3 | L51: =G51*$X$1 -> 8970 | M51: =L51*D51 -> 98670 | N51: =K51+M51 -> 198531.3 | O51: 10938.3 | R51: 8970 | AD51: =D51*O51 -> 120321.3 | AE51: =1-F51/AD51 -> 0.3664463399 | AF51: =D51*R51 -> 98670 | AG51: =1-H51/AF51 -> 0.2307692308 | AH51: =O51*D51+R51*D51 -> 218991.3 | AI51: =1-I51/AH51 -> 0.3053148687
A52: 1.1.19.4 | B52: Демонтаж и монтаж временных ворот | C52: шт | D52: 1 | E52: 56352 | F52: =D52*E52 -> 56352 | G52: 3654 | H52: =D52*G52 -> 3654 | I52: =F52+H52 -> 60006 | J52: =E52*$Y$1 -> 73821.12 | K52: =J52*D52 -> 73821.12 | L52: =G52*$X$1 -> 4750.2 | M52: =L52*D52 -> 4750.2 | N52: =K52+M52 -> 78571.32 | O52: 73821.12 | R52: 4750.2 | AD52: =D52*O52 -> 73821.12 | AE52: =1-F52/AD52 -> 0.2366412214 | AF52: =D52*R52 -> 4750.2 | AG52: =1-H52/AF52 -> 0.2307692308 | AH52: =O52*D52+R52*D52 -> 78571.32 | AI52: =1-I52/AH52 -> 0.2362862174
A53: 1.1.20 | B53: Монтаж фасоных элементов | O53: 0 | R53: 0
A54: 1.1.20.1 | B54: Монтаж фасоного элемента Дз-1 | C54: м.п. | D54: 7.45 | E54: 458 | F54: =D54*E54 -> 3412.1 | G54: 1035 | H54: =D54*G54 -> 7710.75 | I54: =F54+H54 -> 11122.85 | J54: =E54*$Y$1 -> 599.98 | K54: =J54*D54 -> 4469.851 | L54: =G54*$X$1 -> 1345.5 | M54: =L54*D54 -> 10023.975 | N54: =K54+M54 -> 14493.826 | O54: 600 | R54: 1345.5 | AD54: =D54*O54 -> 4470 | AE54: =1-F54/AD54 -> 0.2366666667 | AF54: =D54*R54 -> 10023.975 | AG54: =1-H54/AF54 -> 0.2307692308 | AH54: =O54*D54+R54*D54 -> 14493.975 | AI54: =1-I54/AH54 -> 0.2325880236
A55: 1.1.20.2 | B55: Монтаж фасоного элемента Дз-2 | C55: м.п. | D55: 15 | E55: 458 | F55: 6870 | G55: 522 | H55: 7830 | I55: 14700 | J55: 599.98 | K55: 8999.7 | L55: 678.6 | M55: 10179 | N55: 19178.7 | O55: 600 | R55: 678.6 | AD55: 9000 | AE55: 0.2366666667 | AF55: 10179 | AG55: 0.2307692308 | AH55: 19179 | AI55: 0.2335366807
A56: 1.1.20.3 | B56: Монтаж фасоного элемента Дз-3 | C56: м.п. | D56: 64 | E56: 458 | F56: 29312 | G56: 391 | H56: 25024 | I56: 54336 | J56: 599.98 | K56: 38398.72 | L56: 508.3 | M56: 32531.2 | N56: 70929.92 | O56: 600 | R56: 508.3 | AD56: 38400 | AE56: 0.2366666667 | AF56: 32531.2 | AG56: 0.2307692308 | AH56: 70931.2 | AI56: 0.2339619237
A57: 1.1.20.4 | B57: Монтаж фасоного элемента Дз-4 | C57: м.п. | D57: 64 | E57: 458 | F57: 29312 | G57: 378 | H57: 24192 | I57: 53504 | J57: 599.98 | K57: 38398.72 | L57: 491.4 | M57: 31449.6 | N57: 69848.32 | O57: 600 | R57: 491.4 | AD57: 38400 | AE57: 0.2366666667 | AF57: 31449.6 | AG57: 0.2307692308 | AH57: 69849.6 | AI57: 0.2340113616
A58: 1.1.20.5 | B58: Монтаж фасоного элемента Дз-5 | C58: м.п. | D58: 64 | E58: 458 | F58: 29312 | G58: 435 | H58: 27840 | I58: 57152 | J58: 599.98 | K58: 38398.72 | L58: 565.5 | M58: 36192 | N58: 74590.72 | O58: 600 | R58: 565.5 | AD58: 38400 | AE58: 0.2366666667 | AF58: 36192 | AG58: 0.2307692308 | AH58: 74592 | AI58: 0.2338052338
A59: 1.1.20.6 | B59: Монтаж колонн (усиление перегородок) | C59: шт | D59: 7 | E59: 27836 | F59: 194852 | G59: 6870 | H59: 48090 | I59: 242942 | J59: 36465.16 | K59: 255256.12 | L59: 8931 | M59: 62517 | N59: 317773.12 | O59: 36465 | R59: 8931 | AD59: 255255 | AE59: 0.2366378719 | AF59: 62517 | AG59: 0.2307692308 | AH59: 317772 | AI59: 0.2354833025
A60: 1.1.20.7 | B60: Демонтаж ГКЛ 2 слоя | C60: м2 | D60: 36 | E60: 890 | F60: 32040 | I60: 32040 | J60: 1165.9 | K60: 41972.4 | L60: 0 | M60: 0 | N60: 41972.4 | O60: 1166 | R60: 0 | AD60: 41976 | AE60: 0.2367066895 | AH60: 41976 | AI60: 0.2367066895
A61: 1.1.20.8 | B61: Монтаж профильной трубы 40х40 | C61: м.п. | D61: 12 | E61: 690 | F61: 8280 | G61: 348 | H61: =D61*G61 -> 4176 | I61: 12456 | J61: 903.9 | K61: 10846.8 | L61: 452.4 | M61: 5428.8 | N61: 16275.6 | O61: 904 | R61: 453 | AD61: 10848 | AE61: 0.2367256637 | AF61: =D61*R61 -> 5436 | AG61: =1-H61/AF61 -> 0.2317880795 | AH61: 16284 | AI61: 0.2350773766
A62: 1.1.20.9 | B62: Монтаж ГКЛ 2 слоя | C62: м2 | D62: 36 | E62: 1290 | F62: 46440 | G62: 1250 | H62: 45000 | I62: 91440 | J62: 1689.9 | K62: 60836.4 | L62: 1625 | M62: 58500 | N62: 119336.4 | O62: 1690 | R62: 1625 | AD62: 60840 | AE62: 0.2366863905 | AF62: 58500 | AG62: 0.2307692308 | AH62: 119340 | AI62: 0.233785822
A63: 1.1.20.10 | B63: Увеличение дверных проёмов | C63: шт | D63: 12 | E63: 5790 | F63: 69480 | G63: 1320 | H63: 15840 | I63: 85320 | J63: 7584.9 | K63: 91018.8 | L63: 1716 | M63: 20592 | N63: 111610.8 | O63: 7585 | R63: 1716 | AD63: 91020 | AE63: 0.2366512854 | AF63: 20592 | AG63: 0.2307692308 | AH63: 111612 | AI63: 0.2355660682
A64: 1.1.20.11 | B64: Наливной пол толщиной до 50мм | C64: м2 | D64: 125.1 | E64: 981.75 | F64: 122816.925 | G64: 1869.25 | H64: 233843.175 | I64: 356660.1 | J64: 1286.0925 | K64: 160890.1717 | L64: 2430.025 | M64: 303996.1275 | N64: 464886.2992 | O64: 1286 | R64: 2430 | AD64: 160878.6 | AE64: 0.2365863142 | AF64: 303993 | AG64: 0.2307613169 | AH64: 464871.6 | AI64: 0.2327771798
A65: 1.1.20.12 | B65: Усиление площадки лестничного марша | C65: шт | D65: 4 | E65: 27836 | F65: 111344 | G65: 5787.6 | H65: 23150.4 | I65: 134494.4 | J65: 36465.16 | K65: 145860.64 | L65: 7523.88 | M65: 30095.52 | N65: 175956.16 | O65: 36465 | R65: 7524 | AD65: 145860 | AE65: 0.2366378719 | AF65: 30096 | AG65: 0.2307814992 | AH65: 175956 | AI65: 0.2356361818
A66: 1.1.20.13 | B66: Устройство стен из газобетонных блоков | C66: м3 | D66: 1.87 | E66: 5197.5 | F66: 9719.325 | G66: 10659 | H66: 19932.33 | I66: 29651.655 | J66: 6808.725 | K66: 12732.31575 | L66: 13856.7 | M66: 25912.029 | N66: 38644.34475 | O66: 6809 | R66: 13857 | AD66: 12732.83 | AE66: 0.2366720517 | AF66: 25912.59 | AG66: 0.2307858844 | AH66: 38645.42 | AI66: 0.2327252492
A67: 1.1.20.14 | B67: Облицовка ступеней плиткой на лестнечной клетке | C67: шт | D67: 24 | E67: =2360*1.2 -> 2832 | F67: 67968 | G67: =1630*1.2 -> 1956 | H67: =D67*G67 -> 46944 | I67: =F67+H67 -> 114912 | J67: =E67*$Y$1 -> 3709.92 | K67: =J67*D67 -> 89038.08 | L67: =G67*$X$1 -> 2542.8 | M67: 61027.2 | O67: 3710 | R67: 2543 | AD67: 89040 | AE67: 0.2366576819 | AF67: 61032 | AG67: 0.2308297287 | AH67: 150072 | AI67: 0.234287542
A68: 1.1.20.15 | B68: Штукатурка откосов Ролл ворот в цеху | C68: м.п. | D68: 150 | E68: =721*1.2 -> 865.2 | F68: 129780 | G68: =363*1.2 -> 435.6 | H68: 65340 | I68: 195120 | J68: 1133.412 | K68: 170011.8 | L68: 566.28 | M68: 84942 | O68: 1135 | R68: 567 | AD68: 170250 | AE68: 0.2377092511 | AF68: 85050 | AG68: 0.2317460317 | AH68: 255300 | AI68: 0.2357226792
A69: 1.2 | B69: 130-23-АС1 Архитектурно-строительные решения | F69: =F73+F75+F78+F80+F81+F90+F92+F95 -> 7119500.6 | H69: =H73+H75+H78+H80+H81+H90+H92+H95 -> 11639486.72 | I69: =I73+I75+I78+I80+I81+I90+I92+I95 -> 18758987.32 | K69: =K73+SUM(K75:K75)+SUM(K78:K81)+#REF!+K90+K92+K94+K97 ->  | M69: =M73+SUM(M75:M75)+SUM(M78:M81)+#REF!+M90+M92+M94+M97 ->  | N69: =N73+SUM(N75:N75)+SUM(N78:N81)+#REF!+N90+N92+N94+N97 ->  | V69: =N69-I69 ->  | W69: =1-I69/N69 ->  | AD69: =AD73+AD75+AD78+AD80+AD81+AD90+AD92+AD95 -> 9370353.48 | AE69: 0.2402100289 | AF69: =AF73+AF75+AF78+AF80+AF81+AF90+AF92+AF95 -> 19579106 | AG69: 0.4055149035 | AH69: =AH73+AH75+AH78+AH80+AH81+AH90+AH92+AH95 -> 28949459.48 | AI69: 0.3520090649 | AJ69: ШК | AK69: + | AP69: - | AQ69: - | AR69: - | AS69: -
A70: 1.2 | B70: 130-23-АС1 Архитектурно-строительные решения | F70: =F72+F74+F77+F82+F83+F84+F85+F87+F89+F91+F94+F97+F96 -> -11411496.8 | H70: =H72+H74+H77+H82+H83+H84+H85+H87+H89+H91+H94+H97+H96 -> -15173009.39 | I70: =I72+I74+I77+I82+I83+I84+I85+I87+I89+I91+I94+I97+I96 -> -26584506.19 | K70: =-K72-K74-K77-SUM(K82:K85)-K87-K89-K91+K94+K97 -> -11663651.54 | M70: =-M72-M74-M77-SUM(M82:M85)-M87-M89-M91+M94+M97 -> -11461550.48 | N70: =-N72-N74-N77-SUM(N82:N85)-N87-N89-N91+N94+N97 -> -23303958.42 | U70: =U73+U75+#REF!+#REF!+#REF!+#REF!+U78+U80+U81+#REF!+U90+U92 ->  | V70: =V73+V75+#REF!+#REF!+#REF!+#REF!+V78+V80+V81+#REF!+V90+V92 ->  | W70: =W73+W75+#REF!+#REF!+#REF!+#REF!+W78+W80+W81+#REF!+W90+W92 ->  | X70: =X73+X75+#REF!+#REF!+#REF!+#REF!+X78+X80+X81+#REF!+X90+X92 ->  | Y70: =Y73+Y75+#REF!+#REF!+#REF!+#REF!+Y78+Y80+Y81+#REF!+Y90+Y92 ->  | Z70: =Z73+Z75+#REF!+#REF!+#REF!+#REF!+Z78+Z80+Z81+#REF!+Z90+Z92 ->  | AA70: =AA73+AA75+#REF!+#REF!+#REF!+#REF!+AA78+AA80+AA81+#REF!+AA90+AA92 ->  | AB70: =AB73+AB75+#REF!+#REF!+#REF!+#REF!+AB78+AB80+AB81+#REF!+AB90+AB92 ->  | AC70: =AC73+AC75+#REF!+#REF!+#REF!+#REF!+AC78+AC80+AC81+#REF!+AC90+AC92 ->  | AD70: =AD72+AD74+AD77+AD82+AD83+AD84+AD85+AD87+AD89+AD91+AD94+AD97+AD96 -> -11518228.36 | AF70: =AF72+AF74+AF77+AF82+AF83+AF84+AF85+AF87+AF89+AF91+AF94+AF97+AF96 -> -20862916.99 | AH70: =AH72+AH74+AH77+AH82+AH83+AH84+AH85+AH87+AH89+AH91+AH94+AH97+AH96 -> -32381145.35 | AI70: 0.1790127896 | AL70: +
A71: 1.2.1 | B71: Металлоконструкции огрунтованные КМ | V71: =N71-I71 -> 0 | W71: =1-I71/N71 -> 
A72: 1.2.1.1 | B72: Монтаж фахверковых стоек массой до 1,0 т. | C72: т. | D72: -13.9 | E72: 53800 | F72: =D72*E72 -> -747820 | G72: 195000 | H72: =D72*G72 -> -2710500 | I72: =F72+H72 -> -3458320 | J72: =E72*$Y$1 -> 70478 | K72: =J72*D72 -> -979644.2 | L72: =G72*$X$1 -> 253500 | M72: =L72*D72 -> -3523650 | N72: =K72+M72 -> -4503294.2 | O72: 95478 | R72: 229000 | AD72: =O72*D72 -> -1327144.2 | AF72: =R72*D72 -> -3183100 | AH72: =O72*D72+R72*D72 -> -4510244.2 | AI72: =1-I72/AH72 -> 0.2332299879
A73: 1.2.1.1 | B73: Монтаж фахверковых стоек массой до 1,0 т. | C73: т. | D73: 10.5 | E73: =57000*1.2 -> 68400 | F73: 718200 | G73: 195000 | H73: 2047500 | I73: =F73+H73 -> 2765700 | J73: =E73*$Y$1 -> 89604 | K73: =J73*D73 -> 940842 | L73: =G73*$X$1 -> 253500 | M73: =L73*D73 -> 2661750 | N73: =K73+M73 -> 3602592 | O73: 95478 | P73: ='ВСЕ СМЕТЫ КДС'!G2447 -> 81128.97336 | Q73: =((O73/(P73/100))-100)/100 -> 0.1768668583 | R73: 229000 | S73: ='ВСЕ СМЕТЫ КДС'!G2448+'ВСЕ СМЕТЫ КДС'!G2449 -> 124240.4976 | T73: =((R73/(S73/100))-100)/100 -> 0.8431993144 | V73: =N73-I73 -> 836892 | W73: =1-I73/N73 -> 0.232302742 | AD73: =D73*O73 -> 1002519 | AE73: =1-F73/AD73 -> 0.2836046 | AF73: =D73*R73 -> 2404500 | AG73: =1-H73/AF73 -> 0.1484716157 | AH73: =O73*D73+R73*D73 -> 3407019 | AI73: =1-I73/AH73 -> 0.1882346415
A74: 1.2.1.2 | B74: Монтаж распорок, ригелей, в том числе: Профили стальные гнутые замкнутые квадратные 100х3 | C74: т. | D74: -0.67 | E74: 53800 | F74: =D74*E74 -> -36046 | G74: 195000 | H74: =D74*G74 -> -130650 | I74: =F74+H74 -> -166696 | J74: =E74*$Y$1 -> 70478 | K74: =J74*D74 -> -47220.26 | L74: =G74*$X$1 -> 253500 | M74: =L74*D74 -> -169845 | N74: =K74+M74 -> -217065.26 | O74: 95478 | R74: 229000 | AD74: =O74*D74 -> -63970.26 | AF74: =R74*D74 -> -153430 | AH74: =O74*D74+R74*D74 -> -217400.26 | AI74: =1-I74/AH74 -> 0.2332299879
A75: 1.2.1.2 | B75: Монтаж распорок, ригелей, в том числе: Профили стальные гнутые замкнутые квадратные 100х4 | C75: т. | D75: 0.66 | E75: =E74*1.3 -> 69940 | F75: 46160.4 | G75: 195000 | H75: 128700 | I75: 174860.4 | J75: 91621.4 | K75: 60470.124 | L75: 253500 | M75: =L75*D75 -> 167310 | N75: =K75+M75 -> 227780.124 | O75: 95478 | P75: ='ВСЕ СМЕТЫ КДС'!G2447 -> 81128.97336 | Q75: =((O75/(P75/100))-100)/100 -> 0.1768668583 | R75: 229000 | S75: ='ВСЕ СМЕТЫ КДС'!G2448+'ВСЕ СМЕТЫ КДС'!G2449 -> 124240.4976 | T75: =((R75/(S75/100))-100)/100 -> 0.8431993144 | V75: =N75-I75 -> 52919.724 | W75: =1-I75/N75 -> 0.2323281025 | AD75: =D75*O75 -> 63015.48 | AE75: =1-F75/AD75 -> 0.2674752299 | AF75: =D75*R75 -> 151140 | AG75: =1-H75/AF75 -> 0.1484716157 | AH75: =O75*D75+R75*D75 -> 214155.48 | AI75: =1-I75/AH75 -> 0.183488557
A76: 1.2.2 | B76: Окраска металлоконструкций
A77: 1.2.2.1 | B77: Устройство огнезащитной краски по металлу | C77: м2 | D77: -439.29 | E77: 1920 | F77: =D77*E77 -> -843436.8 | G77: 1211 | H77: =G77*D77 -> -531980.19 | I77: =H77+F77 -> -1375416.99 | J77: 4150 | K77: 7301 | L77: -0.43 | M77: 665 | N77: 645 | O77: 4150 | P77: 2115181.35 | R77: 665 | V77: =N78-I78 -> 396033.36 | W77: =1-I78/N78 -> 0.2349776603 | AD77: =O77*D77 -> -1823053.5 | AF77: =R77*D77 -> -292127.85 | AH77: =O77*D77+R77*D77 -> -2115181.35 | AI77: =1-I77/AH77 -> 0.3497403946
A78: 1.2.2.1 | B78: Устройство огнезащитной краски по металлу | C78: м2 | D78: 384.2 | E78: =2000*1.2 -> 2400 | F78: =D78*E78 -> 922080 | G78: 956 | H78: =D78*G78 -> 367295.2 | I78: =F78+H78 -> 1289375.2 | J78: =E78*$Y$1 -> 3144 | K78: =J78*D78 -> 1207924.8 | L78: =G78*$X$1 -> 1242.8 | M78: =L78*D78 -> 477483.76 | N78: =K78+M78 -> 1685408.56 | O78: 4150 | P78: ='ВСЕ СМЕТЫ КДС'!G2473+'ВСЕ СМЕТЫ КДС'!G2477+'ВСЕ СМЕТЫ КДС'!G2482+'ВСЕ СМЕТЫ КДС'!G2483 -> 7300.963598 | Q78: =((O78/(P78/100))-100)/100 -> -0.4315818804 | R78: 665 | S78: ='ВСЕ СМЕТЫ КДС'!G2478+'ВСЕ СМЕТЫ КДС'!G2484 -> 644.9848107 | T78: =((R78/(S78/100))-100)/100 -> 0.03103203196 | AD78: =D78*O78 -> 1594430 | AE78: =1-F78/AD78 -> 0.421686747 | AF78: =D78*R78 -> 255493 | AG78: =1-H78/AF78 -> -0.437593985 | AH78: =O78*D78+R78*D78 -> 1849923 | AI78: =1-I78/AH78 -> 0.3030114226
A79: 1.2.3 | B79: Крепление металлоконструкций
A80: 1.2.3.1 | B80: Сверление отверстий в железобетонных конструкциях | C80: шт. | D80: 811 | E80: =250*1.2 -> 300 | F80: =D80*E80 -> 243300 | I80: =F80+H80 -> 243300 | J80: =E80*$Y$1 -> 393 | K80: =J80*D80 -> 318723 | L80: =G80*$X$1 -> 0 | M80: =L80*D80 -> 0 | N80: 318723 | O80: 393 | R80: 0 | V80: =N80-I80 -> 75423 | W80: =1-I80/N80 -> 0.2366412214 | AD80: =D80*O80 -> 318723 | AE80: =1-F80/AD80 -> 0.2366412214 | AH80: =O80*D80+R80*D80 -> 318723 | AI80: =1-I80/AH80 -> 0.2366412214
A81: 1.2.3.2 | B81: Устройство высокопрочных анкеров, закладных | C81: компл. | D81: 1 | E81: =165866*1.2 -> 199039.2 | F81: =D81*E81 -> 199039.2 | G81: 199703.52 | H81: =D81*G81 -> 199703.52 | I81: =F81+H81 -> 398742.72 | J81: =E81*$Y$1 -> 260741.352 | K81: =J81*D81 -> 260741.352 | L81: =G81*$X$1 -> 259614.576 | M81: =L81*D81 -> 259614.576 | N81: 520355.928 | O81: 260741 | R81: 259614 | V81: =N81-I81 -> 121613.208 | W81: =1-I81/N81 -> 0.2337115837 | AD81: =D81*O81 -> 260741 | AE81: =1-F81/AD81 -> 0.2366401908 | AF81: =D81*R81 -> 259614 | AG81: =1-H81/AF81 -> 0.2307675241 | AH81: 520355 | AI81: 0.2337102171
A82: 1.2.3.3 | B82: Химический анкер, шпилька М16х190 | C82: шт. | D82: -71 | E82: 540 | F82: =D82*E82 -> -38340 | G82: 1008 | H82: =D82*G82 -> -71568 | I82: =F82+H82 -> -109908 | J82: =E82*$Y$1 -> 707.4 | K82: 50225 | L82: =G82*$X$1 -> 1310.4 | M82: =L82*D82 -> -93038.4 | N82: 143264 | O82: 707.4 | R82: 1310.4 | U82: 143263.8 | V82: 0.2328 | AD82: =O82*D82 -> -50225.4 | AF82: =R82*D82 -> -93038.4 | AH82: -143263.8 | AI82: 0.2328278323
A83: 1.2.3.4 | B83: Распорный анкер типа Hilti HSA M12х115 | C83: шт. | D83: -350 | E83: 180 | F83: =D83*E83 -> -63000 | G83: 251 | H83: =D83*G83 -> -87850 | I83: =F83+H83 -> -150850 | J83: =E83*$Y$1 -> 235.8 | K83: 82530 | L83: =G83*$X$1 -> 326.3 | M83: 114223 | N83: 196753 | O83: 235.8 | R83: 326.35 | U83: 196753.2 | V83: 0.2332 | AD83: =O83*D83 -> -82530 | AF83: =R83*D83 -> -114222.5 | AH83: -196752.5 | AI83: 0.2333007204
A84: 1.2.3.5 | B84: Распорный анкер типа Hilti HSA M10х83 | C84: шт. | D84: -260 | E84: 144 | F84: -37440 | G84: 379 | H84: -98540 | I84: -135980 | J84: 188.64 | K84: 49046 | L84: 492.7 | M84: 128170 | N84: 177216 | O84: 188.64 | R84: 492.96 | U84: 177216 | V84: 0.2324 | AD84: =O84*D84 -> -49046.4 | AF84: =R84*D84 -> -128169.6 | AH84: -177216 | AI84: 0.2326877934
A85: 1.2.3.6 | B85: Распорный анкер типа Hilti HSA M6х50 | C85: шт. | D85: -130 | E85: 120 | F85: -15600 | G85: 393 | H85: -51090 | I85: -66690 | J85: 157.2 | K85: 20436 | L85: 510.9 | M85: 66409 | N85: 86845 | O85: 157.2 | R85: 510.84 | U85: 86844.89 | V85: 0.2322 | AD85: =O85*D85 -> -20436 | AF85: =R85*D85 -> -66409.2 | AH85: -86845.2 | AI85: 0.2320819113
A86: 1.2.4 | B86: Демонтаж металлоконструкций
A87: 1.2.4.1 | B87: Демонтаж элементов тормозных ферм и связей с последующей приваркой к фахверку и окраской | C87: т. | D87: -1 | E87: 79000 | F87: =E87*D87 -> -79000 | G87: 5000 | H87: =D87*G87 -> -5000 | I87: =F87+H87 -> -84000 | J87: 103490 | K87: 103490 | L87: 6500 | M87: 6500 | N87: 109990 | O87: 103490 | R87: 6500 | AD87: =O87*D87 -> -103490 | AF87: =R87*D87 -> -6500 | AH87: =O87*D87+R87*D87 -> -109990 | AI87: =1-I87/AH87 -> 0.2362942086
A88: 1.2.5 | B88: Устройство перегородки | V88: =N88-I88 -> 0 | W88: =1-I88/N88 -> 
A89: 1.2.5.1 | B89: Стеновые сэндвич-панели «Металл Профиль» МП ТСП-Z-100-1000-Г-Г-МВ | C89: м2 | D89: -2230.6 | E89: 3595 | F89: =D89*E89 -> -8019007 | G89: 5056 | H89: =D89*G89 -> -11277913.6 | I89: =F89+H89 -> -19296920.6 | J89: 4709 | K89: 10504899 | L89: 6573 | M89: 14661824 | N89: 25166723 | O89: 2711 | P89: 2098 | Q89: 0.29 | R89: 7373 | S89: 7392 | T89: 0 | U89: 22493370.4 | V89: 0.1421 | AD89: =O89*D89 -> -6047156.6 | AF89: =R89*D89 -> -16446213.8 | AH89: =O89*D89+R89*D89 -> -22493370.4 | AI89: =1-I89/AH89 -> 0.142106307
A90: 1.2.5.1 | B90: Стеновые сэндвич-панели 100-1000-Г-Г | C90: м2 | D90: 2215 | E90: 2237 | F90: =D90*E90 -> 4954955 | G90: =8787788/2215 -> 3967.398646 | H90: =D90*G90 -> 8787788 | I90: =F90+H90 -> 13742743 | J90: =E90*$Y$1 -> 2930.47 | K90: =J90*D90 -> 6490991.05 | L90: =G90*$X$1 -> 5157.618239 | M90: =L90*D90 -> 11424124.4 | N90: =K90+M90 -> 17915115.45 | O90: 2711 | P90: ='ВСЕ СМЕТЫ КДС'!G50+'ВСЕ СМЕТЫ КДС'!G55+'ВСЕ СМЕТЫ КДС'!G60+'ВСЕ СМЕТЫ КДС'!G72 -> 2097.908878 | Q90: =((O90/(P90/100))-100)/100 -> 0.2922391568 | R90: 7373 | S90: ='ВСЕ СМЕТЫ КДС'!G51+'ВСЕ СМЕТЫ КДС'!G56+'ВСЕ СМЕТЫ КДС'!G61+'ВСЕ СМЕТЫ КДС'!G62+'ВСЕ СМЕТЫ КДС'!G63+'ВСЕ СМЕТЫ КДС'!G64+'ВСЕ СМЕТЫ КДС'!G65+'ВСЕ СМЕТЫ КДС'!G66+'ВСЕ СМЕТЫ КДС'!G67+'ВСЕ СМЕТЫ КДС'!G73 -> 7392.365593 | T90: =((R90/(S90/100))-100)/100 -> -0.002619674686 | V90: =N90-I90 -> 4172372.45 | W90: =1-I90/N90 -> 0.232896766 | AD90: =D90*O90 -> 6004865 | AE90: =1-F90/AD90 -> 0.1748432313 | AF90: =D90*R90 -> 16331195 | AG90: =1-H90/AF90 -> 0.4619017163 | AH90: =O90*D90+R90*D90 -> 22336060 | AI90: =1-I90/AH90 -> 0.3847284167
A91: 1.2.5.2 | B91: Устройство противопожарной перегородки «Knauf» С112 с двухслойной обшивкой с каждой стороны | C91: м2 | D91: -20.2 | E91: 6785 | F91: =E91*D91 -> -137057 | G91: 3500 | H91: =D91*G91 -> -70700 | I91: =H91+F91 -> -207757 | J91: 8888 | K91: 179545 | L91: 4550 | M91: 91910 | N91: 271455 | O91: 5055 | P91: 3959 | Q91: 0.28 | R91: 4601 | S91: 3603 | T91: 0.28 | U91: 195051.2 | V91: -0.0651 | AD91: =O91*D91 -> -102111 | AF91: =R91*D91 -> -92940.2 | AH91: =O91*D91+R91*D91 -> -195051.2 | AI91: =1-I91/AH91 -> -0.06514084507
A92: 1.2.5.2 | B92: Устройство противопожарной перегородки «Knauf» С112 с двухслойной обшивкой с каждой стороны | C92: м2 | D92: 4 | E92: =3750*1.2 -> 4500 | F92: =D92*E92 -> 18000 | G92: 3500 | H92: =D92*G92 -> 14000 | I92: =H92+F92 -> 32000 | J92: =E92*$Y$1 -> 5895 | K92: =J92*D92 -> 23580 | L92: =G92*$X$1 -> 4550 | M92: =L92*D92 -> 18200 | N92: =K92+M92 -> 41780 | O92: 5055 | P92: ='ВСЕ СМЕТЫ КДС'!G2421 -> 3958.638107 | Q92: =((O92/(P92/100))-100)/100 -> 0.276954312 | R92: 4601 | S92: ='ВСЕ СМЕТЫ КДС'!G2422+'ВСЕ СМЕТЫ КДС'!G2423 -> 3603.315212 | T92: =((R92/(S92/100))-100)/100 -> 0.2768796868 | V92: =N92-I92 -> 9780 | W92: =1-I92/N92 -> 0.2340832934 | AD92: =D92*O92 -> 20220 | AE92: =1-F92/AD92 -> 0.1097922849 | AF92: =D92*R92 -> 18404 | AG92: =1-H92/AF92 -> 0.2392958053 | AH92: =O92*D92+R92*D92 -> 38624 | AI92: =1-I92/AH92 -> 0.1714995857
A93: 1.2.6 | B93: Устройство бетонного плинтуса
A94: 1.2.6.1 | B94: Устройство плинтуса из бетона кл. В25 | C94: м3 | D94: -7.6 | E94: =20000*1.2 -> 24000 | F94: =D94*E94 -> -182400 | G94: =6230*1.2 -> 7476 | H94: =D94*G94 -> -56817.6 | I94: =F94+H94 -> -239217.6 | J94: =E94*$Y$1 -> 31440 | K94: =J94*D94 -> -238944 | L94: =G94*$X$1 -> 9718.8 | M94: =L94*D94 -> -73862.88 | N94: =K94+M94 -> -312806.88 | O94: 39300 | R94: 23774.4 | V94: =N94-I94 -> -73589.28 | W94: =1-I94/N94 -> 0.2352546721 | AD94: =O94*D94 -> -298680 | AF94: =R94*D94 -> -180685.44 | AH94: =O94*D94+R94*D94 -> -479365.44 | AI94: =1-I94/AH94 -> 0.5009702827
A95: 1.2.6.1 | B95: Устройство плинтуса из фасонного элемента | C95: м/п | D95: 378 | E95: 47 | F95: 17766 | G95: 250 | H95: =D95*G95 -> 94500 | I95: =H95+F95 -> 112266 | O95: 280 | R95: 420 | AD95: =D95*O95 -> 105840 | AE95: =1-F95/AD95 -> 0.8321428571 | AF95: =D95*R95 -> 158760 | AG95: =1-H95/AF95 -> 0.4047619048 | AH95: =O95*D95+R95*D95 -> 264600 | AI95: 0.5757142857
A96: 1.2.6.2 | B96: Шлифовка бетонной поверхности | C96: м2 | D96: -115 | E96: 890 | F96: =D96*E96 -> -102350 | I96: =F96+H96 -> -102350 | O96: 1179 | R96: 0 | AD96: =O96*D96 -> -135585 | AF96: =R96*D96 -> 0 | AH96: =O96*D96+R96*D96 -> -135585 | AI96: 0.2451229856
A97: 1.2.6.3 | B97: Арматура Ø10А500С | C97: п/м | D97: -600 | E97: 1850 | F97: =D97*E97 -> -1110000 | G97: 134 | H97: =D97*G97 -> -80400 | I97: =F97+H97 -> -1190400 | J97: =E97*$Y$1 -> 2423.5 | K97: =J97*D97 -> -1454100 | L97: =G97*$X$1 -> 174.2 | M97: =L97*D97 -> -104520 | N97: =K97+M97 -> -1558620 | O97: 2358 | R97: 176.8 | V97: =N97-I97 -> -368220 | W97: =1-I97/N97 -> 0.2362474497 | AD97: =O97*D97 -> -1414800 | AF97: =R97*D97 -> -106080 | AH97: =O97*D97+R97*D97 -> -1520880 | AI97: 0.2172952501
A98: 1.3 | B98: 130-23-ВК Внутренние трубопроводы | F98: =SUM(F99:F102) -> 3010200 | H98: =SUM(H99:H102) -> 5727056.64 | I98: =SUM(I99:I102) -> 8737256.64 | K98: =SUM(K99:K102) -> 3943362 | M98: =SUM(M99:M102) -> 7445173.632 | N98: =SUM(N99:N102) -> 11388535.63 | V98: 2651278.992 | W98: 0.2328024496 | AD98: =SUM(AD99:AD102) -> 3943362 | AE98: =1-F98/AD98 -> 0.2366412214 | AF98: =SUM(AF99:AF102) -> 7445174 | AG98: =1-H98/AF98 -> 0.2307692688 | AH98: =SUM(AH99:AH102) -> 11388536 | AI98: 0.2328024743 | AK98: - | AP98: - | AQ98: - | AR98: - | AS98: -
A99: 1.3.1 | B99: Хозяйственно-питьевой водопровод В1. | C99: сис | D99: 1 | E99: 695100 | F99: =D99*E99 -> 695100 | G99: 753743.52 | H99: =D99*G99 -> 753743.52 | I99: =H99+F99 -> 1448843.52 | J99: =E99*$Y$1 -> 910581 | K99: =J99*D99 -> 910581 | L99: =G99*$X$1 -> 979866.576 | M99: =L99*D99 -> 979866.576 | N99: =K99+M99 -> 1890447.576 | O99: 910581 | R99: 979867 | V99: 441604.056 | W99: 0.2335976208 | AD99: =D99*O99 -> 910581 | AE99: 0.2366412214 | AF99: =D99*R99 -> 979867 | AG99: 0.2307695636 | AH99: =O99*D99+R99*D99 -> 1890448 | AI99: 0.2335977927
A100: 1.3.2 | B100: Горячее водоснабжение (Т3, Т4) | C100: сис | D100: 1 | E100: 868200 | F100: =D100*E100 -> 868200 | G100: 1236673.44 | H100: =D100*G100 -> 1236673.44 | I100: =H100+F100 -> 2104873.44 | J100: 1137342 | K100: 1137342 | L100: 1607675.472 | M100: =L100*D100 -> 1607675.472 | N100: 2745017.472 | O100: 1137342 | R100: 1607675 | V100: 640144.032 | W100: 0.2332021703 | AD100: =D100*O100 -> 1137342 | AE100: 0.2366412214 | AF100: =D100*R100 -> 1607675 | AG100: 0.2307690049 | AH100: =O100*D100+R100*D100 -> 2745017 | AI100: 0.2332020385
A101: 1.3.3 | B101: Противопожарный водопровод, В2 | C101: сис | D101: 1 | E101: 1179600 | F101: =D101*E101 -> 1179600 | G101: 3168026.88 | H101: =D101*G101 -> 3168026.88 | I101: =H101+F101 -> 4347626.88 | J101: 1545276 | K101: =J101*D101 -> 1545276 | L101: =G101*$X$1 -> 4118434.944 | M101: =L101*D101 -> 4118434.944 | N101: =K101+M101 -> 5663710.944 | O101: 1545276 | R101: 4118435 | V101: 1316084.064 | W101: 0.2323713334 | AD101: =D101*O101 -> 1545276 | AE101: 0.2366412214 | AF101: =D101*R101 -> 4118435 | AG101: 0.2307692412 | AH101: =O101*D101+R101*D101 -> 5663711 | AI101: 0.232371341
A102: 1.3.4 | B102: Бытовая канализация К1 | C102: сис | D102: 1 | E102: 267300 | F102: 267300 | G102: 568612.8 | H102: 568612.8 | I102: 835912.8 | J102: =E102*$Y$1 -> 350163 | K102: 350163 | L102: 739196.64 | M102: =L102*D102 -> 739196.64 | N102: 1089359.64 | O102: 350163 | R102: 739197 | V102: 253446.84 | W102: 0.2326567193 | AD102: =D102*O102 -> 350163 | AE102: 0.2366412214 | AF102: =D102*R102 -> 739197 | AG102: 0.2307696054 | AH102: =O102*D102+R102*D102 -> 1089360 | AI102: 0.2326569729
A103: 1.4 | B103: 130-23-ПС Пожарная сигнализация | F103: =F105+F107+F109+F111+F113+F114+F116+F118+F120+F122+SUM(F124:F130)+F132+F133+F135+F137+F139+F141+F143+F144+F145+F146+F148+F149+F150+F151+F152+F153+F154+F155+F157+F159+F161+F163+F165+SUM(F166:F177)+F179+F181+F182+F184+F186+F188+F190+F191+F193+F195+F197+F199+F201+F203+F204+SUM(F206:F220) -> 4745028 | H103: =H105+H107+H109+H111+H113+H114+H116+H118+H120+H122+SUM(H124:H130)+H132+H133+H135+H137+H139+H141+H143+H144+H145+H146+H148+H149+H150+H151+H152+H153+H154+H155+H157+H159+H161+H163+H165+SUM(H166:H177)+H179+H181+H182+H184+H186+H188+H190+H191+H193+H195+H197+H199+H201+H203+H204+SUM(H206:H220) -> 4727773.66 | I103: =I105+I107+I109+I111+I113+I114+I116+I118+I120+I122+SUM(I124:I130)+I132+I133+I135+I137+I139+I141+I143+I144+I145+I146+I148+I149+I150+I151+I152+I153+I154+I155+I157+I159+I161+I163+I165+SUM(I166:I177)+I179+I181+I182+I184+I186+I188+I190+I191+I193+I195+I197+I199+I201+I203+I204+SUM(I206:I220) -> 9472801.66 | K103: =K105+K107+K109+K111+K113+K114+K116+K118+K120+K122+SUM(K124:K130)+K132+K133+K135+K137+K139+K141+K143+K144+K145+K146+K148+K149+K150+K151+K152+K153+K154+K155+K157+K159+K161+K163+K165+SUM(K166:K177)+K179+K181+K182+K184+K186+K188+K190+K191+K193+K195+K197+K199+K201+K203+SUM(K206:K220) -> 5568846.68 | M103: =M105+M107+M109+M111+M113+M114+M116+M118+M120+M122+SUM(M124:M130)+M132+M133+M135+M137+M139+M141+M143+M144+M145+M146+M148+M149+M150+M151+M152+M153+M154+M155+M157+M159+M161+M163+M165+SUM(M166:M177)+M179+M181+M182+M184+M186+M188+M190+M191+M193+M195+M197+M199+M201+M203+SUM(M206:M220) -> 6146105.758 | N103: =N105+N107+N109+N111+N113+N114+N116+N118+N120+N122+SUM(N124:N130)+N132+N133+N135+N137+N139+N141+N143+N144+N145+N146+N148+N149+N150+N151+N152+N153+N154+N155+N157+N159+N161+N163+N165+SUM(N166:N177)+N179+N181+N182+N184+N186+N188+N190+N191+N193+N195+N197+N199+N201+N203+SUM(N206:N220) -> 11714952.44 | V103: 2242150.778 | W103: 0.191392222 | AD103: =AD105+AD107+AD109+AD111+AD113+AD114+AD116+AD118+AD120+AD122+SUM(AD124:AD130)+AD132+AD133+AD135+AD137+AD139+AD141+AD143+AD144+AD145+AD146+AD148+AD149+AD150+AD151+AD152+AD153+AD154+AD155+AD157+AD159+AD161+AD163+AD165+SUM(AD166:AD177)+AD179+AD181+AD182+AD184+AD186+AD188+AD190+AD191+AD193+AD195+AD197+AD199+AD201+AD203+AD204+SUM(AD206:AD220) -> 5567925.5 | AE103: 0.1477924767 | AF103: =AF105+AF107+AF109+AF111+AF113+AF114+AF116+AF118+AF120+AF122+SUM(AF124:AF130)+AF132+AF133+AF135+AF137+AF139+AF141+AF143+AF144+AF145+AF146+AF148+AF149+AF150+AF151+AF152+AF153+AF154+AF155+AF157+AF159+AF161+AF163+AF165+SUM(AF166:AF177)+AF179+AF181+AF182+AF184+AF186+AF188+AF190+AF191+AF193+AF195+AF197+AF199+AF201+AF203+AF204+SUM(AF206:AF220) -> 6146099.1 | AG103: 0.2307683975 | AH103: =AH105+AH107+AH109+AH111+AH113+AH114+AH116+AH118+AH120+AH122+SUM(AH124:AH130)+AH132+AH133+AH135+AH137+AH139+AH141+AH143+AH144+AH145+AH146+AH148+AH149+AH150+AH151+AH152+AH153+AH154+AH155+AH157+AH159+AH161+AH163+AH165+SUM(AH166:AH177)+AH179+AH181+AH182+AH184+AH186+AH188+AH190+AH191+AH193+AH195+AH197+AH199+AH201+AH203+AH204+SUM(AH206:AH220) -> 11714024.6 | AI103: 0.1913281743 | AJ103: ШК | AK103: + | AP103: - | AQ103: - | AR103: - | AS103: -
A104: 1.4 | B104: 130-23-ПС Пожарная сигнализация | F104: =-F105+F106+F108+F110-F111+F112-F114+F115+F117+F119+F121+F123-F129-F130+F131-F133+F134+F136+F138+F140+F142-F146+F147+F222-F153-F154-F155+F156+F158+F160+F162+F164+F221+F223+F224+F225+F178+F180+F226+F183+F185+F187+F189+F227+F192+F194+F228+F196+F198+F200+F202 -> -2042900 | H104: =-H105+H106+H108+H110-H111+H112-H114+H115+H117+H119+H121+H123-H129-H130+H131-H133+H134+H136+H138+H140+H142-H146+H147+H222-H153-H154-H155+H156+H158+H160+H162+H164+H221+H223+H224+H225+H178+H180+H226+H183+H185+H187+H189+H227+H192+H194+H228+H196+H198+H200+H202 -> -3107161.04 | I104: =-I105+I106+I108+I110-I111+I112-I114+I115+I117+I119+I121+I123-I129-I130+I131-I133+I134+I136+I138+I140+I142-I146+I147+I222-I153-I154-I155+I156+I158+I160+I162+I164+I221+I223+I224+I225+I178+I180+I226+I183+I185+I187+I189+I227+I192+I194+I228+I196+I198+I200+I202 -> -5150061.04 | K104: =SUM(K105:K109)-K110+SUM(K111:K114)-K115-K117-K119-K121-K123+K129+K130-K131+K133+K135-K136-K138-K140-K142+K146-K147-K222+K153+K154+K155-K156-K158-K160-K162-K164-K221-K223-K224-K225-K178-K180-K226-K185-K183-K187-+K189-K227-K192-K194-K228-K196-K198-K200-K202 -> 2693491 | M104: =SUM(M105:M109)-M110+SUM(M111:M114)-M115-M117-M119-M121-M123+M129+M130-M131+M133+M135-M136-M138-M140-M142+M146-M147-M222+M153+M154+M155-M156-M158-M160-M162-M164-M221-M223-M224-M225-M178-M180-M226-M185-M183-M187-+M189-M227-M192-M194-M228-M196-M198-M200-M202 -> 4034582.552 | N104: =SUM(N105:N109)-N110+SUM(N111:N114)-N115-N117-N119-N121-N123+N129+N130-N131+N133+N135-N136-N138-N140-N142+N146-N147-N222+N153+N154+N155-N156-N158-N160-N162-N164-N221-N223-N224-N225-N178-N180-N226-N185-N183-N187-+N189-N227-N192-N194-N228-N196-N198-N200-N202 -> 6728073.552 | AD104: =-AD105+AD106+AD108+AD110-AD111+AD112-AD114+AD115+AD117+AD119+AD121+AD123-AD129-AD130+AD131-AD133+AD134+AD136+AD138+AD140+AD142-AD146+AD147+AD222-AD153-AD154-AD155+AD156+AD158+AD160+AD162+AD164+AD221+AD223+AD224+AD225+AD178+AD180+AD226+AD183+AD185+AD187+AD189+AD227+AD192+AD194+AD228+AD196+AD198+AD200+AD202 -> -2676199 | AF104: =-AF105+AF106+AF108+AF110-AF111+AF112-AF114+AF115+AF117+AF119+AF121+AF123-AF129-AF130+AF131-AF133+AF134+AF136+AF138+AF140+AF142-AF146+AF147+AF222-AF153-AF154-AF155+AF156+AF158+AF160+AF162+AF164+AF221+AF223+AF224+AF225+AF178+AF180+AF226+AF183+AF185+AF187+AF189+AF227+AF192+AF194+AF228+AF196+AF198+AF200+AF202 -> -4039322.56 | AH104: =-AH105+AH106+AH108+AH110-AH111+AH112-AH114+AH115+AH117+AH119+AH121+AH123-AH129-AH130+AH131-AH133+AH134+AH136+AH138+AH140+AH142-AH146+AH147+AH222-AH153-AH154-AH155+AH156+AH158+AH160+AH162+AH164+AH221+AH223+AH224+AH225+AH178+AH180+AH226+AH183+AH185+AH187+AH189+AH227+AH192+AH194+AH228+AH196+AH198+AH200+AH202 -> -6715521.56 | AI104: 0.2331107876 | AL104: +
A105: 1.4.1 | B105: Сервер "Орион Про" | C105: компл. | D105: 1 | E105: 38400 | F105: =D105*E105 -> 38400 | G105: 0 | H105: =G105*D105 -> 0 | I105: =F105+H105 -> 38400 | J105: =E105*$Y$1 -> 50304 | K105: =J105*D105 -> 50304 | L105: =G105*$X$1 -> 0 | M105: =D105*L105 -> 0 | N105: =K105+M105 -> 50304 | O105: 50304 | R105: 0 | V105: =N105-I105 -> 11904 | W105: =1-I105/N105 -> 0.2366412214 | AD105: =D105*O105 -> 50304 | AE105: =1-F105/AD105 -> 0.2366412214 | AH105: =O105*D105+R105*D105 -> 50304 | AI105: 0.2366412214
A106: 1.4.2 | B106: Шкаф пожарной сигнализации | C106: шт. | D106: -2 | E106: 4200 | F106: =D106*E106 -> -8400 | G106: 28173.6 | H106: =G106*D106 -> -56347.2 | I106: =F106+H106 -> -64747.2 | J106: =E106*$Y$1 -> 5502 | K106: =J106*D106 -> -11004 | L106: =G106*$X$1 -> 36625.68 | M106: -73251.36 | N106: =K106+M106 -> -84255.36 | O106: 5502 | R106: 36625.68 | V106: -19508.16 | W106: 0.2315361302 | AD106: =O106*D106 -> -11004 | AF106: =R106*D106 -> -73251.36 | AH106: -84255.36 | AI106: 0.2315361302
A107: 1.4.2 | B107: Шкаф пожарной сигнализации | C107: шт. | D107: 4 | E107: 4200 | F107: 16800 | G107: 28173.6 | H107: 112694.4 | I107: 129494.4 | J107: =E107*$Y$1 -> 5502 | K107: =J107*D107 -> 22008 | L107: =G107*$X$1 -> 36625.68 | M107: 146502.72 | N107: =K107+M107 -> 168510.72 | O107: 5502 | R107: 36625.68 | V107: 39016.32 | W107: 0.2315361302 | AD107: =D107*O107 -> 22008 | AE107: =1-F107/AD107 -> 0.2366412214 | AF107: =D107*R107 -> 146502.72 | AG107: =1-H107/AF107 -> 0.2307692308 | AH107: 168510.72 | AI107: 0.2315361302
A108: 1.4.3 | B108: Монтажный комплект | C108: шт. | D108: -1 | E108: 1800 | F108: =D108*E108 -> -1800 | G108: 1120 | H108: =G108*D108 -> -1120 | I108: =F108+H108 -> -2920 | J108: =E108*$Y$1 -> 2358 | K108: =J108*D108 -> -2358 | L108: =G108*$X$1 -> 1456 | M108: -1456 | N108: =K108+M108 -> -3814 | O108: 2358 | R108: 1456 | V108: -894 | W108: 0.2343995805 | AD108: =O108*D108 -> -2358 | AF108: =R108*D108 -> -1456 | AH108: -3814 | AI108: 0.2343995805
A109: 1.4.3 | B109: Монтажный комплект | C109: шт. | D109: 4 | E109: 1800 | F109: 7200 | G109: 1120 | H109: 4480 | I109: 11680 | J109: 2358 | K109: 9432 | L109: 1456 | M109: 5824 | N109: 15256 | O109: 2358 | R109: 1456 | V109: 3576 | W109: 0.2343995805 | AD109: =D109*O109 -> 9432 | AE109: =1-F109/AD109 -> 0.2366412214 | AF109: =D109*R109 -> 5824 | AG109: =1-H109/AF109 -> 0.2307692308 | AH109: 15256 | AI109: 0.2343995805
A110: 1.4.4 | B110: Шкаф металлический с монтажной платой | C110: шт. | D110: -1 | E110: 4200 | F110: -4200 | G110: 12100 | H110: -12100 | I110: -16300 | J110: 5502 | K110: -5502 | L110: 15730 | M110: -15730 | N110: -21232 | O110: 5502 | R110: 15730 | V110: -4932 | W110: 0.2322908817 | AD110: =O110*D110 -> -5502 | AF110: =R110*D110 -> -15730 | AH110: -21232 | AI110: 0.2322908817
A111: 1.4.5 | B111: Прибор приемно-контрольный и управления пожарный | C111: шт. | D111: 1 | E111: 4200 | F111: 4200 | G111: 32333.6 | H111: 32333.6 | I111: 36533.6 | J111: 5502 | K111: 5502 | L111: 42033.68 | M111: 42033.68 | N111: 47535.68 | O111: 5502 | R111: 42033.68 | V111: 11002.08 | W111: 0.2314488822 | AD111: =D111*O111 -> 5502 | AE111: =1-F111/AD111 -> 0.2366412214 | AF111: =D111*R111 -> 42033.68 | AG111: =1-H111/AF111 -> 0.2307692308 | AH111: 47535.68 | AI111: 0.2314488822
A112: 1.4.6 | B112: Аккумулятор 12 В, 17 А/ч | C112: шт. | D112: -6 | E112: 400 | F112: =D112*E112 -> -2400 | G112: 5668 | H112: =G112*D112 -> -34008 | I112: =F112+H112 -> -36408 | J112: =E112*$Y$1 -> 524 | K112: =J112*D112 -> -3144 | L112: =G112*$X$1 -> 7368.4 | M112: -44210.4 | N112: =K112+M112 -> -47354.4 | O112: 524 | R112: 7368.4 | V112: -10946.4 | W112: 0.2311590898 | AD112: =O112*D112 -> -3144 | AF112: =R112*D112 -> -44210.4 | AH112: -47354.4 | AI112: 0.2311590898
A113: 1.4.6 | B113: Аккумулятор 12 В, 17 А/ч | C113: шт. | D113: 10 | E113: 400 | F113: 4000 | G113: 5668 | H113: 56680 | I113: 60680 | J113: 524 | K113: 5240 | L113: 7368.4 | M113: 73684 | N113: 78924 | O113: 524 | R113: 7368.4 | V113: 18244 | W113: 0.2311590898 | AD113: =D113*O113 -> 5240 | AE113: =1-F113/AD113 -> 0.2366412214 | AF113: =D113*R113 -> 73684 | AG113: =1-H113/AF113 -> 0.2307692308 | AH113: 78924 | AI113: 0.2311590898
A114: 1.4.7 | B114: Пульт контроля и управления | C114: шт. | D114: 1 | E114: 2600 | F114: 2600 | G114: 11375.52 | H114: 11375.52 | I114: 13975.52 | J114: 3406 | K114: 3406 | L114: 14788.176 | M114: 14788.176 | N114: 18194.176 | O114: 3406 | R114: 14788.18 | V114: 4218.656 | W114: 0.2318684836 | AD114: =D114*O114 -> 3406 | AE114: =1-F114/AD114 -> 0.2366412214 | AF114: =D114*R114 -> 14788.18 | AG114: =1-H114/AF114 -> 0.2307694388 | AH114: 18194.18 | AI114: 0.2318686525
A115: 1.4.8 | B115: Контроллер двухпроводной линиии связи | C115: шт. | D115: -2 | E115: 2600 | F115: -5200 | G115: 5006.04 | H115: -10012.08 | I115: -15212.08 | J115: 3406 | K115: -6812 | L115: 6507.852 | M115: -13015.704 | N115: -19827.704 | O115: 3406 | R115: 6507.85 | V115: -4615.624 | W115: 0.2327866101 | AD115: =O115*D115 -> -6812 | AF115: =R115*D115 -> -13015.7 | AH115: -19827.7 | AI115: 0.2327864553
A116: 1.4.8 | B116: Контроллер двухпроводной линиии связи | C116: шт. | D116: 11 | E116: 2600 | F116: =D116*E116 -> 28600 | G116: 5006.04 | H116: =G116*D116 -> 55066.44 | I116: =F116+H116 -> 83666.44 | J116: =E116*$Y$1 -> 3406 | K116: =J116*D116 -> 37466 | L116: =G116*$X$1 -> 6507.852 | M116: 71586.372 | N116: =K116+M116 -> 109052.372 | O116: 3406 | R116: 6507.85 | V116: 25385.932 | W116: 0.2327866101 | AD116: =D116*O116 -> 37466 | AE116: =1-F116/AD116 -> 0.2366412214 | AF116: =D116*R116 -> 71586.35 | AG116: =1-H116/AF116 -> 0.2307689944 | AH116: 109052.35 | AI116: 0.2327864553
A117: 1.4.9 | B117: Блок контрольно-пусковой | C117: шт. | D117: -1 | E117: 2600 | F117: -2600 | G117: 4564.56 | H117: -4564.56 | I117: -7164.56 | J117: 3406 | K117: -3406 | L117: 5933.928 | M117: -5933.928 | N117: -9339.928 | O117: 3406 | R117: 5933.93 | V117: -2175.368 | W117: 0.2329105749 | AD117: =O117*D117 -> -3406 | AF117: =R117*D117 -> -5933.93 | AH117: -9339.93 | AI117: 0.2329107392
A118: 1.4.9 | B118: Блок контрольно-пусковой | C118: шт. | D118: 4 | E118: 2600 | F118: =D118*E118 -> 10400 | G118: 4564.56 | H118: =G118*D118 -> 18258.24 | I118: =F118+H118 -> 28658.24 | J118: =E118*$Y$1 -> 3406 | K118: =J118*D118 -> 13624 | L118: =G118*$X$1 -> 5933.928 | M118: 23735.712 | N118: =K118+M118 -> 37359.712 | O118: 3406 | R118: 5933.93 | V118: 8701.472 | W118: 0.2329105749 | AD118: =D118*O118 -> 13624 | AE118: =1-F118/AD118 -> 0.2366412214 | AF118: =D118*R118 -> 23735.72 | AG118: =1-H118/AF118 -> 0.23076949 | AH118: 37359.72 | AI118: 0.2329107392
A119: 1.4.10 | B119: Извещатель пожарный дымовой оптико-электронный аналого-адресный | C119: шт. | D119: -71 | E119: 1200 | F119: -85200 | G119: 1901.8 | H119: -135027.8 | I119: -220227.8 | J119: 1572 | K119: -111612 | L119: 2472.34 | M119: -175536.14 | N119: -287148.14 | O119: 1572 | R119: 2472.34 | V119: -66920.34 | W119: 0.2330516228 | AD119: =O119*D119 -> -111612 | AF119: =R119*D119 -> -175536.14 | AH119: -287148.14 | AI119: 0.2330516228
A120: 1.4.10 | B120: Извещатель пожарный дымовой оптико-электронный аналого-адресный | C120: шт. | D120: 137 | E120: 1200 | F120: =D120*E120 -> 164400 | G120: 1901.8 | H120: =G120*D120 -> 260546.6 | I120: =F120+H120 -> 424946.6 | J120: =E120*$Y$1 -> 1572 | K120: =J120*D120 -> 215364 | L120: =G120*$X$1 -> 2472.34 | M120: 338710.58 | N120: =K120+M120 -> 554074.58 | O120: 1572 | R120: 2472.34 | V120: 129127.98 | W120: 0.2330516228 | AD120: =D120*O120 -> 215364 | AE120: =1-F120/AD120 -> 0.2366412214 | AF120: =D120*R120 -> 338710.58 | AG120: =1-H120/AF120 -> 0.2307692308 | AH120: 554074.58 | AI120: 0.2330516228
A121: 1.4.11 | B121: Извещатель пожарный линейный однопозиционный адресный | C121: шт. | D121: -26 | E121: 3400 | F121: -88400 | G121: 28860 | H121: -750360 | I121: -838760 | J121: 4454 | K121: -115804 | L121: 37518 | M121: -975468 | N121: -1091272 | O121: 4454 | R121: 37518 | V121: -252512 | W121: 0.2313923568 | AD121: =O121*D121 -> -115804 | AF121: =R121*D121 -> -975468 | AH121: -1091272 | AI121: 0.2313923568
A122: 1.4.11 | B122: Извещатель пожарный линейный однопозиционный адресный | C122: шт. | D122: 24 | E122: 3400 | F122: =D122*E122 -> 81600 | G122: 28860 | H122: =G122*D122 -> 692640 | I122: =F122+H122 -> 774240 | J122: =E122*$Y$1 -> 4454 | K122: =J122*D122 -> 106896 | L122: =G122*$X$1 -> 37518 | M122: 900432 | N122: =K122+M122 -> 1007328 | O122: 4454 | R122: 37518 | V122: 233088 | W122: 0.2313923568 | AD122: =D122*O122 -> 106896 | AE122: =1-F122/AD122 -> 0.2366412214 | AF122: =D122*R122 -> 900432 | AG122: =1-H122/AF122 -> 0.2307692308 | AH122: 1007328 | AI122: 0.2313923568
A123: 1.4.12 | B123: Извещатель пожарный ручной адресный | C123: шт. | D123: -20 | E123: 1200 | F123: -24000 | G123: 1121.8 | H123: -22436 | I123: -46436 | J123: 1572 | K123: -31440 | L123: 1458.34 | M123: -29166.8 | N123: -60606.8 | O123: 1572 | R123: 1458.34 | V123: -14170.8 | W123: 0.2338153475 | AD123: =O123*D123 -> -31440 | AF123: =R123*D123 -> -29166.8 | AH123: -60606.8 | AI123: 0.2338153475
A124: 1.4.13 | B124: Извещатель пожарный ручной адресный | C124: шт. | D124: 15 | E124: 1200 | F124: =D124*E124 -> 18000 | G124: 1121.8 | H124: =G124*D124 -> 16827 | I124: =F124+H124 -> 34827 | J124: =E124*$Y$1 -> 1572 | K124: =J124*D124 -> 23580 | L124: =G124*$X$1 -> 1458.34 | M124: 21875.1 | N124: =K124+M124 -> 45455.1 | O124: 1572 | R124: 1458.34 | V124: 10628.1 | W124: 0.2338153475 | AD124: =D124*O124 -> 23580 | AE124: =1-F124/AD124 -> 0.2366412214 | AF124: =D124*R124 -> 21875.1 | AG124: =1-H124/AF124 -> 0.2307692308 | AH124: 45455.1 | AI124: 0.2338153475
A125: 1.4.14 | B125: Аккумулятор 12 В, 40 А/ч | C125: шт. | D125: 4 | E125: 400 | F125: =D125*E125 -> 1600 | G125: 6304.92 | H125: =D125*G125 -> 25219.68 | I125: =H125+F125 -> 26819.68 | J125: =E125*$Y$1 -> 524 | K125: =J125*D125 -> 2096 | L125: =G125*$X$1 -> 8196.396 | M125: 32785.584 | N125: =K125+M125 -> 34881.584 | O125: 524 | R125: 8196.4 | V125: 8061.904 | W125: 0.2311220729 | AD125: 2096 | AE125: 0.2366412214 | AF125: 32785.6 | AG125: 0.2307696062 | AH125: 34881.6 | AI125: 0.2311224256
A126: 1.4.15 | B126: Источник питания резервированный | C126: шт. | D126: 4 | E126: 3000 | F126: =D126*E126 -> 12000 | G126: 12612.36 | H126: =D126*G126 -> 50449.44 | I126: =H126+F126 -> 62449.44 | J126: 3930 | K126: 15720 | L126: 16396.068 | M126: 65584.272 | N126: 81304.272 | O126: 3930 | R126: 16396.07 | V126: 18854.832 | W126: 0.2319045671 | AD126: 15720 | AE126: 0.2366412214 | AF126: 65584.28 | AG126: 0.2307693246 | AH126: 81304.28 | AI126: =1-I126/AH126 -> 0.2319046427
A127: 1.4.16 | B127: Аккумулятор 12 В, 7 А/ч | C127: шт. | D127: 4 | E127: 400 | F127: =D127*E127 -> 1600 | G127: 2407 | H127: =D127*G127 -> 9628 | I127: =H127+F127 -> 11228 | J127: 524 | K127: 2096 | L127: 3129.1 | M127: 12516.4 | N127: 14612.4 | O127: 524 | R127: 3129.1 | V127: 3384.4 | W127: 0.231611508 | AD127: 2096 | AE127: 0.2366412214 | AF127: 12516.4 | AG127: 0.2307692308 | AH127: 14612.4 | AI127: 0.231611508
A128: 1.4.17 | B128: Блок контроля и индикации | C128: шт. | D128: 2 | E128: 3000 | F128: =D128*E128 -> 6000 | G128: 9024.14 | H128: =D128*G128 -> 18048.28 | I128: =H128+F128 -> 24048.28 | J128: 3930 | K128: 7860 | L128: 11731.382 | M128: 23462.764 | N128: 31322.764 | O128: 3930 | R128: 11731.38 | V128: 7274.484 | W128: 0.2322427229 | AD128: 7860 | AE128: 0.2366412214 | AF128: 23462.76 | AG128: 0.2307690996 | AH128: 31322.76 | AI128: 0.2322426249
A129: 1.4.18 | B129: Блок разветвительно-изолирующий | C129: шт. | D129: 4 | E129: 1000 | F129: 4000 | G129: 641.16 | H129: 2564.64 | I129: 6564.64 | J129: 1310 | K129: 5240 | L129: 833.508 | M129: 3334.032 | N129: 8574.032 | O129: 1310 | R129: 833.51 | V129: 2009.392 | W129: 0.2343578844 | AD129: 5240 | AE129: 0.2366412214 | AF129: 3334.04 | AG129: 0.2307710765 | AH129: 8574.04 | AI129: 0.2343585987
A130: 1.4.19 | B130: Преобразователь интерфейсов | C130: шт. | D130: 4 | E130: 3200 | F130: 12800 | G130: 11575.2 | H130: 46300.8 | I130: 59100.8 | J130: 4192 | K130: 16768 | L130: 15047.76 | M130: 60191.04 | N130: 76959.04 | O130: 4192 | R130: 15047.76 | V130: 17858.24 | W130: 0.2320486326 | AD130: 16768 | AE130: 0.2366412214 | AF130: 60191.04 | AG130: 0.2307692308 | AH130: 76959.04 | AI130: 0.2320486326
A131: 1.4.20 | B131: Патч-корд волоконно-оптический LC/UPC-LC/UPC 50 м | C131: шт. | D131: -4 | E131: 300 | F131: -1200 | G131: 2412.24 | H131: -9648.96 | I131: -10848.96 | J131: 393 | K131: -1572 | L131: 3135.912 | M131: -12543.648 | N131: -14115.648 | O131: 393 | R131: 3135.91 | V131: -3266.688 | W131: 0.2314231695 | AD131: =O131*D131 -> -1572 | AF131: =R131*D131 -> -12543.64 | AH131: -14115.64 | AI131: 0.2314227339
A132: 1.4.20 | B132: Патч-корд волоконно-оптический LC/UPC-LC/UPC 50 м | C132: шт. | D132: 4 | E132: 300 | F132: =D132*E132 -> 1200 | G132: 2825.04 | H132: =G132*D132 -> 11300.16 | I132: =F132+H132 -> 12500.16 | J132: =E132*$Y$1 -> 393 | K132: =J132*D132 -> 1572 | L132: =G132*$X$1 -> 3672.552 | M132: 14690.208 | N132: =K132+M132 -> 16262.208 | O132: 393 | R132: 3672.55 | V132: 3762.048 | W132: 0.2313368517 | AD132: =D132*O132 -> 1572 | AE132: =1-F132/AD132 -> 0.2366412214 | AF132: =D132*R132 -> 14690.2 | AG132: =1-H132/AF132 -> 0.2307688119 | AH132: 16262.2 | AI132: 0.2313364735
A133: 1.4.21 | B133: Патч-корд волоконно-оптический LC/UPC-LC/UPC 1 м | C133: шт. | D133: 4 | E133: 300 | F133: 1200 | G133: 790 | H133: 3160 | I133: 4360 | J133: 393 | K133: 1572 | L133: 1027 | M133: 4108 | N133: 5680 | O133: 393 | R133: 1027 | V133: 1320 | W133: 0.2323943662 | AD133: =D133*O133 -> 1572 | AE133: =1-F133/AD133 -> 0.2366412214 | AF133: =D133*R133 -> 4108 | AG133: =1-H133/AF133 -> 0.2307692308 | AH133: 5680 | AI133: 0.2323943662
A134: 1.4.22 | B134: Устройство коммутационное | C134: шт. | D134: -20 | E134: 2600 | F134: =D134*E134 -> -52000 | G134: 1365 | H134: =G134*D134 -> -27300 | I134: =F134+H134 -> -79300 | J134: =E134*$Y$1 -> 3406 | K134: =J134*D134 -> -68120 | L134: =G134*$X$1 -> 1774.5 | M134: -35490 | N134: =K134+M134 -> -103610 | O134: 3406 | R134: 1774.5 | V134: -24310 | W134: 0.234629862 | AD134: =O134*D134 -> -68120 | AF134: =R134*D134 -> -35490 | AH134: -103610 | AI134: 0.234629862
A135: 1.4.22 | B135: Устройство коммутационное | C135: шт. | D135: 24 | E135: 2600 | F135: 62400 | G135: 1365 | H135: 32760 | I135: 95160 | J135: 3406 | K135: 81744 | L135: 1774.5 | M135: 42588 | N135: 124332 | O135: 3406 | R135: 1774.5 | V135: 29172 | W135: 0.234629862 | AD135: =D135*O135 -> 81744 | AE135: =1-F135/AD135 -> 0.2366412214 | AF135: =D135*R135 -> 42588 | AG135: =1-H135/AF135 -> 0.2307692308 | AH135: 124332 | AI135: 0.234629862
A136: 1.4.23 | B136: Оповещатель охранно-пожарный световой (табло) | C136: шт. | D136: -5 | E136: 1200 | F136: -6000 | G136: 368 | H136: -1840 | I136: -7840 | J136: 1572 | K136: -7860 | L136: 478.4 | M136: -2392 | N136: -10252 | O136: 1572 | R136: 478.4 | V136: -2412 | W136: 0.2352711666 | AD136: =O136*D136 -> -7860 | AF136: =R136*D136 -> -2392 | AH136: -10252 | AI136: 0.2352711666
A137: 1.4.23 | B137: Оповещатель охранно-пожарный световой (табло) ЛЮКС-24 "Выход" | C137: шт. | D137: 10 | E137: 1200 | F137: =D137*E137 -> 12000 | G137: 368 | H137: =G137*D137 -> 3680 | I137: =F137+H137 -> 15680 | J137: =E137*$Y$1 -> 1572 | K137: =J137*D137 -> 15720 | L137: =G137*$X$1 -> 478.4 | M137: =D137*L137 -> 4784 | N137: =K137+M137 -> 20504 | O137: 1572 | R137: 478.4 | V137: =N137-I137 -> 4824 | W137: =1-I137/N137 -> 0.2352711666 | AD137: =D137*O137 -> 15720 | AE137: =1-F137/AD137 -> 0.2366412214 | AF137: =D137*R137 -> 4784 | AG137: =1-H137/AF137 -> 0.2307692308 | AH137: =O137*D137+R137*D137 -> 20504 | AI137: 0.2352711666
A138: 1.4.24 | B138: Оповещатель охранно-пожарный световой (табло) | C138: шт. | D138: -8 | E138: 1200 | F138: -9600 | G138: 368 | H138: -2944 | I138: -12544 | J138: 1572 | K138: -12576 | L138: 478.4 | M138: -3827.2 | N138: -16403.2 | O138: 1572 | R138: 478.4 | V138: -3859.2 | W138: 0.2352711666 | AD138: =O138*D138 -> -12576 | AF138: =R138*D138 -> -3827.2 | AH138: -16403.2 | AI138: 0.2352711666
A139: 1.4.24 | B139: Оповещатель охранно-пожарный световой (табло) ЛЮКС-24 "Стрелка влево" | C139: шт. | D139: 9 | E139: 1200 | F139: =D139*E139 -> 10800 | G139: 368 | H139: =G139*D139 -> 3312 | I139: =F139+H139 -> 14112 | J139: =E139*$Y$1 -> 1572 | K139: =J139*D139 -> 14148 | L139: =G139*$X$1 -> 478.4 | M139: 4305.6 | N139: =K139+M139 -> 18453.6 | O139: 1572 | R139: 478.4 | V139: 4341.6 | W139: 0.2352711666 | AD139: =D139*O139 -> 14148 | AE139: =1-F139/AD139 -> 0.2366412214 | AF139: =D139*R139 -> 4305.6 | AG139: =1-H139/AF139 -> 0.2307692308 | AH139: 18453.6 | AI139: 0.2352711666
A140: 1.4.25 | B140: Оповещатель охранно-пожарный световой (табло) | C140: шт. | D140: -6 | E140: 1200 | F140: -7200 | G140: 368 | H140: -2208 | I140: -9408 | J140: 1572 | K140: -9432 | L140: 478.4 | M140: -2870.4 | N140: -12302.4 | O140: 1572 | R140: 478.4 | V140: -2894.4 | W140: 0.2352711666 | AD140: =O140*D140 -> -9432 | AF140: =R140*D140 -> -2870.4 | AH140: -12302.4 | AI140: 0.2352711666
A141: 1.4.25 | B141: Оповещатель охранно-пожарный световой (табло) ЛЮКС-24 "Стрелка вправо" | C141: шт. | D141: 9 | E141: 1200 | F141: =D141*E141 -> 10800 | G141: 368 | H141: =G141*D141 -> 3312 | I141: =F141+H141 -> 14112 | J141: =E141*$Y$1 -> 1572 | K141: =J141*D141 -> 14148 | L141: =G141*$X$1 -> 478.4 | M141: 4305.6 | N141: =K141+M141 -> 18453.6 | O141: 1572 | R141: 478.4 | V141: 4341.6 | W141: 0.2352711666 | AD141: =D141*O141 -> 14148 | AE141: =1-F141/AD141 -> 0.2366412214 | AF141: =D141*R141 -> 4305.6 | AG141: =1-H141/AF141 -> 0.2307692308 | AH141: 18453.6 | AI141: 0.2352711666
A142: 1.4.26 | B142: Оповещатель охранно-пожарный звуковой | C142: шт. | D142: -13 | E142: 1200 | F142: -15600 | G142: 402 | H142: -5226 | I142: -20826 | J142: 1572 | K142: -20436 | L142: 522.6 | M142: -6793.8 | N142: -27229.8 | O142: 1572 | R142: 522.6 | V142: -6403.8 | W142: 0.2351761673 | AD142: =O142*D142 -> -20436 | AF142: =R142*D142 -> -6793.8 | AH142: -27229.8 | AI142: 0.2351761673
A143: 1.4.26 | B143: Оповещатель охранно-пожарный звуковой Маяк-24-ЗМ2 | C143: шт. | D143: 54 | E143: 1200 | F143: =D143*E143 -> 64800 | G143: 270 | H143: =G143*D143 -> 14580 | I143: =F143+H143 -> 79380 | J143: =E143*$Y$1 -> 1572 | K143: =J143*D143 -> 84888 | L143: =G143*$X$1 -> 351 | M143: 18954 | N143: =K143+M143 -> 103842 | O143: 1572 | R143: 351 | V143: 24462 | W143: 0.2355694228 | AD143: =D143*O143 -> 84888 | AE143: =1-F143/AD143 -> 0.2366412214 | AF143: =D143*R143 -> 18954 | AG143: =1-H143/AF143 -> 0.2307692308 | AH143: 103842 | AI143: 0.2355694228
A144: 1.4.27 | B144: Комбинированный оповещатель со стробовспышкой Г-24КПР | C144: шт. | D144: 30 | E144: 1200 | F144: =D144*E144 -> 36000 | G144: 545.04 | H144: =G144*D144 -> 16351.2 | I144: =F144+H144 -> 52351.2 | J144: =E144*$Y$1 -> 1572 | K144: =J144*D144 -> 47160 | L144: =G144*$X$1 -> 708.552 | M144: 21256.56 | N144: =K144+M144 -> 68416.56 | O144: 1572 | R144: 708.55 | V144: 16065.36 | W144: 0.2348168338 | AD144: =D144*O144 -> 47160 | AE144: =1-F144/AD144 -> 0.2366412214 | AF144: =D144*R144 -> 21256.5 | AG144: =1-H144/AF144 -> 0.2307670595 | AH144: 68416.5 | AI144: 0.2348161628
A145: 1.4.28 | B145: Оповещатель охранно-пожарный комбинированный свето-звуковой Маяк-24-КПМ2 | C145: шт. | D145: 39 | E145: 1200 | F145: =D145*E145 -> 46800 | G145: 656 | H145: =G145*D145 -> 25584 | I145: =F145+H145 -> 72384 | J145: 1572 | K145: 61308 | L145: 852.8 | M145: 33259.2 | N145: 94567.2 | O145: 1572 | R145: 852.8 | V145: 22183.2 | W145: 0.2345760475 | AD145: =D145*O145 -> 61308 | AE145: =1-F145/AD145 -> 0.2366412214 | AF145: =D145*R145 -> 33259.2 | AG145: =1-H145/AF145 -> 0.2307692308 | AH145: 94567.2 | AI145: 0.2345760475
A146: 1.4.29 | B146: Полка 19" перфорированная консольная 1U | C146: шт. | D146: 1 | E146: 2000 | F146: 2000 | G146: 1462 | H146: 1462 | I146: 3462 | J146: 2620 | K146: 2620 | L146: 1900.6 | M146: 1900.6 | N146: 4520.6 | O146: 2620 | R146: 1900.6 | V146: 1058.6 | W146: 0.234172455 | AD146: =D146*O146 -> 2620 | AE146: =1-F146/AD146 -> 0.2366412214 | AF146: =D146*R146 -> 1900.6 | AG146: =1-H146/AF146 -> 0.2307692308 | AH146: 4520.6 | AI146: 0.234172455
A147: 1.4.30 | B147: Модуль подключения нагрузки | C147: шт. | D147: -24 | E147: 100 | F147: -2400 | G147: 71.76 | H147: -1722.24 | I147: -4122.24 | J147: 131 | K147: -3144 | L147: 93.288 | M147: -2238.912 | N147: -5382.912 | O147: 131 | R147: 93.29 | V147: -1260.672 | W147: 0.2341988871 | AD147: =O147*D147 -> -3144 | AF147: =R147*D147 -> -2238.96 | AH147: -5382.96 | AI147: 0.2342057158
A148: 1.4.30 | B148: Модуль подключения нагрузки | C148: шт. | D148: 87 | E148: 100 | F148: =D148*E148 -> 8700 | G148: 71.76 | H148: =G148*D148 -> 6243.12 | I148: =F148+H148 -> 14943.12 | J148: =E148*$Y$1 -> 131 | K148: =J148*D148 -> 11397 | L148: =G148*$X$1 -> 93.288 | M148: 8116.056 | N148: =K148+M148 -> 19513.056 | O148: 131 | R148: 93.29 | V148: 4569.936 | W148: 0.2341988871 | AD148: =D148*O148 -> 11397 | AE148: =1-F148/AD148 -> 0.2366412214 | AF148: =D148*R148 -> 8116.23 | AG148: =1-H148/AF148 -> 0.2307857219 | AH148: 19513.23 | AI148: 0.2342057158
A149: 1.4.31 | B149: Блок сигнально-пусковой адресный | C149: шт. | D149: 96 | E149: 3200 | F149: =D149*E149 -> 307200 | G149: 3692.4 | H149: =G149*D149 -> 354470.4 | I149: =F149+H149 -> 661670.4 | J149: =E149*$Y$1 -> 4192 | K149: =J149*D149 -> 402432 | L149: =G149*$X$1 -> 4800.12 | M149: 460811.52 | N149: =K149+M149 -> 863243.52 | O149: 4192 | R149: 4800.12 | V149: 201573.12 | W149: 0.2335066703 | AD149: 402432 | AE149: 0.2366412214 | AF149: 460811.52 | AG149: 0.2307692308 | AH149: 863243.52 | AI149: 0.2335066703
A150: 1.4.32 | B150: Кнопка "ТЕСТ" | C150: шт. | D150: 96 | E150: 1200 | F150: =D150*E150 -> 115200 | G150: 1250 | H150: =G150*D150 -> 120000 | I150: =F150+H150 -> 235200 | J150: 1572 | K150: 150912 | L150: 1625 | M150: 156000 | N150: 306912 | O150: 1572 | R150: 1625 | V150: 71712 | W150: 0.233656553 | AD150: 150912 | AE150: 0.2366412214 | AF150: 156000 | AG150: 0.2307692308 | AH150: 306912 | AI150: 0.233656553
A151: 1.4.33 | B151: Шкаф контрольно пусковой ШКП-10RS (М) | C151: шт. | D151: 1 | E151: 4500 | F151: =D151*E151 -> 4500 | G151: 31318.56 | H151: =G151*D151 -> 31318.56 | I151: =F151+H151 -> 35818.56 | J151: 5895 | K151: 5895 | L151: 40714.128 | M151: 40714.128 | N151: 46609.128 | O151: 5895 | R151: 40714.13 | V151: 10790.568 | W151: 0.2315119047 | AD151: 5895 | AE151: 0.2366412214 | AF151: 40714.13 | AG151: 0.2307692686 | AH151: 46609.13 | AI151: 0.2315119377
A152: 1.4.34 | B152: Шкаф контрольно пусковой ШКП-18RS (М) | C152: шт. | D152: 1 | E152: 4500 | F152: =D152*E152 -> 4500 | G152: 32633.64 | H152: =G152*D152 -> 32633.64 | I152: =F152+H152 -> 37133.64 | J152: 5895 | K152: 5895 | L152: 42423.732 | M152: 42423.732 | N152: 48318.732 | O152: 5895 | R152: 42423.73 | V152: 11185.092 | W152: 0.2314856276 | AD152: 5895 | AE152: 0.2366412214 | AF152: 42423.73 | AG152: 0.2307691945 | AH152: 48318.73 | AI152: 0.2314855958
A153: 1.4.35 | B153: Преобразователь интерфейса | C153: шт. | D153: 1 | E153: 2600 | F153: 2600 | G153: 3524.04 | H153: 3524.04 | I153: 6124.04 | J153: 3406 | K153: 3406 | L153: 4581.252 | M153: 4581.252 | N153: 7987.252 | O153: 3406 | R153: 4581.25 | V153: 1863.212 | W153: 0.2332732209 | AD153: 3406 | AE153: 0.2366412214 | AF153: 4581.25 | AG153: 0.230768895 | AH153: 7987.25 | AI153: 0.2332730289
A154: 1.4.36 | B154: Коммутатор сетевой гигабитный 6 портовый | C154: шт. | D154: 1 | E154: 2600 | F154: 2600 | G154: 9000 | H154: 9000 | I154: 11600 | J154: 3406 | K154: 3406 | L154: 11700 | M154: 11700 | N154: 15106 | O154: 3406 | R154: 11700 | V154: 3506 | W154: 0.232093208 | AD154: 3406 | AE154: 0.2366412214 | AF154: 11700 | AG154: 0.2307692308 | AH154: 15106 | AI154: 0.232093208
A155: 1.4.37 | B155: Блок питания | C155: шт. | D155: 1 | E155: 3000 | F155: 3000 | G155: 2558 | H155: 2558 | I155: 5558 | J155: 3930 | K155: 3930 | L155: 3325.4 | M155: 3325.4 | N155: 7255.4 | O155: 3930 | R155: 3325.4 | V155: 1697.4 | W155: 0.2339498856 | AD155: 3930 | AE155: 0.2366412214 | AF155: 3325.4 | AG155: 0.2307692308 | AH155: 7255.4 | AI155: 0.2339498856
A156: 1.4.38 | B156: Лоток перфорированный 100х50х3000 | C156: м | D156: -890 | E156: 380 | F156: -338200 | G156: 452.12 | H156: -402386.8 | I156: -740586.8 | J156: 497.8 | K156: -443042 | L156: 587.756 | M156: -523102.84 | N156: -966144.84 | O156: 497.8 | R156: 587.76 | V156: -225558.04 | W156: 0.233461931 | AD156: =O156*D156 -> -443042 | AF156: =R156*D156 -> -523106.4 | AH156: -966148.4 | AI156: 0.2334647555
A157: 1.4.38 | B157: Лоток перфорированный 100х50х3000 | C157: м | D157: 585 | E157: 380 | F157: =D157*E157 -> 222300 | G157: 538 | H157: =G157*D157 -> 314730 | I157: =F157+H157 -> 537030 | J157: =E157*$Y$1 -> 497.8 | K157: =J157*D157 -> 291213 | L157: =G157*$X$1 -> 699.4 | M157: 409149 | N157: =K157+M157 -> 700362 | O157: 497.8 | R157: 699.4 | V157: 163332 | W157: 0.2332108253 | AD157: =D157*O157 -> 291213 | AE157: =1-F157/AD157 -> 0.2366412214 | AF157: =D157*R157 -> 409149 | AG157: =1-H157/AF157 -> 0.2307692308 | AH157: 700362 | AI157: 0.2332108253
A158: 1.4.39 | B158: Перегородка для лотка | C158: м | D158: -890 | E158: 100 | F158: -89000 | G158: 292.8 | H158: -260592 | I158: -349592 | J158: 131 | K158: -116590 | L158: 380.64 | M158: -338769.6 | N158: -455359.6 | O158: 131 | R158: 380.64 | V158: -105767.6 | W158: 0.2322726917 | AD158: =O158*D158 -> -116590 | AF158: =R158*D158 -> -338769.6 | AH158: -455359.6 | AI158: =1-I158/AH158 -> 0.2322726917
A159: 1.4.39 | B159: Перегородка для лотка | C159: м | D159: 585 | E159: 100 | F159: =D159*E159 -> 58500 | G159: 292.8 | H159: =G159*D159 -> 171288 | I159: =F159+H159 -> 229788 | J159: =E159*$Y$1 -> 131 | K159: =J159*D159 -> 76635 | L159: =G159*$X$1 -> 380.64 | M159: 222674.4 | N159: =K159+M159 -> 299309.4 | O159: 131 | R159: 380.64 | V159: 69521.4 | W159: 0.2322726917 | AD159: =D159*O159 -> 76635 | AE159: =1-F159/AD159 -> 0.2366412214 | AF159: =D159*R159 -> 222674.4 | AG159: =1-H159/AF159 -> 0.2307692308 | AH159: 299309.4 | AI159: 0.2322726917
A160: 1.4.40 | B160: Крышка с заземлением на лоток основание 100 L3000 | C160: м | D160: -890 | E160: 120 | F160: -106800 | G160: 214.4 | H160: -190816 | I160: -297616 | J160: 157.2 | K160: -139908 | L160: 278.72 | M160: -248060.8 | N160: -387968.8 | O160: 157.2 | R160: 278.72 | V160: -90352.8 | W160: 0.2328867682 | AD160: =O160*D160 -> -139908 | AF160: =R160*D160 -> -248060.8 | AH160: -387968.8 | AI160: 0.2328867682
A161: 1.4.40 | B161: Крышка с заземлением на лоток основание 100 L3000 | C161: м | D161: 585 | E161: 120 | F161: =D161*E161 -> 70200 | G161: 209.22 | H161: =G161*D161 -> 122393.7 | I161: =F161+H161 -> 192593.7 | J161: =E161*$Y$1 -> 157.2 | K161: =J161*D161 -> 91962 | L161: =G161*$X$1 -> 271.986 | M161: 159111.81 | N161: =K161+M161 -> 251073.81 | O161: 157.2 | R161: 271.99 | V161: 58480.11 | W161: 0.2329199927 | AD161: =D161*O161 -> 91962 | AE161: =1-F161/AD161 -> 0.2366412214 | AF161: =D161*R161 -> 159114.15 | AG161: =1-H161/AF161 -> 0.2307805434 | AH161: 251076.15 | AI161: 0.2329271418
A162: 1.4.41 | B162: Угол CPO 90 горизонтальный 90° 100х50 | C162: шт. | D162: -16 | E162: 1200 | F162: -19200 | G162: 1620.8 | H162: -25932.8 | I162: -45132.8 | J162: 1572 | K162: -25152 | L162: 2107.04 | M162: -33712.64 | N162: -58864.64 | O162: 1572 | R162: 2107.04 | V162: -13731.84 | W162: 0.2332782465 | AD162: =O162*D162 -> -25152 | AF162: =R162*D162 -> -33712.64 | AH162: -58864.64 | AI162: 0.2332782465
A163: 1.4.41 | B163: Угол CPO 90 горизонтальный 90° 100х50 | C163: шт. | D163: 10 | E163: 1200 | F163: =D163*E163 -> 12000 | G163: 1620.8 | H163: =G163*D163 -> 16208 | I163: =F163+H163 -> 28208 | J163: =E163*$Y$1 -> 1572 | K163: =J163*D163 -> 15720 | L163: =G163*$X$1 -> 2107.04 | M163: 21070.4 | N163: =K163+M163 -> 36790.4 | O163: 1572 | R163: 2107.04 | V163: 8582.4 | W163: 0.2332782465 | AD163: =D163*O163 -> 15720 | AE163: =1-F163/AD163 -> 0.2366412214 | AF163: =D163*R163 -> 21070.4 | AG163: =1-H163/AF163 -> 0.2307692308 | AH163: 36790.4 | AI163: 0.2332782465
A164: 1.4.42 | B164: Угол CS 90 вертикальный внутренний 90° 100х50 | C164: шт. | D164: -10 | E164: 1200 | F164: -12000 | G164: 1892 | H164: -18920 | I164: -30920 | J164: 1572 | K164: -15720 | L164: 2459.6 | M164: -24596 | N164: -40316 | O164: 1572 | R164: 2459.6 | V164: -9396 | W164: 0.2330588352 | AD164: =O164*D164 -> -15720 | AF164: =R164*D164 -> -24596 | AH164: -40316 | AI164: 0.2330588352
A165: 1.4.42 | B165: Угол CS 90 вертикальный внутренний 90° 100х50 | C165: шт. | D165: 12 | E165: 1200 | F165: =D165*E165 -> 14400 | G165: 1892 | H165: =G165*D165 -> 22704 | I165: =F165+H165 -> 37104 | J165: =E165*$Y$1 -> 1572 | K165: =J165*D165 -> 18864 | L165: =G165*$X$1 -> 2459.6 | M165: 29515.2 | N165: =K165+M165 -> 48379.2 | O165: 1572 | R165: 2459.6 | V165: 11275.2 | W165: 0.2330588352 | AD165: =D165*O165 -> 18864 | AE165: =1-F165/AD165 -> 0.2366412214 | AF165: =D165*R165 -> 29515.2 | AG165: =1-H165/AF165 -> 0.2307692308 | AH165: 48379.2 | AI165: 0.2330588352
A166: 1.4.43 | B166: Лоток 50х50 L=3000 перфорированный | C166: м. | D166: 150 | E166: 640 | F166: =D166*E166 -> 96000 | G166: 375 | H166: =G166*D166 -> 56250 | I166: =F166+H166 -> 152250 | J166: =E166*$Y$1 -> 838.4 | K166: =J166*D166 -> 125760 | L166: =G166*$X$1 -> 487.5 | M166: 73125 | N166: =K166+M166 -> 198885 | O166: 838.4 | R166: 487.5 | AD166: 125760 | AE166: 0.2366412214 | AF166: 73125 | AG166: 0.2307692308 | AH166: 198885 | AI166: 0.2344822385
A167: 1.4.44 | B167: Крышка с заземлением на лоток основание 50 L3000 | C167: м. | D167: 150 | E167: 120 | F167: =D167*E167 -> 18000 | G167: 171.65 | H167: 25747.5 | I167: 43747.5 | J167: 157.2 | K167: 23580 | L167: 223.145 | M167: 33471.75 | N167: 57051.75 | O167: 157.2 | R167: 223.15 | AD167: 23580 | AE167: 0.2366412214 | AF167: 33472.5 | AG167: 0.2307864665 | AH167: 57052.5 | AI167: 0.2332062574
A168: 1.4.45 | B168: Крышка S5 CPO90 90х100 угла горизонтального | C168: шт. | D168: 10 | E168: 120 | F168: 1200 | G168: 839.4 | H168: 8394 | I168: 9594 | J168: 157.2 | K168: 1572 | L168: 1091.22 | M168: 10912.2 | N168: 12484.2 | O168: 157.2 | R168: 1091.22 | AD168: 1572 | AE168: 0.2366412214 | AF168: 10912.2 | AG168: 0.2307692308 | AH168: 12484.2 | AI168: 0.2315086269
A169: 1.4.46 | B169: Крышка S5 CS90 90x100 угла вертикального внутреннего | C169: шт. | D169: 12 | E169: 120 | F169: 1440 | G169: 644.02 | H169: 7728.24 | I169: 9168.24 | J169: 157.2 | K169: 1886.4 | L169: 837.226 | M169: =D169*L169 -> 10046.712 | N169: 11933.112 | O169: 157.2 | R169: 837.23 | AD169: 1886.4 | AE169: 0.2366412214 | AF169: 10046.76 | AG169: 0.2307729059 | AH169: =O169*D169+R169*D169 -> 11933.16 | AI169: 0.2317005722
A170: 1.4.47 | B170: Ответвитель S5 DL 100x50 горизонтальный | C170: шт. | D170: 5 | E170: 1200 | F170: 6000 | G170: 2020.01 | H170: 10100.05 | I170: 16100.05 | J170: 1572 | K170: 7860 | L170: 2626.013 | M170: 13130.065 | N170: 20990.065 | O170: 1572 | R170: 2626.01 | AD170: 7860 | AE170: 0.2366412214 | AF170: 13130.05 | AG170: 0.230768352 | AH170: 20990.05 | AI170: 0.2329675251
A171: 1.4.48 | B171: Крышка S5 DL 100х50 ответвителя горизонтального | C171: шт. | D171: 5 | E171: 120 | F171: 600 | G171: 1004.5 | H171: 5022.5 | I171: 5622.5 | J171: 157.2 | K171: 786 | L171: 1305.85 | M171: 6529.25 | N171: 7315.25 | O171: 157.2 | R171: 1305.85 | AD171: 786 | AE171: 0.2366412214 | AF171: 6529.25 | AG171: 0.2307692308 | AH171: 7315.25 | AI171: 0.2314001572
A172: 1.4.49 | B172: Угол S5 CD90 90x50x50 вертикальный внешний | C172: шт. | D172: 16 | E172: 1200 | F172: 19200 | G172: 1966.01 | H172: 31456.16 | I172: 50656.16 | J172: 1572 | K172: 25152 | L172: 2555.813 | M172: 40893.008 | N172: 66045.008 | O172: 1572 | R172: 2555.81 | AD172: 25152 | AE172: 0.2366412214 | AF172: 40892.96 | AG172: 0.2307683278 | AH172: 66044.96 | AI172: 0.2330049106
A173: 1.4.50 | B173: Крышка S5 CD90 90x50 угла вертикального внешнего | C173: шт. | D173: 16 | E173: 120 | F173: 1920 | G173: 638.16 | H173: 10210.56 | I173: 12130.56 | J173: 157.2 | K173: 2515.2 | L173: 829.608 | M173: 13273.728 | N173: 15788.928 | O173: 157.2 | R173: 829.61 | AD173: 2515.2 | AE173: 0.2366412214 | AF173: 13273.76 | AG173: 0.2307710852 | AH173: 15788.96 | AI173: 0.2317062048
A174: 1.4.51 | B174: Ответвитель S5 DL 50x50 горизонтальный | C174: шт. | D174: 16 | E174: 1200 | F174: 19200 | G174: 1825.61 | H174: 29209.76 | I174: 48409.76 | J174: 1572 | K174: 25152 | L174: 2373.293 | M174: 37972.688 | N174: 63124.688 | O174: 1572 | R174: 2373.29 | AD174: 25152 | AE174: 0.2366412214 | AF174: 37972.64 | AG174: 0.2307682584 | AH174: 63124.64 | AI174: 0.2331083393
A175: 1.4.52 | B175: Крышка S5 DL 50х50 ответвителя горизонтального | C175: шт. | D175: 16 | E175: 120 | F175: 1920 | G175: 853.51 | H175: 13656.16 | I175: 15576.16 | J175: 157.2 | K175: 2515.2 | L175: 1109.563 | M175: 17753.008 | N175: 20268.208 | O175: 157.2 | R175: 1109.56 | AD175: 2515.2 | AE175: 0.2366412214 | AF175: 17752.96 | AG175: 0.2307671509 | AH175: 20268.16 | AI175: 0.2314961003
A176: 1.4.53 | B176: Кронштейн индивидуального изготовления L=1250 | C176: шт. | D176: 210 | E176: 412.8 | F176: 86688 | G176: 1552.8 | H176: 326088 | I176: 412776 | J176: 540.768 | K176: 113561.28 | L176: 2018.64 | M176: 423914.4 | N176: 537475.68 | O176: 540.77 | R176: 2018.64 | AD176: 113561.7 | AE176: 0.2366440446 | AF176: 423914.4 | AG176: 0.2307692308 | AH176: 537476.1 | AI176: 0.2320105024
A177: 1.4.54 | B177: Кронштейн юстировочный для монтажа линейного извещателя | C177: шт. | D177: 24 | E177: 1200 | F177: 28800 | G177: 1200 | H177: 28800 | I177: 57600 | J177: 1572 | K177: 37728 | L177: 1560 | M177: 37440 | N177: 75168 | O177: 1572 | R177: 1560 | AD177: 37728 | AE177: 0.2366412214 | AF177: 37440 | AG177: 0.2307692308 | AH177: 75168 | AI177: 0.2337164751
A178: 1.4.55 | B178: Стандартный анкер с болтом М8 | C178: шт. | D178: -400 | E178: 25 | F178: -10000 | G178: 83.02 | H178: -33208 | I178: -43208 | J178: 32.75 | K178: -13100 | L178: 107.926 | M178: -43170.4 | N178: -56270.4 | O178: 32.75 | R178: 107.93 | V178: =N178-I178 -> -13062.4 | W178: =1-I178/N178 -> 0.2321362564 | AD178: =O178*D178 -> -13100 | AF178: =R178*D178 -> -43172 | AH178: -56272 | AI178: 0.2321580893
A179: 1.4.55 | B179: Стандартный анкер с болтом М8 | C179: шт. | D179: 800 | E179: 25 | F179: =D179*E179 -> 20000 | G179: 83.02 | H179: =G179*D179 -> 66416 | I179: =F179+H179 -> 86416 | J179: =E179*$Y$1 -> 32.75 | K179: =J179*D179 -> 26200 | L179: =G179*$X$1 -> 107.926 | M179: 86340.8 | N179: =K179+M179 -> 112540.8 | O179: 32.75 | R179: 107.93 | V179: =N179-I179 -> 26124.8 | W179: =1-I179/N179 -> 0.2321362564 | AD179: =D179*O179 -> 26200 | AE179: =1-F179/AD179 -> 0.2366412214 | AF179: =D179*R179 -> 86344 | AG179: =1-H179/AF179 -> 0.2307977393 | AH179: 112544 | AI179: 0.2321580893
A180: 1.4.56 | B180: Винт для электрического соединения М5х8 | C180: шт. | D180: -100 | E180: 15 | F180: -1500 | G180: 6.8 | H180: -680 | I180: -2180 | J180: 19.65 | K180: -1965 | L180: 8.84 | M180: -884 | N180: -2849 | O180: 19.65 | R180: 8.84 | V180: =N180-I180 -> -669 | W180: =1-I180/N180 -> 0.2348192348 | AD180: =O180*D180 -> -1965 | AF180: =R180*D180 -> -884 | AH180: -2849 | AI180: 0.2348192348
A181: 1.4.56 | B181: Винт для электрического соединения М5х8 | C181: шт. | D181: 100 | E181: 15 | F181: =D181*E181 -> 1500 | G181: 10.2 | H181: =G181*D181 -> 1020 | I181: =F181+H181 -> 2520 | J181: =E181*$Y$1 -> 19.65 | K181: =J181*D181 -> 1965 | L181: =G181*$X$1 -> 13.26 | M181: 1326 | N181: =K181+M181 -> 3291 | O181: 19.65 | R181: 13.26 | V181: =N181-I181 -> 771 | W181: =1-I181/N181 -> 0.2342752963 | AD181: =D181*O181 -> 1965 | AE181: =1-F181/AD181 -> 0.2366412214 | AF181: =D181*R181 -> 1326 | AG181: =1-H181/AF181 -> 0.2307692308 | AH181: 3291 | AI181: 0.2342752963
A182: 1.4.57 | B182: Коробка огнестойкая 100х100х50мм | C182: шт. | D182: 175 | E182: 800 | F182: =D182*E182 -> 140000 | G182: 1063.97 | H182: =G182*D182 -> 186194.75 | I182: =F182+H182 -> 326194.75 | J182: =E182*$Y$1 -> 1048 | K182: =J182*D182 -> 183400 | L182: =G182*$X$1 -> 1383.161 | M182: 242053.175 | N182: =K182+M182 -> 425453.175 | O182: 1048 | R182: 1383.16 | AD182: =D182*O182 -> 183400 | AE182: =1-F182/AD182 -> 0.2366412214 | AF182: =D182*R182 -> 242053 | AG182: =1-H182/AF182 -> 0.2307686746 | AH182: 425453 | AI182: 0.233300153
A183: 1.4.58 | B183: Кабель огнестойкий | C183: м | D183: -2960 | E183: 124 | F183: -367040 | G183: 144.86 | H183: -428785.6 | I183: -795825.6 | J183: 162.44 | K183: -480822.4 | L183: 188.318 | M183: -557421.28 | N183: -1038243.68 | O183: 162.44 | R183: 188.32 | V183: =N183-I183 -> -242418.08 | W183: =1-I183/N183 -> 0.2334886161 | AD183: =O183*D183 -> -480822.4 | AF183: =R183*D183 -> -557427.2 | AH183: -1038249.6 | AI183: 0.2334929867
A184: 1.4.58 | B184: Кабель огнестойкий КПСЭнг(А)-FRHF 1х2х1,0 | C184: м | D184: 6400 | E184: 124 | F184: =D184*E184 -> 793600 | G184: 41.04 | H184: =G184*D184 -> 262656 | I184: =F184+H184 -> 1056256 | J184: =E184*$Y$1 -> 162.44 | K184: =J184*D184 -> 1039616 | L184: =G184*$X$1 -> 53.352 | M184: 341452.8 | N184: =K184+M184 -> 1381068.8 | O184: 162.44 | R184: 53.35 | V184: 324812.8 | W184: 0.2351894417 | AD184: =D184*O184 -> 1039616 | AE184: =1-F184/AD184 -> 0.2366412214 | AF184: =D184*R184 -> 341440 | AG184: =1-H184/AF184 -> 0.2307403936 | AH184: 1381056 | AI184: 0.2351823532
A185: 1.4.59 | B185: Кабель огнестойкий | C185: м | D185: -930 | E185: 124 | F185: -115320 | G185: 82.94 | H185: -77134.2 | I185: -192454.2 | J185: 162.44 | K185: -151069.2 | L185: 107.822 | M185: -100274.46 | N185: -251343.66 | O185: 162.44 | R185: 107.82 | V185: -58889.46 | W185: 0.2342985695 | AD185: =O185*D185 -> -151069.2 | AF185: =R185*D185 -> -100272.6 | AH185: -251341.8 | AI185: 0.2342929031
A186: 1.4.59 | B186: Кабель огнестойкий КПСЭнг(А)-FRHF 1х2х1,5 | C186: м | D186: 2500 | E186: 124 | F186: =D186*E186 -> 310000 | G186: 82.94 | H186: =G186*D186 -> 207350 | I186: =F186+H186 -> 517350 | J186: =E186*$Y$1 -> 162.44 | K186: =J186*D186 -> 406100 | L186: =G186*$X$1 -> 107.822 | M186: 269555 | N186: =K186+M186 -> 675655 | O186: 162.44 | R186: 107.82 | V186: 158305 | W186: 0.2342985695 | AD186: =D186*O186 -> 406100 | AE186: =1-F186/AD186 -> 0.2366412214 | AF186: =D186*R186 -> 269550 | AG186: =1-H186/AF186 -> 0.230754962 | AH186: 675650 | AI186: 0.2342929031
A187: 1.4.60 | B187: Кабель огнестойкий | C187: м | D187: -510 | E187: 124 | F187: -63240 | G187: 140.62 | H187: -71716.2 | I187: -134956.2 | J187: 162.44 | K187: -82844.4 | L187: 182.806 | M187: -93231.06 | N187: -176075.46 | O187: 162.44 | R187: 182.81 | V187: -41119.26 | W187: 0.2335320322 | AD187: =O187*D187 -> -82844.4 | AF187: =R187*D187 -> -93233.1 | AH187: -176077.5 | AI187: 0.2335409124
A188: 1.4.60 | B188: Кабель огнестойкий КПСЭнг(А)-FRHF 2х2х0,75 | C188: м | D188: 400 | E188: 124 | F188: =D188*E188 -> 49600 | G188: 77.76 | H188: =G188*D188 -> 31104 | I188: =F188+H188 -> 80704 | J188: =E188*$Y$1 -> 162.44 | K188: =J188*D188 -> 64976 | L188: =G188*$X$1 -> 101.088 | M188: 40435.2 | N188: =K188+M188 -> 105411.2 | O188: 162.44 | R188: 101.09 | V188: 24707.2 | W188: 0.2343887557 | AD188: =D188*O188 -> 64976 | AE188: =1-F188/AD188 -> 0.2366412214 | AF188: =D188*R188 -> 40436 | AG188: =1-H188/AF188 -> 0.2307844495 | AH188: 105412 | AI188: 0.2343945661
A189: 1.4.61 | B189: Кабель огнестойкий | C189: м | D189: -600 | E189: 124 | F189: -74400 | G189: 85.94 | H189: -51564 | I189: -125964 | J189: 162.44 | K189: -97464 | L189: 111.722 | M189: -67033.2 | N189: -164497.2 | O189: 162.44 | R189: 111.72 | V189: -38533.2 | W189: 0.2342483641 | AD189: =O189*D189 -> -97464 | AF189: =R189*D189 -> -67032 | AH189: -164496 | AI189: 0.2342427779
A190: 1.4.61 | B190: Кабель огнестойкий КПСЭнг(А)-FRHF 2х2х0,5 | C190: м | D190: 750 | E190: 124 | F190: =D190*E190 -> 93000 | G190: 85.94 | H190: =G190*D190 -> 64455 | I190: =F190+H190 -> 157455 | J190: =E190*$Y$1 -> 162.44 | K190: =J190*D190 -> 121830 | L190: =G190*$X$1 -> 111.722 | M190: 83791.5 | N190: =K190+M190 -> 205621.5 | O190: 162.44 | R190: 111.72 | V190: 48166.5 | W190: 0.2342483641 | AD190: =D190*O190 -> 121830 | AE190: =1-F190/AD190 -> 0.2366412214 | AF190: =D190*R190 -> 83790 | AG190: =1-H190/AF190 -> 0.2307554601 | AH190: 205620 | AI190: =1-I190/AH190 -> 0.2342427779
A191: 1.4.62 | B191: Кабель силовой огнестойкий ППГ нг(А)-FRHF 3х1.5 | C191: м | D191: 1300 | E191: 124 | F191: =D191*E191 -> 161200 | G191: 101.52 | H191: =G191*D191 -> 131976 | I191: =F191+H191 -> 293176 | J191: =E191*$Y$1 -> 162.44 | K191: =J191*D191 -> 211172 | L191: =G191*$X$1 -> 131.976 | M191: 171568.8 | N191: =K191+M191 -> 382740.8 | O191: 162.44 | R191: 131.98 | AD191: =D191*O191 -> 211172 | AE191: =1-F191/AD191 -> 0.2366412214 | AF191: =D191*R191 -> 171574 | AG191: =1-H191/AF191 -> 0.2307925443 | AH191: 382746 | AI191: 0.234019428
A192: 1.4.63 | B192: Труба гофрированная ПВХ легкая серая D20 | C192: м | D192: -600 | E192: 35 | F192: -21000 | G192: 21.6 | H192: -12960 | I192: -33960 | J192: 45.85 | K192: -27510 | L192: 28.08 | M192: -16848 | N192: -44358 | O192: 45.85 | R192: 28.08 | V192: =N192-I192 -> -10398 | W192: =1-I192/N192 -> 0.2344109293 | AD192: =O192*D192 -> -27510 | AF192: =R192*D192 -> -16848 | AH192: -44358 | AI192: 0.2344109293
A193: 1.4.63 | B193: Труба гофрированная ПВХ легкая серая D20 | C193: м | D193: 4000 | E193: 35 | F193: =D193*E193 -> 140000 | G193: 21.6 | H193: =G193*D193 -> 86400 | I193: =F193+H193 -> 226400 | J193: =E193*$Y$1 -> 45.85 | K193: =J193*D193 -> 183400 | L193: =G193*$X$1 -> 28.08 | M193: 112320 | N193: =K193+M193 -> 295720 | O193: 45.85 | R193: 28.08 | V193: 69320 | W193: 0.2344109293 | AD193: =D193*O193 -> 183400 | AE193: =1-F193/AD193 -> 0.2366412214 | AF193: =D193*R193 -> 112320 | AG193: =1-H193/AF193 -> 0.2307692308 | AH193: 295720 | AI193: 0.2344109293
A194: 1.4.64 | B194: Скоба металлическая однолапковая Д20 | C194: шт. | D194: -1200 | E194: 5 | F194: -6000 | G194: 2.6 | H194: -3120 | I194: -9120 | J194: 6.55 | K194: -7860 | L194: 3.38 | M194: -4056 | N194: -11916 | O194: 6.55 | R194: 3.38 | V194: -2796 | W194: 0.2346424975 | AD194: =O194*D194 -> -7860 | AF194: =R194*D194 -> -4056 | AH194: -11916 | AI194: 0.2346424975
A195: 1.4.64 | B195: Скоба металлическая однолапковая Д20 | C195: шт. | D195: 8000 | E195: 5 | F195: =D195*E195 -> 40000 | G195: 2.6 | H195: =G195*D195 -> 20800 | I195: =F195+H195 -> 60800 | J195: =E195*$Y$1 -> 6.55 | K195: =J195*D195 -> 52400 | L195: =G195*$X$1 -> 3.38 | M195: 27040 | N195: =K195+M195 -> 79440 | O195: 6.55 | R195: 3.38 | V195: 18640 | W195: 0.2346424975 | AD195: =D195*O195 -> 52400 | AE195: =1-F195/AD195 -> 0.2366412214 | AF195: =D195*R195 -> 27040 | AG195: =1-H195/AF195 -> 0.2307692308 | AH195: 79440 | AI195: 0.2346424975
A196: 1.4.65 | B196: Металлический дюбель для газобетона 6х32 | C196: шт. | D196: -1600 | E196: 5 | F196: -8000 | G196: 14.2 | H196: -22720 | I196: -30720 | J196: 6.55 | K196: -10480 | L196: 18.46 | M196: -29536 | N196: -40016 | O196: 6.55 | R196: 18.46 | V196: -9296 | W196: 0.2323070772 | AD196: =O196*D196 -> -10480 | AF196: =R196*D196 -> -29536 | AH196: -40016 | AI196: 0.2323070772
A197: 1.4.65 | B197: Металлический дюбель для газобетона 6х32 | C197: шт. | D197: 8000 | E197: 5 | F197: =D197*E197 -> 40000 | G197: 14.88 | H197: =G197*D197 -> 119040 | I197: =F197+H197 -> 159040 | J197: =E197*$Y$1 -> 6.55 | K197: =J197*D197 -> 52400 | L197: =G197*$X$1 -> 19.344 | M197: 154752 | N197: =K197+M197 -> 207152 | O197: 6.55 | R197: 19.34 | V197: 48112 | W197: 0.2322545763 | AD197: =D197*O197 -> 52400 | AE197: =1-F197/AD197 -> 0.2366412214 | AF197: =D197*R197 -> 154720 | AG197: =1-H197/AF197 -> 0.2306101344 | AH197: 207120 | AI197: 0.2321359598
A198: 1.4.66 | B198: Саморез с пресс-шайбой 4.2х32 | C198: шт. | D198: -1600 | E198: 5 | F198: -8000 | G198: 1.82 | H198: -2912 | I198: -10912 | J198: 6.55 | K198: -10480 | L198: 2.366 | M198: -3785.6 | N198: -14265.6 | O198: 6.55 | R198: 2.37 | V198: -3353.6 | W198: 0.2350829969 | AD198: =O198*D198 -> -10480 | AF198: =R198*D198 -> -3792 | AH198: -14272 | AI198: 0.235426009
A199: 1.4.66 | B199: Саморез с пресс-шайбой 4.2х32 | C199: шт. | D199: 8000 | E199: 5 | F199: =D199*E199 -> 40000 | G199: 1.82 | H199: =G199*D199 -> 14560 | I199: =F199+H199 -> 54560 | J199: =E199*$Y$1 -> 6.55 | K199: =J199*D199 -> 52400 | L199: =G199*$X$1 -> 2.366 | M199: 18928 | N199: =K199+M199 -> 71328 | O199: 6.55 | R199: 2.37 | V199: 16768 | W199: 0.2350829969 | AD199: =D199*O199 -> 52400 | AE199: =1-F199/AD199 -> 0.2366412214 | AF199: =D199*R199 -> 18960 | AG199: =1-H199/AF199 -> 0.2320675105 | AH199: 71360 | AI199: 0.235426009
A200: 1.4.67 | B200: Аксессуары (расходные материалы, крепеж) | C200: компл. | D200: -1 | E200: 0 | F200: 0 | G200: 21600 | H200: -21600 | I200: -21600 | J200: 0 | K200: 0 | L200: 28080 | M200: -28080 | N200: -28080 | O200: 0 | R200: 28080 | V200: -6480 | W200: 0.2307692308 | AD200: =O200*D200 -> 0 | AF200: =R200*D200 -> -28080 | AH200: -28080 | AI200: 0.2307692308
... 919 more rows

Sheet СВОДНАЯ НОВАЯ
C1: Смета ФССЦ материалы | D1: МТР разница КиК/ФССЦ | H1: 1.3 | I1: 1.31 | J1: 1.7 | L1: 1.1883 | M1: 1.18524
A2: № | B2: Наименовение | F2: =#REF! ->  | H2: Материалы | I2: Работы | J2: Оборудование | L2: Материалы ПЖ | M2: Работы ПЖ | N2: ВСЕГО | O2: подп ВДЦ | P2: проверка
A3: 1 | B3: Основные объекты строительства, реконструкции, капитального ремонта, в том числе:
A4: 1.1 | B4: 130-23-АС3 Архитектурно-строительные решения | F4: =#REF!-#REF! ->  | G4: =1-#REF!/#REF! ->  | N4: ='СВОДНАЯ текущий'!AH4 -> 45702611.32
A5: 1.1 | B5: 130-23-АС3 Архитектурно-строительные решения | N5: ='СВОДНАЯ текущий'!AH5 -> -42847605.78 | O5: 42848589 | P5: =O5+N5 -> 983.218
A6: 1.2 | B6: 130-23-АС1 Архитектурно-строительные решения | F6: =#REF!-#REF! ->  | G6: =1-#REF!/#REF! ->  | N6: ='СВОДНАЯ текущий'!AH69 -> 28949459.48
A7: 1.2 | B7: 130-23-АС1 Архитектурно-строительные решения | C7: =#REF!+#REF!+#REF!+#REF!+#REF!+#REF!+#REF!+#REF!+#REF!+#REF!+#REF!+#REF! ->  | D7: =#REF!+#REF!+#REF!+#REF!+#REF!+#REF!+#REF!+#REF!+#REF!+#REF!+#REF!+#REF! ->  | E7: =#REF!+#REF!+#REF!+#REF!+#REF!+#REF!+#REF!+#REF!+#REF!+#REF!+#REF!+#REF! ->  | F7: =#REF!+#REF!+#REF!+#REF!+#REF!+#REF!+#REF!+#REF!+#REF!+#REF!+#REF!+#REF! ->  | G7: =#REF!+#REF!+#REF!+#REF!+#REF!+#REF!+#REF!+#REF!+#REF!+#REF!+#REF!+#REF! ->  | H7: =#REF!+#REF!+#REF!+#REF!+#REF!+#REF!+#REF!+#REF!+#REF!+#REF!+#REF!+#REF! ->  | I7: =#REF!+#REF!+#REF!+#REF!+#REF!+#REF!+#REF!+#REF!+#REF!+#REF!+#REF!+#REF! ->  | J7: =#REF!+#REF!+#REF!+#REF!+#REF!+#REF!+#REF!+#REF!+#REF!+#REF!+#REF!+#REF! ->  | K7: =#REF!+#REF!+#REF!+#REF!+#REF!+#REF!+#REF!+#REF!+#REF!+#REF!+#REF!+#REF! ->  | L7: =#REF!+#REF!+#REF!+#REF!+#REF!+#REF!+#REF!+#REF!+#REF!+#REF!+#REF!+#REF! ->  | M7: =#REF!+#REF!+#REF!+#REF!+#REF!+#REF!+#REF!+#REF!+#REF!+#REF!+#REF!+#REF! ->  | N7: ='СВОДНАЯ текущий'!AH70 -> -32381145.35 | O7: 32381146 | P7: =O7+N7 -> 0.6499999985
A8: 1.3 | B8: 130-23-ВК Внутренние трубопроводы | F8: =#REF!-#REF! ->  | G8: =1-#REF!/#REF! ->  | N8: =-'СВОДНАЯ текущий'!AH98 -> -11388536 | O8: 11388536 | P8: =O8+N8 -> 0
A9: 1.4 | B9: 130-23-ПС Пожарная сигнализация | F9: =#REF!-#REF! ->  | G9: =1-#REF!/#REF! ->  | N9: ='СВОДНАЯ текущий'!AH103 -> 11714024.6
A10: 1.4 | B10: 130-23-ПС Пожарная сигнализация | N10: ='СВОДНАЯ текущий'!AH104 -> -6715521.56 | O10: 6715508 | P10: =O10+N10 -> -13.56
A11: 1.5 | B11: 130-23-ОВ2 Отопление и вентиляция | N11: ='СВОДНАЯ текущий'!AH229 -> 85327081.14
A12: 1.5 | B12: 130-23-ОВ2 Отопление и вентиляция | N12: ='СВОДНАЯ текущий'!AH230 -> -87564705.88 | O12: 87564706 | P12: =O12+N12 -> 0.1190000027
A13: 1.6 | B13: 130-23-ОВ1 Отопление, вентиляция и кондиционирование | N13: ='СВОДНАЯ текущий'!AH253 -> 11361364.03
A14: 1.6 | B14: 130-23-ОВ1 Отопление, вентиляция и кондиционирование | N14: ='СВОДНАЯ текущий'!AH254 -> -9502061.544 | O14: 9502060 | P14: =O14+N14 -> -1.544000002
A15: 1.7 | B15: 130-23-СКС Структурированная кабельная сеть | F15: =#REF!-#REF! ->  | G15: =1-#REF!/#REF! ->  | N15: ='СВОДНАЯ текущий'!AH282 -> 5390856.65
A16: 1.7 | B16: 130-23-СКС Структурированная кабельная сеть | N16: ='СВОДНАЯ текущий'!AH283 -> -6873591.96 | O16: 6873587 | P16: =O16+N16 -> -4.96
A17: 1.8 | B17: 130-23-СОТ Система охранного телевидения | F17: =#REF!-#REF! ->  | G17: =1-#REF!/#REF! ->  | N17: ='СВОДНАЯ текущий'!AH379 -> 2722184.75
A18: 1.8 | B18: 130-23-СОТ Система охранного телевидения | N18: ='СВОДНАЯ текущий'!AH380 -> -2785355.8 | O18: 2785356 | P18: =O18+N18 -> 0.1999999997
A19: 1.9 | B19: 130-23-УА1 Устройства автоматики | F19: =#REF!-#REF! ->  | G19: =1-#REF!/#REF! ->  | N19: ='СВОДНАЯ текущий'!AH406 -> 450774.27
A20: 1.9 | B20: 130-23-УА1 Устройства автоматики | F20: =#REF!-#REF! ->  | G20: =1-#REF!/#REF! ->  | N20: ='СВОДНАЯ текущий'!AH407 -> -2511001.27 | O20: 2511005 | P20: =O20+N20 -> 3.73
A21: 1.10 | B21: 130-23-ЭО1 Электрическое освещение | F21: =#REF!-#REF! ->  | G21: =1-#REF!/#REF! ->  | N21: ='СВОДНАЯ текущий'!AH411 -> 10754684.24
A22: 1.10 | B22: 130-23-ЭО1 Электрическое освещение | N22: ='СВОДНАЯ текущий'!AH412 -> -8198924.6 | O22: 8198925 | P22: =O22+N22 -> 0.4000000004
A23: 1.11 | B23: 130-23-АС4 Архитектурно-строительные решения | F23: =#REF!-#REF! ->  | G23: =1-#REF!/#REF! ->  | N23: ='СВОДНАЯ текущий'!AH442 -> 6619735.769
B24: 130-23-АС4 Архитектурно-строительные решения | N24: ='СВОДНАЯ текущий'!AH443 -> -4905248.699 | O24: 4905251 | P24: =O24+N24 -> 2.30086
A25: 1.12 | B25: 130-23-ЭО2 Электрическое освещение | F25: =#REF!-#REF! ->  | G25: =1-#REF!/#REF! ->  | N25: ='СВОДНАЯ текущий'!AH452 -> 2887537.51
A26: 1.12 | B26: 130-23-ЭО2 Электрическое освещение | N26: ='СВОДНАЯ текущий'!AH453 -> -2850828.3 | O26: 2850828 | P26: =O26+N26 -> -0.2999999998
A27: 1.13 | B27: 130-23-АС2 Полы. Архитектурно-строительные решения | N27: ='СВОДНАЯ текущий'!AH493 -> 150138841.7
A28: 1.13 | B28: 130-23-АС2 Полы. Архитектурно-строительные решения | N28: ='СВОДНАЯ текущий'!AH494 -> -130979813.2 | O28: 130980406 | P28: =O28+N28 -> 592.82
A29: 1.14 | B29: 130-23-ЭМ1 Силовое электрооборудование | F29: =#REF!-#REF! ->  | G29: =1-#REF!/#REF! ->  | N29: ='СВОДНАЯ текущий'!AH680 -> 790831.81
A30: 1.15 | B30: 130-23-ЭМ1 Силовое электрооборудование | N30: ='СВОДНАЯ текущий'!AH681 -> -579321 | O30: 579320 | P30: =O30+N30 -> -1 | Q30: - ошибка в смете к ДС №4
A31: 1.15 | B31: 130-23-ВС Воздухоснабжение | F31: =#REF!-#REF! ->  | G31: =1-#REF!/#REF! ->  | N31: ='СВОДНАЯ текущий'!AH709 -> 22483606.7
A32: 1.15 | B32: 130-23-ВС Воздухоснабжение | N32: ='СВОДНАЯ текущий'!AH710 -> -22685124.15 | O32: 22685123 | P32: =O32+N32 -> -1.150000002
A33: 1.16 | B33: 130-23-ОВ3 Вентиляция и кондиционирование | F33: =#REF!-#REF! ->  | G33: =1-#REF!/#REF! ->  | N33: ='СВОДНАЯ текущий'!AH746 -> 14342050.38
A34: 1.16 | B34: 130-23-ОВ3 Вентиляция и кондиционирование | F34: =#REF!-#REF! ->  | G34: =1-#REF!/#REF! ->  | N34: ='СВОДНАЯ текущий'!AH747 -> -11345588.95 | O34: 11345594 | P34: =O34+N34 -> 5.049999999
A35: 1.17 | B35: 130-23-ЭМ2 Силовое электрооборудование | F35: =#REF!-#REF! ->  | G35: =1-#REF!/#REF! ->  | N35: ='СВОДНАЯ текущий'!AH766 -> 20685597.63
A36: 1.17 | B36: 130-23-ЭМ2 Силовое электрооборудование | N36: ='СВОДНАЯ текущий'!AH767 -> -15792392.77 | O36: 15792402 | P36: =O36+N36 -> 9.227999998
A37: 1.18 | B37: 130-23-ЭМ3 Силовое электрооборудование | F37: =#REF!-#REF! ->  | G37: =1-#REF!/#REF! ->  | N37: ='СВОДНАЯ текущий'!AH891 -> 2077906.1
A38: 1.18 | B38: 130-23-ЭМ3 Силовое электрооборудование | N38: ='СВОДНАЯ текущий'!AH892 -> -1806940.3 | O38: 1806939 | P38: =O38+N38 -> -1.3
A39: 1.19 | B39: 130-23-УА2 Устройства автоматики | N39: ='СВОДНАЯ текущий'!AH926 -> 8820596.98
A40: 1.19 | B40: 130-23-УА2 Устройства автоматики | N40: ='СВОДНАЯ текущий'!AH927 -> -17029685.8 | O40: 17029686 | P40: =O40+N40 -> 0.1999999993
B41: 130-23-УА3 Устройства автоматики | N41: ='СВОДНАЯ текущий'!AH934 -> 7694275.77
B42: 130-23-УА3 Устройства автоматики | N42: =-'СВОДНАЯ текущий'!AH934 -> -7694275.77 | O42: 7694282 | P42: =O42+N42 -> 6.23
A43: 2 | B43: Объекты энергетического хозяйства | F43: =#REF!-#REF! -> 
A44: 2.1 | B44: 130-23-ЭН Наружное освещение | F44: =#REF!-#REF! ->  | G44: =1-#REF!/#REF! ->  | N44: ='СВОДНАЯ текущий'!AH939 -> 1043317.22
A45: 2.1 | B45: 130-23-ЭН Наружное освещение | N45: ='СВОДНАЯ текущий'!AH940 -> -1003432.3 | O45: 1003432 | P45: =O45+N45 -> -0.2999999998
A46: 3 | B46: Объекты транспортного хозяйства и связи | F46: =#REF!-#REF! -> 
A47: 3.1 | B47: 130-23-ПЖ Пути железнодорожные | F47: =#REF!-#REF! ->  | G47: =1-#REF!/#REF! ->  | N47: ='СВОДНАЯ текущий'!AH963 -> 58519424.64
A48: 3.1 | B48: 130-23-ПЖ Пути железнодорожные | N48: ='СВОДНАЯ текущий'!AH964 -> -84965172.19 | O48: 84965304 | P48: =O48+N48 -> 131.8084
A49: 4 | B49: Наружные сети и сооружения водоснабжения, водоотведения, теплоснабжения и газоснабжения | F49: =#REF!-#REF! -> 
A50: 4.1. | B50: 130-23-НВК Наружные сети канализации | N50: ='СВОДНАЯ текущий'!AH1084 -> 3563647.394
A51: 4.1. | B51: 130-23-НВК Наружные сети канализации | N51: =НВК!AD4 -> -1492014.938 | O51: 1492015 | P51: =O51+N51 -> 0.06199679989
A52: ИТОГО текущий договор | N52: =N50+N47+N44+N41+N39+N37+N35+N33+N31+N29+N27+N25+N23+N21+N17+N15+N13+N11+N9+N6+N4+N19-N8 -> 513428946.1 | O52: =O4+O6+O8+O9+O11+O13+O15+O17+O19+O21+O24+O25+O27+O29+O31+O33+O35+O37+O39+O41+O44+O47+O50 -> 16293787
A53: ИТОГО до изменеия объемов работ | N53: =N5+N7+N8+N10+N12+N14+N16+N18+N20+N22+N24+N26+N28+N30+N32+N34+N36+N38+N40+N42+N45+N48+N51 -> -513898288.1 | O53: =O5+O7+O8+O10+O12+O14+O16+O18+O20+O22+O24+O26+O28+O30+O32+O34+O36+O38+O40+O42+O45+O48+O51 -> 513900000 | P53: =P5+P7+P8+P10+P12+P14+P16+P18+P19+P22+P24+P26+P28+P30+P32+P34+P36+P38+P40+P42+P45+P48+P51 -> 1708.172257
N57: =N52+N53 -> -469342.0193

Sheet НВК
E1: Стоимость работ, руб с НДС | G1: Стоимость материалов, руб с НДС | J1: Стоимость работ, руб с НДС | L1: Стоимость материалов, руб с НДС | S1: Смета ФССЦ материалы | T1: МТР разница КиК/ФССЦ | X1: 1.3 | Y1: 1.31 | Z1: 1.7 | AB1: 1.1883 | AC1: 1.18524 | AH1: Сопастовительная ведомость с подрядчиком | AI1: Сравнение объемов по рабочке к конкурсу и финальной вер ЗАПУСК КОР В РАМКАХ АН | AJ1: Проверка с финальной версией проекта | AK1: Внесение изменений в ведомость с нумерацией в КС | AL1: Финальная проверка изменений
A2: № | B2: Наименовение | C2: Ед.изм | D2: Кол-во | E2: за ед. | F2: итого | G2: за ед | H2: итого | I2: Итого, руб с НДС | J2: за ед. | K2: итого | L2: за ед | M2: итого | N2: Итого, руб с НДС | O2: Ед расценка СМР КиК | P2: Смета ФЕР СМР | Q2: СМР Разница КиК/ФЕР в % | R2: Ед расценка материалы КиК | V2: =N2122 -> 0 | X2: Материалы | Y2: Работы | Z2: Оборудование | AB2: Материалы ПЖ | AC2: Работы ПЖ | AD2: ВСЕГО | AF2: Комментарий | AG2: Ответственный за редакцию | AH2: 1 этап | AJ2: 2 этап | AK2: 3 этап | AL2: 4 этап | AN2: Легенда
A3: 4.1. | B3: 130-23-НВК Наружные сети канализации | F3: =SUM(F19:F30) -> 1944955.565 | H3: =SUM(H19:H30) -> 786029 | I3: =SUM(I19:I30) -> 2730984.565 | K3: =SUM(K19:K30) -> 0 | M3: =SUM(M19:M30) -> 0 | N3: =SUM(N19:N30) -> 0 | AD3: =SUM(AD19:AD30) -> 3966582.558 | AE3: =1-I3/AD3 -> 0.3115018974 | AF3: ЛВ
A4: 4.1. | B4: 130-23-НВК Наружные сети канализации | F4: =F5+F6+F7+F8+F9+F10+F11+F12+F13+F14+F15+F16+F17+F18 -> -612058.7267 | H4: =H5+H6+H7+H8+H9+H10+H11+H12+H13+H14+H15+H16+H17+H18 -> -474125.7343 | I4: =I5+I6+I7+I8+I9+I10+I11+I12+I13+I14+I15+I16+I17+I18 -> -1086184.461 | K4: =-SUM(K5:K18) -> -72888 | M4: =-SUM(M5:M18) -> -146366 | N4: =-SUM(N5:N18) -> -219254 | AD4: =AD5+AD6+AD7+AD8+AD9+AD10+AD11+AD12+AD13+AD14+AD15+AD16+AD17+AD18 -> -1492014.938 | AE4: =1-I4/AD4 -> 0.2720016178
A5: 1 | B5: Прокладка труб гофрированных 2-слойных раструбных канализационных ø160 мм | C5: м | D5: -72 | E5: 1464.48 | F5: =D5*E5 -> -105442.56 | G5: 710.05 | H5: =D5*G5 -> -51123.6 | I5: =F5+H5 -> -156566.16 | J5: =E5*$Y$3 -> 0 | K5: =J5*D5 -> 0 | L5: =G5*$X$3 -> 0 | M5: =L5*D5 -> 0 | N5: =M5+K5 -> 0 | O5: 1918.4688 | P5: 2099.75084 | Q5: -0.08633502434 | R5: 923.065 | S5: ='ВСЕ СМЕТЫ КДС'!G6971+'ВСЕ СМЕТЫ КДС'!G6966 -> 0 | T5: =((R5/(S5/100))-100)/100 ->  | AD5: =O5*D5+R5*D5 -> -204590.4336 | AE5: =1-I5/AD5 -> 0.2347337202
A6: =A5+1 -> 2 | B6: Прокладка труб стальных электросварных прямошовных ø325х6,0 (футляр) с весьма усил. Гидроизол | C6: м | D6: -36 | E6: 2132.64 | F6: -76775.04 | G6: 6499.2 | H6: -233971.2 | I6: -310746.24 | J6: =E6*$Y$3 -> 0 | K6: 0 | L6: =G6*$X$3 -> 0 | M6: =L6*D6 -> 0 | N6: 0 | O6: 2793.7584 | P6: 3252.839563 | Q6: -0.1411324334 | R6: 8448.96 | S6: ='ВСЕ СМЕТЫ КДС'!G6986+'ВСЕ СМЕТЫ КДС'!G6995+'ВСЕ СМЕТЫ КДС'!G7000 -> 0 | AD6: -404737.8624 | AE6: 0.2322283906
A7: =A6+1 -> 3 | B7: Устройство колодца канализационного из сборных ж/б элементов ∅1000 | C7: шт. | D7: -3 | E7: 26171.13333 | F7: -78513.4 | G7: 52954.84478 | H7: -158864.5343 | I7: -237377.9343 | J7: =K7/D7 -> -24296 | K7: 72888 | L7: =M7/D7 -> -48788.66667 | M7: 146366 | N7: 219254 | O7: 78955 | P7: 67771.31059 | Q7: 0.1650209995 | R7: 48788.66667 | S7: ='ВСЕ СМЕТЫ КДС'!G7014+'ВСЕ СМЕТЫ КДС'!G7015+'ВСЕ СМЕТЫ КДС'!G7016+'ВСЕ СМЕТЫ КДС'!G7017+'ВСЕ СМЕТЫ КДС'!G7018+'ВСЕ СМЕТЫ КДС'!G7019 -> 248.6059205 | T7: 195.2490136 | AD7: -383231 | AE7: 0.3805878587
A8: =A7+1 -> 4 | B8: Монтаж тройника НПВХ Т 160/160 | C8: шт | D8: -1 | E8: 3098.88 | F8: -3098.88 | G8: 2613.6 | H8: -2613.6 | I8: -5712.48 | J8: =E8*$Y$3 -> 0 | K8: =J8*D8 -> 0 | L8: =G8*$X$3 -> 0 | M8: =L8*D8 -> 0 | N8: 0 | O8: 4059.5328 | R8: 3397.68 | V8: =N8-I8 -> 5712.48 | W8: =1-I8/N8 ->  | AD8: -7457.2128 | AE8: 0.2339658056
A9: 5 | B9: Монтаж отвода НПВХ О 45° 160 | C9: шт | D9: -1 | E9: 2102.4 | F9: -2102.4 | G9: 862.4 | H9: -862.4 | I9: -2964.8 | J9: 0 | K9: 0 | L9: 0 | M9: 0 | N9: 0 | O9: 2754.144 | R9: 1121.12 | V9: 2964.8 | AD9: -3875.264 | AE9: 0.2349424452
A10: 6 | B10: Монтаж муфты защитной (для прохода через стенку ж.б. колодца) для НПВХ трубы ∅160 | C10: шт | D10: -5 | E10: 4917.6 | F10: -24588 | G10: 1795.2 | H10: -8976 | I10: -33564 | J10: 0 | K10: 0 | L10: 0 | M10: 0 | N10: 0 | O10: 6442.056 | R10: 2333.76 | V10: 33564 | AD10: -43879.08 | AE10: 0.2350796781
A11: 7 | B11: Затирка поверхности лотка в колодце (железнение) цементом М300 | C11: м2 | D11: -2.4 | E11: 512.64 | F11: -1230.336 | H11: 0 | I11: -1230.336 | J11: 0 | K11: 0 | L11: 0 | M11: 0 | N11: 0 | O11: 671.5584 | R11: 0 | V11: 1230.336 | AD11: -1611.74016 | AE11: 0.2366412214
A12: 8 | B12: Заполнение межтрубного пространства в футляре цементно-песчаной смесью (цемент М100) | C12: м3 | D12: -2.3 | E12: 13286.9664 | F12: -30560.02272 | G12: 4620 | H12: -10626 | I12: -41186.02272 | J12: 0 | K12: 0 | L12: 0 | M12: 0 | N12: 0 | O12: 17405.92598 | R12: 6006 | V12: 41186.02272 | AD12: -53847.42976 | AE12: 0.2351348449
A13: 9 | B13: Отсыпка песка крупнозернистого фракции 1-2 мм | C13: м3 | D13: -0.8 | E13: 1985.76 | F13: -1588.608 | G13: 1584 | H13: -1267.2 | I13: -2855.808 | J13: 0 | K13: 0 | L13: 0 | M13: 0 | N13: 0 | O13: 2601.3456 | R13: 2059.2 | V13: 2855.808 | AD13: -3728.43648 | AE13: 0.2340467605
A14: 10 | B14: Отсыпка щебня с трамбованием | C14: м3 | D14: -3.5 | E14: 2047.68 | F14: -7166.88 | G14: 1663.2 | H14: -5821.2 | I14: -12988.08 | J14: 0 | K14: 0 | L14: 0 | M14: 0 | N14: 0 | O14: 2682.4608 | R14: 2162.16 | V14: 12988.08 | AD14: =O14*D14+R14*D14 -> -16956.1728 | AE14: 0.234020545
A15: 11 | B15: Обмазка сборных ж.б. элементов праймером Технониколь №1 | C15: м2 | D15: -25.3 | E15: 226.8 | F15: -5738.04 | I15: -5738.04 | J15: 0 | K15: 0 | L15: 0 | M15: 0 | N15: 0 | O15: 297.108 | R15: 0 | V15: 5738.04 | AD15: =O15*D15+R15*D15 -> -7516.8324 | AE15: 0.2366412214
A16: 12 | B16: Обмазка сборных ж.б. элементов колодцев битумной мастикой Технониколь №24 (2 раза) | C16: м2 | D16: -50.6 | E16: 453.6 | F16: -22952.16 | I16: -22952.16 | J16: 0 | K16: 0 | L16: 0 | M16: 0 | N16: 0 | O16: 594.216 | R16: 0 | V16: 22952.16 | AD16: =O16*D16+R16*D16 -> -30067.3296 | AE16: 0.2366412214
A17: 13 | B17: Восстановление асфальтобетонного покрытия | C17: м2 | D17: -120 | E17: 2073.6 | F17: -248832 | I17: -248832 | J17: 0 | K17: 0 | L17: 0 | M17: 0 | N17: 0 | O17: 2716.416 | R17: 0 | V17: 248832 | AD17: =O17*D17+R17*D17 -> -325969.92 | AE17: 0.2366412214
A18: 14 | B18: Восстановление бордюрного камня | C18: м | D18: -2 | E18: 1735.2 | F18: -3470.4 | I18: -3470.4 | J18: 0 | K18: 0 | L18: 0 | M18: 0 | N18: 0 | O18: 2273.112 | R18: 0 | V18: 3470.4 | AD18: -4546.224 | AE18: 0.2366412214
B19: Разборка дорожных покрытий | C19: м3 | D19: 92.84 | E19: 5853.220595 | F19: 543413 | I19: =H19+F19 -> 543413 | O19: =E19*1.3 -> 7609.186773 | AD19: 706436.9 | AE19: 0.2307692308
B20: Демонтаж коллектора | C20: м3 | D20: 2.89 | E20: 93008.65052 | F20: 268795 | I20: =H20+F20 -> 268795 | O20: =E20*1.3 -> 120911.2457 | AD20: 349433.5 | AE20: 0.2307692308
B21: Прочие работы. Погрузка, вывоз, утилизация | AD21: =SUM(AD22:AD23) -> 320749.229 | AE21: 1
B22: Погрузка дорожного покрытия, щебня, жб мусора | C22: м3 | D22: 95.73 | E22: 779.4317351 | F22: =D22*E22 -> 74615 | I22: =H22+F22 -> 74615 | O22: =E22*1.3 -> 1013.261256 | AD22: =O22*D22+R22*D22 -> 96999.5 | AE22: 0.2307692308
B23: Вывоз и утилизация с К разрыхления 1,47 | C23: м3 | D23: =D22*1.47 -> 140.7231 | E23: 1150 | F23: =D23*E23 -> 161831.565 | I23: =H23+F23 -> 161831.565 | O23: 1590 | AD23: =O23*D23+R23*D23 -> 223749.729 | AE23: 0.2767295597
B24: Земляные работы. Разработка грунта, обратная засыпка щебнем, песком, грунтом, уплотнение | C24: м3 | D24: 164.87 | E24: 2439.855644 | F24: =D24*E24 -> 402259 | G24: 2124.631528 | H24: =D24*G24 -> 350288 | I24: =H24+F24 -> 752547 | O24: =E24*1.3 -> 3171.812337 | R24: =G24*1.3 -> 2762.020986 | AD24: =O24*D24+R24*D24 -> 978311.1 | AE24: 0.2307692308
B25: Прочие работы. Лишний грунт. Погрузка, вывоз, утилизация | AD25: =SUM(AD26:AD27) -> 82184.7 | AE25: 1
B26: Погрузка лишнего грунта | C26: м3 | D26: 24.85 | E26: 704.0241449 | F26: =D26*E26 -> 17495 | I26: =H26+F26 -> 17495 | O26: =E26*1.3 -> 915.2313883 | AD26: =O26*D26+R26*D26 -> 22743.5 | AE26: 0.2307692308
B27: Вывоз и утилизация с К разрыхления 1,6 | C27: м3 | D27: =D26*1.6 -> 39.76 | E27: 1150 | F27: =D27*E27 -> 45724 | I27: =H27+F27 -> 45724 | O27: =E27*1.3 -> 1495 | AD27: =O27*D27+R27*D27 -> 59441.2 | AE27: 0.2307692308
B28: Прокладка ПВХ трубопровода Дн 160 в стальном футляре, с отводами в колодцы, бетонированием | C28: м | D28: 106.18 | E28: 3711.22622 | F28: =D28*E28 -> 394058 | G28: 3215.087587 | H28: =D28*G28 -> 341378 | I28: =H28+F28 -> 735436 | O28: =E28*1.3 -> 4824.594086 | R28: =G28*1.3 -> 4179.613863 | AD28: =O28*D28+R28*D28 -> 956066.8 | AE28: 0.2307692308
B29: Установка ж/б колодцев К1-1 | C29: шт. | D29: 1 | E29: =17779 -> 17779 | F29: =D29*E29 -> 17779 | G29: 47934 | H29: =D29*G29 -> 47934 | I29: =H29+F29 -> 65713 | O29: =E29*1.3 -> 23112.7 | R29: =G29*1.3 -> 62314.2 | AD29: =O29*D29+R29*D29 -> 85426.9 | AE29: 0.2307692308
B30: Установка ж/б колодцев К1-3 | C30: шт. | D30: 1 | E30: 18986 | F30: =D30*E30 -> 18986 | G30: 46429 | H30: =D30*G30 -> 46429 | I30: =H30+F30 -> 65415 | O30: =E30*1.3 -> 24681.8 | R30: =G30*1.3 -> 60357.7 | AD30: =O30*D30+R30*D30 -> 85039.5 | AE30: 0.2307692308

Sheet Отклонение
A2: № | B2: Раздел | C2: Исключенные объемы | F2: Доп объемы | I2: Неизменные объемы | L2: Итого отклонение
C3: Работы | D3: Материалы | E3: Итого | F3: Работы | G3: Материалы | H3: Итого | I3: Работы | J3: Материалы | K3: Итого
A4: 1 | B4: 130-23-АС3 Архитектурно-строительные решения | E4: =SUM(C4:D4) -> 0 | H4: =SUM(F4:G4) -> 0 | K4: =SUM(I4:J4) -> 0 | L4: =H4+E4 -> 0
A5: 2 | B5: 130-23-АС1 Архитектурно-строительные решения | E5: =SUM(C5:D5) -> 0 | H5: =SUM(F5:G5) -> 0 | K5: 0 | L5: =H5+E5 -> 0
A6: 3 | B6: 130-23-ВК Внутренние трубопроводы | E6: 0 | H6: 0 | K6: 0 | L6: 0
A7: 4 | B7: 130-23-ПС Пожарная сигнализация | E7: 0 | H7: 0 | K7: 0 | L7: 0
A8: 5 | B8: 130-23-ОВ2 Отопление и вентиляция | E8: 0 | H8: 0 | K8: 0 | L8: 0
A9: 6 | B9: 130-23-ОВ1 Отопление, вентиляция и кондиционирование | E9: 0 | H9: 0 | K9: =SUM(I9:J9) -> 0 | L9: 0
A10: 7 | B10: 130-23-СКС Структурированная кабельная сеть | E10: 0 | H10: 0 | K10: 0 | L10: 0
A11: 8 | B11: 130-23-СОТ Система охранного телевидения | E11: 0 | H11: 0 | K11: 0 | L11: 0
A12: 9 | B12: 130-23-УА1 Устройства автоматики | E12: 0 | H12: 0 | K12: 0 | L12: 0
A13: 10 | B13: 130-23-ЭО1 Электрическое освещение | E13: 0 | H13: 0 | K13: 0 | L13: 0
A14: 11 | B14: 130-23-АС4 Архитектурно-строительные решения | E14: 0 | H14: 0 | K14: 0 | L14: 0
A15: 12 | B15: 130-23-ЭО2 Электрическое освещение | E15: 0 | H15: 0 | K15: 0 | L15: 0
A16: 13 | B16: 130-23-АС2 Полы. Архитектурно-строительные решения | E16: 0 | H16: 0 | K16: 0 | L16: 0
A17: 14 | B17: 130-23-ЭМ1 Силовое электрооборудование | E17: 0 | H17: 0 | K17: 0 | L17: 0
A18: 15 | B18: 130-23-ВС Воздухоснабжение | E18: 0 | H18: 0 | K18: 0 | L18: 0
A19: 16 | B19: 130-23-ОВ3 Вентиляция и кондиционирование | E19: 0 | H19: 0 | K19: 0 | L19: 0
A20: 17 | B20: 130-23-ЭМ2 Силовое электрооборудование | E20: 0 | H20: 0 | K20: 0 | L20: 0
A21: 18 | B21: 130-23-ЭМ3 Силовое электрооборудование | E21: 0 | H21: 0 | K21: 0 | L21: 0
A22: 19 | B22: 130-23-УА2 Устройства автоматики | E22: 0 | H22: 0 | K22: 0 | L22: 0
A23: 20 | B23: 130-23-УА3 Устройства автоматики | E23: 0 | H23: 0 | K23: 0 | L23: 0
A24: 21 | B24: 130-23-ЭН Наружное освещение | E24: 0 | H24: 0 | K24: 0 | L24: 0
A25: 22 | B25: 130-23-ПЖ Пути железнодорожные | E25: 0 | H25: 0 | K25: 0 | L25: 0
A26: 23 | B26: 130-23-НВК Наружные сети канализации | E26: 0 | H26: 0 | K26: 0 | L26: 0

Sheet ВСЕ СМЕТЫ КДС
H1: НДС | I1: ВЗиС
A2: СМЕТА № 02-01-04 | H2: 1.2 | I2: 1.0224 | J2: 1.0192
A4: на Архитектурно-строительные решения. Цех №417. Марка АС1. Этап 1, АО " МЕТРОВАГОНМАШ" | P4: на Архитектурно-строительные решения. Цех №417. Марка АС1. Этап 1, АО " МЕТРОВАГОНМАШ"
A5: (наименование сметы, наименование объекта)
A7: Составлен в ценах по состоянию на | C7: Август 2023
A10: № п.п | B10: Обоснование | C10: Наименование работ и затрат, единица измерения | D10: Количество | E10: Стоимость единицы, руб. | F10: Общая стоимость, руб.
A12: 1 | B12: 2 | C12: 3 | F12: 4
A13: Раздел 1. Элементы каркаса и перекрытия встройки в осях 5-33/И-И1. (1727-1/9-52-АС1 л.2) | Q13: Раздел 1. Элементы каркаса и перекрытия встройки в осях 5-33/И-И1. (1727-1/9-52-АС1 л.2)
A14: 1 | B14: ФЕР09-03-002-01 | C14: Монтаж колонн одноэтажных и многоэтажных зданий и крановых эстакад высотой: до 25 м цельного сечения массой до 1,0 т (Колонны К1, стойки Ст1, Р1) (т) | D14: 10.088 | E14: 557.63 | F14: 133371.65
C15: Накладные расходы 93% ФОТ (от 79 234,49) | F15: 73688.08
C16: Сметная прибыль 62% ФОТ (от 79 234,49) | F16: 49125.38
C17: Итого c накладными и см. прибылью | F17: 256185.11
A18: 2 | B18: ФССЦ-07.2.07.12-0032 | C18: Прочие конструкции одноэтажных производственных зданий, масса сборочной единицы от 0,1 до 0,5 т (т) | D18: 10.09 | E18: 11176.42 | F18: 1173936.51
A19: 3 | B19: ФССЦ-01.7.15.02-0047 | C19: Болты анкерные с гайкой, размер 20,0х150 мм(прим. Механический анкер R-XPT M20x200) (100 шт) | D19: 3 | E19: 1121 | F19: 33226.44
A20: 4 | B20: ФЕР09-01-001-01 | C20: Монтаж каркасов одноэтажных производственных зданий (Б1, Б2) (т) | D20: 12.697 | E20: 1112.8 | F20: 308828.94
C21: Накладные расходы 93% ФОТ (от 187 964,85) | F21: 174807.31
C22: Сметная прибыль 62% ФОТ (от 187 964,85) | F22: 116538.21
C23: Итого c накладными и см. прибылью | F23: 600174.46
A24: 5 | B24: ФССЦ-07.2.07.12-0031 | C24: Прочие конструкции одноэтажных производственных зданий, масса сборочной единицы до 0,1 т (т) | D24: 12.7 | E24: 12990.48 | F24: 1722381.76
A25: 6 | B25: ФЕР06-03-002-01 | C25: Устройство подливки толщиной 20 мм (V=0,33м3) (100 м2) | D25: 0.11 | E25: 716.71 | F25: 2793
C26: Накладные расходы 102% ФОТ (от 2 597,90) | F26: 2649.86
C27: Сметная прибыль 58% ФОТ (от 2 597,90) | F27: 1506.78
C28: Итого c накладными и см. прибылью | F28: 6949.64
A29: 7 | B29: ФССЦ-04.3.01.09-0018 | C29: Раствор готовый кладочный, цементный, М300 (м3) | D29: 0.2244 | E29: 711.5 | F29: 1234.18
A30: 8 | B30: ФЕР06-03-002-02 | C30: На каждые 10 мм изменения толщины добавлять или исключать к расценке 06-03-002-01 (до общей толщины 30 мм) (100 м2) | D30: 0.11 | E30: 202.5 | F30: 801.43
C31: Накладные расходы 102% ФОТ (от 744,46) | F31: 759.35
C32: Сметная прибыль 58% ФОТ (от 744,46) | F32: 431.79
C33: Итого c накладными и см. прибылью | F33: 1992.57
A34: 9 | B34: ФССЦ-04.3.01.09-0018 | C34: Раствор готовый кладочный, цементный, М300 (м3) | D34: 0.1122 | E34: 711.5 | F34: 617.09
A35: 10 | B35: ФЕР06-07-002-01 | C35: Устройство поясов: в опалубке (Опорные подушки ОП1) (100 м3) | D35: 0.0008 | E35: 29591.26 | F35: 551.71
C36: Накладные расходы 102% ФОТ (от 422,02) | F36: 430.46
C37: Сметная прибыль 58% ФОТ (от 422,02) | F37: 244.77
C38: Итого c накладными и см. прибылью | F38: 1226.94 | P38: ='ВСЕ СМЕТЫ КДС'!G1944+('ВСЕ СМЕТЫ КДС'!G1950/6*5) -> 1095.704807
A39: 11 | B39: ФССЦ-04.1.02.05-0007 | C39: Смеси бетонные тяжелого бетона (БСТ), класс В20 (М250) (м3) | D39: 0.0812 | E39: 665 | F39: 383.93
A40: 12 | B40: ФССЦ-08.4.02.03-0021 | C40: Каркасы и сетки арматурные плоские, собранные и сваренные (связанные) в арматурные изделия, класс ВР-I, диаметр 4 мм / прим. 5мм (т) | D40: 0.116 | E40: 8817.17 | F40: 19903.53
A41: 13 | B41: ФЕР06-03-004-10 | C41: Установка закладных деталей весом: до 20 кг (т) | D41: 0.0368 | E41: 768.92 | F41: 1229.24
C42: Накладные расходы 102% ФОТ (от 1 218,01) | F42: 1242.37
C43: Сметная прибыль 58% ФОТ (от 1 218,01) | F43: 706.45
C44: Итого c накладными и см. прибылью | F44: 3178.06
A45: 14 | B45: ФССЦ-08.4.01.02-0013 | C45: Детали закладные и накладные, изготовленные с применением сварки, гнутья, сверления (пробивки) отверстий (при наличии одной из этих операций или всего перечня в любых сочетаниях), поставляемые отдельно (т) | D45: 0.0368 | E45: 6800 | F45: 2524.92
A46: комплекс работ по устройству перекрытия из кровельных сэндвич-панелей | R46: комплекс работ по устройству перекрытия из кровельных сэндвич-панелей
A47: 15 | B47: ФЕР09-04-002-03 | C47: Монтаж кровельного покрытия: из многослойных панелей заводской готовности при высоте до 50 м (100 м2) | D47: 5.412 | E47: 2930.25 | F47: 287114.35
C48: Накладные расходы 93% ФОТ (от 190 199,25) | F48: 176885.3
C49: Сметная прибыль 62% ФОТ (от 190 199,25) | F49: 117923.54
C50: Итого c накладными и см. прибылью | F50: 581923.19 | G50: =F50/D47/100*1.2*1.0224*1.0192 -> 1344.526537
A51: 16 | B51: Счет на оплату № УТ-23 от 18.01.24, п.1,п.2 | C51: Сэндвич панель кровельная МВП-PVDF 100х1000х3580 / 100х1000х3700 (м2) | D51: 541.2 | E51: 663.43 | F51: 3012419.32 | G51: =F51/D51*1.2*1.0224*1.0192 -> 6960.158636
A52: 17 | B52: ФЕР07-01-037-03 | C52: Герметизация мастикой швов: горизонтальных (силиконовый герметик) (100 м) | D52: 2.95 | E52: 1514.82 | F52: 59131.09
C53: Накладные расходы 110% ФОТ (от 26 541,84) | F53: 29196.02
C54: Сметная прибыль 73% ФОТ (от 26 541,84) | F54: 19375.54
C55: Итого c накладными и см. прибылью | F55: 107702.65 | G55: =F55/D51*1.2*1.0224*1.0192 -> 248.8456785
A56: 18 | B56: ФССЦ-01.7.06.11-0001 | C56: Лента предварительно сжатая, уплотнительная (10 м) | D56: 47.1 | E56: 64.1 | F56: 10989.56 | G56: =F56/D51*1.2*1.0224*1.0192 -> 25.39124631
A57: 19 | B57: ФЕР12-01-010-01 | C57: Устройство мелких покрытий (брандмауэры, парапеты, свесы и т.п.) из листовой оцинкованной стали (фасонные элементы) (100 м2) | D57: 1.069 | E57: 7693.19 | F57: 110912.59
C58: Накладные расходы 109% ФОТ (от 55 552,36) | F58: 60552.07
C59: Сметная прибыль 57% ФОТ (от 55 552,36) | F59: 31664.85
C60: Итого c накладными и см. прибылью | F60: 203129.51 | G60: =F60/D51*1.2*1.0224*1.0192 -> 469.3282917
A61: 20 | B61: ФССЦ-08.3.05.05-0051 | C61: Сталь листовая оцинкованная, толщина 0,5 мм (т) | D61: -0.6093 | E61: 11200 | F61: -53296.69 | G61: =F61/D51*1.2*1.0224*1.0192 -> -123.1413617
A62: 21 | B62: Счет на оплату № УТ-23 от 18.01.24, п.6 | C62: Фасонное изделие Нщ1 по чертежу 1727-1/9-52-АС1 (м.п.) | D62: 154 | E62: 39.21 | F62: 50666.3 | G62: =F62/D51*1.2*1.0224*1.0192 -> 117.0638773
A63: 22 | B63: Счет на оплату № УТ-23 от 18.01.24, п.7 | C63: Фасонное изделие Нщ2 по чертежу 1727-1/9-52-АС1 (м.п.) | D63: 141.5 | E63: 117.9 | F63: 139970.7 | G63: =F63/D51*1.2*1.0224*1.0192 -> 323.4006202
A64: 23 | B64: Счет на оплату № УТ-23 от 18.01.24, п.8 | C64: Фасонное изделие Нщ3 по чертежу 1727-1/9-52-АС1 (м.п.) | D64: 3.5 | E64: 157.13 | F64: 4613.99 | G64: =F64/D51*1.2*1.0224*1.0192 -> 10.66056845
A65: 24 | B65: Счет на оплату № УТ-23 от 18.01.24, п.9 | C65: Фасонное изделие Нщ4 по чертежу 1727-1/9-52-АС1 (м.п.) | D65: 4 | E65: 111.88 | F65: 3754.58 | G65: =F65/D51*1.2*1.0224*1.0192 -> 8.674911968
A66: 25 | B66: Счет на оплату № УТ-23 от 18.01.24, п.10 | C66: Фасонное изделие Нщ5 по чертежу 1727-1/9-52-АС1 (м.п.) | D66: 4 | E66: 44.75 | F66: 1501.76 | G66: =F66/D56*1.2*1.0224*1.0192 -> 39.86953103
A67: 26 | B67: Счет на оплату № УТ-23 от 18.01.24, п.11 | C67: Фасонное изделие Нщ6 по чертежу 1727-1/9-52-АС1 (м.п.) | D67: 7.3 | E67: 188.55 | F67: 11548.27 | G67: =F67/D51*1.2*1.0224*1.0192 -> 26.68213905
A68: 27 | B68: Счет на оплату № УТ-23 от 18.01.24, п.12 | C68: Фасонное изделие Нщ7 по чертежу 1727-1/9-52-АС1 (м.п.) | D68: 10.2 | E68: 157.13 | F68: 13446.47 | G68: =F68/D51*1.2*1.0224*1.0192 -> 31.06790734
A69: 28 | B69: ФЕР26-01-036-02 | C69: Изоляция изделиями из волокнистых и зернистых материалов с креплением на клее и дюбелями холодных поверхностей: внутренних стен и перегородок (заделка швов) (100 м2) | D69: 0.205 | E69: 2703.52 | F69: 12981.33
C70: Накладные расходы 97% ФОТ (от 1 484,98) | F70: 1440.43
C71: Сметная прибыль 55% ФОТ (от 1 484,98) | F71: 816.74
C72: Итого c накладными и см. прибылью | F72: 15238.5 | G72: =F72/D51*1.2*1.0224*1.0192 -> 35.20837112
A73: 29 | B73: ФССЦ-12.2.03.02-0002 | C73: Вата минеральная (м3) | D73: 0.41 | E73: 200 | F73: 1560.46 | G73: =F73/D51*1.2*1.0224*1.0192 -> 3.605424077
A74: -демонтаж конструкций перекрытия в осях 31-33/И-И1 | R74: -демонтаж конструкций перекрытия в осях 31-33/И-И1
A75: 30 | B75: ФЕР09-01-001-01 | C75: Демонтаж. Монтаж каркасов одноэтажных производственных зданий одно- и многопролетных без фонарей пролетом: до 24 м, высотой до 15 м без кранов (т) | D75: 2.11011 | E75: 516.54 | F75: 27063.73
C76: Накладные расходы 93% ФОТ (от 18 726,60) | F76: 17415.74
C77: Сметная прибыль 62% ФОТ (от 18 726,60) | F77: 11610.49
C78: Итого c накладными и см. прибылью | F78: 56089.96
A79: 31 | B79: ФЕР46-04-002-02 | C79: Разборка монолитных перекрытий: железобетонных (м3) | D79: 8 | E79: 322.34 | F79: 46381.42
C80: Накладные расходы 91% ФОТ (от 38 796,69) | F80: 35304.99
C81: Сметная прибыль 52% ФОТ (от 38 796,69) | F81: 20174.28
C82: Итого c накладными и см. прибылью | F82: 101860.69
A83: 32 | B83: ФЕР46-04-002-01 | C83: Разборка монолитных перекрытий: бетонных (м3) | D83: 5.3 | E83: 262.07 | F83: 26099.41
C84: Накладные расходы 91% ФОТ (от 23 276,01) | F84: 21181.17
C85: Сметная прибыль 52% ФОТ (от 23 276,01) | F85: 12103.53
C86: Итого c накладными и см. прибылью | F86: 59384.11
A87: 33 | B87: ФЕРр68-12-5 | C87: Разборка покрытий и оснований: цементно-бетонных (100 м3) | D87: 0.013 | E87: 1859.1 | F87: 570.96
C88: Накладные расходы 102% ФОТ (от 384,60) | F88: 392.29
C89: Сметная прибыль 54% ФОТ (от 384,60) | F89: 207.68
C90: Итого c накладными и см. прибылью | F90: 1170.93
A91: Итого прямые затраты по разделу в текущих ценах | F91: 7169213.93 | S91: Итого прямые затраты по разделу в текущих ценах
A92: Накладные расходы | F92: 595945.44 | S92: Накладные расходы
A93: Сметная прибыль | F93: 382430.02 | S93: Сметная прибыль
A94: Итого по разделу 1 Элементы каркаса и перекрытия встройки в осях 5-33/И-И1. (1727-1/9-52-АС1 л.2) | F94: 8147589.39 | S94: Итого по разделу 1 Элементы каркаса и перекрытия встройки в осях 5-33/И-И1. (1727-1/9-52-АС1 л.2)
A95: Раздел 2. Разные работы | Q95: Раздел 2. Разные работы
A96: -погрузка и вывоз строительного мусора | R96: -погрузка и вывоз строительного мусора
A97: 34 | B97: ФССЦпг-01-01-01-043 | C97: Погрузо-разгрузочные работы при автомобильных перевозках: Погрузка мусора строительного с погрузкой экскаваторами емкостью ковша до 0,5 м3 (1 т груза) | D97: 35.84 | E97: 3.28 | F97: 2650.87
A98: 35 | B98: ФССЦпг-03-21-01-110 ТБО Тимохово | C98: Перевозка грузов I класса автомобилями-самосвалами грузоподъемностью 10 т работающих вне карьера на расстояние до 110 км (1 т груза) | D98: 35.84 | E98: 50.78 | F98: 20747.49
A99: - погрузка и вывоз металлолома | R99: - погрузка и вывоз металлолома
A100: 36 | B100: ФССЦпг-01-01-01-045 | C100: Погрузо-разгрузочные работы при автомобильных перевозках: Погрузка прочих материалов, деталей (с использованием погрузчика) (1 т груза) | D100: 2.11 | E100: 17.95 | F100: 1339.62
A101: 37 | B101: ФССЦпг-03-21-01-001 | C101: Перевозка грузов автомобилями-самосвалами грузоподъемностью 10 т работающих вне карьера на расстояние: I класс груза до 1 км (на склад) (1 т груза) | D101: 2.11 | E101: 2.91 | F101: 70
A102: Итого прямые затраты по разделу в текущих ценах | F102: 24807.98 | S102: Итого прямые затраты по разделу в текущих ценах
A103: Итого по разделу 2 Разные работы | F103: 24807.98 | S103: Итого по разделу 2 Разные работы
A104: Итого прямые затраты по смете в текущих ценах | F104: 7194021.91 | T104: Итого прямые затраты по смете в текущих ценах
A105: Накладные расходы | F105: 595945.44 | T105: Накладные расходы
A106: Сметная прибыль | F106: 382430.02 | T106: Сметная прибыль
A107: ВСЕГО по смете | F107: 8515883.88 | T107: ВСЕГО по смете
A110: Составил: | B110: (Начальник сметного отдела А.А.Елизарьев)
B111: [должность, подпись (инициалы, фамилия)]
A112: Проверил:
B113: [должность, подпись (инициалы, фамилия)]
A116: СМЕТА № 02-01-04
A118: на Архитектурно-строительные решения. Цех №417. Марка АС1. Этап 1, АО " МЕТРОВАГОНМАШ"
A119: (наименование сметы, наименование объекта)
A121: Составлен в ценах по состоянию на
A124: № п.п | B124: Обоснование | C124: Наименование работ и затрат, единица измерения | D124: Количество | E124: Стоимость единицы, руб. | F124: Общая стоимость, руб.
A126: 1 | B126: 2 | C126: 3 | F126: 4
A127: Раздел 1. Элементы каркаса и перекрытия встройки в осях 5-33/И-И1. (1727-1/9-52-АС1 л.2)
A128: 1 | B128: ФЕР09-03-002-01 | C128: Монтаж колонн одноэтажных и многоэтажных зданий и крановых эстакад высотой: до 25 м цельного сечения массой до 1,0 т (Колонны К1, стойки Ст1, Р1) (т) | D128: 10.088 | E128: 557.63 | F128: 133371.65
C129: Накладные расходы 93% ФОТ (от 79 234,49) | F129: 73688.08
C130: Сметная прибыль 62% ФОТ (от 79 234,49) | F130: 49125.38
C131: Итого c накладными и см. прибылью | F131: 256185.11
A132: 2 | B132: ФССЦ-07.2.07.12-0032 | C132: Прочие конструкции одноэтажных производственных зданий, масса сборочной единицы от 0,1 до 0,5 т (т) | D132: 10.09 | E132: 11176.42 | F132: 1173936.51
A133: 3 | B133: ФССЦ-01.7.15.02-0047 | C133: Болты анкерные с гайкой, размер 20,0х150 мм(прим. Механический анкер R-XPT M20x200) (100 шт) | D133: 3 | E133: 1121 | F133: 33226.44
A134: 4 | B134: ФЕР09-01-001-01 | C134: Монтаж каркасов одноэтажных производственных зданий (Б1, Б2) (т) | D134: 12.697 | E134: 1112.8 | F134: 308828.94
C135: Накладные расходы 93% ФОТ (от 187 964,85) | F135: 174807.31
C136: Сметная прибыль 62% ФОТ (от 187 964,85) | F136: 116538.21
C137: Итого c накладными и см. прибылью | F137: 600174.46
A138: 5 | B138: ФССЦ-07.2.07.12-0031 | C138: Прочие конструкции одноэтажных производственных зданий, масса сборочной единицы до 0,1 т (т) | D138: 12.7 | E138: 12990.48 | F138: 1722381.76
A139: 6 | B139: ФЕР06-03-002-01 | C139: Устройство подливки толщиной 20 мм (V=0,33м3) (100 м2) | D139: 0.11 | E139: 716.71 | F139: 2793
C140: Накладные расходы 102% ФОТ (от 2 597,90) | F140: 2649.86
C141: Сметная прибыль 58% ФОТ (от 2 597,90) | F141: 1506.78
C142: Итого c накладными и см. прибылью | F142: 6949.64
A143: 7 | B143: ФССЦ-04.3.01.09-0018 | C143: Раствор готовый кладочный, цементный, М300 (м3) | D143: 0.2244 | E143: 711.5 | F143: 1234.18
A144: 8 | B144: ФЕР06-03-002-02 | C144: На каждые 10 мм изменения толщины добавлять или исключать к расценке 06-03-002-01 (до общей толщины 30 мм) (100 м2) | D144: 0.11 | E144: 202.5 | F144: 801.43
C145: Накладные расходы 102% ФОТ (от 744,46) | F145: 759.35
C146: Сметная прибыль 58% ФОТ (от 744,46) | F146: 431.79
C147: Итого c накладными и см. прибылью | F147: 1992.57
A148: 9 | B148: ФССЦ-04.3.01.09-0018 | C148: Раствор готовый кладочный, цементный, М300 (м3) | D148: 0.1122 | E148: 711.5 | F148: 617.09
A149: 10 | B149: ФЕР06-07-002-01 | C149: Устройство поясов: в опалубке (Опорные подушки ОП1) (100 м3) | D149: 0.0008 | E149: 29591.26 | F149: 551.71
C150: Накладные расходы 102% ФОТ (от 422,02) | F150: 430.46
C151: Сметная прибыль 58% ФОТ (от 422,02) | F151: 244.77
C152: Итого c накладными и см. прибылью | F152: 1226.94
A153: 11 | B153: ФССЦ-04.1.02.05-0007 | C153: Смеси бетонные тяжелого бетона (БСТ), класс В20 (М250) (м3) | D153: 0.0812 | E153: 665 | F153: 383.93
A154: 12 | B154: ФССЦ-08.4.02.03-0021 | C154: Каркасы и сетки арматурные плоские, собранные и сваренные (связанные) в арматурные изделия, класс ВР-I, диаметр 4 мм / прим. 5мм (т) | D154: 0.116 | E154: 8817.17 | F154: 19903.53
A155: 13 | B155: ФЕР06-03-004-10 | C155: Установка закладных деталей весом: до 20 кг (т) | D155: 0.0368 | E155: 768.92 | F155: 1229.24
C156: Накладные расходы 102% ФОТ (от 1 218,01) | F156: 1242.37
C157: Сметная прибыль 58% ФОТ (от 1 218,01) | F157: 706.45
C158: Итого c накладными и см. прибылью | F158: 3178.06
A159: 14 | B159: ФССЦ-08.4.01.02-0013 | C159: Детали закладные и накладные, изготовленные с применением сварки, гнутья, сверления (пробивки) отверстий (при наличии одной из этих операций или всего перечня в любых сочетаниях), поставляемые отдельно (т) | D159: 0.0368 | E159: 6800 | F159: 2524.92
A160: комплекс работ по устройству перекрытия из кровельных сэндвич-панелей
A161: 15 | B161: ФЕР09-04-002-03 | C161: Монтаж кровельного покрытия: из многослойных панелей заводской готовности при высоте до 50 м (100 м2) | D161: 5.412 | E161: 2930.25 | F161: 287114.35
C162: Накладные расходы 93% ФОТ (от 190 199,25) | F162: 176885.3
C163: Сметная прибыль 62% ФОТ (от 190 199,25) | F163: 117923.54 | H163: СМР | I163: МТР
C164: Итого c накладными и см. прибылью | F164: 581923.19 | G164: =F164/D161/100*1.2*1.0224*1.0192 -> 1344.526537 | H164: =G164+G169+G174+G180 -> 2221.05024 | I164: =G165+G170+G176+G181 -> 3378.93468
A165: 16 | B165: ФССЦ-07.2.05.05-0010 | C165: Сэндвич-панель трехслойная кровельная "Металл Профиль" с наполнителем из минеральной ваты (НГ) плотностью 110кг/м3, марка МП ТСП-K, толщина: 100 мм, тип покрытия полиэстер, толщина металлических облицовок 0,5 мм (Россия) (м2) | D165: 541.2 | E165: 226.28 | F165: 1339742.33 | G165: =F165/D165*1.2*1.0224*1.0192 -> 3095.458553
A166: 17 | B166: ФЕР07-01-037-03 | C166: Герметизация мастикой швов: горизонтальных (силиконовый герметик) (100 м) | D166: 2.95 | E166: 1514.82 | F166: 59131.09
C167: Накладные расходы 110% ФОТ (от 26 541,84) | F167: 29196.02 | H167: НДС
C168: Сметная прибыль 73% ФОТ (от 26 541,84) | F168: 19375.54 | H168: 1.2
C169: Итого c накладными и см. прибылью | F169: 107702.65 | G169: =F169/D165*1.2*1.0224*1.0192 -> 248.8456785
A170: 18 | B170: ФССЦ-01.7.06.11-0001 | C170: Лента предварительно сжатая, уплотнительная (10 м) | D170: 47.1 | E170: 64.1 | F170: 10989.56 | G170: =F170/D165*1.2*1.0224*1.0192 -> 25.39124631
A171: 19 | B171: ФЕР12-01-010-01 | C171: Устройство мелких покрытий (брандмауэры, парапеты, свесы и т.п.) из листовой оцинкованной стали (фасонные элементы) (100 м2) | D171: 1.069 | E171: 7693.19 | F171: 110912.59
C172: Накладные расходы 109% ФОТ (от 55 552,36) | F172: 60552.07
C173: Сметная прибыль 57% ФОТ (от 55 552,36) | F173: 31664.85
C174: Итого c накладными и см. прибылью | F174: 203129.51 | G174: =(F174-F175)/D165*1.2*1.0224*1.0192 -> 592.4696534
A175: 20 | B175: ФССЦ-08.3.05.05-0051 | C175: Сталь листовая оцинкованная, толщина 0,5 мм (т) | D175: -0.6093 | E175: 11200 | F175: -53296.69
A176: 21 | B176: ФССЦ-07.2.05.02-0001 | C176: Изделия фасонные (толщина 0,5 мм) для трехслойных стеновых сэндвич-панелей с покрытием полиэстер (м2) | D176: 106.9 | E176: 138.67 | F176: 110141 | G176: =F176/D165*1.2*1.0224*1.0192 -> 254.4794569
A177: 22 | B177: ФЕР26-01-036-02 | C177: Изоляция изделиями из волокнистых и зернистых материалов с креплением на клее и дюбелями холодных поверхностей: внутренних стен и перегородок (заделка швов) (100 м2) | D177: 0.205 | E177: 2703.52 | F177: 12981.33
C178: Накладные расходы 97% ФОТ (от 1 484,98) | F178: 1440.43
C179: Сметная прибыль 55% ФОТ (от 1 484,98) | F179: 816.74
C180: Итого c накладными и см. прибылью | F180: 15238.5 | G180: =F180/D165*1.2*1.0224*1.0192 -> 35.20837112
A181: 23 | B181: ФССЦ-12.2.03.02-0002 | C181: Вата минеральная (м3) | D181: 0.41 | E181: 200 | F181: 1560.46 | G181: =F181/D165*1.2*1.0224*1.0192 -> 3.605424077
A182: -демонтаж конструкций перекрытия в осях 31-33/И-И1
A183: 24 | B183: ФЕР09-01-001-01 | C183: Демонтаж. Монтаж каркасов одноэтажных производственных зданий одно- и многопролетных без фонарей пролетом: до 24 м, высотой до 15 м без кранов (т) | D183: 2.11011 | E183: 516.54 | F183: 27063.73
C184: Накладные расходы 93% ФОТ (от 18 726,60) | F184: 17415.74
C185: Сметная прибыль 62% ФОТ (от 18 726,60) | F185: 11610.49
C186: Итого c накладными и см. прибылью | F186: 56089.96
A187: 25 | B187: ФЕР46-04-002-02 | C187: Разборка монолитных перекрытий: железобетонных (м3) | D187: 8 | E187: 322.34 | F187: 46381.42
C188: Накладные расходы 91% ФОТ (от 38 796,69) | F188: 35304.99
C189: Сметная прибыль 52% ФОТ (от 38 796,69) | F189: 20174.28
C190: Итого c накладными и см. прибылью | F190: 101860.69
A191: 26 | B191: ФЕР46-04-002-01 | C191: Разборка монолитных перекрытий: бетонных (м3) | D191: 5.3 | E191: 262.07 | F191: 26099.41
C192: Накладные расходы 91% ФОТ (от 23 276,01) | F192: 21181.17
C193: Сметная прибыль 52% ФОТ (от 23 276,01) | F193: 12103.53
C194: Итого c накладными и см. прибылью | F194: 59384.11
A195: 27 | B195: ФЕРр68-12-5 | C195: Разборка покрытий и оснований: цементно-бетонных (100 м3) | D195: 0.013 | E195: 1859.1 | F195: 570.96
C196: Накладные расходы 102% ФОТ (от 384,60) | F196: 392.29
C197: Сметная прибыль 54% ФОТ (от 384,60) | F197: 207.68
C198: Итого c накладными и см. прибылью | F198: 1170.93
A199: Итого прямые затраты по разделу в текущих ценах | F199: 5381175.87
A200: Накладные расходы | F200: 595945.44
A201: Сметная прибыль | F201: 382430.02
A202: Итого по разделу 1 Элементы каркаса и перекрытия встройки в осях 5-33/И-И1. (1727-1/9-52-АС1 л.2) | F202: 6359551.33
A203: Раздел 2. Разные работы
A204: -погрузка и вывоз строительного мусора
A205: 28 | B205: ФССЦпг-01-01-01-043 | C205: Погрузо-разгрузочные работы при автомобильных перевозках: Погрузка мусора строительного с погрузкой экскаваторами емкостью ковша до 0,5 м3 (1 т груза) | D205: 35.84 | E205: 3.28 | F205: 2650.87
A206: 29 | B206: ФССЦпг-03-21-01-110 ТБО Тимохово | C206: Перевозка грузов I класса автомобилями-самосвалами грузоподъемностью 10 т работающих вне карьера на расстояние до 110 км (1 т груза) | D206: 35.84 | E206: 50.78 | F206: 20747.49
A207: - погрузка и вывоз металлолома
A208: 30 | B208: ФССЦпг-01-01-01-045 | C208: Погрузо-разгрузочные работы при автомобильных перевозках: Погрузка прочих материалов, деталей (с использованием погрузчика) (1 т груза) | D208: 2.11 | E208: 17.95 | F208: 1339.62
A209: 31 | B209: ФССЦпг-03-21-01-001 | C209: Перевозка грузов автомобилями-самосвалами грузоподъемностью 10 т работающих вне карьера на расстояние: I класс груза до 1 км (на склад) (1 т груза) | D209: 2.11 | E209: 2.91 | F209: 70
A210: Итого прямые затраты по разделу в текущих ценах | F210: 24807.98
A211: Итого по разделу 2 Разные работы | F211: 24807.98
A212: Итого прямые затраты по смете в текущих ценах | F212: 5405983.85
A213: Накладные расходы | F213: 595945.44
A214: Сметная прибыль | F214: 382430.02
... 9626 more rows

Sheet 02-01-04 Архитектурно-строи (2) (hidden)
P4: на Архитектурно-строительные решения. Цех №417. Марка АС1. Этап 1, АО " МЕТРОВАГОНМАШ"
Q13: Раздел 1. Элементы каркаса и перекрытия встройки в осях 5-33/И-И1. (1727-1/9-52-АС1 л.2)
R46: комплекс работ по устройству перекрытия из кровельных сэндвич-панелей
R68: -демонтаж конструкций перекрытия в осях 31-33/И-И1
S85: Итого прямые затраты по разделу в текущих ценах
S86: Накладные расходы
S87: Сметная прибыль
S88: Итого по разделу 1 Элементы каркаса и перекрытия встройки в осях 5-33/И-И1. (1727-1/9-52-АС1 л.2)
Q89: Раздел 2. Разные работы
R90: -погрузка и вывоз строительного мусора
R93: - погрузка и вывоз металлолома
S96: Итого прямые затраты по разделу в текущих ценах
S97: Итого по разделу 2 Разные работы
T98: Итого прямые затраты по смете в текущих ценах
T99: Накладные расходы
T100: Сметная прибыль
T101: ВСЕГО по смете

Sheet 02-01-06 Архитектурно-строитель (hidden)
A2: СМЕТА № 02-01-06
A4: на Архитектурно-строительные решения цеха №417. (АС3)., Заказчик - АО " МЕТРОВАГОНМАШ" | P4: на Архитектурно-строительные решения цеха №417. (АС3)., Заказчик - АО " МЕТРОВАГОНМАШ"
A5: (наименование сметы, наименование объекта)
A7: Составлен в ценах по состоянию на
A10: № п.п | B10: Обоснование | C10: Наименование работ и затрат, единица измерения | D10: Количество | E10: Стоимость единицы, руб. | F10: Общая стоимость, руб.
A12: 1 | B12: 2 | C12: 3 | F12: 4
A13: Раздел 1. Элементы опор для технологических коммуникаций "ВС" в осях 1-33/И-Л. (1727-1/9-52-АС3 л.2 ) | Q13: Раздел 1. Элементы опор для технологических коммуникаций "ВС" в осях 1-33/И-Л. (1727-1/9-52-АС3 л.2 )
A14: 1 | B14: ФЕР09-03-039-01 | C14: Монтаж опорных конструкций: для крепления трубопроводов внутри зданий и сооружений массой до 0,1 т (ОП1-ОП6) (т) | D14: 0.4191 | E14: 1629.76 | F14: 22251.23
C15: Накладные расходы 93% ФОТ (от 19 295,50) | F15: 17944.82
C16: Сметная прибыль 62% ФОТ (от 19 295,50) | F16: 11963.21
C17: Итого c накладными и см. прибылью | F17: 52159.26
A18: 2 | B18: ФССЦ-07.2.07.12-0031 | C18: Прочие конструкции одноэтажных производственных зданий, масса сборочной единицы до 0,1 т (т) | D18: 0.4191 | E18: 12990.48 | F18: 56838.6
A19: 3 | B19: ФССЦ-01.7.15.02-0041 | C19: Болты анкерные с гайкой, размер 12,0х130 мм (прим. Механический анкер R-XPT M12x150) (100 шт) | D19: 0.76 | E19: 360 | F19: 2251.73
A20: 4 | B20: ФЕРр66-38-3 | C20: Заполнение трубопроводов или межтрубного пространства при трубах в футляре: цементным раствором (м3) | D20: 0.05 | E20: 622.48 | F20: 310.99
C21: Накладные расходы 104% ФОТ (от 85,45) | F21: 88.87
C22: Сметная прибыль 60% ФОТ (от 85,45) | F22: 51.27
C23: Итого c накладными и см. прибылью | F23: 451.13
A24: 5 | B24: ФЕР46-03-017-03 | C24: Заделка отверстий: в стенах после установки балки бетоном В20 (м3) | D24: 0.05 | E24: 1650.5 | F24: 2061.02
C25: Накладные расходы 103% ФОТ (от 1 672,13) | F25: 1722.29
C26: Сметная прибыль 59% ФОТ (от 1 672,13) | F26: 986.56
C27: Итого c накладными и см. прибылью | F27: 4769.87
A28: 6 | B28: ФССЦ-04.1.02.05-0007 | C28: Смеси бетонные тяжелого бетона (БСТ), класс B20 (М250) (м3) | D28: 0.052 | E28: 665 | F28: 245.86
A29: 7 | B29: ФЕР13-03-004-26 | C29: Окраска металлических огрунтованных поверхностей: эмалью ПФ-115 за 2 раза (100 м2) | D29: 0.16 | E29: 347.67 | F29: 953.16
C30: Накладные расходы 94% ФОТ (от 390,49) | F30: 367.06
C31: Сметная прибыль 51% ФОТ (от 390,49) | F31: 199.15
C32: Итого c накладными и см. прибылью | F32: 1519.37
A33: Итого прямые затраты по разделу в текущих ценах | F33: 84912.59 | R33: Итого прямые затраты по разделу в текущих ценах
A34: Накладные расходы | F34: 20123.04 | R34: Накладные расходы
A35: Сметная прибыль | F35: 13200.19 | R35: Сметная прибыль
A36: Итого по разделу 1 Элементы опор для технологических коммуникаций "ВС" в осях 1-33/И-Л. (1727-1/9-52-АС3 л.2 ) | F36: 118235.82 | R36: Итого по разделу 1 Элементы опор для технологических коммуникаций "ВС" в осях 1-33/И-Л. (1727-1/9-52-АС3 л.2 )
A37: Раздел 2. Металлические рамы для пневмощитов "ВС" в осях 1-33/И-Л. (1727-1/9-52-АС3 л.3 ) | Q37: Раздел 2. Металлические рамы для пневмощитов "ВС" в осях 1-33/И-Л. (1727-1/9-52-АС3 л.3 )
A38: 8 | B38: ФЕР09-03-043-01 | C38: Монтаж металлоконструкций постаментов под технологическое оборудование / рамы для пневмощитов (т металлоконструкций) | D38: 1.71 | E38: 7384.06 | F38: 181791.06
C39: Накладные расходы 93% ФОТ (от 76 304,22) | F39: 70962.92
C40: Сметная прибыль 62% ФОТ (от 76 304,22) | F40: 47308.62
C41: Итого c накладными и см. прибылью | F41: 300062.6
A42: 9 | B42: ФССЦ-07.2.07.12-0031 | C42: Прочие конструкции одноэтажных производственных зданий, масса сборочной единицы до 0,1 т (т) | D42: 1.71 | E42: 12990.48 | F42: 231911.25
A43: 10 | B43: ФССЦ-01.7.15.02-0047 | C43: Болты анкерные с гайкой, размер 20,0х150 мм (прим. Механический анкер R-XPT M20x200) (100 шт) | D43: 1.28 | E43: 1121 | F43: 14176.61
A44: 11 | B44: ФЕР06-03-002-01 | C44: Устройство подливки толщиной 20 мм (100 м2) | D44: 0.025 | E44: 716.71 | F44: 634.77
C45: Накладные расходы 102% ФОТ (от 590,43) | F45: 602.24
C46: Сметная прибыль 58% ФОТ (от 590,43) | F46: 342.45
C47: Итого c накладными и см. прибылью | F47: 1579.46
A48: 12 | B48: ФССЦ-04.3.01.09-0018 | C48: Раствор готовый кладочный, цементный, М300 (м3) | D48: 0.051 | E48: 711.5 | F48: 280.49
A49: 13 | B49: ФЕР06-03-002-02 | C49: На каждые 10 мм изменения толщины добавлять или исключать к расценке 06-03-002-01 (100 м2) | D49: 0.00025 | E49: 202.5 | F49: 1.82
C50: Накладные расходы 102% ФОТ (от 1,69) | F50: 1.72
C51: Сметная прибыль 58% ФОТ (от 1,69) | F51: 0.98
C52: Итого c накладными и см. прибылью | F52: 4.52
A53: 15 | B53: ФЕР13-03-004-26 | C53: Окраска металлических огрунтованных поверхностей: эмалью ПФ-115 за 2 раза (100 м2) | D53: 0.65 | E53: 347.67 | F53: 3872.23
C54: Накладные расходы 94% ФОТ (от 1 586,38) | F54: 1491.2
C55: Сметная прибыль 51% ФОТ (от 1 586,38) | F55: 809.05
C56: Итого c накладными и см. прибылью | F56: 6172.48
A57: Итого прямые затраты по разделу в текущих ценах | F57: 432668.23 | R57: Итого прямые затраты по разделу в текущих ценах
A58: Накладные расходы | F58: 73058.08 | R58: Накладные расходы
A59: Сметная прибыль | F59: 48461.1 | R59: Сметная прибыль
A60: Итого по разделу 2 Металлические рамы для пневмощитов "ВС" в осях 1-33/И-Л. (1727-1/9-52-АС3 л.3 ) | F60: 554187.41 | R60: Итого по разделу 2 Металлические рамы для пневмощитов "ВС" в осях 1-33/И-Л. (1727-1/9-52-АС3 л.3 )
A61: Раздел 3. Опоры для коммуникаций "ЭМ" в осях 1-33/И-Л; дополнительных балок и опор для системы пожаротушения "ВК" в осях 5-32/И-И1. (1727-1/9-52-АС3 л.4 ) | Q61: Раздел 3. Опоры для коммуникаций "ЭМ" в осях 1-33/И-Л; дополнительных балок и опор для системы пожаротушения "ВК" в осях 5-32/И-И1. (1727-1/9-52-АС3 л.4 )
A62: 16 | B62: ФЕР09-03-039-01 | C62: Монтаж опорных конструкций: для крепления трубопроводов внутри зданий и сооружений массой до 0,1 т (Ст1, ОП1-ОП2) (т) | D62: 3.6488 | E62: 1629.76 | F62: 193725.35
C63: Накладные расходы 93% ФОТ (от 167 991,93) | F63: 156232.49
C64: Сметная прибыль 62% ФОТ (от 167 991,93) | F64: 104155
C65: Итого c накладными и см. прибылью | F65: 454112.84
A66: 17 | B66: ФССЦ-07.2.07.12-0031 | C66: Прочие конструкции одноэтажных производственных зданий, масса сборочной единицы до 0,1 т (т) | D66: 3.649 | E66: 12990.48 | F66: 494879.61
A67: 18 | B67: ФЕР09-03-002-12 | C67: Монтаж балок, ригелей перекрытия, покрытия и под установку оборудования многоэтажных зданий при высоте здания: до 25 м (Б1, Б2) (т) | D67: 3.652 | E67: 1049.63 | F67: 80482.88
C68: Накладные расходы 93% ФОТ (от 50 530,48) | F68: 46993.35
C69: Сметная прибыль 62% ФОТ (от 50 530,48) | F69: 31328.9
C70: Итого c накладными и см. прибылью | F70: 158805.13
A71: 19 | B71: ФССЦ-07.2.07.12-0031 | C71: Прочие конструкции одноэтажных производственных зданий, масса сборочной единицы до 0,1 т (т) | D71: 3.652 | E71: 12990.48 | F71: 495286.47
A72: 20 | B72: ФССЦ-01.7.15.02-0041 | C72: Болты анкерные с гайкой, размер 12,0х130 мм (прим. Механический анкер R-XPT M12x150) (100 шт) | D72: 2.04 | E72: 360 | F72: 6044.11
A73: 21 | B73: ФЕР13-03-004-26 | C73: Окраска металлических огрунтованных поверхностей: эмалью ПФ-115 за 2 раза (100 м2) | D73: 2.774 | E73: 347.67 | F73: 16525.48
C74: Накладные расходы 94% ФОТ (от 6 770,17) | F74: 6363.96
C75: Сметная прибыль 51% ФОТ (от 6 770,17) | F75: 3452.79
C76: Итого c накладными и см. прибылью | F76: 26342.23
A77: Итого прямые затраты по разделу в текущих ценах | F77: 1286943.9 | R77: Итого прямые затраты по разделу в текущих ценах
A78: Накладные расходы | F78: 209589.8 | R78: Накладные расходы
A79: Сметная прибыль | F79: 138936.68 | R79: Сметная прибыль
A80: Итого по разделу 3 Опоры для коммуникаций "ЭМ" в осях 1-33/И-Л; дополнительных балок и опор для системы пожаротушения "ВК" в осях 5-32/И-И1. (1727-1/9-52-АС3 л.4 ) | F80: 1635470.38 | R80: Итого по разделу 3 Опоры для коммуникаций "ЭМ" в осях 1-33/И-Л; дополнительных балок и опор для системы пожаротушения "ВК" в осях 5-32/И-И1. (1727-1/9-52-АС3 л.4 )
A81: Раздел 4. Опоры для крепления системы пожаротушения к плитам покрытия на отм. +13.900 в осях 1-25/И-И1, 1-25/И3-К (лист 5) | Q81: Раздел 4. Опоры для крепления системы пожаротушения к плитам покрытия на отм. +13.900 в осях 1-25/И-И1, 1-25/И3-К (лист 5)
A82: 22 | B82: ФЕР09-03-039-01 | C82: Монтаж опорных конструкций: для крепления трубопроводов внутри зданий и сооружений массой до 0,1 т (Д1,Д2 ОП-1..ОП-5.4) (т) | D82: 1.1961 | E82: 1629.76 | F82: 63504.41
C83: Накладные расходы 93% ФОТ (от 55 068,83) | F83: 51214.01
C84: Сметная прибыль 62% ФОТ (от 55 068,83) | F84: 34142.67
C85: Итого c накладными и см. прибылью | F85: 148861.09
A86: 23 | B86: ФССЦ-07.2.07.12-0031 | C86: Прочие конструкции одноэтажных производственных зданий, масса сборочной единицы до 0,1 т (т) | D86: 1.196 | E86: 12990.48 | F86: 162202.25
A87: 24 | B87: ФССЦ-01.7.15.02-0041 | C87: Болты анкерные с гайкой, размер 12,0х130 мм (прим. Механический анкер R-XPT M12x150) (100 шт) | D87: 0.28 | E87: 360 | F87: 829.58
A88: 25 | B88: ФЕР09-03-002-12 | C88: Монтаж балок, ригелей перекрытия, покрытия и под установку оборудования многоэтажных зданий при высоте здания: до 25 м (Б1) (т) | D88: 9.0786 | E88: 1049.63 | F88: 200074.47
C89: Накладные расходы 93% ФОТ (от 125 615,02) | F89: 116821.97
C90: Сметная прибыль 62% ФОТ (от 125 615,02) | F90: 77881.31
C91: Итого c накладными и см. прибылью | F91: 394777.75
A92: 26 | B92: ФССЦ-07.2.07.12-0031 | C92: Прочие конструкции одноэтажных производственных зданий, масса сборочной единицы до 0,1 т (т) | D92: 0.9424 | E92: 12990.48 | F92: 127808.86
A93: 27 | B93: ФССЦ-07.2.07.12-0032 | C93: Прочие конструкции одноэтажных производственных зданий, масса сборочной единицы от 0,1 до 0,5 т (т) | D93: 8.1366 | E93: 11176.42 | F93: 946665.19
A94: 28 | B94: ФЕР13-03-004-26 | C94: Окраска металлических огрунтованных поверхностей: эмалью ПФ-115 за 2 раза (100 м2) | D94: 3.9 | E94: 347.67 | F94: 23233.37
C95: Накладные расходы 94% ФОТ (от 9 518,26) | F95: 8947.16
C96: Сметная прибыль 51% ФОТ (от 9 518,26) | F96: 4854.31
C97: Итого c накладными и см. прибылью | F97: 37034.84
A98: Итого прямые затраты по разделу в текущих ценах | F98: 1524318.13 | R98: Итого прямые затраты по разделу в текущих ценах
A99: Накладные расходы | F99: 176983.14 | R99: Накладные расходы
A100: Сметная прибыль | F100: 116878.3 | R100: Сметная прибыль
A101: Итого по разделу 4 Опоры для крепления системы пожаротушения к плитам покрытия на отм. +13.900 в осях 1-25/И-И1, 1-25/И3-К (лист 5) | F101: 1818179.57 | R101: Итого по разделу 4 Опоры для крепления системы пожаротушения к плитам покрытия на отм. +13.900 в осях 1-25/И-И1, 1-25/И3-К (лист 5)
A102: Раздел 5. Опоры для крепления системы пожаротушения к плитам покрытия на отм. +16.900 в осях 2-10, 12-32, 24-22/И1-И3 (лист 7) | Q102: Раздел 5. Опоры для крепления системы пожаротушения к плитам покрытия на отм. +16.900 в осях 2-10, 12-32, 24-22/И1-И3 (лист 7)
A103: 29 | B103: ФЕР09-03-039-01 | C103: Монтаж опорных конструкций: для крепления трубопроводов внутри зданий и сооружений массой до 0,1 т (Д7..Д10)) (т) | D103: 1.1652 | E103: 1629.76 | F103: 61863.84
C104: Накладные расходы 93% ФОТ (от 53 646,18) | F104: 49890.95
C105: Сметная прибыль 62% ФОТ (от 53 646,18) | F105: 33260.63
C106: Итого c накладными и см. прибылью | F106: 145015.42
A107: 30 | B107: ФССЦ-07.2.07.12-0031 | C107: Прочие конструкции одноэтажных производственных зданий, масса сборочной единицы до 0,1 т (т) | D107: 1.165 | E107: 12990.48 | F107: 157998.01
A108: 31 | B108: ФЕР13-03-004-26 | C108: Окраска металлических огрунтованных поверхностей: эмалью ПФ-115 за 2 раза (100 м2) | D108: 0.386 | E108: 347.67 | F108: 2299.52
C109: Накладные расходы 94% ФОТ (от 942,07) | F109: 885.55
C110: Сметная прибыль 51% ФОТ (от 942,07) | F110: 480.46
C111: Итого c накладными и см. прибылью | F111: 3665.53
A112: Итого прямые затраты по разделу в текущих ценах | F112: 222161.37 | R112: Итого прямые затраты по разделу в текущих ценах
A113: Накладные расходы | F113: 50776.5 | R113: Накладные расходы
A114: Сметная прибыль | F114: 33741.09 | R114: Сметная прибыль
A115: Итого по разделу 5 Опоры для крепления системы пожаротушения к плитам покрытия на отм. +16.900 в осях 2-10, 12-32, 24-22/И1-И3 (лист 7) | F115: 306678.96 | R115: Итого по разделу 5 Опоры для крепления системы пожаротушения к плитам покрытия на отм. +16.900 в осях 2-10, 12-32, 24-22/И1-И3 (лист 7)
A116: Раздел 6. Опоры для крепления системы пожаротушения к нижним поясам ферм в осях 4-12/И-К, 17-25/И-И2 (лист 8) | Q116: Раздел 6. Опоры для крепления системы пожаротушения к нижним поясам ферм в осях 4-12/И-К, 17-25/И-И2 (лист 8)
A117: 32 | B117: ФЕР09-03-039-01 | C117: Монтаж опорных конструкций: для крепления трубопроводов внутри зданий и сооружений массой до 0,1 т (Д13) (т) | D117: 0.4618 | E117: 1629.76 | F117: 24518.3
C118: Накладные расходы 93% ФОТ (от 21 261,42) | F118: 19773.12
C119: Сметная прибыль 62% ФОТ (от 21 261,42) | F119: 13182.08
C120: Итого c накладными и см. прибылью | F120: 57473.5
A121: 33 | B121: ФССЦ-07.2.07.12-0031 | C121: Прочие конструкции одноэтажных производственных зданий, масса сборочной единицы до 0,1 т (т) | D121: 0.4618 | E121: 12990.48 | F121: 62629.6
A122: 34 | B122: ФЕР09-03-002-12 | C122: Монтаж балок, ригелей перекрытия, покрытия и под установку оборудования многоэтажных зданий при высоте здания: до 25 м (Б1) (т) | D122: 7.3381 | E122: 1049.63 | F122: 161717.27
C123: Накладные расходы 93% ФОТ (от 101 532,79) | F123: 94425.49
C124: Сметная прибыль 62% ФОТ (от 101 532,79) | F124: 62950.33
C125: Итого c накладными и см. прибылью | F125: 319093.09
A126: 35 | B126: ФССЦ-07.2.07.12-0031 | C126: Прочие конструкции одноэтажных производственных зданий, масса сборочной единицы до 0,1 т (т) | D126: 1.019 | E126: 12990.48 | F126: 138197.4
A127: 36 | B127: ФССЦ-07.2.07.12-0032 | C127: Прочие конструкции одноэтажных производственных зданий, масса сборочной единицы от 0,1 до 0,5 т (т) | D127: 6.319 | E127: 11176.42 | F127: 735193.74
A128: 37 | B128: ФЕР13-03-004-26 | C128: Окраска металлических огрунтованных поверхностей: эмалью ПФ-115 за 2 раза (100 м2) | D128: 2.968 | E128: 347.67 | F128: 17681.19
C129: Накладные расходы 94% ФОТ (от 7 243,64) | F129: 6809.02
C130: Сметная прибыль 51% ФОТ (от 7 243,64) | F130: 3694.26
C131: Итого c накладными и см. прибылью | F131: 28184.47
A132: Итого прямые затраты по разделу в текущих ценах | F132: 1139937.5 | R132: Итого прямые затраты по разделу в текущих ценах
A133: Накладные расходы | F133: 121007.64 | R133: Накладные расходы
A134: Сметная прибыль | F134: 79826.67 | R134: Сметная прибыль
A135: Итого по разделу 6 Опоры для крепления системы пожаротушения к нижним поясам ферм в осях 4-12/И-К, 17-25/И-И2 (лист 8) | F135: 1340771.81 | R135: Итого по разделу 6 Опоры для крепления системы пожаротушения к нижним поясам ферм в осях 4-12/И-К, 17-25/И-И2 (лист 8)
A136: Раздел 7. Опоры для крепления системы пожаротушения к верхним поясам ферм в осях 1-33/И1-И3 (лист 10) | Q136: Раздел 7. Опоры для крепления системы пожаротушения к верхним поясам ферм в осях 1-33/И1-И3 (лист 10)
A137: 38 | B137: ФЕР09-03-039-01 | C137: Монтаж опорных конструкций: для крепления трубопроводов внутри зданий и сооружений массой до 0,1 т (Д3..Д6, П-1..П-1.32) (т) | D137: 2.9995 | E137: 1629.76 | F137: 159252.14
C138: Накладные расходы 93% ФОТ (от 138 097,95) | F138: 128431.09
C139: Сметная прибыль 62% ФОТ (от 138 097,95) | F139: 85620.73
C140: Итого c накладными и см. прибылью | F140: 373303.96
A141: 39 | B141: ФССЦ-07.2.07.12-0031 | C141: Прочие конструкции одноэтажных производственных зданий, масса сборочной единицы до 0,1 т (т) | D141: 3 | E141: 12990.48 | F141: 406861.83
A142: 40 | B142: ФЕР09-03-002-12 | C142: Монтаж балок, ригелей перекрытия, покрытия и под установку оборудования многоэтажных зданий при высоте здания: до 25 м (Б1) (т) | D142: 4.4389 | E142: 1049.63 | F142: 97824.62
C143: Накладные расходы 93% ФОТ (от 61 418,34) | F143: 57119.06
C144: Сметная прибыль 62% ФОТ (от 61 418,34) | F144: 38079.37
C145: Итого c накладными и см. прибылью | F145: 193023.05
A146: 41 | B146: ФССЦ-07.2.07.12-0032 | C146: Прочие конструкции одноэтажных производственных зданий, масса сборочной единицы от 0,1 до 0,5 т (т) | D146: 4.439 | E146: 11176.42 | F146: 516462.26
A147: 42 | B147: ФЕР13-03-004-26 | C147: Окраска металлических огрунтованных поверхностей: эмалью ПФ-115 за 2 раза (100 м2) | D147: 2.8265 | E147: 347.67 | F147: 16838.24
C148: Накладные расходы 94% ФОТ (от 6 898,30) | F148: 6484.4
C149: Сметная прибыль 51% ФОТ (от 6 898,30) | F149: 3518.13
C150: Итого c накладными и см. прибылью | F150: 26840.77
A151: Итого прямые затраты по разделу в текущих ценах | F151: 1197239.09 | R151: Итого прямые затраты по разделу в текущих ценах
A152: Накладные расходы | F152: 192034.55 | R152: Накладные расходы
A153: Сметная прибыль | F153: 127218.23 | R153: Сметная прибыль
A154: Итого по разделу 7 Опоры для крепления системы пожаротушения к верхним поясам ферм в осях 1-33/И1-И3 (лист 10) | F154: 1516491.87 | R154: Итого по разделу 7 Опоры для крепления системы пожаротушения к верхним поясам ферм в осях 1-33/И1-И3 (лист 10)
A155: Раздел 8. Фундаменты под оборудование (лист 11) | Q155: Раздел 8. Фундаменты под оборудование (лист 11)
A156: Установка фанеры бакелитовой | S156: Установка фанеры бакелитовой
A157: 43 | B157: ФЕР11-01-053-01 | C157: Устройство оснований полов из фанеры в один слой площадью: до 20 м2 (100 м2) | D157: 0.1183 | E157: 6759.4 | F157: 10142.24
C158: Накладные расходы 112% ФОТ (от 2 876,98) | F158: 3222.22
C159: Сметная прибыль 65% ФОТ (от 2 876,98) | F159: 1870.04
C160: Итого c накладными и см. прибылью | F160: 15234.5
A161: 44 | B161: ФССЦ-11.2.11.04-0052 | C161: Фанера общего назначения из шпона лиственных пород водостойкая, ФК, сорт II/IV, толщина 12 мм (м3) | D161: -0.1467 | E161: 4319.09 | F161: -6842.99
A162: 45 | B162: ФССЦ-11.2.11.02-0011 | C162: Фанера бакелизированная ФБС, толщина 14-18 мм (м3) | D162: 0.1467 | E162: 12480 | F162: 13383.26
A163: 46 | B163: ФЕР06-01-001-02 | C163: Устройство бетонных фундаментов общего назначения под колонны объемом: до 3 м3 (100 м3) | D163: 0.02728 | E163: 13020.27 | F163: 8837.3
C164: Накладные расходы 102% ФОТ (от 7 121,88) | F164: 7264.32
C165: Сметная прибыль 58% ФОТ (от 7 121,88) | F165: 4130.69
C166: Итого c накладными и см. прибылью | F166: 20232.31
A167: 47 | B167: ФССЦ-04.1.01.03-0019 | C167: Смеси бетонные (пенобетон), средняя плотность D1000 кг/м3 (м3) | D167: 2.783 | E167: 582.69 | F167: 34410.91
A168: Обработка битумно-полимерной мастикой | S168: Обработка битумно-полимерной мастикой
A169: 48 | B169: ФЕР08-01-003-09 | C169: Огрунтовка поверхности полимерной мастикой на основе бутилкаучука (100 м2) | D169: 0.1395 | E169: 174.47 | F169: 554.43
C170: Накладные расходы 110% ФОТ (от 297,66) | F170: 327.43
C171: Сметная прибыль 69% ФОТ (от 297,66) | F171: 205.39
C172: Итого c накладными и см. прибылью | F172: 1087.25
A173: 49 | B173: ФЕР08-01-003-10 | C173: Гидроизоляция боковая обмазочная полимерной мастикой на основе бутилкаучука в один слой (100 м2) | D173: 0.1396 | E173: 49.03 | F173: 287.21
C174: Накладные расходы 110% ФОТ (от 283,76) | F174: 312.14
C175: Сметная прибыль 69% ФОТ (от 283,76) | F175: 195.79
C176: Итого c накладными и см. прибылью | F176: 795.14
A177: 50 | B177: ФССЦ-01.2.03.03-0122 | C177: Мастика битумно-полимерная гидроизоляционная, кровельная, для строительных конструкций и устройства (ремонта) кровли, холодная, готовая к применению, диапазон температур от -20 до +40 °С, прочность сцепления с металлом/бетоном не менее 0,9/0,6 МПа, расход для гидроизоляции/устройства кровли 2,5-3,5/3,8-5,7 кг/м2 при толщине слоя покрытия 2 мм (кг) | D177: 83.76 | E177: 13.91 | F177: 31562.6
A178: Сверление отверстий в существующей плите под гильзы (Г1-5 шт, Г2-2 шт, Г3-4 шт; Г4-3 шт) ТЧ п.2.46.7., лист 11 прим.5 | S178: Сверление отверстий в существующей плите под гильзы (Г1-5 шт, Г2-2 шт, Г3-4 шт; Г4-3 шт) ТЧ п.2.46.7., лист 11 прим.5
A179: 51 | B179: ФЕР46-03-004-49 | C179: Сверление установками алмазного бурения вертикальных отверстий в густоармированных железобетонных конструкциях глубиной 200 мм диаметром: 160 мм/ Г1 (100 отверстий) | D179: 0.05 | E179: 4762.59 | F179: 6120.87
C180: Накладные расходы 103% ФОТ (от 6 020,32) | F180: 6200.93
C181: Сметная прибыль 59% ФОТ (от 6 020,32) | F181: 3551.99
C182: Итого c накладными и см. прибылью | F182: 15873.79
A183: 52 | B183: ФЕР46-03-004-68 | C183: На каждые 10 мм изменения глубины сверления добавлять или исключать: к расценке 46-03-004-49 / 30 мм (100 отверстий) | D183: -0.05 | E183: 3052.66 | F183: -3940.22
C184: Накладные расходы 103% ФОТ (от -3 883,28) | F184: -3999.78
C185: Сметная прибыль 59% ФОТ (от -3 883,28) | F185: -2291.14
C186: Итого c накладными и см. прибылью | F186: -10231.14
A187: 53 | B187: ФССЦ-01.7.17.09-1177 | C187: Сверло кольцевое алмазное высокоскоростное по железобетону с быстросъемным хвостовиком для бурения на станине в мокром режиме, лазерная пайка сегментов, длина 430 мм, диаметр 162 мм (шт) | D187: 0.015 | E187: 3211.94 | F187: 225.96
A188: 54 | B188: ФЕР46-03-004-51 | C188: Сверление установками алмазного бурения вертикальных отверстий в густоармированных железобетонных конструкциях глубиной 200 мм диаметром: 220 мм/Г2 (100 отверстий) | D188: 0.02 | E188: 5008.51 | F188: 2574.36
C189: Накладные расходы 103% ФОТ (от 2 529,41) | F189: 2605.29
C190: Сметная прибыль 59% ФОТ (от 2 529,41) | F190: 1492.35
C191: Итого c накладными и см. прибылью | F191: 6672
A192: 55 | B192: ФЕР46-03-004-70 | C192: На каждые 10 мм изменения глубины сверления добавлять или исключать: к расценке 46-03-004-51 (100 отверстий) | D192: -0.02 | E192: 189.06 | F192: -97.74
C193: Накладные расходы 103% ФОТ (от -96,34) | F193: -99.23
C194: Сметная прибыль 59% ФОТ (от -96,34) | F194: -56.84
C195: Итого c накладными и см. прибылью | F195: -253.81
A196: 56 | B196: ФССЦ-01.7.17.09-1180 | C196: Сверло кольцевое алмазное высокоскоростное по железобетону с быстросъемным хвостовиком для бурения на станине в мокром режиме, лазерная пайка сегментов, длина 430 мм, диаметр 202 мм (шт) | D196: 0.0534 | E196: 4433.01 | F196: 1110.23
A197: 57 | B197: ФЕР46-03-004-49 | C197: Сверление установками алмазного бурения вертикальных отверстий в густоармированных железобетонных конструкциях глубиной 200 мм диаметром: 160 мм/ Г3 (100 отверстий) | D197: 0.04 | E197: 4762.59 | F197: 4896.7
C198: Накладные расходы 103% ФОТ (от 4 816,26) | F198: 4960.75
C199: Сметная прибыль 59% ФОТ (от 4 816,26) | F199: 2841.59
C200: Итого c накладными и см. прибылью | F200: 12699.04
A201: 58 | B201: ФЕР46-03-004-68 | C201: На каждые 10 мм изменения глубины сверления добавлять или исключать: к расценке 46-03-004-49 / 30 мм (100 отверстий) | D201: -0.04 | E201: 3052.66 | F201: -3152.17
C202: Накладные расходы 103% ФОТ (от -3 106,62) | F202: -3199.82
C203: Сметная прибыль 59% ФОТ (от -3 106,62) | F203: -1832.91
C204: Итого c накладными и см. прибылью | F204: -8184.9
A205: 59 | B205: ФССЦ-01.7.17.09-1177 | C205: Сверло кольцевое алмазное высокоскоростное по железобетону с быстросъемным хвостовиком для бурения на станине в мокром режиме, лазерная пайка сегментов, длина 430 мм, диаметр 162 мм (шт) | D205: 0.012 | E205: 3211.94 | F205: 180.77
A206: 60 | B206: ФЕР46-03-004-55 | C206: Сверление установками алмазного бурения вертикальных отверстий в густоармированных железобетонных конструкциях глубиной 200 мм диаметром: 400 мм/ Г4 (100 отверстий) | D206: 0.03 | E206: 11074.38 | F206: 7599.82
... 136 more rows

Sheet 02-01-05 Архитектурно-строитель (hidden)
A2: СМЕТА № 02-01-05
A4: на Архитектурно-строительные решения. Цех №417. Марка АС2. Этап 1, АО " МЕТРОВАГОНМАШ" | P4: на Архитектурно-строительные решения. Цех №417. Марка АС2. Этап 1, АО " МЕТРОВАГОНМАШ"
A5: (наименование сметы, наименование объекта)
A7: Составлен в ценах по состоянию на
A10: № п.п | B10: Обоснование | C10: Наименование работ и затрат, единица измерения | D10: Количество | E10: Стоимость единицы, руб. | F10: Общая стоимость, руб.
A12: 1 | B12: 2 | C12: 3 | F12: 4
A13: Раздел 1. Проёмы (лист 7) | Q13: Раздел 1. Проёмы (лист 7)
A14: - двери металлические | R14: - двери металлические
A15: 1 | B15: ФЕР09-04-012-01 | C15: Установка металлических дверных блоков в готовые проемы (м2) | D15: 7.14 | E15: 80.19 | F15: 14119.18
C16: Накладные расходы 93% ФОТ (от 11 560,35) | F16: 10751.13
C17: Сметная прибыль 62% ФОТ (от 11 560,35) | F17: 7167.42
C18: Итого c накладными и см. прибылью | F18: 32037.73 | G18: =F18/D15*1.2*1.0224*1.0192 -> 5610.803085 | H18: =G18*1.9 -> 10660.52586 | I18: СМР | J18: =H18+G24 -> 12896.31394 | K18: МТР | L18: =G19+H20+G25 -> 27398.31216
A19: 2 | B19: ФССЦ-01.7.04.07-0003 | C19: Комплект скобяных изделий для блоков входных дверей в помещение однопольных (компл) | D19: 3 | E19: 94.68 | F19: 1119.12 | G19: =F19/D19*1.2*1.0224*1.0192 -> 466.4626813
A20: 3 | B20: ФССЦ-07.1.01.03-0002 | C20: Блок дверной стальной наружный двупольный типа ДСН ДКН, площадь 2,73 м2. (м2) | D20: 7.14 | E20: 1465.11 | F20: 70820.19 | G20: =F20/D20*1.2*1.0224*1.0192 -> 12402.81819 | H20: =G20*1.9 -> 23565.35457
A21: 4 | B21: ФЕР09-04-012-02 | C21: Установка дверного доводчика к металлическим дверям (шт) | D21: 3 | E21: 20.68 | F21: 2169.87
C22: Накладные расходы 93% ФОТ (от 2 060,74) | F22: 1916.49
C23: Сметная прибыль 62% ФОТ (от 2 060,74) | F23: 1277.66
C24: Итого c накладными и см. прибылью | F24: 5364.02 | G24: =F24/D21*1.2*1.0224*1.0192 -> 2235.788076
A25: 5 | B25: ФССЦ-01.7.04.01-0002 | C25: Доводчик дверной гидравлический TS-68 с зубчатым приводом (нагрузка до 90 кг) (шт) | D25: 3 | E25: 272.22 | F25: 8076.77 | G25: =F25/D25*1.2*1.0224*1.0192 -> 3366.494916
A26: - окна ПВХ | R26: - окна ПВХ
A27: 6 | B27: ФЕР10-01-034-02 | C27: Установка в жилых и общественных зданиях оконных блоков из ПВХ профилей: глухих с площадью проема более 2 м2 (100 м2) | D27: 0.1017 | E27: 7736.12 | F27: 10631.62
C28: Накладные расходы 108% ФОТ (от 7 795,41) | F28: 8419.04
C29: Сметная прибыль 55% ФОТ (от 7 795,41) | F29: 4287.48
C30: Итого c накладными и см. прибылью | F30: 23338.14 | G30: =F30/D27/100*1.2*1.0224*1.0192 -> 2869.503704
A31: 7 | B31: ФССЦ-11.3.02.04-0001 | C31: Блок оконный из ПВХ-профилей, трехстворчатый, глухой, с двухкамерным стеклопакетом (32 мм), площадью более 3 м2 (ОК-1) (м2) | D31: 10.17 | E31: 1809.04 | F31: 45994.84
A32: 8 | B32: ФЕР09-04-009-04 | C32: Монтаж оконных блоков: из алюминиевых многокамерных профилей с герметичными стеклопакетами (100 м2) | D32: 0.3006 | E32: 8992.8 | F32: 101376.53
C33: Накладные расходы 93% ФОТ (от 87 083,82) | F33: 80987.95
C34: Сметная прибыль 62% ФОТ (от 87 083,82) | F34: 53991.97
C35: Итого c накладными и см. прибылью | F35: 236356.45 | G35: =F35/D32/100*1.2*1.0224*1.0192 -> 9831.957305 | H35: =G35*1.45 -> 14256.33809 | I35: =G35*2.85 -> 28021.07832
A36: 9 | B36: ФССЦ-09.4.03.05-0001 | C36: Блоки оконные из алюминиевого комбинированного профиля одинарной конструкции: с двухкамерным стеклопакетом двухстворчатые, неоткрываемые (ГОСТ 23166-99) (м2) | D36: 30.06 | E36: 473.63 | F36: 193769.9 | G36: =F36/D36*1.2*1.0224*1.0192 -> 8060.441693 | H36: =G36*1.45 -> 11687.64045 | I36: =G36*2.85 -> 22972.25882
A37: Итого прямые затраты по разделу в текущих ценах | F37: 448078.02 | S37: Итого прямые затраты по разделу в текущих ценах
A38: Накладные расходы | F38: 102074.61 | S38: Накладные расходы
A39: Сметная прибыль | F39: 66724.52 | S39: Сметная прибыль
A40: Итого по разделу 1 Проёмы (лист 7) | F40: 616877.15 | S40: Итого по разделу 1 Проёмы (лист 7)
A41: Раздел 2. Стены (лист 7) | Q41: Раздел 2. Стены (лист 7)
A42: 10 | B42: ФЕР08-02-001-01 | C42: Кладка стен кирпичных наружных: простых при высоте этажа до 4 м (м3) | D42: 45 | E42: 105.51 | F42: 136452.63
C43: Накладные расходы 110% ФОТ (от 122 407,57) | F43: 134648.33
C44: Сметная прибыль 69% ФОТ (от 122 407,57) | F44: 84461.22
C45: Итого c накладными и см. прибылью | F45: 355562.18
A46: 11 | B46: ФССЦ-04.3.01.09-0012 | C46: Раствор готовый кладочный, цементный, М50 (м3) | D46: 10.8 | E46: 485.9 | F46: 44658.1
A47: 12 | B47: ФССЦ-06.1.01.05-0035 | C47: Кирпич керамический одинарный, марка 100, размер 250х120х65 мм (1000 шт) | D47: 17.1 | E47: 1752.6 | F47: 251443.77
A48: 13 | B48: ФЕР08-02-007-01 | C48: Армирование кладки стен и других конструкций (т) | D48: 0.2916 | E48: 675.4 | F48: 8361.23
C49: Накладные расходы 110% ФОТ (от 8 272,90) | F49: 9100.19
C50: Сметная прибыль 69% ФОТ (от 8 272,90) | F50: 5708.3
C51: Итого c накладными и см. прибылью | F51: 23169.72
A52: 14 | B52: ФССЦ-08.4.02.03-0021 | C52: Каркасы и сетки арматурные плоские, собранные и сваренные (связанные) в арматурные изделия, класс ВР-I, диаметр 4 мм / прим. 5мм (т) | D52: 0.292 | E52: 8817.17 | F52: 50101.98
A53: 15 | B53: ФЕР15-02-041-03 | C53: Устройство металлического каркаса из направляющих профилей под облицовку различными материалами: стен (100 м2) | D53: 7.009 | E53: 3834.51 | F53: 875499.73
C54: Накладные расходы 100% ФОТ (от 172 275,39) | F54: 172275.39
C55: Сметная прибыль 49% ФОТ (от 172 275,39) | F55: 84414.94
C56: Итого c накладными и см. прибылью | F56: 1132190.06
A57: 16 | B57: ФЕР09-04-006-02 | C57: Монтаж ограждающих конструкций стен: из профилированного листа при высоте здания до 30 м (100 м2) | D57: 7.009 | E57: 5063.29 | F57: 758699.55
C58: Накладные расходы 93% ФОТ (от 481 695,78) | F58: 447977.08
C59: Сметная прибыль 62% ФОТ (от 481 695,78) | F59: 298651.38
C60: Итого c накладными и см. прибылью | F60: 1505328.01
A61: 17 | B61: ФССЦ-08.3.09.04-0016 | C61: Профнастил оцинкованный с покрытием: полиэстер С21-1000-0,7 (м2) | D61: 735.9 | E61: 79.64 | F61: 1135805.13
A62: 18 | B62: ФССЦ-01.7.15.04-0045 | C62: Винты самонарезающие для крепления профилированного настила и панелей к несущим конструкциям (т) | D62: 0.0405 | E62: 35011 | F62: 6437.47
A63: 19 | B63: ФССЦ-01.7.15.08-0011 | C63: Заклепки комбинированные для соединения профилированного стального настила и разнообразных листовых деталей (т) | D63: 0.008 | E63: 9526 | F63: 1859.48
A64: 20 | B64: ФЕР26-01-036-01 | C64: Изоляция изделиями из волокнистых и зернистых материалов с креплением на клее и дюбелями холодных поверхностей: наружных стен (100 м2) | D64: 7.009 | E64: 2727.39 | F64: 451399.93
C65: Накладные расходы 97% ФОТ (от 58 337,16) | F65: 56587.05
C66: Сметная прибыль 55% ФОТ (от 58 337,16) | F66: 32085.44
C67: Итого c накладными и см. прибылью | F67: 540072.42
A68: 21 | B68: ФССЦ-12.2.05.05-0026 | C68: Плиты минераловатные на синтетическом связующем Техно (ТУ 5762-043-17925162-2006), марки: ТЕХНОВЕНТ СТАНДАРТ (м3) | D68: 70.09 | E68: 565.81 | F68: 444958.53
A69: Итого прямые затраты по разделу в текущих ценах | F69: 4165677.53 | S69: Итого прямые затраты по разделу в текущих ценах
A70: Накладные расходы | F70: 820588.04 | S70: Накладные расходы
A71: Сметная прибыль | F71: 505321.28 | S71: Сметная прибыль
A72: Итого по разделу 2 Стены (лист 7) | F72: 5491586.85 | S72: Итого по разделу 2 Стены (лист 7)
A73: Раздел 3. Перемычки (лист 7) | Q73: Раздел 3. Перемычки (лист 7)
A74: 22 | B74: ФЕРр53-25-1 | C74: Устройство металлических перемычек в стенах существующих зданий (т) | D74: 0.283 | E74: 3160.06 | F74: 25592.8
C75: Накладные расходы 92% ФОТ (от 22 112,61) | F75: 20343.6
C76: Сметная прибыль 52% ФОТ (от 22 112,61) | F76: 11498.56
C77: Итого c накладными и см. прибылью | F77: 57434.96
A78: 23 | B78: ФССЦ-07.2.07.12-0031 | C78: Прочие конструкции одноэтажных производственных зданий, масса сборочной единицы до 0,1 т (т) | D78: 0.294 | E78: 12990.48 | F78: 39872.46
A79: 24 | B79: ФЕР09-03-002-12 | C79: Монтаж балок, ригелей перекрытия, покрытия и под установку оборудования многоэтажных зданий при высоте здания: до 25 м (т) | D79: 1.421 | E79: 1027.65 | F79: 29903.93
C80: Накладные расходы 93% ФОТ (от 18 249,39) | F80: 16971.93
C81: Сметная прибыль 62% ФОТ (от 18 249,39) | F81: 11314.62
C82: Итого c накладными и см. прибылью | F82: 58190.48
A83: 25 | B83: ФССЦ-07.2.07.12-0031 | C83: Прочие конструкции одноэтажных производственных зданий, масса сборочной единицы до 0,1 т (т) | D83: 1.421 | E83: 12990.48 | F83: 192716.89
A84: 26 | B84: ФЕР15-02-036-01 | C84: Штукатурка по сетке без устройства каркаса: улучшенная стен (100 м2) | D84: 0.094 | E84: 6305.02 | F84: 9436.12
C85: Накладные расходы 100% ФОТ (от 6 312,16) | F85: 6312.16
C86: Сметная прибыль 49% ФОТ (от 6 312,16) | F86: 3092.96
C87: Итого c накладными и см. прибылью | F87: 18841.24
A88: Итого прямые затраты по разделу в текущих ценах | F88: 297522.2 | S88: Итого прямые затраты по разделу в текущих ценах
A89: Накладные расходы | F89: 43627.69 | S89: Накладные расходы
A90: Сметная прибыль | F90: 25906.14 | S90: Сметная прибыль
A91: Итого по разделу 3 Перемычки (лист 7) | F91: 367056.03 | S91: Итого по разделу 3 Перемычки (лист 7)
A92: Раздел 4. Отмостка (лист 7) | Q92: Раздел 4. Отмостка (лист 7)
A93: 27 | B93: ФЕР11-01-001-02 | C93: Уплотнение грунта: щебнем (100 м2) | D93: 0.63 | E93: 210.47 | F93: 3335.13
C94: Накладные расходы 112% ФОТ (от 2 621,70) | F94: 2936.3
C95: Сметная прибыль 65% ФОТ (от 2 621,70) | F95: 1704.11
C96: Итого c накладными и см. прибылью | F96: 7975.54
A97: 28 | B97: ФССЦ-02.2.05.04-1572 | C97: Щебень М 600, фракция 5(3)-10 мм, группа 2 (м3) | D97: 3.21 | E97: 145.8 | F97: 6594.37
A98: 29 | B98: ФЕР06-01-001-01 | C98: Устройство бетонной подготовки (100 м3) | D98: 0.032 | E98: 4711.5 | F98: 3206.71
C99: Накладные расходы 102% ФОТ (от 2 632,64) | F99: 2685.29
C100: Сметная прибыль 58% ФОТ (от 2 632,64) | F100: 1526.93
C101: Итого c накладными и см. прибылью | F101: 7418.93
A102: 30 | B102: ФССЦ-04.1.02.05-0003 | C102: Смеси бетонные тяжелого бетона (БСТ), класс В7,5 (М100) (м3) | D102: 3.213 | E102: 560 | F102: 13692.52
A103: 31 | B103: ФЕР11-01-004-09 | C103: Устройство гидроизоляции обмазочной: в один слой праймером (100 м2) | D103: 0.63 | E103: 578.79 | F103: 13829.37
C104: Накладные расходы 112% ФОТ (от 11 634,28) | F104: 13030.39
C105: Сметная прибыль 65% ФОТ (от 11 634,28) | F105: 7562.28
C106: Итого c накладными и см. прибылью | F106: 34422.04
A107: 32 | B107: ФЕР08-01-008-03 | C107: Устройство горизонтальной изоляции: методом наплавления (100 м2) | D107: 0.63 | E107: 222.13 | F107: 3068.19
C108: Накладные расходы 110% ФОТ (от 2 368,28) | F108: 2605.11
C109: Сметная прибыль 69% ФОТ (от 2 368,28) | F109: 1634.11
C110: Итого c накладными и см. прибылью | F110: 7307.41
A111: 33 | B111: Цена поставщика | C111: Техноэласт Терра (м2) | D111: 72.45 | E111: 45.04 | F111: 27378.04
A112: 34 | B112: ФЕР11-01-009-01 | C112: Устройство тепло- и звукоизоляции сплошной из плит: или матов минераловатных или стекловолокнистых (100 м2) | D112: 0.63 | E112: 416.53 | F112: 9928.91
C113: Накладные расходы 112% ФОТ (от 9 646,34) | F113: 10803.9
C114: Сметная прибыль 65% ФОТ (от 9 646,34) | F114: 6270.12
C115: Итого c накладными и см. прибылью | F115: 27002.93
A116: 35 | B116: ФССЦ-12.2.05.09-0009 | C116: Пенополистирол экструдированный ТЕХНОНИКОЛЬ XPS CARBON 35-300 (м3) | D116: 6.3 | E116: 1634.71 | F116: 52935.18
A117: 36 | B117: ФЕР06-01-001-01 | C117: Устройство бетонной подготовки (100 м3) | D117: 0.063 | E117: 4711.5 | F117: 6313.21
C118: Накладные расходы 102% ФОТ (от 5 183,00) | F118: 5286.66
C119: Сметная прибыль 58% ФОТ (от 5 183,00) | F119: 3006.14
C120: Итого c накладными и см. прибылью | F120: 14606.01
A121: 37 | B121: ФССЦ-04.1.02.05-0005 | C121: Смеси бетонные тяжелого бетона (БСТ), класс В12,5 (М150) (м3) | D121: 6.43 | E121: 600 | F121: 29590.86
A122: 38 | B122: ФЕР06-03-004-12 | C122: Армирование подстилающих слоев и набетонок (т) | D122: 0.1273 | E122: 473.11 | F122: 1207.87
C123: Накладные расходы 102% ФОТ (от 853,85) | F123: 870.93
C124: Сметная прибыль 58% ФОТ (от 853,85) | F124: 495.23
C125: Итого c накладными и см. прибылью | F125: 2574.03
A126: 39 | B126: ФССЦ-08.4.02.06-0003 | C126: Сетка сварная из холоднотянутой проволоки 4-5 мм (т) | D126: 0.1273 | E126: 8780.09 | F126: 10651.73
A127: 40 | B127: ФЕР27-07-001-01 | C127: Устройство асфальтобетонных покрытий дорожек и тротуаров однослойных из литой мелкозернистой асфальтобетонной смеси толщиной 3 см (100 м2) | D127: 0.63 | E127: 360.72 | F127: 6039.91
C128: Накладные расходы 113% ФОТ (от 4 599,77) | F128: 5197.74
C129: Сметная прибыль 77% ФОТ (от 4 599,77) | F129: 3541.82
C130: Итого c накладными и см. прибылью | F130: 14779.47
A131: 41 | B131: ФССЦ-04.2.01.01-0046 | C131: Смеси асфальтобетонные плотные мелкозернистые тип А марка I (т) | D131: 4.498 | E131: 503.58 | F131: 19321.33
A132: 42 | B132: ФЕР27-07-001-02 | C132: На каждые 0,5 см изменения толщины покрытия добавлять к расценке 27-07-001-01 (100 м2) | D132: 0.63 | E132: 143.76 | F132: 3100.4
C133: Накладные расходы 113% ФОТ (от 2 946,21) | F133: 3329.22
C134: Сметная прибыль 77% ФОТ (от 2 946,21) | F134: 2268.58
C135: Итого c накладными и см. прибылью | F135: 8698.2
A136: 43 | B136: ФССЦ-04.2.01.01-0046 | C136: Смеси асфальтобетонные плотные мелкозернистые тип А марка I (т) | D136: 3.049 | E136: 503.58 | F136: 13097.09
A137: 44 | B137: ФЕР46-08-022-03 | C137: Гидроизоляция полиуретановым герметиком с уплотнением пенополиэтиленовым прокладочным шнуром: горизонтальных швов (100 м) | D137: 0.63 | E137: 110.98 | F137: 3096.75
C138: Накладные расходы 103% ФОТ (от 3 086,68) | F138: 3179.28
C139: Сметная прибыль 59% ФОТ (от 3 086,68) | F139: 1821.14
C140: Итого c накладными и см. прибылью | F140: 8097.17
A141: 45 | B141: ФССЦ-01.7.07.26-0022 | C141: Шнур пенополиэтиленовый теплоизоляционный прокладочный "Вилатерм",: сечение круглое с отверстием, диаметр 40 мм (100 м) | D141: 0.6489 | E141: 325 | F141: 1541.62
A142: Итого прямые затраты по разделу в текущих ценах | F142: 227929.19 | S142: Итого прямые затраты по разделу в текущих ценах
A143: Накладные расходы | F143: 49924.83 | S143: Накладные расходы
A144: Сметная прибыль | F144: 29830.46 | S144: Сметная прибыль
A145: Итого по разделу 4 Отмостка (лист 7) | F145: 307684.48 | S145: Итого по разделу 4 Отмостка (лист 7)
A146: Раздел 5. Демонтажные работы (лист 7) | Q146: Раздел 5. Демонтажные работы (лист 7)
A147: 46 | B147: ФЕР10-01-034-02 | C147: Демонтаж. Установка в жилых и общественных зданиях оконных блоков из ПВХ профилей: глухих с площадью проема более 2 м2 (100 м2) | D147: 0.202 | E147: 1357.15 | F147: 10946.93
C148: Накладные расходы 108% ФОТ (от 10 735,34) | F148: 11594.17
C149: Сметная прибыль 55% ФОТ (от 10 735,34) | F149: 5904.44
C150: Итого c накладными и см. прибылью | F150: 28445.54
A151: 47 | B151: ФЕР09-04-011-01 | C151: Демонтаж. Монтаж каркасов ворот большепролетных зданий, ангаров и др. без механизмов открывания (т) | D151: 0.936 | E151: 2379.3 | F151: 37086.13
C152: Накладные расходы 93% ФОТ (от 19 206,52) | F152: 17862.06
C153: Сметная прибыль 62% ФОТ (от 19 206,52) | F153: 11908.04
C154: Итого c накладными и см. прибылью | F154: 66856.23
A155: 48 | B155: ФЕР09-04-006-01 | C155: Демонтаж. Монтаж фахверка (т) | D155: 4.3 | E155: 664.05 | F155: 71320.66
C156: Накладные расходы 93% ФОТ (от 48 331,46) | F156: 44948.26
C157: Сметная прибыль 62% ФОТ (от 48 331,46) | F157: 29965.51
C158: Итого c накладными и см. прибылью | F158: 146234.43
A159: 49 | B159: ФЕР46-04-001-04 | C159: Разборка: кирпичных стен (м3) | D159: 61 | E159: 147.07 | F159: 222296
C160: Накладные расходы 91% ФОТ (от 208 192,59) | F160: 189455.26
C161: Сметная прибыль 52% ФОТ (от 208 192,59) | F161: 108260.15
C162: Итого c накладными и см. прибылью | F162: 520011.41
A163: 50 | B163: ФЕР07-01-035-08 | C163: Установка панелей наружных стен многоэтажных зданий длиной: до 6 м рядовых при наибольшей массе монтажных элементов в здании до 8 т, площадь панелей до 10 м2 (разборка плитограждения ПЗ-6) (100 шт) | D163: 0.36 | E163: 16184.21 | F163: 135355.57
C164: Накладные расходы 110% ФОТ (от 111 734,00) | F164: 122907.4
C165: Сметная прибыль 73% ФОТ (от 111 734,00) | F165: 81565.82
C166: Итого c накладными и см. прибылью | F166: 339828.79
A167: -погрузка и вывоз строительного мусора | R167: -погрузка и вывоз строительного мусора
A168: 51 | B168: ФССЦпг-01-01-01-043 | C168: Погрузо-разгрузочные работы при автомобильных перевозках: Погрузка мусора строительного с погрузкой экскаваторами емкостью ковша до 0,5 м3 (1 т груза) | D168: 109.8 | E168: 3.28 | F168: 8121.25
A169: 52 | B169: ФССЦпг-01-01-01-003 | C169: Погрузка при автомобильных перевозках изделий из сборного железобетона, бетона, керамзитобетона массой до 3 т (1 т груза) | D169: 75.6 | E169: 10.71 | F169: 18436.32
A170: 53 | B170: ФССЦпг-03-21-01-110 ТБО Тимохово | C170: Перевозка грузов I класса автомобилями-самосвалами грузоподъемностью 10 т работающих вне карьера на расстояние до 110 км (1 т груза) | D170: 185.4 | E170: 50.78 | F170: 107326.58
A171: - погрузка и вывоз металлолома | R171: - погрузка и вывоз металлолома
A172: 54 | B172: ФССЦпг-01-01-01-045 | C172: Погрузо-разгрузочные работы при автомобильных перевозках: Погрузка прочих материалов, деталей (с использованием погрузчика) (1 т груза) | D172: 5.236 | E172: 17.95 | F172: 3324.29
A173: 55 | B173: ФССЦпг-03-21-01-001 | C173: Перевозка грузов автомобилями-самосвалами грузоподъемностью 10 т работающих вне карьера на расстояние: I класс груза до 1 км (на склад) (1 т груза) | D173: 5.236 | E173: 2.91 | F173: 173.7
A174: Итого прямые затраты по разделу в текущих ценах | F174: 614387.43 | S174: Итого прямые затраты по разделу в текущих ценах
A175: Накладные расходы | F175: 386767.15 | S175: Накладные расходы
A176: Сметная прибыль | F176: 237603.96 | S176: Сметная прибыль
A177: Итого по разделу 5 Демонтажные работы (лист 7) | F177: 1238758.54 | S177: Итого по разделу 5 Демонтажные работы (лист 7)
A178: Раздел 6. Рамы ворот в осях 1/И1-Л1; 33/И1-Л1 (лист 8) | Q178: Раздел 6. Рамы ворот в осях 1/И1-Л1; 33/И1-Л1 (лист 8)
A179: 56 | B179: ФЕР09-04-011-01 | C179: Монтаж каркасов ворот большепролетных зданий, ангаров и др. без механизмов открывания (т) | D179: 8.538 | E179: 4746.49 | F179: 667009.3
C180: Накладные расходы 93% ФОТ (от 315 747,21) | F180: 293644.91
C181: Сметная прибыль 62% ФОТ (от 315 747,21) | F181: 195763.27
C182: Итого c накладными и см. прибылью | F182: 1156417.48
A183: 57 | B183: ФССЦ-07.2.07.12-0031 | C183: Прочие конструкции одноэтажных производственных зданий, масса сборочной единицы до 0,1 т (т) | D183: 8.538 | E183: 12990.48 | F183: 1157928.78
A184: 58 | B184: ФЕР06-03-002-01 | C184: Устройство подливки толщиной 20 мм (100 м2) | D184: 0.026 | E184: 716.71 | F184: 660.16
C185: Накладные расходы 102% ФОТ (от 614,05) | F185: 626.33
C186: Сметная прибыль 58% ФОТ (от 614,05) | F186: 356.15
C187: Итого c накладными и см. прибылью | F187: 1642.64
A188: 59 | B188: ФССЦ-04.3.01.09-0018 | C188: Раствор готовый кладочный, цементный, М300 (м3) | D188: 0.053 | E188: 711.5 | F188: 291.49
A189: 60 | B189: ФЕР06-03-002-02 | C189: На каждые 10 мм изменения толщины добавлять или исключать к расценке 06-03-002-01 (100 м2) | D189: 0.026 | E189: 202.5 | F189: 189.43
C190: Накладные расходы 102% ФОТ (от 175,97) | F190: 179.49
C191: Сметная прибыль 58% ФОТ (от 175,97) | F191: 102.06
C192: Итого c накладными и см. прибылью | F192: 470.98
A193: 61 | B193: ФССЦ-04.3.01.09-0018 | C193: Раствор готовый кладочный, цементный, М300 (м3) | D193: 0.0265 | E193: 711.5 | F193: 145.75
A194: 62 | B194: ФЕР46-08-012-03 | C194: Установка анкеров в отверстия глубиной 100 мм с применением составов на цементно-эпоксидной основе, диаметр анкера: 12 мм (100 шт) | D194: 4.48 | E194: 101.15 | F194: 18225.78
C195: Накладные расходы 103% ФОТ (от 18 036,66) | F195: 18577.76
C196: Сметная прибыль 59% ФОТ (от 18 036,66) | F196: 10641.63
C197: Итого c накладными и см. прибылью | F197: 47445.17
A198: 63 | B198: ФССЦ-01.7.15.02-0047 | C198: Болты анкерные с гайкой, размер 20,0х150 мм(прим. Механический анкер R-XPT M20x200) (100 шт) | D198: 4.48 | E198: 1121 | F198: 49618.15
A199: Итого прямые затраты по разделу в текущих ценах | F199: 1894068.84 | S199: Итого прямые затраты по разделу в текущих ценах
A200: Накладные расходы | F200: 313028.49 | S200: Накладные расходы
A201: Сметная прибыль | F201: 206863.11 | S201: Сметная прибыль
A202: Итого по разделу 6 Рамы ворот в осях 1/И1-Л1; 33/И1-Л1 (лист 8) | F202: 2413960.44 | S202: Итого по разделу 6 Рамы ворот в осях 1/И1-Л1; 33/И1-Л1 (лист 8)
A203: Раздел 7. Разные работы (лист 7) | Q203: Раздел 7. Разные работы (лист 7)
A204: 64 | B204: ФЕР29-01-253-02 | C204: Установка гильз из стальных труб диаметром: 150 мм (10 шт) | D204: 0.3 | E204: 80.57 | F204: 1082.69
C205: Накладные расходы 146% ФОТ (от 1 078,80) | F205: 1575.05
C206: Сметная прибыль 75% ФОТ (от 1 078,80) | F206: 809.1
... 19 more rows
